Workbook

Sheet zadání
A1: =lang!A3 -> v. 1.1.5 | D1: =lang!A2 -> TLUMIČE HLUKU
O2: =lang!A4 -> Ján Skovajsa-KLIMAT, Beckov 587, 916 38 | klimat@klimat.sk| www.klimat.sk | tel.: +421 032 777 7441
A3: =lang!A5 -> Typ tlumiče
C4: =lang!A6 -> kulisový | F4: =lang!A7 -> buňkový | I4: =lang!A80 -> kruhový | L4: =lang!A8 -> jazyk: | N4: CZ
A5: =lang!A9 -> Kulisový tlumič
B9: =lang!A10 -> šířka tlumiče: | C9: A | D9: 1000 | E9: mm | J9: =lang!A13 -> šířka kulisy: | K9: s | L9: 100 | M9: mm
B11: =lang!A11 -> výška tlumiče: | C11: B | D11: 300 | E11: mm | J11: =lang!A14 -> počet kulis: | K11: n | L11: 2
B13: =lang!A12 -> délka tlumiče: | C13: LT | D13: 1000 | E13: mm | J13: =lang!A15 -> průtočná mezera: | K13: m | L13: =db_kul!F5 -> 266.6666667 | M13: =calc!H33 -> mm
J15: =lang!A16 -> úprava hran: | L15: bez úpravy
A17: =lang!A20 -> Buňkový tlumič
B22: =lang!A21 -> šířka buňky: | C22: A | D22: 250 | E22: mm | J22: =lang!A25 -> tloušťka izolace: | K22: D | L22: 50 | M22: mm
B24: =lang!A22 -> výška buňky: | C24: B | D24: 600 | E24: mm | J24: =lang!A26 -> počet buněk: | K24: n × m | L24: 5 | M24: x | N24: 2
B26: =lang!A23 -> délka buňky: | C26: L | D26: 2000 | E26: mm | J26: =lang!A15 -> průtočná mezera: | K26: s | L26: =db_bun!F12 -> 150 | M26: mm
J28: =lang!A24 -> celkový rozměr: | K28: =calc!G36 -> 1250 x 1200 x 2000 mm
A30: Kruhový tlumič
B32: =lang!A76 -> průměr tlumiče: | C32: D | D32: 140 | E32: mm | J32: =lang!A12 -> délka tlumiče: | K32: l | L32: 900 | M32: mm
B34: =lang!A25 -> tloušťka izolace: | C34: SD | D34: =db_kruh!B8 -> 50 | E34: mm | J34: =lang!A77 -> provedení: | K34: =IF(AND(L34=lang!A79,D32>315),1,0) -> 0 | L34: bez jádra
A36: =lang!A27 -> dopočítat vlastní hluk a tlakovou ztrátu | G36: =IF(calc!$Q$6=TRUE,1,0) -> 1 | J36: =lang!A28 -> útlum ve frekvenci: | L36: 55 | M36: Hz
A38: =lang!A29 -> Okrajové podmínky před tlumičem
B40: =lang!A30 -> průtok vzduchu: | C40: V | D40: 10000 | F40: m3/h | J40: =lang!A32 -> hustota vzduchu: | K40: ρ | L40: 1.2 | M40: kg/m3
E42: =lang!A31 -> hladina akustického výkonu zdroje: | I42: =lang!A66 -> váhový filtr A | L42: =IF(calc!Q7=TRUE,1,0) -> 1
D43: =lang!A61 -> frekvence | E43: 63 | F43: 125 | G43: 250 | H43: 500 | I43: 1000 | J43: 2000 | K43: 4000 | L43: 8000 | M43: Σ | N43: Hz
D44: =IF(L42=0,"Lw","Lw(A)") -> Lw(A) | E44: 58 | F44: 65 | G44: 68 | H44: 75 | I44: 80 | J44: 77 | K44: 70 | L44: 68 | M44: =calc!N44 -> 83.18384514 | N44: dB
A46: =lang!A70 -> přidat zadání v třetinooktávových pásmech: | I46: =IF(calc!$D$48=TRUE,1,0) -> 0
B47: =D43 -> frekvence | C47: 16 | D47: 20 | E47: 25 | F47: 31.5 | G47: 40 | H47: 50 | I47: 63 | J47: 80 | K47: 100 | L47: 125 | M47: 160 | N47: 200 | O47: 250 | P47: 315 | Q47: 400 | R47: 500 | S47: 630 | T47: 800 | U47: 1000 | V47: 1250 | W47: 1600 | X47: 2000 | Y47: 2500 | Z47: 3150 | AA47: 4000 | AB47: 5000 | AC47: 6300 | AD47: 8000 | AE47: 10000 | AF47: 12500 | AG47: 16000 | AH47: Σ | AI47: Hz
B48: =D44 -> Lw(A) | C48: 15 | D48: 25 | E48: 48 | F48: 36 | G48: 27 | H48: 55 | I48: 42 | J48: 45 | K48: 48 | L48: 53 | M48: 56 | N48: 58 | O48: 61 | P48: 64 | Q48: 70 | R48: 75 | S48: 73 | T48: 78 | U48: 80 | V48: 81 | W48: 77 | X48: 75 | Y48: 70 | Z48: 68 | AA48: 67 | AB48: 60 | AC48: 58 | AD48: 55 | AE48: 51 | AF48: 45 | AG48: 41 | AH48: =calc!AI16 -> 86.63925113 | AI48: dB
A50: =lang!A45 -> dopočítat hladinu akustického tlaku v místě posluchače | I50: =IF(calc!$D$28=TRUE,1,0) -> 0
F52: =lang!A46 -> vzdálenost k posluchači: | G52: r | H52: 2 | I52: m | J52: =calc!I32 -> 1 | L52: =lang!A53 -> prostředí: | N52: interiér
F54: =lang!A47 -> směrový činitel: | G54: Q | H54: 2 | L54: =lang!A69 -> rezerva Lp: | N54: 0 | O54: dB
F56: =lang!A48 -> střední hodnota součinitele zvukové pohltivosti: | G56: α | H56: 0.4 | L56: =lang!A52 -> celková plocha místnosti: | M56: S | N56: 60 | O56: m2
F58: =lang!A49 -> akustický výkon koncového elementu: | G58: LWKO | H58: 40 | I58: dB | L58: =lang!A51 -> počet vyústek: | M58: KE | N58: 1 | O58: =lang!A56 -> ks
A60: =lang!A33 -> Výstup v oktávových pásmech
M61: =lang!A34 -> součtová hladina
E62: 63 | F62: 125 | G62: 250 | H62: 500 | I62: 1000 | J62: 2000 | K62: 4000 | L62: 8000 | O62: Hz
A63: =lang!A35 -> vložený útlum | E63: =calc!E42 -> 17.4196 | F63: =calc!F42 -> 24.32092667 | G63: =calc!G42 -> 28.07166667 | H63: =calc!H42 -> 46.77693333 | I63: =calc!I42 -> 102.7604667 | J63: =calc!J42 -> 71.90409333 | K63: =calc!K42 -> 60.80853333 | L63: =calc!L42 -> 48.95186667 | M63: - | O63: dB
A64: =lang!A36 -> vlastní hluk tlumiče | E64: =calc!E43 -> 0 | F64: =calc!F43 -> 0 | G64: =calc!G43 -> 0 | H64: =calc!H43 -> 0 | I64: =calc!I43 -> 0 | J64: =calc!J43 -> 0 | K64: =calc!K43 -> 0 | L64: =calc!L43 -> 0 | M64: =calc!N43 -> 0 | O64: =IF($L$42=0,"dB","dB(A)") -> dB(A)
A65: =lang!A37 -> akustický výkon za tlumičem | E65: =calc!E47 -> 40.58077995 | F65: =calc!F47 -> 40.67944475 | G65: =calc!G47 -> 39.92877483 | H65: =calc!H47 -> 28.22960024 | I65: =calc!I47 -> 0 | J65: =calc!J47 -> 6.266367831 | K65: =calc!K47 -> 9.685441498 | L65: =calc!L47 -> 19.10187131 | M65: =calc!N47 -> 45.27922783 | O65: =IF($L$42=0,"dB","dB(A)") -> dB(A)
D82: =lang!A38 -> tlaková ztráta: | E82: =calc!S43 -> 3.958576775 | F82: Pa | K82: =lang!A39 -> rychlost v celkovém průřezu: | L82: =calc!S41 -> 1.851851852 | M82: m/s
D84: =CONCATENATE(lang!A35," pro ",L36," Hz:") -> vložený útlum pro 55 Hz: | E84: =calc!S44 -> 9.946492308 | F84: dB | K84: =lang!A40 -> rychlost ve volné ploše: | L84: =calc!S42 -> 3.086419753 | M84: m/s
B86: =lang!A50 -> hladina akustického tlaku v místě posluchače Lp: | E86: =calc!S45 ->  | F86: =O64 -> dB(A) | L86: =calc!AC19 -> 
K87: =lang!A65 -> plocha tlumiče: | L87: =calc!W37 -> 24 | M87: m2
A89: =lang!A71 -> Výstup v třetinooktávových pásmech
B90: =D43 -> frekvence | C90: 16 | D90: 20 | E90: 25 | F90: 31.5 | G90: 40 | H90: 50 | I90: 63 | J90: 80 | K90: 100 | L90: 125 | M90: 160 | N90: 200 | O90: 250 | P90: 315 | Q90: 400 | R90: 500 | S90: 630 | T90: 800 | U90: 1000 | V90: 1250 | W90: 1600 | X90: 2000 | Y90: 2500 | Z90: 3150 | AA90: 4000 | AB90: 5000 | AC90: 6300 | AD90: 8000 | AE90: 10000 | AF90: 12500 | AG90: 16000 | AH90: Σ | AI90: Hz
B91: =lang!A35 -> vložený útlum | C91: =calc!C49 -> 0.1666666667 | D91: =calc!D49 -> 0.2 | E91: =calc!E49 -> 7.408333333 | F91: =calc!F49 -> 13.48833333 | G91: =calc!G49 -> 12.73625333 | H91: =calc!H49 -> 5.2758 | I91: =calc!I49 -> 17.4196 | J91: =calc!J49 -> 15.17 | K91: =calc!K49 -> 10.775 | L91: =calc!L49 -> 24.32092667 | M91: =calc!M49 -> 0.6666666667 | N91: =calc!N49 -> 4.016666667 | O91: =calc!O49 -> 28.07166667 | P91: =calc!P49 -> 9.697413333 | Q91: =calc!Q49 -> 12.5214 | R91: =calc!R49 -> 46.77693333 | S91: =calc!S49 -> 29.10536 | T91: =calc!T49 -> 36.61901333 | U91: =calc!U49 -> 102.7604667 | V91: =calc!V49 -> 38.22 | W91: =calc!W49 -> 26.69518667 | X91: =calc!X49 -> 71.90409333 | Y91: =calc!Y49 -> 16.25732 | Z91: =calc!Z49 -> 12.17826667 | AA91: =calc!AA49 -> 60.80853333 | AB91: =calc!AB49 -> 10.4874 | AC91: =calc!AC49 -> 17.13403333 | AD91: =calc!AD49 -> 48.95186667 | AE91: =calc!AE49 -> 7.831893333 | AF91: =calc!AF49 -> 6.562693333 | AG91: =calc!AG49 -> 7.894 | AH91: - | AI91: dB
B92: =lang!A36 -> vlastní hluk tlumiče | C92: =calc!C50 -> 0 | D92: =calc!D50 -> 0 | E92: =calc!E50 -> 0 | F92: =calc!F50 -> 0 | G92: =calc!G50 -> 0 | H92: =calc!H50 -> 0 | I92: =calc!I50 -> 0 | J92: =calc!J50 -> 0 | K92: =calc!K50 -> 0 | L92: =calc!L50 -> 0 | M92: =calc!M50 -> 0 | N92: =calc!N50 -> 0 | O92: =calc!O50 -> 0 | P92: =calc!P50 -> 0 | Q92: =calc!Q50 -> 0 | R92: =calc!R50 -> 0 | S92: =calc!S50 -> 0 | T92: =calc!T50 -> 0 | U92: =calc!U50 -> 0 | V92: =calc!V50 -> 0 | W92: =calc!W50 -> 0 | X92: =calc!X50 -> 0 | Y92: =calc!Y50 -> 0 | Z92: =calc!Z50 -> 0 | AA92: =calc!AA50 -> 0 | AB92: =calc!AB50 -> 0 | AC92: =calc!AC50 -> 0 | AD92: =calc!AD50 -> 0 | AE92: =calc!AE50 -> 0 | AF92: =calc!AF50 -> 0 | AG92: =calc!AG50 -> 0 | AH92: =calc!AI50 -> <15 | AI92: =O64 -> dB(A)
A93: =lang!A37 -> akustický výkon za tlumičem | C93: =calc!C51 -> 14.97374764 | D93: =calc!D51 -> 24.81435708 | E93: =calc!E51 -> 40.59204563 | F93: =calc!F51 -> 22.53595528 | G93: =calc!G51 -> 14.42348106 | H93: =calc!H51 -> 49.72424628 | I93: =calc!I51 -> 24.59550042 | J93: =calc!J51 -> 29.83451397 | K93: =calc!K51 -> 37.2258227 | L93: =calc!L51 -> 28.68495612 | M93: =calc!M51 -> 55.33334605 | N93: =calc!N51 -> 53.98335069 | O93: =calc!O51 -> 32.93054561 | P93: =calc!P51 -> 54.30260279 | Q93: =calc!Q51 -> 57.47860776 | R93: =calc!R51 -> 28.22960024 | S93: =calc!S51 -> 43.89481714 | T93: =calc!T51 -> 41.38130265 | U93: =calc!U51 -> 0 | V93: =calc!V51 -> 42.78022897 | W93: =calc!W51 -> 50.30485382 | X93: =calc!X51 -> 4.828470769 | Y93: =calc!Y51 -> 53.74269834 | Z93: =calc!Z51 -> 55.8217447 | AA93: =calc!AA51 -> 7.126927017 | AB93: =calc!AB51 -> 49.51264859 | AC93: =calc!AC51 -> 40.86632244 | AD93: =calc!AD51 -> 7.011740726 | AE93: =calc!AE51 -> 43.16831606 | AF93: =calc!AF51 -> 38.437929 | AG93: =calc!AG51 -> 33.10812363 | AH93: =calc!AI51 -> 63.89349591 | AI93: =O65 -> dB(A)
C94: =lang!A43 -> kód výrobku:
D95: =lang!A41 -> Technické řešení:
D96: =lang!A42 -> Vysoké učení technické v Brně - Fakulta stavební - Ústav technických zařízení budov

Sheet tisk oktávy
A2: Ján Skovajsa-KLIMAT,
A3: Beckov 587, 916 38
A4: klimat@klimat.sk
A5: www.klimat.sk
A6: +421 032 777 7441
A8: =CONCATENATE(zadání!A5, ,lang!A72) -> Kulisový tlumič - výrobní parametry
B9: =lang!A10 -> šířka tlumiče: | C9: A | D9: =zadání!D9 -> 1000 | E9: mm | J9: =lang!A13 -> šířka kulisy: | K9: m | L9: =zadání!L9 -> 100 | M9: mm
B10: =lang!A11 -> výška tlumiče: | C10: B | D10: =zadání!D11 -> 300 | E10: mm | J10: =lang!A14 -> počet kulis: | K10: n | L10: =zadání!L11 -> 2
B11: =lang!A12 -> délka tlumiče: | C11: LT | D11: =zadání!D13 -> 1000 | E11: mm | J11: =lang!A15 -> průtočná mezera: | K11: s | L11: =zadání!L13 -> 266.6666667 | M11: mm
J12: =lang!A16 -> úprava hran: | L12: =zadání!L15 -> bez úpravy
A13: =CONCATENATE(zadání!A17,lang!A72) -> Buňkový tlumič - výrobní parametry
B14: =lang!A21 -> šířka buňky: | C14: A | D14: =zadání!D22 -> 250 | E14: mm | J14: =lang!A25 -> tloušťka izolace: | K14: =zadání!L22 -> 50 | M14: mm
B15: =lang!A22 -> výška buňky: | C15: B | D15: =zadání!D24 -> 600 | E15: mm | J15: =lang!A26 -> počet buněk: | K15: =zadání!L24 -> 5 | L15: x | M15: =zadání!N24 -> 2 | N15: n x m
B16: =lang!A23 -> délka buňky: | C16: L | D16: =zadání!D26 -> 2000 | E16: mm | J16: =lang!A15 -> průtočná mezera: | K16: =zadání!L26 -> 150 | M16: mm
J17: =zadání!J28 -> celkový rozměr: | K17: =zadání!K28 -> 1250 x 1200 x 2000 mm
A18: =lang!A81 -> Kruhový tlumič
B19: =lang!A76 -> průměr tlumiče: | C19: D | D19: =zadání!$D$32 -> 140 | E19: mm | J19: =lang!A12 -> délka tlumiče: | K19: l | L19: =zadání!$L$32 -> 900 | M19: mm
B20: =lang!A25 -> tloušťka izolace: | C20: SD | D20: =zadání!$D$34 -> 50 | E20: mm | J20: =lang!A77 -> provedení: | L20: =lang!A78 -> bez jádra
B21: =zadání!B40 -> průtok vzduchu: | C21: =zadání!D40 -> 10000 | E21: m3/h
B22: =zadání!C94 -> kód výrobku: | C22: =zadání!D94 -> 00:00:00
A23: =lang!A74 -> Akustické charakteristiky zdroje hluku a tlumiče
D24: =zadání!D43 -> frekvence | E24: 63 | F24: 125 | G24: 250 | H24: 500 | I24: 1000 | J24: 2000 | K24: 4000 | L24: 8000 | M24: =zadání!M61 -> součtová hladina | O24: Hz
A25: =lang!A75 -> hladina akust. výkonu zdroje | E25: =zadání!E44 -> 58 | F25: =zadání!F44 -> 65 | G25: =zadání!G44 -> 68 | H25: =zadání!H44 -> 75 | I25: =zadání!I44 -> 80 | J25: =zadání!J44 -> 77 | K25: =zadání!K44 -> 70 | L25: =zadání!L44 -> 68 | M25: =zadání!M44 -> 83.18384514 | O25: =O27 -> dB(A)
A26: =zadání!A63 -> vložený útlum | E26: =zadání!E63 -> 17.4196 | F26: =zadání!F63 -> 24.32092667 | G26: =zadání!G63 -> 28.07166667 | H26: =zadání!H63 -> 46.77693333 | I26: =zadání!I63 -> 102.7604667 | J26: =zadání!J63 -> 71.90409333 | K26: =zadání!K63 -> 60.80853333 | L26: =zadání!L63 -> 48.95186667 | M26: - | O26: dB
A27: =IF(calc!$Q$6<>TRUE,"",zadání!A64) -> vlastní hluk tlumiče | E27: =zadání!E64 -> 0 | F27: =zadání!F64 -> 0 | G27: =zadání!G64 -> 0 | H27: =zadání!H64 -> 0 | I27: =zadání!I64 -> 0 | J27: =zadání!J64 -> 0 | K27: =zadání!K64 -> 0 | L27: =zadání!L64 -> 0 | M27: =zadání!M64 -> 0 | O27: =zadání!O64 -> dB(A)
A28: =IF(calc!$Q$6<>TRUE,"",zadání!A65) -> akustický výkon za tlumičem | E28: =zadání!E65 -> 40.58077995 | F28: =zadání!F65 -> 40.67944475 | G28: =zadání!G65 -> 39.92877483 | H28: =zadání!H65 -> 28.22960024 | I28: =zadání!I65 -> 0 | J28: =zadání!J65 -> 6.266367831 | K28: =zadání!K65 -> 9.685441498 | L28: =zadání!L65 -> 19.10187131 | M28: =zadání!M65 -> 45.27922783 | O28: =zadání!O65 -> dB(A)
D43: =zadání!$D$82 -> tlaková ztráta: | E43: =zadání!$E$82 -> 3.958576775 | F43: Pa | M43: =zadání!K82 -> rychlost v celkovém průřezu: | N43: =zadání!L82 -> 1.851851852 | O43: m/s
M44: =zadání!K84 -> rychlost ve volné ploše: | N44: =zadání!L84 -> 3.086419753 | O44: m/s
A46: =lang!A73 -> Hladina akustického tlaku v prostoru za tlumičem
H47: =zadání!F52 -> vzdálenost k posluchači: | I47: =zadání!H52 -> 2 | J47: m
H48: =zadání!F54 -> směrový činitel: | I48: =zadání!H54 -> 2
H49: =IF(zadání!J52=2,zadání!L58,zadání!L56) -> celková plocha místnosti: | I49: =IF(zadání!$J$52=2,zadání!N58,zadání!N56) -> 60 | J49: =IF(zadání!$J$52=2,zadání!O58,"m2") -> m2
H50: =IF(zadání!$J$52=2,zadání!F58,zadání!F56) -> střední hodnota součinitele zvukové pohltivosti: | I50: =IF(zadání!$J$52=2,zadání!H58,zadání!H56) -> 0.4 | J50: =IF(zadání!$J$52=2,zadání!I58,"") -> 
H51: =IF(zadání!$J$52=2,"",lang!A64) -> počet vyústek: | I51: =IF(zadání!$J$52=2,"",zadání!N58) -> 1 | J51: =IF(zadání!$J$52=2,"",zadání!O58) -> ks
H52: =IF(zadání!$J$52=2,"",zadání!F58) -> akustický výkon koncového elementu: | I52: =IF(zadání!$J$52=2,"",zadání!H58) -> 40 | J52: =IF(zadání!$J$52=2,"","dB") -> dB
M53: =zadání!B86 -> hladina akustického tlaku v místě posluchače Lp: | N53: =zadání!E86 ->  | O53: =O28 -> dB(A)
D55: =zadání!D95 -> Technické řešení: | O55: =lang!A3 -> v. 1.1.5
D56: =zadání!D96 -> Vysoké učení technické v Brně - Fakulta stavební - Ústav technických zařízení budov

Sheet tisk třetinooktávy (hidden)
AH4: =lang!A82 -> Air Technology s.r.o. | info@airtechnology.cz | www.airtechnology.cz | +420 518 321 001
AH5: =lang!A4 -> Ján Skovajsa-KLIMAT, Beckov 587, 916 38 | klimat@klimat.sk| www.klimat.sk | tel.: +421 032 777 7441
D6: =zadání!C94 -> kód výrobku: | E6: =zadání!D94 -> 00:00:00
B7: =zadání!A5 -> Kulisový tlumič
D8: =lang!A10 -> šířka tlumiče: | E8: =zadání!D9 -> 1000 | G8: mm | L8: =lang!A13 -> šířka kulisy: | M8: =zadání!L9 -> 100 | O8: mm
D9: =lang!A11 -> výška tlumiče: | E9: =zadání!D11 -> 300 | G9: mm | L9: =lang!A14 -> počet kulis: | M9: =zadání!L11 -> 2
D10: =lang!A12 -> délka tlumiče: | E10: =zadání!D13 -> 1000 | G10: mm | L10: =lang!A15 -> průtočná mezera: | M10: =zadání!L13 -> 266.6666667 | O10: mm
L11: =lang!A16 -> úprava hran: | N11: =zadání!L15 -> bez úpravy
B12: =zadání!A17 -> Buňkový tlumič
D13: =lang!A21 -> šířka buňky: | E13: =zadání!D22 -> 250 | G13: mm | L13: =lang!A25 -> tloušťka izolace: | M13: =zadání!L22 -> 50 | O13: mm
D14: =lang!A22 -> výška buňky: | E14: =zadání!D24 -> 600 | G14: mm | L14: =lang!A26 -> počet buněk: | N14: =zadání!L24 -> 5 | O14: x | P14: =zadání!N24 -> 2
D15: =lang!A23 -> délka buňky: | E15: =zadání!D26 -> 2000 | G15: mm | L15: =lang!A15 -> průtočná mezera: | M15: =zadání!L26 -> 150 | O15: mm
L16: =zadání!J28 -> celkový rozměr: | N16: =zadání!K28 -> 1250 x 1200 x 2000 mm
B17: =lang!A81 -> Kruhový tlumič
D18: =lang!A76 -> průměr tlumiče: | E18: =zadání!D32 -> 140 | G18: mm | L18: =lang!A12 -> délka tlumiče: | M18: =zadání!L32 -> 900 | O18: mm
D19: =lang!A25 -> tloušťka izolace: | E19: =zadání!D34 -> 50 | G19: mm | L19: =lang!A77 -> provedení: | M19: =zadání!L34 -> bez jádra
D20: =zadání!B40 -> průtok vzduchu: | E20: =zadání!D40 -> 10000 | G20: m3/h | L20: =zadání!J40 -> hustota vzduchu: | M20: =zadání!L40 -> 1.2 | O20: kg/m3
B21: =IF(calc!Q7,lang!A68,lang!A67) -> hladina akustického výkonu zdroje s váhovým filtrem A:
B22: =lang!A61 -> frekvence
B23: 16 | C23: 20 | D23: 25 | E23: 31.5 | F23: 40 | G23: 50 | H23: 63 | I23: 80 | J23: 100 | K23: 125 | L23: 160 | M23: 200 | N23: 250 | O23: 315 | P23: 400 | Q23: 500 | R23: 630 | S23: 800 | T23: 1000 | U23: 1250 | V23: 1600 | W23: 2000 | X23: 2500 | Y23: 3150 | Z23: 4000 | AA23: 5000 | AB23: 6300 | AC23: 8000 | AD23: 10000 | AE23: 12500 | AF23: 16000 | AG23: Σ
B25: =lang!A35 -> vložený útlum
B26: =zadání!C91 -> 0.1666666667 | C26: =zadání!D91 -> 0.2 | D26: =zadání!E91 -> 7.408333333 | E26: =zadání!F91 -> 13.48833333 | F26: =zadání!G91 -> 12.73625333 | G26: =zadání!H91 -> 5.2758 | H26: =zadání!I91 -> 17.4196 | I26: =zadání!J91 -> 15.17 | J26: =zadání!K91 -> 10.775 | K26: =zadání!L91 -> 24.32092667 | L26: =zadání!M91 -> 0.6666666667 | M26: =zadání!N91 -> 4.016666667 | N26: =zadání!O91 -> 28.07166667 | O26: =zadání!P91 -> 9.697413333 | P26: =zadání!Q91 -> 12.5214 | Q26: =zadání!R91 -> 46.77693333 | R26: =zadání!S91 -> 29.10536 | S26: =zadání!T91 -> 36.61901333 | T26: =zadání!U91 -> 102.7604667 | U26: =zadání!V91 -> 38.22 | V26: =zadání!W91 -> 26.69518667 | W26: =zadání!X91 -> 71.90409333 | X26: =zadání!Y91 -> 16.25732 | Y26: =zadání!Z91 -> 12.17826667 | Z26: =zadání!AA91 -> 60.80853333 | AA26: =zadání!AB91 -> 10.4874 | AB26: =zadání!AC91 -> 17.13403333 | AC26: =zadání!AD91 -> 48.95186667 | AD26: =zadání!AE91 -> 7.831893333 | AE26: =zadání!AF91 -> 6.562693333 | AF26: =zadání!AG91 -> 7.894 | AG26: - | AH26: dB
B28: =lang!A31 -> hladina akustického výkonu zdroje:
B29: =zadání!C48 -> 15 | C29: =zadání!D48 -> 25 | D29: =zadání!E48 -> 48 | E29: =zadání!F48 -> 36 | F29: =zadání!G48 -> 27 | G29: =zadání!H48 -> 55 | H29: =zadání!I48 -> 42 | I29: =zadání!J48 -> 45 | J29: =zadání!K48 -> 48 | K29: =zadání!L48 -> 53 | L29: =zadání!M48 -> 56 | M29: =zadání!N48 -> 58 | N29: =zadání!O48 -> 61 | O29: =zadání!P48 -> 64 | P29: =zadání!Q48 -> 70 | Q29: =zadání!R48 -> 75 | R29: =zadání!S48 -> 73 | S29: =zadání!T48 -> 78 | T29: =zadání!U48 -> 80 | U29: =zadání!V48 -> 81 | V29: =zadání!W48 -> 77 | W29: =zadání!X48 -> 75 | X29: =zadání!Y48 -> 70 | Y29: =zadání!Z48 -> 68 | Z29: =zadání!AA48 -> 67 | AA29: =zadání!AB48 -> 60 | AB29: =zadání!AC48 -> 58 | AC29: =zadání!AD48 -> 55 | AD29: =zadání!AE48 -> 51 | AE29: =zadání!AF48 -> 45 | AF29: =zadání!AG48 -> 41 | AG29: =zadání!AH48 -> 86.63925113 | AH29: =zadání!AI92 -> dB(A)
B31: =lang!A36 -> vlastní hluk tlumiče
B32: =zadání!C92 -> 0 | C32: =zadání!D92 -> 0 | D32: =zadání!E92 -> 0 | E32: =zadání!F92 -> 0 | F32: =zadání!G92 -> 0 | G32: =zadání!H92 -> 0 | H32: =zadání!I92 -> 0 | I32: =zadání!J92 -> 0 | J32: =zadání!K92 -> 0 | K32: =zadání!L92 -> 0 | L32: =zadání!M92 -> 0 | M32: =zadání!N92 -> 0 | N32: =zadání!O92 -> 0 | O32: =zadání!P92 -> 0 | P32: =zadání!Q92 -> 0 | Q32: =zadání!R92 -> 0 | R32: =zadání!S92 -> 0 | S32: =zadání!T92 -> 0 | T32: =zadání!U92 -> 0 | U32: =zadání!V92 -> 0 | V32: =zadání!W92 -> 0 | W32: =zadání!X92 -> 0 | X32: =zadání!Y92 -> 0 | Y32: =zadání!Z92 -> 0 | Z32: =zadání!AA92 -> 0 | AA32: =zadání!AB92 -> 0 | AB32: =zadání!AC92 -> 0 | AC32: =zadání!AD92 -> 0 | AD32: =zadání!AE92 -> 0 | AE32: =zadání!AF92 -> 0 | AF32: =zadání!AG92 -> 0 | AG32: =zadání!AH92 -> <15 | AH32: =AH29 -> dB(A)
B34: =lang!A62 -> akustický výkon za tlumičem
B35: =zadání!C93 -> 14.97374764 | C35: =zadání!D93 -> 24.81435708 | D35: =zadání!E93 -> 40.59204563 | E35: =zadání!F93 -> 22.53595528 | F35: =zadání!G93 -> 14.42348106 | G35: =zadání!H93 -> 49.72424628 | H35: =zadání!I93 -> 24.59550042 | I35: =zadání!J93 -> 29.83451397 | J35: =zadání!K93 -> 37.2258227 | K35: =zadání!L93 -> 28.68495612 | L35: =zadání!M93 -> 55.33334605 | M35: =zadání!N93 -> 53.98335069 | N35: =zadání!O93 -> 32.93054561 | O35: =zadání!P93 -> 54.30260279 | P35: =zadání!Q93 -> 57.47860776 | Q35: =zadání!R93 -> 28.22960024 | R35: =zadání!S93 -> 43.89481714 | S35: =zadání!T93 -> 41.38130265 | T35: =zadání!U93 -> 0 | U35: =zadání!V93 -> 42.78022897 | V35: =zadání!W93 -> 50.30485382 | W35: =zadání!X93 -> 4.828470769 | X35: =zadání!Y93 -> 53.74269834 | Y35: =zadání!Z93 -> 55.8217447 | Z35: =zadání!AA93 -> 7.126927017 | AA35: =zadání!AB93 -> 49.51264859 | AB35: =zadání!AC93 -> 40.86632244 | AC35: =zadání!AD93 -> 7.011740726 | AD35: =zadání!AE93 -> 43.16831606 | AE35: =zadání!AF93 -> 38.437929 | AF35: =zadání!AG93 -> 33.10812363 | AG35: =zadání!AH93 -> 63.89349591 | AH35: =AH32 -> dB(A)
D36: =zadání!$D$82 -> tlaková ztráta: | E36: =zadání!$E$82 -> 3.958576775 | F36: Pa | M36: =zadání!K82 -> rychlost v celkovém průřezu: | N36: =zadání!L82 -> 1.851851852 | O36: m/s | W36: =zadání!K84 -> rychlost ve volné ploše: | X36: =zadání!L84 -> 3.086419753 | Y36: m/s
A38: Parametry prostoru
H39: =zadání!F52 -> vzdálenost k posluchači: | I39: =zadání!H52 -> 2 | J39: m
H40: =zadání!F54 -> směrový činitel: | I40: =zadání!H54 -> 2
H41: =zadání!L56 -> celková plocha místnosti: | I41: =zadání!N56 -> 60 | J41: m2
H42: =zadání!F56 -> střední hodnota součinitele zvukové pohltivosti: | I42: =zadání!H56 -> 0.4
H43: =lang!A64 -> počet vyústek: | I43: =zadání!N58 -> 1 | J43: =zadání!O58 -> ks
H44: =zadání!F58 -> akustický výkon koncového elementu: | I44: =zadání!H58 -> 40 | J44: dB
M45: =zadání!B86 -> hladina akustického tlaku v místě posluchače Lp: | N45: =zadání!E86 ->  | O45: =zadání!E86 -> 
I46: =zadání!D95 -> Technické řešení:
I47: =zadání!D96 -> Vysoké učení technické v Brně - Fakulta stavební - Ústav technických zařízení budov | AH47: =lang!B3 -> v. 1.1.5

Sheet calc (hidden)
A1: typ tlumiče | B1: 2 | C1: 16 | D1: 20 | E1: 25 | F1: 31.5 | G1: 40 | H1: 50 | I1: 63 | J1: 80 | K1: 100 | L1: 125 | M1: 160 | N1: 200 | O1: 250 | P1: 315 | Q1: 400 | R1: 500 | S1: 630 | T1: 800 | U1: 1000 | V1: 1250 | W1: 1600 | X1: 2000 | Y1: 2500 | Z1: 3150 | AA1: 4000 | AB1: 5000 | AC1: 6300 | AD1: 8000 | AE1: 10000 | AF1: 12500 | AG1: 16000 | AH1: suma | AI1: Hz
A2: kulisa dB | B2: 1 | C2: =db_kul!B60 -> 0 | D2: =db_kul!C60 -> 0.2105008746 | E2: =db_kul!D60 -> 1.414516004 | F2: =db_kul!E60 -> 1.514520091 | G2: =db_kul!F60 -> 0.8280329252 | H2: =db_kul!G60 -> 1.250743134 | I2: =db_kul!H60 -> 2.977767656 | J2: =db_kul!I60 -> 3.647276853 | K2: =db_kul!J60 -> 3.775158648 | L2: =db_kul!K60 -> 3.17044333 | M2: =db_kul!L60 -> 1.809336312 | N2: =db_kul!M60 -> 1.715862228 | O2: =db_kul!N60 -> 2.875333233 | P2: =db_kul!O60 -> 3.815005685 | Q2: =db_kul!P60 -> 5.127197293 | R2: =db_kul!Q60 -> 6.730591656 | S2: =db_kul!R60 -> 8.542536533 | T2: =db_kul!S60 -> 10.21386706 | U2: =db_kul!T60 -> 10.74384882 | V2: =db_kul!U60 -> 11.06909725 | W2: =db_kul!V60 -> 10.36889544 | X2: =db_kul!W60 -> 8.901783061 | Y2: =db_kul!X60 -> 8.108786074 | Z2: =db_kul!Y60 -> 7.312972939 | AA2: =db_kul!Z60 -> 6.467353334 | AB2: =db_kul!AA60 -> 5.756584867 | AC2: =db_kul!AB60 -> 5.208762056 | AD2: =db_kul!AC60 -> 4.954339293 | AE2: =db_kul!AD60 -> 4.999429112 | AF2: =db_kul!AE60 -> 4.96505053 | AG2: =db_kul!AF60 -> 3.267841212
A3: buňka dB | B3: 2 | C3: =db_bun!B24 -> 0.1666666667 | D3: =db_bun!C24 -> 0.2 | E3: =db_bun!D24 -> 7.408333333 | F3: =db_bun!E24 -> 13.48833333 | G3: =db_bun!F24 -> 12.73625333 | H3: =db_bun!G24 -> 5.2758 | I3: =db_bun!H24 -> 17.4196 | J3: =db_bun!I24 -> 15.17 | K3: =db_bun!J24 -> 10.775 | L3: =db_bun!K24 -> 24.32092667 | M3: =db_bun!L24 -> 0.6666666667 | N3: =db_bun!M24 -> 4.016666667 | O3: =db_bun!N24 -> 28.07166667 | P3: =db_bun!O24 -> 9.697413333 | Q3: =db_bun!P24 -> 12.5214 | R3: =db_bun!Q24 -> 46.77693333 | S3: =db_bun!R24 -> 29.10536 | T3: =db_bun!S24 -> 36.61901333 | U3: =db_bun!T24 -> 102.7604667 | V3: =db_bun!U24 -> 38.22 | W3: =db_bun!V24 -> 26.69518667 | X3: =db_bun!W24 -> 71.90409333 | Y3: =db_bun!X24 -> 16.25732 | Z3: =db_bun!Y24 -> 12.17826667 | AA3: =db_bun!Z24 -> 60.80853333 | AB3: =db_bun!AA24 -> 10.4874 | AC3: =db_bun!AB24 -> 17.13403333 | AD3: =db_bun!AC24 -> 48.95186667 | AE3: =db_bun!AD24 -> 7.831893333 | AF3: =db_bun!AE24 -> 6.562693333 | AG3: =db_bun!AF24 -> 7.894
A4: kruh db | B4: 3 | C4: =db_kruh!D5 -> 0 | D4: =db_kruh!E5 -> 2.8542 | E4: =db_kruh!F5 -> 3.4327 | F4: =db_kruh!G5 -> 8.0004 | G4: =db_kruh!H5 -> 3.5942 | H4: =db_kruh!I5 -> 0.9757 | I4: =db_kruh!J5 -> 2 | J4: =db_kruh!K5 -> 0 | K4: =db_kruh!L5 -> 0 | L4: =db_kruh!M5 -> 2 | M4: =db_kruh!N5 -> 2.2236 | N4: =db_kruh!O5 -> 4.8969 | O4: =db_kruh!P5 -> 1.4673 | P4: =db_kruh!Q5 -> 6.776 | Q4: =db_kruh!R5 -> 7.4134 | R4: =db_kruh!S5 -> 16.2606 | S4: =db_kruh!T5 -> 34.192 | T4: =db_kruh!U5 -> 40.0107 | U4: =db_kruh!V5 -> 47.0119 | V4: =db_kruh!W5 -> 48.3728 | W4: =db_kruh!X5 -> 41.6568 | X4: =db_kruh!Y5 -> 41.7843 | Y4: =db_kruh!Z5 -> 41.031 | Z4: =db_kruh!AA5 -> 36.4618 | AA4: =db_kruh!AB5 -> 34.2363 | AB4: =db_kruh!AC5 -> 28.5135 | AC4: =db_kruh!AD5 -> 27.3829 | AD4: =db_kruh!AE5 -> 18.5883 | AE4: =db_kruh!AF5 -> 19.4199 | AF4: =db_kruh!AG5 -> 21.5176 | AG4: =db_kruh!AH5 -> 12.9534
A5: útlum do výpočtů | C5: =IF($B$1=1,C2,IF($B$1=2,C3,C4)) -> 0.1666666667 | D5: =IF($B$1=1,D2,IF($B$1=2,D3,D4)) -> 0.2 | E5: 7.408333333 | F5: 13.48833333 | G5: 12.73625333 | H5: 5.2758 | I5: 17.4196 | J5: 15.17 | K5: 10.775 | L5: 24.32092667 | M5: 0.6666666667 | N5: 4.016666667 | O5: 28.07166667 | P5: 9.697413333 | Q5: 12.5214 | R5: 46.77693333 | S5: 29.10536 | T5: 36.61901333 | U5: 102.7604667 | V5: 38.22 | W5: 26.69518667 | X5: 71.90409333 | Y5: 16.25732 | Z5: 12.17826667 | AA5: 60.80853333 | AB5: 10.4874 | AC5: 17.13403333 | AD5: 48.95186667 | AE5: 7.831893333 | AF5: 6.562693333 | AG5: 7.894 | AH5: =10*LOG10(POWER(10,0.1*C5)+POWER(10,0.1*D5)+POWER(10,0.1*E5)+POWER(10,0.1*F5)+POWER(10,0.1*G5)+POWER(10,0.1*H5)+POWER(10,0.1*I5)+POWER(10,0.1*J5)+POWER(10,0.1*K5)+POWER(10,0.1*L5)+POWER(10,0.1*M5)+POWER(10,0.1*N5)+POWER(10,0.1*O5)+POWER(10,0.1*P5)+POWER(10,0.1*Q5)+POWER(10,0.1*R5)+POWER(10,0.1*S5)+POWER(10,0.1*T5)+POWER(10,0.1*U5)+POWER(10,0.1*V5)+POWER(10,0.1*W5)+POWER(10,0.1*X5)+POWER(10,0.1*Y5)+POWER(10,0.1*Z5)+POWER(10,0.1*AA5)+POWER(10,0.1*AB5)+POWER(10,0.1*AC5)+POWER(10,0.1*AD5)+POWER(10,0.1*AE5)+POWER(10,0.1*AF5)+POWER(10,0.1*AG5)) -> 102.7643399 | AI5: dB
A6: vlastní hluk výpočet | B6: konstanty | C6: B | D6: 58 | E6: dB | G6: V | H6: =zadání!D40/3600 -> 2.777777778 | I6: m3/s | K6: =10*LOG10((D7*D8*H7)/D9) -> 74.96517564 | P6: dopočítat vlastní hluk: | Q6: TRUE
C7: p | D7: 101325 | E7: Pa | G7: S | H7: =IF(B1=1,zadání!D11/1000*zadání!L13/2000,IF(B1=2,(zadání!D24/1000*zadání!L26/1000)*zadání!L24*zadání!N24,db_kruh!K7)) -> 0.9 | I7: m2 | K7: =60*LOG10(H8/D8) -> -122.8262072 | P7: váhový filtr: | Q7: TRUE
C8: c | D8: 344 | E8: m/s | G8: v | H8: =IF(B1=1,$H$6/IF(db_kul!U5=0,-1,db_kul!U5),IF(B1=2,$H$6/IF(db_bun!Z12=0,-1,db_bun!Z12),$H$6/IF(db_kruh!K7=0,-1,db_kruh!K7))) -> 3.086419753 | I8: m/s
C9: Wo | D9: 1 | E9: W | G9: H | H9: =IF(B1=1,MAX(db_kul!G5,db_kul!N5),IF(B1=2,MAX(db_bun!G12,db_bun!N12),db_kruh!O7)) -> 0.6 | I9: m
C10: δ | D10: 0.02 | E10: m
C11: =10*LOG10(1+POWER($D$8/(2*C1*$H$9),2)) -> 25.07865238 | D11: 23.148032 | E11: 21.22164889 | F11: 19.23345739 | G11: 17.19008854 | H11: 15.29829444 | I11: 13.36557939 | J11: 11.41144807 | K11: 9.646262339 | L11: 7.965311637 | M11: 6.242892595 | N11: 4.849322304 | O11: 3.645218121 | P11: 2.620228254 | Q11: 1.800143071 | R11: 1.234305667 | S11: 0.8172492749 | T11: 0.5246414658 | U11: 0.3429861157 | V11: 0.2226079843 | W11: 0.1372207026 | X11: 0.08831922875 | Y11: 0.05673081964 | Z11: 0.03581998228 | AA11: 0.02224875987 | AB11: 0.01425233048 | AC11: 0.008982730941 | AD11: 0.005572884681 | AE11: 0.003567469909 | AF11: 0.002283518305 | AG11: 0.001393891734
C12: =10*LOG10(1+POWER((C1*$D$10)/$H$8,2)) -> 0.04643553386 | D12: 0.07233897406 | E12: 0.11250631 | F12: 0.1772806142 | G12: 0.2823956581 | H12: 0.4335284528 | I12: 0.6694426982 | J12: 1.033721393 | K12: 1.522589826 | L12: 2.190865572 | M12: 3.170085234 | N12: 4.280725623 | O12: 5.592361217 | P12: 7.131962185 | Q12: 8.875308829 | R12: 10.60607196 | S12: 12.47137974 | T12: 14.45197052 | U12: 16.33371486 | V12: 18.23539434 | W12: 20.35411421 | X12: 22.27788013 | Y12: 24.20681718 | Z12: 26.2081222 | AA12: 28.27915933 | AB12: 30.21503532 | AC12: 32.2209162 | AD12: 34.2949156 | AE12: 36.23253427 | AF12: 38.17036226 | AG12: 40.31430376
A13: výsledek | C13: =$D$6+($K$6+$K$7+C11-C12) -> 35.17118532 | D13: =$D$6+($K$6+$K$7+D11-D12) -> 33.21466151 | E13: 31.24811106 | F13: 29.19514525 | G13: 27.04666136 | H13: 25.00373446 | I13: 22.83510517 | J13: 20.51669515 | K13: 18.26264099 | L13: 15.91341454 | M13: 13.21177584 | N13: 10.70756516 | O13: 8.191825381 | P13: 5.627234547 | Q13: 3.06380272 | R13: 0.7672021896 | S13: -1.515161991 | T13: -3.788360578 | U13: -5.851760267 | V13: -7.873817875 | W13: -10.07792503 | X13: -12.05059243 | Y13: -14.01111788 | Z13: -16.03333374 | AA13: -18.11794209 | AB13: -20.06181451 | AC13: -22.07296499 | AD13: -24.15037424 | AE13: -26.08999832 | AF13: -28.02911026 | AG13: -30.17394139
A14: váhový filtr (A) | C14: -56.7 | D14: -50.5 | E14: -44.7 | F14: -39.4 | G14: -34.6 | H14: -30.2 | I14: -26.2 | J14: -22.5 | K14: -19.1 | L14: -16.1 | M14: -13.4 | N14: -10.9 | O14: -8.6 | P14: -6.6 | Q14: -4.8 | R14: -3.2 | S14: -1.9 | T14: -0.8 | U14: 0 | V14: 0.6 | W14: 1 | X14: 1.2 | Y14: 1.3 | Z14: 1.2 | AA14: 1 | AB14: 0.5 | AC14: -0.1 | AD14: -1.1 | AE14: -2.5 | AF14: -4.5 | AG14: -6.3
A15: vlastní hluk (A) | C15: =IF($Q$7=TRUE,IF(C13+C14>0,C13+C14,0),IF(C13<0,0,C13)) -> 0 | D15: =IF($Q$7=TRUE,IF(D13+D14>0,D13+D14,0),IF(D13<0,0,D13)) -> 0 | E15: 0 | F15: 0 | G15: 0 | H15: 0 | I15: 0 | J15: 0 | K15: 0 | L15: 0 | M15: 0 | N15: 0 | O15: 0 | P15: 0 | Q15: 0 | R15: 0 | S15: 0 | T15: 0 | U15: 0 | V15: 0 | W15: 0 | X15: 0 | Y15: 0 | Z15: 0 | AA15: 0 | AB15: 0 | AC15: 0 | AD15: 0 | AE15: 0 | AF15: 0 | AG15: 0 | AH15: =10*LOG10(POWER(10,0.1*C15)+POWER(10,0.1*D15)+POWER(10,0.1*E15)+POWER(10,0.1*F15)+POWER(10,0.1*G15)+POWER(10,0.1*H15)+POWER(10,0.1*I15)+POWER(10,0.1*J15)+POWER(10,0.1*K15)+POWER(10,0.1*L15)+POWER(10,0.1*M15)+POWER(10,0.1*N15)+POWER(10,0.1*O15)+POWER(10,0.1*P15)+POWER(10,0.1*Q15)+POWER(10,0.1*R15)+POWER(10,0.1*S15)+POWER(10,0.1*T15)+POWER(10,0.1*U15)+POWER(10,0.1*V15)+POWER(10,0.1*W15)+POWER(10,0.1*X15)+POWER(10,0.1*Y15)+POWER(10,0.1*Z15)+POWER(10,0.1*AA15)+POWER(10,0.1*AB15)+POWER(10,0.1*AC15)+POWER(10,0.1*AD15)+POWER(10,0.1*AE15)+POWER(10,0.1*AF15)+POWER(10,0.1*AG15)) -> 14.91361694 | AI15: dB
A16: zdroj hluku | C16: =zadání!C48 -> 15 | D16: =zadání!D48 -> 25 | E16: =zadání!E48 -> 48 | F16: =zadání!F48 -> 36 | G16: =zadání!G48 -> 27 | H16: =zadání!H48 -> 55 | I16: =zadání!I48 -> 42 | J16: =zadání!J48 -> 45 | K16: =zadání!K48 -> 48 | L16: =zadání!L48 -> 53 | M16: =zadání!M48 -> 56 | N16: =zadání!N48 -> 58 | O16: =zadání!O48 -> 61 | P16: =zadání!P48 -> 64 | Q16: =zadání!Q48 -> 70 | R16: =zadání!R48 -> 75 | S16: =zadání!S48 -> 73 | T16: =zadání!T48 -> 78 | U16: =zadání!U48 -> 80 | V16: =zadání!V48 -> 81 | W16: =zadání!W48 -> 77 | X16: =zadání!X48 -> 75 | Y16: =zadání!Y48 -> 70 | Z16: =zadání!Z48 -> 68 | AA16: =zadání!AA48 -> 67 | AB16: =zadání!AB48 -> 60 | AC16: =zadání!AC48 -> 58 | AD16: =zadání!AD48 -> 55 | AE16: =zadání!AE48 -> 51 | AF16: =zadání!AF48 -> 45 | AG16: =zadání!AG48 -> 41 | AH16: =10*LOG10(POWER(10,0.1*C16)+POWER(10,0.1*D16)+POWER(10,0.1*E16)+POWER(10,0.1*F16)+POWER(10,0.1*G16)+POWER(10,0.1*H16)+POWER(10,0.1*I16)+POWER(10,0.1*J16)+POWER(10,0.1*K16)+POWER(10,0.1*L16)+POWER(10,0.1*M16)+POWER(10,0.1*N16)+POWER(10,0.1*O16)+POWER(10,0.1*P16)+POWER(10,0.1*Q16)+POWER(10,0.1*R16)+POWER(10,0.1*S16)+POWER(10,0.1*T16)+POWER(10,0.1*U16)+POWER(10,0.1*V16)+POWER(10,0.1*W16)+POWER(10,0.1*X16)+POWER(10,0.1*Y16)+POWER(10,0.1*Z16)+POWER(10,0.1*AA16)+POWER(10,0.1*AB16)+POWER(10,0.1*AC16)+POWER(10,0.1*AD16)+POWER(10,0.1*AE16)+POWER(10,0.1*AF16)+POWER(10,0.1*AG16)) -> 86.63925113 | AI16: =IF(OR($G$34=1,ISERROR($K$6),$Q$6=FALSE),"",IF(AH16<15,"<15",AH16)) -> 86.63925113
A17: utlumený zdroj | C17: =IF(C16-C5<0,0,C16-C5) -> 14.83333333 | D17: =IF(D16-D5<0,0,D16-D5) -> 24.8 | E17: 40.59166667 | F17: 22.51166667 | G17: 14.26374667 | H17: =IF(H16-H5<0,0,H16-H5) -> 49.7242 | I17: 24.5804 | J17: 29.83 | K17: 37.225 | L17: 28.67907333 | M17: 55.33333333 | N17: 53.98333333 | O17: 32.92833333 | P17: 54.30258667 | Q17: 57.4786 | R17: 28.22306667 | S17: 43.89464 | T17: 41.38098667 | U17: 0 | V17: 42.78 | W17: 50.30481333 | X17: 3.095906667 | Y17: 53.74268 | Z17: 55.82173333 | AA17: 6.191466667 | AB17: 49.5126 | AC17: 40.86596667 | AD17: 6.048133333 | AE17: 43.16810667 | AF17: 38.43730667 | AG17: 33.106
A18: za tlumičem | C18: =IF(AND(C15=0,C17=0),0,10*LOG10(POWER(10,0.1*(C17))+POWER(10,0.1*C15))) -> 14.97374764 | D18: =IF(AND(D15=0,D17=0),0,10*LOG10(POWER(10,0.1*(D17))+POWER(10,0.1*D15))) -> 24.81435708 | E18: 40.59204563 | F18: 22.53595528 | G18: 14.42348106 | H18: 49.72424628 | I18: 24.59550042 | J18: 29.83451397 | K18: 37.2258227 | L18: 28.68495612 | M18: 55.33334605 | N18: 53.98335069 | O18: 32.93054561 | P18: 54.30260279 | Q18: 57.47860776 | R18: 28.22960024 | S18: 43.89481714 | T18: 41.38130265 | U18: 0 | V18: 42.78022897 | W18: 50.30485382 | X18: 4.828470769 | Y18: 53.74269834 | Z18: 55.8217447 | AA18: 7.126927017 | AB18: 49.51264859 | AC18: 40.86632244 | AD18: 7.011740726 | AE18: 43.16831606 | AF18: 38.437929 | AG18: 33.10812363 | AH18: =10*LOG10(POWER(10,0.1*C18)+POWER(10,0.1*D18)+POWER(10,0.1*E18)+POWER(10,0.1*F18)+POWER(10,0.1*G18)+POWER(10,0.1*H18)+POWER(10,0.1*I18)+POWER(10,0.1*J18)+POWER(10,0.1*K18)+POWER(10,0.1*L18)+POWER(10,0.1*M18)+POWER(10,0.1*N18)+POWER(10,0.1*O18)+POWER(10,0.1*P18)+POWER(10,0.1*Q18)+POWER(10,0.1*R18)+POWER(10,0.1*S18)+POWER(10,0.1*T18)+POWER(10,0.1*U18)+POWER(10,0.1*V18)+POWER(10,0.1*W18)+POWER(10,0.1*X18)+POWER(10,0.1*Y18)+POWER(10,0.1*Z18)+POWER(10,0.1*AA18)+POWER(10,0.1*AB18)+POWER(10,0.1*AC18)+POWER(10,0.1*AD18)+POWER(10,0.1*AE18)+POWER(10,0.1*AF18)+POWER(10,0.1*AG18)) -> 63.89349591 | AI18: dB
A19: rychlost | E19: volný průřez | F19: =H8 -> 3.086419753 | G19: m/s | I19: rychlost | L19: volný průřez | M19: =H8 -> 3.086419753 | N19: m/s | P19: rychlost | S19: volný průřez | T19: =H8 -> 3.086419753 | U19: m/s | V19: výběr | W19: =IF($Q$6=TRUE,IF($B$1=1,F19,IF($B$1=2,M19,T19)),0) -> 3.086419753 | Y19: vyhovuje: | Z19: =IF(W19<AA19,1,0) -> 1 | AA19: 10 | AC19: =IF(G34=1,"",IF((Z19+Z20)<2,lang!A44,"")) -> 
A20: kulisa | E20: celkový průřez | F20: =H6/(zadání!D9/1000*zadání!D11/1000) -> 9.259259259 | G20: m/s | I20: buňka | L20: celkový průřez | M20: =H6/(zadání!D22/1000*zadání!D24/1000*zadání!L24*zadání!N24) -> 1.851851852 | N20: m/s | P20: kruh | S20: celkový průřez | T20: =H6/(PI()*POWER(zadání!D32/2000,2)) -> 180.4477813 | U20: m/s | W20: =IF($Q$6=TRUE,IF($B$1=1,F20,IF($B$1=2,M20,T20)),0) -> 1.851851852 | Z20: =IF(W20<AA20,1,0) -> 1 | AA20: 6
A21: tlaková ztráta | C21: =zadání!L15 -> bez úpravy | I21: ksíS | J21: ksíF | K21: ro | L21: ksí1 | M21: ksí2 | N21: dp
A22: kulisa | D22: náběh | E22: náběh a odtok | I22: =(db_kul!C5/db_kul!G5)^2*(0.5*L22*(db_kul!G5/db_kul!C5+1)+M22) -> 0.3984375 | J22: =0.025*(db_kul!K5/db_kul!G5)*POWER(1+db_kul!C5/db_kul!G5,2) -> 0.1772460938 | K22: =zadání!$L$40 -> 1.2 | L22: =IF(OR(D23,D24,E23,E24),0.1,1) -> 1 | M22: =IF(OR(E23,E24),0.7,1) -> 1 | N22: =0.5*(I22+J22)*$K$22*S41^2 -> 1.184534144 | P22: výběr | Q22: =IF($Q$6=TRUE,IF($B$1=1,N22,IF($B$1=2,N23,N25)),0) -> 3.958576775 | R22: Pa
A23: buňka | C23: CZ | D23: =IF(EXACT(C21,lang!B18)=TRUE,1,0) -> 0 | E23: =IF(EXACT(C21,lang!B19)=TRUE,1,0) -> 0 | I23: =(db_bun!C12/db_bun!G12)^2*(0.5*L23*(db_bun!G12/db_bun!C12+1)+M23) -> 0.1 | J23: =0.025*db_bun!K12/db_bun!G12*POWER(1+db_bun!C12/db_bun!G12,2) -> 0.5925925926 | K23: =zadání!$L$40 -> 1.2 | L23: 0.1 | M23: 0.7 | N23: =0.5*(I23+J23)*$K$23*H8^2 -> 3.958576775
C24: EN | D24: =IF(EXACT(C21,lang!C18)=TRUE,1,0) -> 0 | E24: =IF(EXACT(C21,lang!C19)=TRUE,1,0) -> 0
A25: kruh | I25: =IF(db_kruh!F7=1,POWER((db_kruh!S7-db_kruh!K7)/db_kruh!K7,2)*(0.5*L25*(db_kruh!K7/(db_kruh!S7-db_kruh!K7)+1)+M25),0) -> 0 | J25: =0.025*db_kruh!C10/db_kruh!C7*(1+0.05/db_kruh!C7)^2 -> 0.2960094752 | K25: =zadání!$L$40 -> 1.2 | L25: 0.1 | M25: 0.7 | N25: =0.5*(I25+J25)*$K$25*H8^2 -> 1.691869429
A26: volitelná frekvence | D26: =zadání!L36 -> 55 | E26: Hz | F26: =COUNTIF(C1:AG1,D26) -> 0 | H26: =INDEX(C1:AG1,MATCH(D26,C1:AG1)) -> 50 | I26: Hz | J26: =HLOOKUP(H26,C1:AG5,5,FALSE) -> 5.2758 | K26: dB | L26: =LINEST(J26:J27,H26:H27) -> 0.9341384615 | M26: -41.43112308 | N26: =D26*L26+M26 -> 9.946492308 | O26: dB | P26: výběr | Q26: =IF(F26=1,F27,N26) -> 9.946492308 | R26: dB
F27: =HLOOKUP(D26,C1:AG5,5,FALSE) ->  | G27: dB | H27: =INDEX(C1:AG1,MATCH(D26,C1:AG1)+1) -> 63 | I27: Hz | J27: =HLOOKUP(H27,C1:AG5,5,FALSE) -> 17.4196 | K27: dB
A28: tlak v místě posluchače | D28: FALSE | F28: Q seznam: | H28: 1 | I28: 2 | J28: 3 | K28: 4 | L28: 8 | S28: rezerva | T28: 0
E29: element | F29: =zadání!H58 -> 40 | H29: Q | I29: =zadání!H54 -> 2 | L29: výstup | M29: =10*LOG10(POWER(10,0.1*F29)+POWER(10,0.1*F31)) -> 46.40707316 | O29: posluchač | P29: =M30+10*LOG10((I29/(4*PI()*F32^2))+IF(I32=2,0,4/M31))+T31 -> 39.55533568 | Q29: dB | T29: 3
E30: počet | F30: =zadání!N58 -> 1 | H30: alfa | I30: =zadání!H56 -> 0.4 | L30: všechny KE | M30: =M29+10*LOG10(F30) -> 46.40707316 | T30: 5
E31: za tlumičem | F31: =IF(ISNUMBER(N47),N47,15) -> 45.27922783 | H31: ploch | I31: =zadání!N56 -> 60 | L31: pohltivost | M31: =I30*I31 -> 24 | T31: =zadání!N54 -> 0
E32: vzdálenost | F32: =zadání!H52 -> 2 | H32: prostředí | I32: =IF(OR(zadání!N52=lang!B54,zadání!N52=lang!C54),1,2) -> 1
A33: podmínky použití | C33: průtočná mezera kulis | G33: 50 | H33: =IF(zadání!L13<G33,"změňte geometrii tlumiče","mm") -> mm | J33: kulisy | K33: min. | L33: max. | N33: buňky | O33: min. | P33: max. | R33: min. | S33: max.
C34: chyba geometrie | G34: =IF(zadání!L13<calc!G33,1,0) -> 0 | J34: l | K34: 500 | L34: 3000 | N34: l | O34: 500 | P34: 3000 | Q34: n | R34: 1 | S34: =P35/200 -> 2
C35: šířka buňky | G35: =IF(db_bun!$B$12,200,250) -> 200 | H35: mm | J35: a | K35: 200 | L35: 3000 | N35: a | O35: 200 | P35: 400 | Q35: m | R35: 1 | S35: =ROUNDDOWN(3000/zadání!D22,0) -> 12 | T35: =ROUNDDOWN(3000/zadání!D24,0) -> 5
C36: celkový rozměr tlumiče | G36: =CONCATENATE((db_bun!$B$12*2+db_bun!$F$12)*db_bun!$R$12," x ",db_bun!$M$12*db_bun!$U$12," x ",db_bun!$J$12," mm") -> 1250 x 1200 x 2000 mm | J36: b | K36: 250 | L36: 3000 | N36: b | O36: 200 | P36: 600 | Q36: D | R36: 50 | S36: 80
A37: kód | B37: kulisa | D37: =CONCATENATE(lang!A57," KUTL ",zadání!D9,"x",zadání!D11,"/",zadání!D13,"-",zadání!L11,"x",zadání!L9," SP 402.",1,1,IF(AND(D23,D24,E23,E24)=0,0,IF(OR(D23,D24)=1,2,3))) -> Tlumič hluku KUTL 1000x300/1000-2x100 SP 402.113 | M37: výběr | N37: =IF(G34=1,"",IF(B1=1,D37,D38)) -> 10x Buňkový tlumič hluku 250x600/2000 SP 403.111 | S37: tlumící plocha: | T37: =zadání!D11/1000*zadání!D13/1000*zadání!L11*2 -> 1.2 | V37: výběr | W37: =IF(G34=1,"",IF(B1=1,T37,T38)) -> 24
B38: buňka | D38: =CONCATENATE(zadání!L24*zadání!N24,"x ",lang!A58," ",zadání!D22,"x",zadání!D24,"/",zadání!D26," SP 403.111") -> 10x Buňkový tlumič hluku 250x600/2000 SP 403.111 | T38: =zadání!D24/1000*zadání!D26/1000*2*zadání!L24*zadání!N24 -> 24
B39: kruh
A41: Výstup | C41: 16 | D41: 31.5 | E41: 63 | F41: 125 | G41: 250 | H41: 500 | I41: 1000 | J41: 2000 | K41: 4000 | L41: 8000 | M41: 16000 | N41: suma | O41: Hz | R41: rychlost celkový | S41: =IF(OR(G34=1,Q6=FALSE),"",W20) -> 1.851851852 | T41: m/s
A42: útlum | E42: =IF($G$34=1,"",HLOOKUP(E41,$C$1:$AG$5,5,FALSE)) -> 17.4196 | F42: =IF($G$34=1,"",HLOOKUP(F41,$C$1:$AG$5,5,FALSE)) -> 24.32092667 | G42: 28.07166667 | H42: 46.77693333 | I42: 102.7604667 | J42: 71.90409333 | K42: 60.80853333 | L42: 48.95186667 | O42: dB | R42: rychlost volný | S42: =IF(OR(G34=1,Q6=FALSE),"",W19) -> 3.086419753 | T42: m/s
A43: vlastní hluk | E43: =IF(OR($G$34=1,$Q$6=FALSE),"",HLOOKUP(E41,$C$1:$AG$15,15,FALSE)) -> 0 | F43: =IF(OR($G$34=1,$Q$6=FALSE),"",HLOOKUP(F41,$C$1:$AG$15,15,FALSE)) -> 0 | G43: 0 | H43: 0 | I43: 0 | J43: 0 | K43: 0 | L43: 0 | N43: =IF(OR($G$34=1,ISERROR($K$6),$Q$6=FALSE),"",IF(COUNTIF(E43:L43,">0")>1,IF(10*LOG10(POWER(10,0.1*E43)+POWER(10,0.1*F43)+POWER(10,0.1*G43)+POWER(10,0.1*H43)+POWER(10,0.1*I43)+POWER(10,0.1*J43)+POWER(10,0.1*K43)+POWER(10,0.1*L43))<15,"< 15",10*LOG10(POWER(10,0.1*E43)+POWER(10,0.1*F43)+POWER(10,0.1*G43)+POWER(10,0.1*H43)+POWER(10,0.1*I43)+POWER(10,0.1*J43)+POWER(10,0.1*K43)+POWER(10,0.1*L43))),0)) -> 0 | O43: dB | R43: tlak ztráta | S43: =IF(OR(G34=1,Q6=FALSE),"",Q22) -> 3.958576775 | T43: Pa
A44: zdroj hluku | E44: =IF($Q$6=TRUE,zadání!E44,"") -> 58 | F44: =IF($Q$6=TRUE,zadání!F44,"") -> 65 | G44: =IF($Q$6=TRUE,zadání!G44,"") -> 68 | H44: =IF($Q$6=TRUE,zadání!H44,"") -> 75 | I44: =IF($Q$6=TRUE,zadání!I44,"") -> 80 | J44: =IF($Q$6=TRUE,zadání!J44,"") -> 77 | K44: =IF($Q$6=TRUE,zadání!K44,"") -> 70 | L44: =IF($Q$6=TRUE,zadání!L44,"") -> 68 | N44: =IF(OR($G$34=1,ISERROR($K$6),$Q$6=FALSE),"",IF(COUNTIF(E44:L44,">0")>1,IF(10*LOG10(POWER(10,0.1*E44)+POWER(10,0.1*F44)+POWER(10,0.1*G44)+POWER(10,0.1*H44)+POWER(10,0.1*I44)+POWER(10,0.1*J44)+POWER(10,0.1*K44)+POWER(10,0.1*L44))<15,"< 15",10*LOG10(POWER(10,0.1*E44)+POWER(10,0.1*F44)+POWER(10,0.1*G44)+POWER(10,0.1*H44)+POWER(10,0.1*I44)+POWER(10,0.1*J44)+POWER(10,0.1*K44)+POWER(10,0.1*L44))),0)) -> 83.18384514 | O44: dB | R44: frekvence | S44: =IF(G34=1,"",Q26) -> 9.946492308 | T44: dB
E45: =IF(E44-E42<0,0,E44-E42) -> 40.5804 | F45: 40.67907333 | G45: 39.92833333 | H45: 28.22306667 | I45: 0 | J45: 5.095906667 | K45: 9.191466667 | L45: =IF(L44-L42<0,0,L44-L42) -> 19.04813333 | R45: posluchač | S45: =IF(G34=1,"",IF(D28=TRUE,P29,"")) ->  | T45: dB
E46: =IF(AND(E43=0,E45=0),0,10*LOG10(POWER(10,0.1*(E45))+POWER(10,0.1*E43))) -> 40.58077995 | F46: 40.67944475 | G46: 39.92877483 | H46: 28.22960024 | I46: 0 | J46: 6.266367831 | K46: 9.685441498 | L46: 19.10187131
A47: za tlumičem | E47: =IF($G$34=1,"",IF($Q$6=TRUE,E46,"")) -> 40.58077995 | F47: 40.67944475 | G47: 39.92877483 | H47: 28.22960024 | I47: 0 | J47: 6.266367831 | K47: 9.685441498 | L47: 19.10187131 | N47: =IF(OR($G$34=1,ISERROR($K$6),$Q$6=FALSE),"",IF(COUNTIF(E47:L47,">0")>1,IF(10*LOG10(POWER(10,0.1*E47)+POWER(10,0.1*F47)+POWER(10,0.1*G47)+POWER(10,0.1*H47)+POWER(10,0.1*I47)+POWER(10,0.1*J47)+POWER(10,0.1*K47)+POWER(10,0.1*L47))<15,"< 15",10*LOG10(POWER(10,0.1*E47)+POWER(10,0.1*F47)+POWER(10,0.1*G47)+POWER(10,0.1*H47)+POWER(10,0.1*I47)+POWER(10,0.1*J47)+POWER(10,0.1*K47)+POWER(10,0.1*L47))),0)) -> 45.27922783 | O47: dB
A48: Výstup třetinooktávy | D48: FALSE | AH48: suma
A49: útlum | C49: =IF($G$34=1,"",C5) -> 0.1666666667 | D49: 0.2 | E49: 7.408333333 | F49: 13.48833333 | G49: 12.73625333 | H49: 5.2758 | I49: 17.4196 | J49: 15.17 | K49: 10.775 | L49: 24.32092667 | M49: 0.6666666667 | N49: 4.016666667 | O49: 28.07166667 | P49: 9.697413333 | Q49: 12.5214 | R49: 46.77693333 | S49: 29.10536 | T49: 36.61901333 | U49: 102.7604667 | V49: 38.22 | W49: 26.69518667 | X49: 71.90409333 | Y49: 16.25732 | Z49: 12.17826667 | AA49: 60.80853333 | AB49: 10.4874 | AC49: 17.13403333 | AD49: 48.95186667 | AE49: 7.831893333 | AF49: 6.562693333 | AG49: 7.894
A50: hluk | C50: =IF(OR($G$34=1,$Q$6=FALSE),"",C15) -> 0 | D50: 0 | E50: 0 | F50: 0 | G50: 0 | H50: 0 | I50: 0 | J50: 0 | K50: 0 | L50: 0 | M50: 0 | N50: 0 | O50: 0 | P50: 0 | Q50: 0 | R50: 0 | S50: 0 | T50: 0 | U50: 0 | V50: 0 | W50: 0 | X50: 0 | Y50: 0 | Z50: 0 | AA50: 0 | AB50: 0 | AC50: 0 | AD50: 0 | AE50: 0 | AF50: 0 | AG50: 0 | AH50: =10*LOG10(POWER(10,0.1*C50)+POWER(10,0.1*D50)+POWER(10,0.1*E50)+POWER(10,0.1*F50)+POWER(10,0.1*G50)+POWER(10,0.1*H50)+POWER(10,0.1*I50)+POWER(10,0.1*J50)+POWER(10,0.1*K50)+POWER(10,0.1*L50)+POWER(10,0.1*M50)+POWER(10,0.1*N50)+POWER(10,0.1*O50)+POWER(10,0.1*P50)+POWER(10,0.1*Q50)+POWER(10,0.1*R50)+POWER(10,0.1*S50)+POWER(10,0.1*T50)+POWER(10,0.1*U50)+POWER(10,0.1*V50)+POWER(10,0.1*W50)+POWER(10,0.1*X50)+POWER(10,0.1*Y50)+POWER(10,0.1*Z50)+POWER(10,0.1*AA50)+POWER(10,0.1*AB50)+POWER(10,0.1*AC50)+POWER(10,0.1*AD50)+POWER(10,0.1*AE50)+POWER(10,0.1*AF50)+POWER(10,0.1*AG50)) -> 14.91361694 | AI50: =IF(OR($G$34=1,ISERROR($K$6),$Q$6=FALSE),"",IF(AH50<15,"<15",AH50)) -> <15
A51: za tlumičem | C51: =IF(OR($G$34=1,$Q$6=FALSE),"",C18) -> 14.97374764 | D51: 24.81435708 | E51: 40.59204563 | F51: 22.53595528 | G51: 14.42348106 | H51: 49.72424628 | I51: 24.59550042 | J51: 29.83451397 | K51: 37.2258227 | L51: 28.68495612 | M51: 55.33334605 | N51: 53.98335069 | O51: 32.93054561 | P51: 54.30260279 | Q51: 57.47860776 | R51: 28.22960024 | S51: 43.89481714 | T51: 41.38130265 | U51: 0 | V51: 42.78022897 | W51: 50.30485382 | X51: 4.828470769 | Y51: 53.74269834 | Z51: 55.8217447 | AA51: 7.126927017 | AB51: 49.51264859 | AC51: 40.86632244 | AD51: 7.011740726 | AE51: 43.16831606 | AF51: 38.437929 | AG51: 33.10812363 | AH51: =10*LOG10(POWER(10,0.1*C51)+POWER(10,0.1*D51)+POWER(10,0.1*E51)+POWER(10,0.1*F51)+POWER(10,0.1*G51)+POWER(10,0.1*H51)+POWER(10,0.1*I51)+POWER(10,0.1*J51)+POWER(10,0.1*K51)+POWER(10,0.1*L51)+POWER(10,0.1*M51)+POWER(10,0.1*N51)+POWER(10,0.1*O51)+POWER(10,0.1*P51)+POWER(10,0.1*Q51)+POWER(10,0.1*R51)+POWER(10,0.1*S51)+POWER(10,0.1*T51)+POWER(10,0.1*U51)+POWER(10,0.1*V51)+POWER(10,0.1*W51)+POWER(10,0.1*X51)+POWER(10,0.1*Y51)+POWER(10,0.1*Z51)+POWER(10,0.1*AA51)+POWER(10,0.1*AB51)+POWER(10,0.1*AC51)+POWER(10,0.1*AD51)+POWER(10,0.1*AE51)+POWER(10,0.1*AF51)+POWER(10,0.1*AG51)) -> 63.89349591 | AI51: =IF(OR($G$34=1,ISERROR($K$6),$Q$6=FALSE),"",IF(AH51<15,"<15",AH51)) -> 63.89349591
A52: hlášení | C52: =IF(G34=0,"",lang!A63) -> 
C55: X | D55: = | E55: výsledek
C56: X | D56: = | E56: vstup z jiných listů
C57: X | D57: = | E57: výtupní hodnoty
C58: X | D58: = | E58: výstup pro uživatele

Sheet lang (hidden)
A1: výběr | B1: CZ | C1: EN
A2: =IF(zadání!$N$4="EN",C2,B2) -> TLUMIČE HLUKU | B2: TLUMIČE HLUKU | C2: Sound Attenuators
A3: =IF(zadání!$N$4="EN",C3,B3) -> v. 1.1.5 | B3: v. 1.1.5 | C3: =B3 -> v. 1.1.5
A4: =IF(zadání!$N$4="EN",C4,B4) -> Ján Skovajsa-KLIMAT, Beckov 587, 916 38 | klimat@klimat.sk| www.klimat.sk | tel.: +421 032 777 7441 | B4: Ján Skovajsa-KLIMAT, Beckov 587, 916 38 | klimat@klimat.sk| www.klimat.sk | tel.: +421 032 777 7441 | C4: Ján Skovajsa-KLIMAT, Beckov 587, 916 38 | klimat@klimat.sk| www.klimat.sk | tel.: +421 032 777 7441
A5: =IF(zadání!$N$4="EN",C5,B5) -> Typ tlumiče | B5: Typ tlumiče | C5: Attenuator type
A6: =IF(zadání!$N$4="EN",C6,B6) -> kulisový | B6: kulisový | C6: Sound Attenuator
A7: =IF(zadání!$N$4="EN",C7,B7) -> buňkový | B7: buňkový | C7: Cell Attenuator
A8: =IF(zadání!$N$4="EN",C8,B8) -> jazyk: | B8: jazyk: | C8: language:
A9: =IF(zadání!$N$4="EN",C9,B9) -> Kulisový tlumič | B9: Kulisový tlumič | C9: Sound Attenuator
A10: =IF(zadání!$N$4="EN",C10,B10) -> šířka tlumiče: | B10: šířka tlumiče: | C10: width:
A11: =IF(zadání!$N$4="EN",C11,B11) -> výška tlumiče: | B11: výška tlumiče: | C11: height:
A12: =IF(zadání!$N$4="EN",C12,B12) -> délka tlumiče: | B12: délka tlumiče: | C12: length:
A13: =IF(zadání!$N$4="EN",C13,B13) -> šířka kulisy: | B13: šířka kulisy: | C13: cell width:
A14: =IF(zadání!$N$4="EN",C14,B14) -> počet kulis: | B14: počet kulis: | C14: attenuation blocks
A15: =IF(zadání!$N$4="EN",C15,B15) -> průtočná mezera: | B15: průtočná mezera: | C15: flow gap:
A16: =IF(zadání!$N$4="EN",C16,B16) -> úprava hran: | B16: úprava hran: | C16: edge design:
A17: =IF(zadání!$N$4="EN",C17,B17) -> bez úpravy | B17: bez úpravy | C17: both flat
A18: =IF(zadání!$N$4="EN",C18,B18) -> pouze náběhová hrana | B18: pouze náběhová hrana | C18: leading edge only
A19: =IF(zadání!$N$4="EN",C19,B19) -> náběhová a výtoková hrana | B19: náběhová a výtoková hrana | C19: leading and discharge edge
A20: =IF(zadání!$N$4="EN",C20,B20) -> Buňkový tlumič | B20: Buňkový tlumič | C20: Cell Attenuator
A21: =IF(zadání!$N$4="EN",C21,B21) -> šířka buňky: | B21: šířka buňky: | C21: cell width:
A22: =IF(zadání!$N$4="EN",C22,B22) -> výška buňky: | B22: výška buňky: | C22: cell height:
A23: =IF(zadání!$N$4="EN",C23,B23) -> délka buňky: | B23: délka buňky: | C23: cell length:
A24: =IF(zadání!$N$4="EN",C24,B24) -> celkový rozměr: | B24: celkový rozměr: | C24: total dimensions:
A25: =IF(zadání!$N$4="EN",C25,B25) -> tloušťka izolace: | B25: tloušťka izolace: | C25: insulation width:
A26: =IF(zadání!$N$4="EN",C26,B26) -> počet buněk: | B26: počet buněk: | C26: number of cells:
A27: =IF(zadání!$N$4="EN",C27,B27) -> dopočítat vlastní hluk a tlakovou ztrátu | B27: dopočítat vlastní hluk a tlakovou ztrátu | C27: sound pressure level and pressure drop
A28: =IF(zadání!$N$4="EN",C28,B28) -> útlum ve frekvenci: | B28: útlum ve frekvenci: | C28: custom frequency:
A29: =IF(zadání!$N$4="EN",C29,B29) -> Okrajové podmínky před tlumičem | B29: Okrajové podmínky před tlumičem | C29: Boundary conditions in front of attenuator
A30: =IF(zadání!$N$4="EN",C30,B30) -> průtok vzduchu: | B30: průtok vzduchu: | C30: volume flow:
A31: =IF(zadání!$N$4="EN",C31,B31) -> hladina akustického výkonu zdroje: | B31: hladina akustického výkonu zdroje: | C31: sound power level of the source:
A32: =IF(zadání!$N$4="EN",C32,B32) -> hustota vzduchu: | B32: hustota vzduchu: | C32: air density:
A33: =IF(zadání!$N$4="EN",C33,B33) -> Výstup v oktávových pásmech | B33: Výstup v oktávových pásmech | C33: Results in octave bands
A34: =IF(zadání!$N$4="EN",C34,B34) -> součtová hladina | B34: součtová hladina | C34: sum level
A35: =IF(zadání!$N$4="EN",C35,B35) -> vložený útlum | B35: vložený útlum | C35: insertion loss
A36: =IF(zadání!$N$4="EN",C36,B36) -> vlastní hluk tlumiče | B36: vlastní hluk tlumiče | C36: generated noise
A37: =IF(zadání!$N$4="EN",C37,B37) -> akustický výkon za tlumičem | B37: akustický výkon za tlumičem | C37: acoustic pwr. after attenuation
A38: =IF(zadání!$N$4="EN",C38,B38) -> tlaková ztráta: | B38: tlaková ztráta: | C38: pressure drop
A39: =IF(zadání!$N$4="EN",C39,B39) -> rychlost v celkovém průřezu: | B39: rychlost v celkovém průřezu: | C39: velocity in total cross-section:
A40: =IF(zadání!$N$4="EN",C40,B40) -> rychlost ve volné ploše: | B40: rychlost ve volné ploše: | C40: velocity in gap:
A41: =IF(zadání!$N$4="EN",C41,B41) -> Technické řešení: | B41: Technické řešení: | C41: Technical solution:
A42: =IF(zadání!$N$4="EN",C42,B42) -> Vysoké učení technické v Brně - Fakulta stavební - Ústav technických zařízení budov | B42: Vysoké učení technické v Brně - Fakulta stavební - Ústav technických zařízení budov | C42: Brno University of Technology - Faculty of Civil Engineering - Institute of Building Services
A43: =IF(zadání!$N$4="EN",C43,B43) -> kód výrobku: | B43: kód výrobku: | C43: product code:
A44: =IF(zadání!$N$4="EN",C44,B44) -> překročena doporučená rychlost | B44: překročena doporučená rychlost | C44: recommended velocity exceeded
A45: =IF(zadání!$N$4="EN",C45,B45) -> dopočítat hladinu akustického tlaku v místě posluchače | B45: dopočítat hladinu akustického tlaku v místě posluchače | C45: sum sound pressure level in place of the listener:
A46: =IF(zadání!$N$4="EN",C46,B46) -> vzdálenost k posluchači: | B46: vzdálenost k posluchači: | C46: distance to the listener:
A47: =IF(zadání!$N$4="EN",C47,B47) -> směrový činitel: | B47: směrový činitel: | C47: directional factor:
A48: =IF(zadání!$N$4="EN",C48,B48) -> střední hodnota součinitele zvukové pohltivosti: | B48: střední hodnota součinitele zvukové pohltivosti: | C48: mean value of sound absorption coefficient:
A49: =IF(zadání!$N$4="EN",C49,B49) -> akustický výkon koncového elementu: | B49: akustický výkon koncového elementu: | C49: diffuser sound power
A50: =IF(zadání!$N$4="EN",C50,B50) -> hladina akustického tlaku v místě posluchače Lp: | B50: hladina akustického tlaku v místě posluchače Lp: | C50: sum sound pressure level in place of the listener Lp:
A51: =IF(zadání!$N$4="EN",C51,B51) -> počet vyústek: | B51: počet vyústek: | C51: quantity of diffusers:
A52: =IF(zadání!$N$4="EN",C52,B52) -> celková plocha místnosti: | B52: celková plocha místnosti: | C52: total room area:
A53: =IF(zadání!$N$4="EN",C53,B53) -> prostředí: | B53: prostředí: | C53: environment:
A54: =IF(zadání!$N$4="EN",C54,B54) -> interiér | B54: interiér | C54: interior
A55: =IF(zadání!$N$4="EN",C55,B55) -> exteriér | B55: exteriér | C55: exterior
A56: =IF(zadání!$N$4="EN",C56,B56) -> ks | B56: ks | C56: pcs
A57: =IF(zadání!$N$4="EN",C57,B57) -> Tlumič hluku | B57: Tlumič hluku | C57: Sound Attenuator
A58: =IF(zadání!$N$4="EN",C58,B58) -> Buňkový tlumič hluku | B58: Buňkový tlumič hluku | C58: Cell Attenuator
A59: =IF(zadání!$N$4="EN",C59,B59) -> Rozšíření pro zobrazení hodnot v třetinooktávonývh pásmech. | B59: Rozšíření pro zobrazení hodnot v třetinooktávonývh pásmech. | C59: Extension for displaying values in third octave bands.
A60: =IF(zadání!$N$4="EN",C60,B60) -> Geometrie, průtok vzduchu a typ tlumiče jsou použity z karty ZADÁNÍ. | B60: Geometrie, průtok vzduchu a typ tlumiče jsou použity z karty ZADÁNÍ. | C60: The geometry, air flow and attenuator type are used from the ZADÁNÍ tab.
A61: =IF(zadání!$N$4="EN",C61,B61) -> frekvence | B61: frekvence | C61: frequency
A62: =IF(zadání!$N$4="EN",C62,B62) -> akustický výkon za tlumičem | B62: akustický výkon za tlumičem | C62: acoustic power behind attenuator
A63: =IF(zadání!$N$4="EN",C63,B63) -> opravte chyby v geometrii na kartě ZADÁNÍ | B63: opravte chyby v geometrii na kartě ZADÁNÍ | C63: fix the geometry errors in the ZADÁNÍ tab
A64: =IF(zadání!$N$4="EN",C64,B64) -> počet vyústek: | B64: počet vyústek: | C64: Qty. of diffusers:
A65: =IF(zadání!$N$4="EN",C65,B65) -> plocha tlumiče: | B65: plocha tlumiče: | C65: attenuator area:
A66: =IF(zadání!$N$4="EN",C66,B66) -> váhový filtr A | B66: váhový filtr A | C66: weight filter A
A67: =IF(zadání!$N$4="EN",C67,B67) -> hladina akustického výkonu zdroje bez váhového filtru A: | B67: hladina akustického výkonu zdroje bez váhového filtru A: | C67: Sound power level of the source without weight filter A:
A68: =IF(zadání!$N$4="EN",C68,B68) -> hladina akustického výkonu zdroje s váhovým filtrem A: | B68: hladina akustického výkonu zdroje s váhovým filtrem A: | C68: Sound power level of the source including weight filter A:
A69: =IF(zadání!$N$4="EN",C69,B69) -> rezerva Lp: | B69: rezerva Lp: | C69: reserve Lp:
A70: =IF(zadání!$N$4="EN",C70,B70) -> přidat zadání v třetinooktávových pásmech: | B70: přidat zadání v třetinooktávových pásmech: | C70: Add input in third octave bands
A71: =IF(zadání!$N$4="EN",C71,B71) -> Výstup v třetinooktávových pásmech | B71: Výstup v třetinooktávových pásmech | C71: Results in third octave bands
A72: =IF(zadání!$N$4="EN",C72,B72) -> - výrobní parametry | B72: - výrobní parametry | C72: - production parameters
A73: =IF(zadání!$N$4="EN",C73,B73) -> Hladina akustického tlaku v prostoru za tlumičem | B73: Hladina akustického tlaku v prostoru za tlumičem | C73: Sound pressure level in the space behind the attenuator
A74: =IF(zadání!$N$4="EN",C74,B74) -> Akustické charakteristiky zdroje hluku a tlumiče | B74: Akustické charakteristiky zdroje hluku a tlumiče | C74: Acoustic characteristics of noise source and attenuator
A75: =IF(zadání!$N$4="EN",C75,B75) -> hladina akust. výkonu zdroje | B75: hladina akust. výkonu zdroje | C75: power level of the source
A76: =IF(zadání!$N$4="EN",C76,B76) -> průměr tlumiče: | B76: průměr tlumiče: | C76: diameter:
A77: =IF(zadání!$N$4="EN",C77,B77) -> provedení: | B77: provedení: | C77: design:
A78: =IF(zadání!$N$4="EN",C78,B78) -> bez jádra | B78: bez jádra | C78: without core
A79: =IF(zadání!$N$4="EN",C79,B79) -> s jádrem | B79: =IF(db_kruh!F74,"s jádrem","") -> s jádrem | C79: =IF(db_kruh!F74,"with core","") -> with core
A80: =IF(zadání!$N$4="EN",C80,B80) -> kruhový | B80: kruhový | C80: circular
A81: =IF(zadání!$N$4="EN",C81,B81) -> Kruhový tlumič | B81: Kruhový tlumič | C81: Circular Attenuator
A82: =IF(zadání!$N$4="EN",C82,B82) -> Air Technology s.r.o. | info@airtechnology.cz | www.airtechnology.cz | +420 518 321 001 | B82: Air Technology s.r.o. | info@airtechnology.cz | www.airtechnology.cz | +420 518 321 001 | C82: Air Technology s.r.o. | info@airtechnology.cz | www.airtechnology.cz | +420 518 321 001

Sheet db_kul (hidden)
A1: 1 | B1: 2 | C1: 3 | D1: 4 | E1: 5 | F1: 6 | G1: 7 | H1: 8 | I1: 9 | J1: 10 | K1: 11 | L1: 12 | M1: 13 | N1: 14 | O1: 15 | P1: 16 | Q1: 17 | R1: 18 | S1: 19 | T1: 20 | U1: 21 | V1: 22 | W1: 23 | X1: 24 | Y1: 25 | Z1: 26 | AA1: 27 | AB1: 28 | AC1: 29 | AD1: 30 | AE1: 31 | AF1: 32
A2: alfy | B2: 16 | C2: 20 | D2: 25 | E2: 31.5 | F2: 40 | G2: 50 | H2: 63 | I2: 80 | J2: 100 | K2: 125 | L2: 160 | M2: 200 | N2: 250 | O2: 315 | P2: 400 | Q2: 500 | R2: 630 | S2: 800 | T2: 1000 | U2: 1250 | V2: 1600 | W2: 2000 | X2: 2500 | Y2: 3150 | Z2: 4000 | AA2: 5000 | AB2: 6300 | AC2: 8000 | AD2: 10000 | AE2: 12500 | AF2: 16000
A3: 100 | B3: 0 | C3: 0.1 | D3: 0.25 | E3: 0.3 | F3: 0.25 | G3: 0.15 | H3: 0.5 | I3: 0.65 | J3: 0.7 | K3: 0.41 | L3: 0.2 | M3: 0.4 | N3: 0.7 | O3: 0.6 | P3: 0.7 | Q3: 0.8 | R3: 1.1 | S3: 1.3 | T3: 1.25 | U3: 1.2 | V3: 1.2 | W3: 1.2 | X3: 1 | Y3: 0.85 | Z3: 0.8 | AA3: 0.8 | AB3: 0.9 | AC3: 0.7 | AD3: 0.7 | AE3: 0.7 | AF3: 0.55
A4: 200 | B4: 0.1544023111 | C4: 0 | D4: 0.3033008208 | E4: 0.45 | F4: 0.35 | G4: 0.15 | H4: 0.28 | I4: 0.8793669863 | J4: 0.2905318049 | K4: 0.550019367 | L4: 0.4466345517 | M4: 0.6823018877 | N4: 0.9604683616 | O4: 1.149099347 | P4: 1.049543357 | Q4: 1.38271964 | R4: 1.398954084 | S4: 1.386878615 | T4: 1.300091017 | U4: 1.195838182 | V4: 1.2 | W4: 1.1 | X4: 1.041087077 | Y4: 0.8684646019 | Z4: 0.9 | AA4: 0.9 | AB4: 0.6990647326 | AC4: 0.6069595964 | AD4: 0.6672135651 | AE4: 0.7153238112 | AF4: 0.6315626095
A5: izolace | B5: =zadání!L9 -> 100 | C5: =B5/1000 -> 0.1 | E5: pr. mezera | F5: =(zadání!D9-B5*Q5)/(Q5+1) -> 266.6666667 | G5: =F5/1000 -> 0.2666666667 | I5: délka | J5: =zadání!D13 -> 1000 | K5: =J5/1000 -> 1 | L5: výška | M5: =zadání!D11 -> 300 | N5: =M5/1000 -> 0.3 | P5: počet kulis | Q5: =zadání!L11 -> 2 | T5: průt. plocha | U5: =G5*N5*(Q5+1) -> 0.24
A6: alfa | B6: =VLOOKUP($B$5,$A$3:$AF$4,B1) -> 0 | C6: 0.1 | D6: 0.25 | E6: 0.3 | F6: 0.25 | G6: 0.15 | H6: 0.5 | I6: 0.65 | J6: 0.7 | K6: 0.41 | L6: 0.2 | M6: 0.4 | N6: 0.7 | O6: 0.6 | P6: 0.7 | Q6: 0.8 | R6: 1.1 | S6: 1.3 | T6: 1.25 | U6: 1.2 | V6: 1.2 | W6: 1.2 | X6: 1 | Y6: 0.85 | Z6: 0.8 | AA6: 0.8 | AB6: 0.9 | AC6: 0.7 | AD6: 0.7 | AE6: 0.7 | AF6: 0.55
A7: délka 100 ax | B7: 1 | C7: 1.014302059 | D7: -3.561991456 | E7: 0.3994766681 | F7: 0.3366782007 | G7: 1.114119923 | H7: -0.007575757576 | I7: 0.4123618991 | J7: 0.7239057239 | K7: 0.6010544815 | L7: 1.955403087 | M7: 1.186728395 | N7: 0.9587727709 | O7: 0.8932633421 | P7: 1.129164864 | Q7: 0.8867654085 | R7: 0.8849451645 | S7: 0.8009659008 | T7: 0.8447521866 | U7: 0.7166138823 | V7: 0.7131159015 | W7: 0.7403185509 | X7: 0.6621571689 | Y7: 0.6281710558 | Z7: 0.6093297975 | AA7: 0.5390792291 | AB7: 0.550296694 | AC7: 0.4759524453 | AD7: 0.4807752423 | AE7: 0.4603174603 | AF7: 0.2326007326
A8: délka 100 b | B8: -0.3333333333 | C8: -0.3428680397 | D8: 5.080357143 | E8: 0.6005233319 | F8: 0.6800461361 | G8: -0.1141199226 | H8: 1.042760943 | I8: 0.584154474 | J8: 0.2760942761 | K8: 0.3956258543 | L8: -0.970268725 | M8: -0.1342592593 | N8: 0.004474272931 | O8: 0.1067366579 | P8: -0.1107745565 | Q8: 0.1132345915 | R8: 0.1150548355 | S8: 0.1901068345 | T8: 0.1338899196 | U8: 0.2436438814 | V8: 0.262504705 | W8: 0.2467207995 | X8: 0.3238112408 | Y8: 0.3677787072 | Z8: 0.3880585021 | AA8: 0.4609207709 | AB8: 0.4379768296 | AC8: 0.516436999 | AD8: 0.5192247577 | AE8: 0.5396825397 | AF8: 0.7535321821
A9: fakt. délky 100 | B9: =B7*$K$5+B8 -> 0.6666666667 | C9: =C7*$K$5+C8 -> 0.6714340198 | D9: 1.518365686 | E9: 1 | F9: 1.016724337 | G9: 1 | H9: 1.035185185 | I9: 0.996516373 | J9: 1 | K9: 0.9966803359 | L9: 0.9851343625 | M9: 1.052469136 | N9: 0.9632470438 | O9: 1 | P9: 1.018390307 | Q9: 1 | R9: 1 | S9: 0.9910727353 | T9: 0.9786421062 | U9: 0.9602577637 | V9: 0.9756206065 | W9: 0.9870393504 | X9: 0.9859684098 | Y9: 0.995949763 | Z9: 0.9973882996 | AA9: 1 | AB9: 0.9882735236 | AC9: 0.9923894443 | AD9: 1 | AE9: 1 | AF9: 0.9861329147
A10: délka 200 ax | B10: -0.6545768566 | C10: 0 | D10: 0.2838926174 | E10: -0.3355891684 | F10: -1.103191646 | G10: -7.749161268 | H10: 1.335985058 | I10: 0.4268668178 | J10: 1.61119403 | K10: 1.055674223 | L10: 1.215998907 | M10: 0.9413260012 | N10: 0.7923114666 | O10: 0.8933267372 | P10: 1.135815277 | Q10: 0.8618773802 | R10: 0.8368689341 | S10: 0.8529799845 | T10: 0.8562013878 | U10: 0.8677868676 | V10: 0.7248942782 | W10: 0.6841106421 | X10: 0.7817252274 | Y10: 0.6877153522 | Z10: 0.6893878373 | AA10: 0.5596864967 | AB10: 0.6020059537 | AC10: 0.7531190278 | AD10: 0.7532452613 | AE10: 0.6405257963 | AF10: 0.6198104205
A11: délka 200 b | B11: 1.039435809 | C11: 0 | D11: 0.09932885906 | E11: 1.228514145 | F11: 2.085590214 | G11: 8.676753717 | H11: -0.2235749862 | I11: 0.6268612524 | J11: -0.5990049751 | K11: -0.04599379423 | L11: -0.2470794241 | M11: 0.060235279 | N11: 0.2052826631 | O11: 0.1166583318 | P11: -0.1272004946 | Q11: 0.1312159169 | R11: 0.1527674553 | S11: 0.1366816024 | T11: 0.1219484627 | U11: 0.1257915761 | V11: 0.27391082 | W11: 0.322747839 | X11: 0.202337693 | Y11: 0.3323892816 | Z11: 0.2813614781 | AA11: 0.415823963 | AB11: 0.3816435913 | AC11: 0.2392424667 | AD11: 0.247520582 | AE11: 0.357754124 | AF11: 0.3623324366
A12: fakt. délky 200 | B12: =B10*$K$5+B11 -> 0.3848589522 | C12: =C10*$K$5+C11 -> 0 | D12: 0.3832214765 | E12: 0.8929249763 | F12: 0.982398568 | G12: 0.9275924489 | H12: 1.112410072 | I12: 1.05372807 | J12: 1.012189055 | K12: 1.009680429 | L12: 0.9689194827 | M12: 1.00156128 | N12: 0.9975941297 | O12: 1.009985069 | P12: 1.008614782 | Q12: 0.9930932971 | R12: 0.9896363894 | S12: 0.9896615869 | T12: 0.9781498504 | U12: 0.9935784437 | V12: 0.9988050982 | W12: 1.006858481 | X12: 0.9840629204 | Y12: 1.020104634 | Z12: 0.9707493154 | AA12: 0.9755104597 | AB12: 0.983649545 | AC12: 0.9923614946 | AD12: 1.000765843 | AE12: 0.9982799203 | AF12: 0.9821428571
A13: náběh 100, 200 | B13: =(3.888*$G$5-1.24)*MAX(calc!$D$23:$D$24) -> 0 | C13: =(3.888*$G$5-1.24)*MAX(calc!$D$23:$D$24) -> 0 | D13: =(3.888*$G$5-1.24)*MAX(calc!$D$23:$D$24) -> 0 | E13: =(3.888*$G$5-1.24)*MAX(calc!$D$23:$D$24) -> 0 | F13: =(3.888*$G$5-1.24)*MAX(calc!$D$23:$D$24) -> 0 | G13: =(3.888*$G$5-1.24)*MAX(calc!$D$23:$D$24) -> 0 | H13: =(3.888*$G$5-1.24)*MAX(calc!$D$23:$D$24) -> 0 | I13: =(3.888*$G$5-1.24)*MAX(calc!$D$23:$D$24) -> 0 | J13: =(3.888*$G$5-1.24)*MAX(calc!$D$23:$D$24) -> 0 | K13: =(3.888*$G$5-1.24)*MAX(calc!$D$23:$D$24) -> 0 | L13: =(3.888*$G$5-1.24)*MAX(calc!$D$23:$D$24) -> 0 | M13: =(3.888*$G$5-1.24)*MAX(calc!$D$23:$D$24) -> 0 | N13: =(3.888*$G$5-1.24)*MAX(calc!$D$23:$D$24) -> 0 | O13: =(3.888*$G$5-1.24)*MAX(calc!$D$23:$D$24) -> 0 | P13: =(3.888*$G$5-1.24)*MAX(calc!$D$23:$D$24) -> 0 | Q13: =(3.888*$G$5-1.24)*MAX(calc!$D$23:$D$24) -> 0 | R13: =(3.888*$G$5-1.24)*MAX(calc!$D$23:$D$24) -> 0 | S13: =(3.888*$G$5-1.24)*MAX(calc!$D$23:$D$24) -> 0 | T13: =(3.888*$G$5-1.24)*MAX(calc!$D$23:$D$24) -> 0 | U13: =(3.888*$G$5-1.24)*MAX(calc!$D$23:$D$24) -> 0 | V13: =(3.888*$G$5-1.24)*MAX(calc!$D$23:$D$24) -> 0 | W13: =(3.888*$G$5-1.24)*MAX(calc!$D$23:$D$24) -> 0 | X13: =(3.888*$G$5-1.24)*MAX(calc!$D$23:$D$24) -> 0 | Y13: =(3.888*$G$5-1.24)*MAX(calc!$D$23:$D$24) -> 0 | Z13: =(3.888*$G$5-1.24)*MAX(calc!$D$23:$D$24) -> 0 | AA13: =(3.888*$G$5-1.24)*MAX(calc!$D$23:$D$24) -> 0 | AB13: =(3.888*$G$5-1.24)*MAX(calc!$D$23:$D$24) -> 0 | AC13: =(3.888*$G$5-1.24)*MAX(calc!$D$23:$D$24) -> 0 | AD13: =(3.888*$G$5-1.24)*MAX(calc!$D$23:$D$24) -> 0 | AE13: =(3.888*$G$5-1.24)*MAX(calc!$D$23:$D$24) -> 0 | AF13: =(3.888*$G$5-1.24)*MAX(calc!$D$23:$D$24) -> 0
A14: náb+odb 100 | B14: =(2.187*$G$5-1.26)*MAX(calc!$E$23:$E$24) -> 0 | C14: =(2.187*$G$5-1.26)*MAX(calc!$E$23:$E$24) -> 0 | D14: =(2.187*$G$5-1.26)*MAX(calc!$E$23:$E$24) -> 0 | E14: =(2.187*$G$5-1.26)*MAX(calc!$E$23:$E$24) -> 0 | F14: =(2.187*$G$5-1.26)*MAX(calc!$E$23:$E$24) -> 0 | G14: =(2.187*$G$5-1.26)*MAX(calc!$E$23:$E$24) -> 0 | H14: =(2.187*$G$5-1.26)*MAX(calc!$E$23:$E$24) -> 0 | I14: =(2.187*$G$5-1.26)*MAX(calc!$E$23:$E$24) -> 0 | J14: =(2.187*$G$5-1.26)*MAX(calc!$E$23:$E$24) -> 0 | K14: =(2.187*$G$5-1.26)*MAX(calc!$E$23:$E$24) -> 0 | L14: =(2.187*$G$5-1.26)*MAX(calc!$E$23:$E$24) -> 0 | M14: =(2.187*$G$5-1.26)*MAX(calc!$E$23:$E$24) -> 0 | N14: =(2.187*$G$5-1.26)*MAX(calc!$E$23:$E$24) -> 0 | O14: =(2.187*$G$5-1.26)*MAX(calc!$E$23:$E$24) -> 0 | P14: =(2.187*$G$5-1.26)*MAX(calc!$E$23:$E$24) -> 0 | Q14: =(2.187*$G$5-1.26)*MAX(calc!$E$23:$E$24) -> 0 | R14: =(2.187*$G$5-1.26)*MAX(calc!$E$23:$E$24) -> 0 | S14: =(2.187*$G$5-1.26)*MAX(calc!$E$23:$E$24) -> 0 | T14: =(2.187*$G$5-1.26)*MAX(calc!$E$23:$E$24) -> 0 | U14: =(2.187*$G$5-1.26)*MAX(calc!$E$23:$E$24) -> 0 | V14: =(2.187*$G$5-1.26)*MAX(calc!$E$23:$E$24) -> 0 | W14: =(2.187*$G$5-1.26)*MAX(calc!$E$23:$E$24) -> 0 | X14: =(2.187*$G$5-1.26)*MAX(calc!$E$23:$E$24) -> 0 | Y14: =(2.187*$G$5-1.26)*MAX(calc!$E$23:$E$24) -> 0 | Z14: =(2.187*$G$5-1.26)*MAX(calc!$E$23:$E$24) -> 0 | AA14: =(2.187*$G$5-1.26)*MAX(calc!$E$23:$E$24) -> 0 | AB14: =(2.187*$G$5-1.26)*MAX(calc!$E$23:$E$24) -> 0 | AC14: =(2.187*$G$5-1.26)*MAX(calc!$E$23:$E$24) -> 0 | AD14: =(2.187*$G$5-1.26)*MAX(calc!$E$23:$E$24) -> 0 | AE14: =(2.187*$G$5-1.26)*MAX(calc!$E$23:$E$24) -> 0 | AF14: =(2.187*$G$5-1.26)*MAX(calc!$E$23:$E$24) -> 0
A15: náb+odb 200 | B15: =2*B14 -> 0 | C15: =2*C14 -> 0 | D15: 0 | E15: 0 | F15: 0 | G15: 0 | H15: 0 | I15: 0 | J15: 0 | K15: 0 | L15: 0 | M15: 0 | N15: 0 | O15: 0 | P15: 0 | Q15: 0 | R15: 0 | S15: 0 | T15: 0 | U15: 0 | V15: 0 | W15: 0 | X15: 0 | Y15: 0 | Z15: 0 | AA15: 0 | AB15: 0 | AC15: 0 | AD15: 0 | AE15: 0 | AF15: 0
A16: utlum | B16: =1.05*B6^1.4*((2*$N$5)/($N$5*$G$5))*IF($B$5=100,B9,B12)+B13+IF($B$5=100,B14,B15) -> 0 | C16: =1.05*C6^1.4*((2*$N$5)/($N$5*$G$5))*IF($B$5=100,C9,C12)+C13+IF($B$5=100,C14,C15) -> 0.2105008746 | D16: 1.716891914 | E16: 1.459554509 | F16: 1.149660986 | G16: 0.5530677374 | H16: 3.08906194 | I16: 4.293522078 | J16: 4.779558906 | K16: 2.252702556 | L16: 0.8150570802 | M16: 2.297967695 | N16: 4.603895987 | O16: 3.851787443 | P16: 4.867456463 | Q16: 5.762043654 | R16: 8.999125774 | S16: 11.26877699 | T16: 10.53291254 | U16: 9.760951032 | V16: 9.917113223 | W16: 10.03318393 | X16: 7.764501227 | Y16: 6.247042939 | Z16: =1.05*Z6^1.4*((2*$N$5)/($N$5*$G$5))*IF($B$5=100,Z9,Z12)+Z13+IF($B$5=100,Z14,Z15) -> 5.746994922 | AA16: 5.762043654 | AB16: 6.715328096 | AC16: 4.743183807 | AD16: 4.779558906 | AE16: 4.779558906 | AF16: 3.362743814 | AG16: =1.05*AG6^1.4*((2*$N$5)/($N$5*$G$5))*IF($B$5=100,AG9,AG12)+AG13+AG14 -> 0 | AH16: 0 | AI16: 0 | AJ16: 0 | AK16: 0 | AL16: 0 | AM16: 0 | AN16: 0 | AO16: 0 | AP16: 0 | AQ16: 0 | AR16: 0 | AS16: 0 | AT16: 0 | AU16: 0 | AV16: 0 | AW16: 0 | AX16: 0 | AY16: 0 | AZ16: 0 | BA16: 0 | BB16: 0 | BC16: 0 | BD16: 0 | BE16: 0 | BF16: 0 | BG16: 0 | BH16: 0 | BI16: 0 | BJ16: 0 | BK16: 0 | BL16: 0 | BM16: 0 | BN16: 0 | BO16: =1.05*BO6^1.4*((2*$N$5)/($N$5*$G$5))*IF($B$5=100,BO9,BO12)+BO13+BO14 -> 0 | BP16: 0 | BQ16: 0 | BR16: 0 | BS16: 0 | BT16: 0 | BU16: 0 | BV16: 0 | BW16: 0 | BX16: 0 | BY16: 0 | BZ16: 0 | CA16: 0 | CB16: 0 | CC16: 0 | CD16: 0 | CE16: 0 | CF16: 0 | CG16: 0 | CH16: 0 | CI16: 0 | CJ16: 0 | CK16: 0 | CL16: 0 | CM16: 0 | CN16: 0 | CO16: 0 | CP16: 0 | CQ16: 0 | CR16: 0 | CS16: 0 | CT16: 0 | CU16: 0 | CV16: 0 | CW16: 0 | CX16: 0 | CY16: 0 | CZ16: 0 | DA16: 0 | DB16: 0 | DC16: 0 | DD16: 0 | DE16: 0 | DF16: 0 | DG16: 0 | DH16: 0 | DI16: 0 | DJ16: 0 | DK16: 0 | DL16: 0 | DM16: 0 | DN16: 0 | DO16: 0 | DP16: 0 | DQ16: 0 | DR16: 0 | DS16: 0 | DT16: 0 | DU16: 0 | DV16: 0 | DW16: 0 | DX16: 0 | DY16: 0 | DZ16: 0 | EA16: =1.05*EA6^1.4*((2*$N$5)/($N$5*$G$5))*IF($B$5=100,EA9,EA12)+EA13+EA14 -> 0 | EB16: 0 | EC16: 0 | ED16: 0 | EE16: 0 | EF16: 0 | EG16: 0 | EH16: 0 | EI16: 0 | EJ16: 0 | EK16: 0 | EL16: 0 | EM16: 0 | EN16: 0 | EO16: 0 | EP16: 0 | EQ16: 0 | ER16: 0 | ES16: 0 | ET16: 0 | EU16: 0 | EV16: 0 | EW16: 0 | EX16: 0 | EY16: 0 | EZ16: 0 | FA16: 0 | FB16: 0 | FC16: 0 | FD16: 0 | FE16: 0 | FF16: 0 | FG16: 0 | FH16: 0 | FI16: 0 | FJ16: 0 | FK16: 0 | FL16: 0 | FM16: 0 | FN16: 0 | FO16: 0 | FP16: 0 | FQ16: 0 | FR16: 0 | FS16: 0 | FT16: 0 | FU16: 0 | FV16: 0 | FW16: 0 | FX16: 0 | FY16: 0 | FZ16: 0 | GA16: 0 | GB16: 0 | GC16: 0 | GD16: 0 | GE16: 0 | GF16: 0 | GG16: 0 | GH16: 0 | GI16: 0 | GJ16: 0 | GK16: 0 | GL16: 0 | GM16: =1.05*GM6^1.4*((2*$N$5)/($N$5*$G$5))*IF($B$5=100,GM9,GM12)+GM13+GM14 -> 0 | GN16: 0 | GO16: 0 | GP16: 0 | GQ16: 0 | GR16: 0 | GS16: 0 | GT16: 0 | GU16: 0 | GV16: 0 | GW16: 0 | GX16: 0 | GY16: 0 | GZ16: 0 | HA16: 0 | HB16: 0 | HC16: 0 | HD16: 0 | HE16: 0 | HF16: 0 | HG16: 0 | HH16: 0 | HI16: 0 | HJ16: 0 | HK16: 0 | HL16: 0 | HM16: 0 | HN16: 0 | HO16: 0 | HP16: 0 | HQ16: 0 | HR16: 0 | HS16: 0 | HT16: 0 | HU16: 0 | HV16: 0 | HW16: 0 | HX16: 0 | HY16: 0 | HZ16: 0 | IA16: 0 | IB16: 0 | IC16: 0 | ID16: 0 | IE16: 0 | IF16: 0 | IG16: 0 | IH16: 0 | II16: 0 | IJ16: 0 | IK16: 0 | IL16: 0 | IM16: 0 | IN16: 0 | IO16: 0 | IP16: 0 | IQ16: 0 | IR16: 0 | IS16: 0 | IT16: 0 | IU16: 0 | IV16: 0 | IW16: 0 | IX16: 0 | IY16: =1.05*IY6^1.4*((2*$N$5)/($N$5*$G$5))*IF($B$5=100,IY9,IY12)+IY13+IY14 -> 0 | IZ16: 0 | JA16: 0 | JB16: 0 | JC16: 0 | JD16: 0 | JE16: 0 | JF16: 0 | JG16: 0 | JH16: 0 | JI16: 0 | JJ16: 0 | JK16: 0 | JL16: 0 | JM16: 0 | JN16: 0 | JO16: 0 | JP16: 0 | JQ16: 0 | JR16: 0 | JS16: 0 | JT16: 0 | JU16: 0 | JV16: 0 | JW16: 0 | JX16: 0 | JY16: 0 | JZ16: 0 | KA16: 0 | KB16: 0 | KC16: 0 | KD16: 0 | KE16: 0 | KF16: 0 | KG16: 0 | KH16: 0 | KI16: 0 | KJ16: 0 | KK16: 0 | KL16: 0 | KM16: 0 | KN16: 0 | KO16: 0 | KP16: 0 | KQ16: 0 | KR16: 0 | KS16: 0 | KT16: 0 | KU16: 0 | KV16: 0 | KW16: 0 | KX16: 0 | KY16: 0 | KZ16: 0 | LA16: 0 | LB16: 0 | LC16: 0 | LD16: 0 | LE16: 0 | LF16: 0 | LG16: 0 | LH16: 0 | LI16: 0 | LJ16: 0 | LK16: =1.05*LK6^1.4*((2*$N$5)/($N$5*$G$5))*IF($B$5=100,LK9,LK12)+LK13+LK14 -> 0 | LL16: 0 | LM16: 0 | LN16: 0 | LO16: 0 | LP16: 0 | LQ16: 0 | LR16: 0 | LS16: 0 | LT16: 0 | LU16: 0 | LV16: 0 | LW16: 0 | LX16: 0 | LY16: 0 | LZ16: 0 | MA16: 0 | MB16: 0 | MC16: 0 | MD16: 0 | ME16: 0 | MF16: 0 | MG16: 0 | MH16: 0 | MI16: 0 | MJ16: 0 | MK16: 0 | ML16: 0 | MM16: 0 | MN16: 0 | MO16: 0 | MP16: 0 | MQ16: 0 | MR16: 0 | MS16: 0 | MT16: 0 | MU16: 0 | MV16: 0 | MW16: 0 | MX16: 0 | MY16: 0 | MZ16: 0 | NA16: 0 | NB16: 0 | NC16: 0 | ND16: 0 | NE16: 0 | NF16: 0 | NG16: 0 | NH16: 0 | NI16: 0 | NJ16: 0 | NK16: 0 | NL16: 0 | NM16: 0 | NN16: 0 | NO16: 0 | NP16: 0 | NQ16: 0 | NR16: 0 | NS16: 0 | NT16: 0 | NU16: 0 | NV16: 0 | NW16: =1.05*NW6^1.4*((2*$N$5)/($N$5*$G$5))*IF($B$5=100,NW9,NW12)+NW13+NW14 -> 0 | NX16: 0 | NY16: 0 | NZ16: 0 | OA16: 0 | OB16: 0 | OC16: 0 | OD16: 0 | OE16: 0 | OF16: 0 | OG16: 0 | OH16: 0 | OI16: 0 | OJ16: 0 | OK16: 0 | OL16: 0 | OM16: 0 | ON16: 0 | OO16: 0 | OP16: 0 | OQ16: 0 | OR16: 0 | OS16: 0 | OT16: 0 | OU16: 0 | OV16: 0 | OW16: 0 | OX16: 0 | OY16: 0 | OZ16: 0 | PA16: 0 | PB16: 0 | PC16: 0 | PD16: 0 | PE16: 0 | PF16: 0 | PG16: 0 | PH16: 0 | PI16: 0 | PJ16: 0 | PK16: 0 | PL16: 0 | PM16: 0 | PN16: 0 | PO16: 0 | PP16: 0 | PQ16: 0 | PR16: 0 | PS16: 0 | PT16: 0 | PU16: 0 | PV16: 0 | PW16: 0 | PX16: 0 | PY16: 0 | PZ16: 0 | QA16: 0 | QB16: 0 | QC16: 0 | QD16: 0 | QE16: 0 | QF16: 0 | QG16: 0 | QH16: 0 | QI16: =1.05*QI6^1.4*((2*$N$5)/($N$5*$G$5))*IF($B$5=100,QI9,QI12)+QI13+QI14 -> 0 | QJ16: 0 | QK16: 0 | QL16: 0 | QM16: 0 | QN16: 0 | QO16: 0 | QP16: 0 | QQ16: 0 | QR16: 0 | QS16: 0 | QT16: 0 | QU16: 0 | QV16: 0 | QW16: 0 | QX16: 0 | QY16: 0 | QZ16: 0 | RA16: 0 | RB16: 0 | RC16: 0 | RD16: 0 | RE16: 0 | RF16: 0 | RG16: 0 | RH16: 0 | RI16: 0 | RJ16: 0 | RK16: 0 | RL16: 0 | RM16: 0 | RN16: 0 | RO16: 0 | RP16: 0 | RQ16: 0 | RR16: 0 | RS16: 0 | RT16: 0 | RU16: 0 | RV16: 0 | RW16: 0 | RX16: 0 | RY16: 0 | RZ16: 0 | SA16: 0 | SB16: 0 | SC16: 0 | SD16: 0 | SE16: 0 | SF16: 0 | SG16: 0 | SH16: 0 | SI16: 0 | SJ16: 0 | SK16: 0 | SL16: 0 | SM16: 0 | SN16: 0 | SO16: 0 | SP16: 0 | SQ16: 0 | SR16: 0 | SS16: 0 | ST16: 0 | SU16: =1.05*SU6^1.4*((2*$N$5)/($N$5*$G$5))*IF($B$5=100,SU9,SU12)+SU13+SU14 -> 0 | SV16: 0 | SW16: 0 | SX16: 0 | SY16: 0 | SZ16: 0 | TA16: 0 | TB16: 0 | TC16: 0 | TD16: 0 | TE16: 0 | TF16: 0 | TG16: 0 | TH16: 0 | TI16: 0 | TJ16: 0 | TK16: 0 | TL16: 0 | TM16: 0 | TN16: 0 | TO16: 0 | TP16: 0 | TQ16: 0 | TR16: 0 | TS16: 0 | TT16: 0 | TU16: 0 | TV16: 0 | TW16: 0 | TX16: 0 | TY16: 0 | TZ16: 0 | UA16: 0 | UB16: 0 | UC16: 0 | UD16: 0 | UE16: 0 | UF16: 0 | UG16: 0 | UH16: 0 | UI16: 0 | UJ16: 0 | UK16: 0 | UL16: 0 | UM16: 0 | UN16: 0 | UO16: 0 | UP16: 0 | UQ16: 0 | UR16: 0 | US16: 0 | UT16: 0 | UU16: 0 | UV16: 0 | UW16: 0 | UX16: 0 | UY16: 0 | UZ16: 0 | VA16: 0 | VB16: 0 | VC16: 0 | VD16: 0 | VE16: 0 | VF16: 0 | VG16: =1.05*VG6^1.4*((2*$N$5)/($N$5*$G$5))*IF($B$5=100,VG9,VG12)+VG13+VG14 -> 0 | VH16: 0 | VI16: 0 | VJ16: 0 | VK16: 0 | VL16: 0 | VM16: 0 | VN16: 0 | VO16: 0 | VP16: 0 | VQ16: 0 | VR16: 0 | VS16: 0 | VT16: 0 | VU16: 0 | VV16: 0 | VW16: 0 | VX16: 0 | VY16: 0 | VZ16: 0 | WA16: 0 | WB16: 0 | WC16: 0 | WD16: 0 | WE16: 0 | WF16: 0 | WG16: 0 | WH16: 0 | WI16: 0 | WJ16: 0 | WK16: 0 | WL16: 0 | WM16: 0 | WN16: 0 | WO16: 0 | WP16: 0 | WQ16: 0 | WR16: 0 | WS16: 0 | WT16: 0 | WU16: 0 | WV16: 0 | WW16: 0 | WX16: 0 | WY16: 0 | WZ16: 0 | XA16: 0 | XB16: 0 | XC16: 0 | XD16: 0 | XE16: 0 | XF16: 0 | XG16: 0 | XH16: 0 | XI16: 0 | XJ16: 0 | XK16: 0 | XL16: 0 | XM16: 0 | XN16: 0 | XO16: 0 | XP16: 0 | XQ16: 0 | XR16: 0 | XS16: =1.05*XS6^1.4*((2*$N$5)/($N$5*$G$5))*IF($B$5=100,XS9,XS12)+XS13+XS14 -> 0 | XT16: 0 | XU16: 0 | XV16: 0 | XW16: 0 | XX16: 0 | XY16: 0 | XZ16: 0 | YA16: 0 | YB16: 0 | YC16: 0 | YD16: 0 | YE16: 0 | YF16: 0 | YG16: 0 | YH16: 0 | YI16: 0 | YJ16: 0 | YK16: 0 | YL16: 0 | YM16: 0 | YN16: 0 | YO16: 0 | YP16: 0 | YQ16: 0 | YR16: 0 | YS16: 0 | YT16: 0 | YU16: 0 | YV16: 0 | YW16: 0 | YX16: 0 | YY16: 0 | YZ16: 0 | ZA16: 0 | ZB16: 0 | ZC16: 0 | ZD16: 0 | ZE16: 0 | ZF16: 0 | ZG16: 0 | ZH16: 0 | ZI16: 0 | ZJ16: 0 | ZK16: 0 | ZL16: 0 | ZM16: 0 | ZN16: 0 | ZO16: 0 | ZP16: 0 | ZQ16: 0 | ZR16: 0 | ZS16: 0 | ZT16: 0 | ZU16: 0 | ZV16: 0 | ZW16: 0 | ZX16: 0 | ZY16: 0 | ZZ16: 0 | AAA16: 0 | AAB16: 0 | AAC16: 0 | AAD16: 0 | AAE16: =1.05*AAE6^1.4*((2*$N$5)/($N$5*$G$5))*IF($B$5=100,AAE9,AAE12)+AAE13+AAE14 -> 0 | AAF16: 0 | AAG16: 0 | AAH16: 0 | AAI16: 0 | AAJ16: 0 | AAK16: 0 | AAL16: 0 | AAM16: 0 | AAN16: 0 | AAO16: 0 | AAP16: 0 | AAQ16: 0 | AAR16: 0 | AAS16: 0 | AAT16: 0 | AAU16: 0 | AAV16: 0 | AAW16: 0 | AAX16: 0 | AAY16: 0 | AAZ16: 0 | ABA16: 0 | ABB16: 0 | ABC16: 0 | ABD16: 0 | ABE16: 0 | ABF16: 0 | ABG16: 0 | ABH16: 0 | ABI16: 0 | ABJ16: 0 | ABK16: 0 | ABL16: 0 | ABM16: 0 | ABN16: 0 | ABO16: 0 | ABP16: 0 | ABQ16: 0 | ABR16: 0 | ABS16: 0 | ABT16: 0 | ABU16: 0 | ABV16: 0 | ABW16: 0 | ABX16: 0 | ABY16: 0 | ABZ16: 0 | ACA16: 0 | ACB16: 0 | ACC16: 0 | ACD16: 0 | ACE16: 0 | ACF16: 0 | ACG16: 0 | ACH16: 0 | ACI16: 0 | ACJ16: 0 | ACK16: 0 | ACL16: 0 | ACM16: 0 | ACN16: 0 | ACO16: 0 | ACP16: 0 | ACQ16: =1.05*ACQ6^1.4*((2*$N$5)/($N$5*$G$5))*IF($B$5=100,ACQ9,ACQ12)+ACQ13+ACQ14 -> 0 | ACR16: 0 | ACS16: 0 | ACT16: 0 | ACU16: 0 | ACV16: 0 | ACW16: 0 | ACX16: 0 | ACY16: 0 | ACZ16: 0 | ADA16: 0 | ADB16: 0 | ADC16: 0 | ADD16: 0 | ADE16: 0 | ADF16: 0 | ADG16: 0 | ADH16: 0 | ADI16: 0 | ADJ16: 0 | ADK16: 0 | ADL16: 0 | ADM16: 0 | ADN16: 0 | ADO16: 0 | ADP16: 0 | ADQ16: 0 | ADR16: 0 | ADS16: 0 | ADT16: 0 | ADU16: 0 | ADV16: 0 | ADW16: 0 | ADX16: 0 | ADY16: 0 | ADZ16: 0 | AEA16: 0 | AEB16: 0 | AEC16: 0 | AED16: 0 | AEE16: 0 | AEF16: 0 | AEG16: 0 | AEH16: 0 | AEI16: 0 | AEJ16: 0 | AEK16: 0 | AEL16: 0 | AEM16: 0 | AEN16: 0 | AEO16: 0 | AEP16: 0 | AEQ16: 0 | AER16: 0 | AES16: 0 | AET16: 0 | AEU16: 0 | AEV16: 0 | AEW16: 0 | AEX16: 0 | AEY16: 0 | AEZ16: 0 | AFA16: 0 | AFB16: 0 | AFC16: =1.05*AFC6^1.4*((2*$N$5)/($N$5*$G$5))*IF($B$5=100,AFC9,AFC12)+AFC13+AFC14 -> 0 | AFD16: 0 | AFE16: 0 | AFF16: 0 | AFG16: 0 | AFH16: 0 | AFI16: 0 | AFJ16: 0 | AFK16: 0 | AFL16: 0 | AFM16: 0 | AFN16: 0 | AFO16: 0 | AFP16: 0 | AFQ16: 0 | AFR16: 0 | AFS16: 0 | AFT16: 0 | AFU16: 0 | AFV16: 0 | AFW16: 0 | AFX16: 0 | AFY16: 0 | AFZ16: 0 | AGA16: 0 | AGB16: 0 | AGC16: 0 | AGD16: 0 | AGE16: 0 | AGF16: 0 | AGG16: 0 | AGH16: 0 | AGI16: 0 | AGJ16: 0 | AGK16: 0 | AGL16: 0 | AGM16: 0 | AGN16: 0 | AGO16: 0 | AGP16: 0 | AGQ16: 0 | AGR16: 0 | AGS16: 0 | AGT16: 0 | AGU16: 0 | AGV16: 0 | AGW16: 0 | AGX16: 0 | AGY16: 0 | AGZ16: 0 | AHA16: 0 | AHB16: 0 | AHC16: 0 | AHD16: 0 | AHE16: 0 | AHF16: 0 | AHG16: 0 | AHH16: 0 | AHI16: 0 | AHJ16: 0 | AHK16: 0 | AHL16: 0 | AHM16: 0 | AHN16: 0 | AHO16: =1.05*AHO6^1.4*((2*$N$5)/($N$5*$G$5))*IF($B$5=100,AHO9,AHO12)+AHO13+AHO14 -> 0 | AHP16: 0 | AHQ16: 0 | AHR16: 0 | AHS16: 0 | AHT16: 0 | AHU16: 0 | AHV16: 0 | AHW16: 0 | AHX16: 0 | AHY16: 0 | AHZ16: 0 | AIA16: 0 | AIB16: 0 | AIC16: 0 | AID16: 0 | AIE16: 0 | AIF16: 0 | AIG16: 0 | AIH16: 0 | AII16: 0 | AIJ16: 0 | AIK16: 0 | AIL16: 0 | AIM16: 0 | AIN16: 0 | AIO16: 0 | AIP16: 0 | AIQ16: 0 | AIR16: 0 | AIS16: 0 | AIT16: 0 | AIU16: 0 | AIV16: 0 | AIW16: 0 | AIX16: 0 | AIY16: 0 | AIZ16: 0 | AJA16: 0 | AJB16: 0 | AJC16: 0 | AJD16: 0 | AJE16: 0 | AJF16: 0 | AJG16: 0 | AJH16: 0 | AJI16: 0 | AJJ16: 0 | AJK16: 0 | AJL16: 0 | AJM16: 0 | AJN16: 0 | AJO16: 0 | AJP16: 0 | AJQ16: 0 | AJR16: 0 | AJS16: 0 | AJT16: 0 | AJU16: 0 | AJV16: 0 | AJW16: 0 | AJX16: 0 | AJY16: 0 | AJZ16: 0 | AKA16: =1.05*AKA6^1.4*((2*$N$5)/($N$5*$G$5))*IF($B$5=100,AKA9,AKA12)+AKA13+AKA14 -> 0 | AKB16: 0 | AKC16: 0 | AKD16: 0 | AKE16: 0 | AKF16: 0 | AKG16: 0 | AKH16: 0 | AKI16: 0 | AKJ16: 0 | AKK16: 0 | AKL16: 0 | AKM16: 0 | AKN16: 0 | AKO16: 0 | AKP16: 0 | AKQ16: 0 | AKR16: 0 | AKS16: 0 | AKT16: 0 | AKU16: 0 | AKV16: 0 | AKW16: 0 | AKX16: 0 | AKY16: 0 | AKZ16: 0 | ALA16: 0 | ALB16: 0 | ALC16: 0 | ALD16: 0 | ALE16: 0 | ALF16: 0 | ALG16: 0 | ALH16: 0 | ALI16: 0 | ALJ16: 0 | ALK16: 0 | ALL16: 0 | ALM16: 0 | ALN16: 0 | ALO16: 0 | ALP16: 0 | ALQ16: 0 | ALR16: 0 | ALS16: 0 | ALT16: 0 | ALU16: 0 | ALV16: 0 | ALW16: 0 | ALX16: 0 | ALY16: 0 | ALZ16: 0 | AMA16: 0 | AMB16: 0 | AMC16: 0 | AMD16: 0 | AME16: 0 | AMF16: 0 | AMG16: 0 | AMH16: 0 | AMI16: 0 | AMJ16: 0 | AMK16: 0 | AML16: 0 | AMM16: =1.05*AMM6^1.4*((2*$N$5)/($N$5*$G$5))*IF($B$5=100,AMM9,AMM12)+AMM13+AMM14 -> 0 | AMN16: 0 | AMO16: 0 | AMP16: 0 | AMQ16: 0 | AMR16: 0 | AMS16: 0 | AMT16: 0 | AMU16: 0 | AMV16: 0 | AMW16: 0 | AMX16: 0 | AMY16: 0 | AMZ16: 0 | ANA16: 0 | ANB16: 0 | ANC16: 0 | AND16: 0 | ANE16: 0 | ANF16: 0 | ANG16: 0 | ANH16: 0 | ANI16: 0 | ANJ16: 0 | ANK16: 0 | ANL16: 0 | ANM16: 0 | ANN16: 0 | ANO16: 0 | ANP16: 0 | ANQ16: 0 | ANR16: 0 | ANS16: 0 | ANT16: 0 | ANU16: 0 | ANV16: 0 | ANW16: 0 | ANX16: 0 | ANY16: 0 | ANZ16: 0 | AOA16: 0 | AOB16: 0 | AOC16: 0 | AOD16: 0 | AOE16: 0 | AOF16: 0 | AOG16: 0 | AOH16: 0 | AOI16: 0 | AOJ16: 0 | AOK16: 0 | AOL16: 0 | AOM16: 0 | AON16: 0 | AOO16: 0 | AOP16: 0 | AOQ16: 0 | AOR16: 0 | AOS16: 0 | AOT16: 0 | AOU16: 0 | AOV16: 0 | AOW16: 0 | AOX16: 0 | AOY16: =1.05*AOY6^1.4*((2*$N$5)/($N$5*$G$5))*IF($B$5=100,AOY9,AOY12)+AOY13+AOY14 -> 0 | AOZ16: 0 | APA16: 0 | APB16: 0 | APC16: 0 | APD16: 0 | APE16: 0 | APF16: 0 | APG16: 0 | APH16: 0 | API16: 0 | APJ16: 0 | APK16: 0 | APL16: 0 | APM16: 0 | APN16: 0 | APO16: 0 | APP16: 0 | APQ16: 0 | APR16: 0 | APS16: 0 | APT16: 0 | APU16: 0 | APV16: 0 | APW16: 0 | APX16: 0 | APY16: 0 | APZ16: 0 | AQA16: 0 | AQB16: 0 | AQC16: 0 | AQD16: 0 | AQE16: 0 | AQF16: 0 | AQG16: 0 | AQH16: 0 | AQI16: 0 | AQJ16: 0 | AQK16: 0 | AQL16: 0 | AQM16: 0 | AQN16: 0 | AQO16: 0 | AQP16: 0 | AQQ16: 0 | AQR16: 0 | AQS16: 0 | AQT16: 0 | AQU16: 0 | AQV16: 0 | AQW16: 0 | AQX16: 0 | AQY16: 0 | AQZ16: 0 | ARA16: 0 | ARB16: 0 | ARC16: 0 | ARD16: 0 | ARE16: 0 | ARF16: 0 | ARG16: 0 | ARH16: 0 | ARI16: 0 | ARJ16: 0 | ARK16: =1.05*ARK6^1.4*((2*$N$5)/($N$5*$G$5))*IF($B$5=100,ARK9,ARK12)+ARK13+ARK14 -> 0 | ARL16: 0 | ARM16: 0 | ARN16: 0 | ARO16: 0 | ARP16: 0 | ARQ16: 0 | ARR16: 0 | ARS16: 0 | ART16: 0 | ARU16: 0 | ARV16: 0 | ARW16: 0 | ARX16: 0 | ARY16: 0 | ARZ16: 0 | ASA16: 0 | ASB16: 0 | ASC16: 0 | ASD16: 0 | ASE16: 0 | ASF16: 0 | ASG16: 0 | ASH16: 0 | ASI16: 0 | ASJ16: 0 | ASK16: 0 | ASL16: 0 | ASM16: 0 | ASN16: 0 | ASO16: 0 | ASP16: 0 | ASQ16: 0 | ASR16: 0 | ASS16: 0 | AST16: 0 | ASU16: 0 | ASV16: 0 | ASW16: 0 | ASX16: 0 | ASY16: 0 | ASZ16: 0 | ATA16: 0 | ATB16: 0 | ATC16: 0 | ATD16: 0 | ATE16: 0 | ATF16: 0 | ATG16: 0 | ATH16: 0 | ATI16: 0 | ATJ16: 0 | ATK16: 0 | ATL16: 0 | ATM16: 0 | ATN16: 0 | ATO16: 0 | ATP16: 0 | ATQ16: 0 | ATR16: 0 | ATS16: 0 | ATT16: 0 | ATU16: 0 | ATV16: 0 | ATW16: =1.05*ATW6^1.4*((2*$N$5)/($N$5*$G$5))*IF($B$5=100,ATW9,ATW12)+ATW13+ATW14 -> 0 | ATX16: 0 | ATY16: 0 | ATZ16: 0 | AUA16: 0 | AUB16: 0 | AUC16: 0 | AUD16: 0 | AUE16: 0 | AUF16: 0 | AUG16: 0 | AUH16: 0 | AUI16: 0 | AUJ16: 0 | AUK16: 0 | AUL16: 0 | AUM16: 0 | AUN16: 0 | AUO16: 0 | AUP16: 0 | AUQ16: 0 | AUR16: 0 | AUS16: 0 | AUT16: 0 | AUU16: 0 | AUV16: 0 | AUW16: 0 | AUX16: 0 | AUY16: 0 | AUZ16: 0 | AVA16: 0 | AVB16: 0 | AVC16: 0 | AVD16: 0 | AVE16: 0 | AVF16: 0 | AVG16: 0 | AVH16: 0 | AVI16: 0 | AVJ16: 0 | AVK16: 0 | AVL16: 0 | AVM16: 0 | AVN16: 0 | AVO16: 0 | AVP16: 0 | AVQ16: 0 | AVR16: 0 | AVS16: 0 | AVT16: 0 | AVU16: 0 | AVV16: 0 | AVW16: 0 | AVX16: 0 | AVY16: 0 | AVZ16: 0 | AWA16: 0 | AWB16: 0 | AWC16: 0 | AWD16: 0 | AWE16: 0 | AWF16: 0 | AWG16: 0 | AWH16: 0 | AWI16: =1.05*AWI6^1.4*((2*$N$5)/($N$5*$G$5))*IF($B$5=100,AWI9,AWI12)+AWI13+AWI14 -> 0 | AWJ16: 0 | AWK16: 0 | AWL16: 0 | AWM16: 0 | AWN16: 0 | AWO16: 0 | AWP16: 0 | AWQ16: 0 | AWR16: 0 | AWS16: 0 | AWT16: 0 | AWU16: 0 | AWV16: 0 | AWW16: 0 | AWX16: 0 | AWY16: 0 | AWZ16: 0 | AXA16: 0 | AXB16: 0 | AXC16: 0 | AXD16: 0 | AXE16: 0 | AXF16: 0 | AXG16: 0 | AXH16: 0 | AXI16: 0 | AXJ16: 0 | AXK16: 0 | AXL16: 0 | AXM16: 0 | AXN16: 0 | AXO16: 0 | AXP16: 0 | AXQ16: 0 | AXR16: 0 | AXS16: 0 | AXT16: 0 | AXU16: 0 | AXV16: 0 | AXW16: 0 | AXX16: 0 | AXY16: 0 | AXZ16: 0 | AYA16: 0 | AYB16: 0 | AYC16: 0 | AYD16: 0 | AYE16: 0 | AYF16: 0 | AYG16: 0 | AYH16: 0 | AYI16: 0 | AYJ16: 0 | AYK16: 0 | AYL16: 0 | AYM16: 0 | AYN16: 0 | AYO16: 0 | AYP16: 0 | AYQ16: 0 | AYR16: 0 | AYS16: 0 | AYT16: 0 | AYU16: =1.05*AYU6^1.4*((2*$N$5)/($N$5*$G$5))*IF($B$5=100,AYU9,AYU12)+AYU13+AYU14 -> 0 | AYV16: 0 | AYW16: 0 | AYX16: 0 | AYY16: 0 | AYZ16: 0 | AZA16: 0 | AZB16: 0 | AZC16: 0 | AZD16: 0 | AZE16: 0 | AZF16: 0 | AZG16: 0 | AZH16: 0 | AZI16: 0 | AZJ16: 0 | AZK16: 0 | AZL16: 0 | AZM16: 0 | AZN16: 0 | AZO16: 0 | AZP16: 0 | AZQ16: 0 | AZR16: 0 | AZS16: 0 | AZT16: 0 | AZU16: 0 | AZV16: 0 | AZW16: 0 | AZX16: 0 | AZY16: 0 | AZZ16: 0 | BAA16: 0 | BAB16: 0 | BAC16: 0 | BAD16: 0 | BAE16: 0 | BAF16: 0 | BAG16: 0 | BAH16: 0 | BAI16: 0 | BAJ16: 0 | BAK16: 0 | BAL16: 0 | BAM16: 0 | BAN16: 0 | BAO16: 0 | BAP16: 0 | BAQ16: 0 | BAR16: 0 | BAS16: 0 | BAT16: 0 | BAU16: 0 | BAV16: 0 | BAW16: 0 | BAX16: 0 | BAY16: 0 | BAZ16: 0 | BBA16: 0 | BBB16: 0 | BBC16: 0 | BBD16: 0 | BBE16: 0 | BBF16: 0 | BBG16: =1.05*BBG6^1.4*((2*$N$5)/($N$5*$G$5))*IF($B$5=100,BBG9,BBG12)+BBG13+BBG14 -> 0 | BBH16: 0 | BBI16: 0 | BBJ16: 0 | BBK16: 0 | BBL16: 0 | BBM16: 0 | BBN16: 0 | BBO16: 0 | BBP16: 0 | BBQ16: 0 | BBR16: 0 | BBS16: 0 | BBT16: 0 | BBU16: 0 | BBV16: 0 | BBW16: 0 | BBX16: 0 | BBY16: 0 | BBZ16: 0 | BCA16: 0 | BCB16: 0 | BCC16: 0 | BCD16: 0 | BCE16: 0 | BCF16: 0 | BCG16: 0 | BCH16: 0 | BCI16: 0 | BCJ16: 0 | BCK16: 0 | BCL16: 0 | BCM16: 0 | BCN16: 0 | BCO16: 0 | BCP16: 0 | BCQ16: 0 | BCR16: 0 | BCS16: 0 | BCT16: 0 | BCU16: 0 | BCV16: 0 | BCW16: 0 | BCX16: 0 | BCY16: 0 | BCZ16: 0 | BDA16: 0 | BDB16: 0 | BDC16: 0 | BDD16: 0 | BDE16: 0 | BDF16: 0 | BDG16: 0 | BDH16: 0 | BDI16: 0 | BDJ16: 0 | BDK16: 0 | BDL16: 0 | BDM16: 0 | BDN16: 0 | BDO16: 0 | BDP16: 0 | BDQ16: 0 | BDR16: 0 | BDS16: =1.05*BDS6^1.4*((2*$N$5)/($N$5*$G$5))*IF($B$5=100,BDS9,BDS12)+BDS13+BDS14 -> 0 | BDT16: 0 | BDU16: 0 | BDV16: 0 | BDW16: 0 | BDX16: 0 | BDY16: 0 | BDZ16: 0 | BEA16: 0 | BEB16: 0 | BEC16: 0 | BED16: 0 | BEE16: 0 | BEF16: 0 | BEG16: 0 | BEH16: 0 | BEI16: 0 | BEJ16: 0 | BEK16: 0 | BEL16: 0 | BEM16: 0 | BEN16: 0 | BEO16: 0 | BEP16: 0 | BEQ16: 0 | BER16: 0 | BES16: 0 | BET16: 0 | BEU16: 0 | BEV16: 0 | BEW16: 0 | BEX16: 0 | BEY16: 0 | BEZ16: 0 | BFA16: 0 | BFB16: 0 | BFC16: 0 | BFD16: 0 | BFE16: 0 | BFF16: 0 | BFG16: 0 | BFH16: 0 | BFI16: 0 | BFJ16: 0 | BFK16: 0 | BFL16: 0 | BFM16: 0 | BFN16: 0 | BFO16: 0 | BFP16: 0 | BFQ16: 0 | BFR16: 0 | BFS16: 0 | BFT16: 0 | BFU16: 0 | BFV16: 0 | BFW16: 0 | BFX16: 0 | BFY16: 0 | BFZ16: 0 | BGA16: 0 | BGB16: 0 | BGC16: 0 | BGD16: 0 | BGE16: =1.05*BGE6^1.4*((2*$N$5)/($N$5*$G$5))*IF($B$5=100,BGE9,BGE12)+BGE13+BGE14 -> 0 | BGF16: 0 | BGG16: 0 | BGH16: 0 | BGI16: 0 | BGJ16: 0 | BGK16: 0 | BGL16: 0 | BGM16: 0 | BGN16: 0 | BGO16: 0 | BGP16: 0 | BGQ16: 0 | BGR16: 0 | BGS16: 0 | BGT16: 0 | BGU16: 0 | BGV16: 0 | BGW16: 0 | BGX16: 0 | BGY16: 0 | BGZ16: 0 | BHA16: 0 | BHB16: 0 | BHC16: 0 | BHD16: 0 | BHE16: 0 | BHF16: 0 | BHG16: 0 | BHH16: 0 | BHI16: 0 | BHJ16: 0 | BHK16: 0 | BHL16: 0 | BHM16: 0 | BHN16: 0 | BHO16: 0 | BHP16: 0 | BHQ16: 0 | BHR16: 0 | BHS16: 0 | BHT16: 0 | BHU16: 0 | BHV16: 0 | BHW16: 0 | BHX16: 0 | BHY16: 0 | BHZ16: 0 | BIA16: 0 | BIB16: 0 | BIC16: 0 | BID16: 0 | BIE16: 0 | BIF16: 0 | BIG16: 0 | BIH16: 0 | BII16: 0 | BIJ16: 0 | BIK16: 0 | BIL16: 0 | BIM16: 0 | BIN16: 0 | BIO16: 0 | BIP16: 0 | BIQ16: =1.05*BIQ6^1.4*((2*$N$5)/($N$5*$G$5))*IF($B$5=100,BIQ9,BIQ12)+BIQ13+BIQ14 -> 0 | BIR16: 0 | BIS16: 0 | BIT16: 0 | BIU16: 0 | BIV16: 0 | BIW16: 0 | BIX16: 0 | BIY16: 0 | BIZ16: 0 | BJA16: 0 | BJB16: 0 | BJC16: 0 | BJD16: 0 | BJE16: 0 | BJF16: 0 | BJG16: 0 | BJH16: 0 | BJI16: 0 | BJJ16: 0 | BJK16: 0 | BJL16: 0 | BJM16: 0 | BJN16: 0 | BJO16: 0 | BJP16: 0 | BJQ16: 0 | BJR16: 0 | BJS16: 0 | BJT16: 0 | BJU16: 0 | BJV16: 0 | BJW16: 0 | BJX16: 0 | BJY16: 0 | BJZ16: 0 | BKA16: 0 | BKB16: 0 | BKC16: 0 | BKD16: 0 | BKE16: 0 | BKF16: 0 | BKG16: 0 | BKH16: 0 | BKI16: 0 | BKJ16: 0 | BKK16: 0 | BKL16: 0 | BKM16: 0 | BKN16: 0 | BKO16: 0 | BKP16: 0 | BKQ16: 0 | BKR16: 0 | BKS16: 0 | BKT16: 0 | BKU16: 0 | BKV16: 0 | BKW16: 0 | BKX16: 0 | BKY16: 0 | BKZ16: 0 | BLA16: 0 | BLB16: 0 | BLC16: =1.05*BLC6^1.4*((2*$N$5)/($N$5*$G$5))*IF($B$5=100,BLC9,BLC12)+BLC13+BLC14 -> 0 | BLD16: 0 | BLE16: 0 | BLF16: 0 | BLG16: 0 | BLH16: 0 | BLI16: 0 | BLJ16: 0 | BLK16: 0 | BLL16: 0 | BLM16: 0 | BLN16: 0 | BLO16: 0 | BLP16: 0 | BLQ16: 0 | BLR16: 0 | BLS16: 0 | BLT16: 0 | BLU16: 0 | BLV16: 0 | BLW16: 0 | BLX16: 0 | BLY16: 0 | BLZ16: 0 | BMA16: 0 | BMB16: 0 | BMC16: 0 | BMD16: 0 | BME16: 0 | BMF16: 0 | BMG16: 0 | BMH16: 0 | BMI16: 0 | BMJ16: 0 | BMK16: 0 | BML16: 0 | BMM16: 0 | BMN16: 0 | BMO16: 0 | BMP16: 0 | BMQ16: 0 | BMR16: 0 | BMS16: 0 | BMT16: 0 | BMU16: 0 | BMV16: 0 | BMW16: 0 | BMX16: 0 | BMY16: 0 | BMZ16: 0 | BNA16: 0 | BNB16: 0 | BNC16: 0 | BND16: 0 | BNE16: 0 | BNF16: 0 | BNG16: 0 | BNH16: 0 | BNI16: 0 | BNJ16: 0 | BNK16: 0 | BNL16: 0 | BNM16: 0 | BNN16: 0 | BNO16: =1.05*BNO6^1.4*((2*$N$5)/($N$5*$G$5))*IF($B$5=100,BNO9,BNO12)+BNO13+BNO14 -> 0 | BNP16: 0 | BNQ16: 0 | BNR16: 0 | BNS16: 0 | BNT16: 0 | BNU16: 0 | BNV16: 0 | BNW16: 0 | BNX16: 0 | BNY16: 0 | BNZ16: 0 | BOA16: 0 | BOB16: 0 | BOC16: 0 | BOD16: 0 | BOE16: 0 | BOF16: 0 | BOG16: 0 | BOH16: 0 | BOI16: 0 | BOJ16: 0 | BOK16: 0 | BOL16: 0 | BOM16: 0 | BON16: 0 | BOO16: 0 | BOP16: 0 | BOQ16: 0 | BOR16: 0 | BOS16: 0 | BOT16: 0 | BOU16: 0 | BOV16: 0 | BOW16: 0 | BOX16: 0 | BOY16: 0 | BOZ16: 0 | BPA16: 0 | BPB16: 0 | BPC16: 0 | BPD16: 0 | BPE16: 0 | BPF16: 0 | BPG16: 0 | BPH16: 0 | BPI16: 0 | BPJ16: 0 | BPK16: 0 | BPL16: 0 | BPM16: 0 | BPN16: 0 | BPO16: 0 | BPP16: 0 | BPQ16: 0 | BPR16: 0 | BPS16: 0 | BPT16: 0 | BPU16: 0 | BPV16: 0 | BPW16: 0 | BPX16: 0 | BPY16: 0 | BPZ16: 0 | BQA16: =1.05*BQA6^1.4*((2*$N$5)/($N$5*$G$5))*IF($B$5=100,BQA9,BQA12)+BQA13+BQA14 -> 0 | BQB16: 0 | BQC16: 0 | BQD16: 0 | BQE16: 0 | BQF16: 0 | BQG16: 0 | BQH16: 0 | BQI16: 0 | BQJ16: 0 | BQK16: 0 | BQL16: 0 | BQM16: 0 | BQN16: 0 | BQO16: 0 | BQP16: 0 | BQQ16: 0 | BQR16: 0 | BQS16: 0 | BQT16: 0 | BQU16: 0 | BQV16: 0 | BQW16: 0 | BQX16: 0 | BQY16: 0 | BQZ16: 0 | BRA16: 0 | BRB16: 0 | BRC16: 0 | BRD16: 0 | BRE16: 0 | BRF16: 0 | BRG16: 0 | BRH16: 0 | BRI16: 0 | BRJ16: 0 | BRK16: 0 | BRL16: 0 | BRM16: 0 | BRN16: 0 | BRO16: 0 | BRP16: 0 | BRQ16: 0 | BRR16: 0 | BRS16: 0 | BRT16: 0 | BRU16: 0 | BRV16: 0 | BRW16: 0 | BRX16: 0 | BRY16: 0 | BRZ16: 0 | BSA16: 0 | BSB16: 0 | BSC16: 0 | BSD16: 0 | BSE16: 0 | BSF16: 0 | BSG16: 0 | BSH16: 0 | BSI16: 0 | BSJ16: 0 | BSK16: 0 | BSL16: 0 | BSM16: =1.05*BSM6^1.4*((2*$N$5)/($N$5*$G$5))*IF($B$5=100,BSM9,BSM12)+BSM13+BSM14 -> 0 | BSN16: 0 | BSO16: 0 | BSP16: 0 | BSQ16: 0 | BSR16: 0 | BSS16: 0 | BST16: 0 | BSU16: 0 | BSV16: 0 | BSW16: 0 | BSX16: 0 | BSY16: 0 | BSZ16: 0 | BTA16: 0 | BTB16: 0 | BTC16: 0 | BTD16: 0 | BTE16: 0 | BTF16: 0 | BTG16: 0 | BTH16: 0 | BTI16: 0 | BTJ16: 0 | BTK16: 0 | BTL16: 0 | BTM16: 0 | BTN16: 0 | BTO16: 0 | BTP16: 0 | BTQ16: 0 | BTR16: 0 | BTS16: 0 | BTT16: 0 | BTU16: 0 | BTV16: 0 | BTW16: 0 | BTX16: 0 | BTY16: 0 | BTZ16: 0 | BUA16: 0 | BUB16: 0 | BUC16: 0 | BUD16: 0 | BUE16: 0 | BUF16: 0 | BUG16: 0 | BUH16: 0 | BUI16: 0 | BUJ16: 0 | BUK16: 0 | BUL16: 0 | BUM16: 0 | BUN16: 0 | BUO16: 0 | BUP16: 0 | BUQ16: 0 | BUR16: 0 | BUS16: 0 | BUT16: 0 | BUU16: 0 | BUV16: 0 | BUW16: 0 | BUX16: 0 | BUY16: =1.05*BUY6^1.4*((2*$N$5)/($N$5*$G$5))*IF($B$5=100,BUY9,BUY12)+BUY13+BUY14 -> 0 | BUZ16: 0 | BVA16: 0 | BVB16: 0 | BVC16: 0 | BVD16: 0 | BVE16: 0 | BVF16: 0 | BVG16: 0 | BVH16: 0 | BVI16: 0 | BVJ16: 0 | BVK16: 0 | BVL16: 0 | BVM16: 0 | BVN16: 0 | BVO16: 0 | BVP16: 0 | BVQ16: 0 | BVR16: 0 | BVS16: 0 | BVT16: 0 | BVU16: 0 | BVV16: 0 | BVW16: 0 | BVX16: 0 | BVY16: 0 | BVZ16: 0 | BWA16: 0 | BWB16: 0 | BWC16: 0 | BWD16: 0 | BWE16: 0 | BWF16: 0 | BWG16: 0 | BWH16: 0 | BWI16: 0 | BWJ16: 0 | BWK16: 0 | BWL16: 0 | BWM16: 0 | BWN16: 0 | BWO16: 0 | BWP16: 0 | BWQ16: 0 | BWR16: 0 | BWS16: 0 | BWT16: 0 | BWU16: 0 | BWV16: 0 | BWW16: 0 | BWX16: 0 | BWY16: 0 | BWZ16: 0 | BXA16: 0 | BXB16: 0 | BXC16: 0 | BXD16: 0 | BXE16: 0 | BXF16: 0 | BXG16: 0 | BXH16: 0 | BXI16: 0 | BXJ16: 0 | BXK16: =1.05*BXK6^1.4*((2*$N$5)/($N$5*$G$5))*IF($B$5=100,BXK9,BXK12)+BXK13+BXK14 -> 0 | BXL16: 0 | BXM16: 0 | BXN16: 0 | BXO16: 0 | BXP16: 0 | BXQ16: 0 | BXR16: 0 | BXS16: 0 | BXT16: 0 | BXU16: 0 | BXV16: 0 | BXW16: 0 | BXX16: 0 | BXY16: 0 | BXZ16: 0 | BYA16: 0 | BYB16: 0 | BYC16: 0 | BYD16: 0 | BYE16: 0 | BYF16: 0 | BYG16: 0 | BYH16: 0 | BYI16: 0 | BYJ16: 0 | BYK16: 0 | BYL16: 0 | BYM16: 0 | BYN16: 0 | BYO16: 0 | BYP16: 0 | BYQ16: 0 | BYR16: 0 | BYS16: 0 | BYT16: 0 | BYU16: 0 | BYV16: 0 | BYW16: 0 | BYX16: 0 | BYY16: 0 | BYZ16: 0 | BZA16: 0 | BZB16: 0 | BZC16: 0 | BZD16: 0 | BZE16: 0 | BZF16: 0 | BZG16: 0 | BZH16: 0 | BZI16: 0 | BZJ16: 0 | BZK16: 0 | BZL16: 0 | BZM16: 0 | BZN16: 0 | BZO16: 0 | BZP16: 0 | BZQ16: 0 | BZR16: 0 | BZS16: 0 | BZT16: 0 | BZU16: 0 | BZV16: 0 | BZW16: =1.05*BZW6^1.4*((2*$N$5)/($N$5*$G$5))*IF($B$5=100,BZW9,BZW12)+BZW13+BZW14 -> 0 | BZX16: 0 | BZY16: 0 | BZZ16: 0 | CAA16: 0 | CAB16: 0 | CAC16: 0 | CAD16: 0 | CAE16: 0 | CAF16: 0 | CAG16: 0 | CAH16: 0 | CAI16: 0 | CAJ16: 0 | CAK16: 0 | CAL16: 0 | CAM16: 0 | CAN16: 0 | CAO16: 0 | CAP16: 0 | CAQ16: 0 | CAR16: 0 | CAS16: 0 | CAT16: 0 | CAU16: 0 | CAV16: 0 | CAW16: 0 | CAX16: 0 | CAY16: 0 | CAZ16: 0 | CBA16: 0 | CBB16: 0 | CBC16: 0 | CBD16: 0 | CBE16: 0 | CBF16: 0 | CBG16: 0 | CBH16: 0 | CBI16: 0 | CBJ16: 0 | CBK16: 0 | CBL16: 0 | CBM16: 0 | CBN16: 0 | CBO16: 0 | CBP16: 0 | CBQ16: 0 | CBR16: 0 | CBS16: 0 | CBT16: 0 | CBU16: 0 | CBV16: 0 | CBW16: 0 | CBX16: 0 | CBY16: 0 | CBZ16: 0 | CCA16: 0 | CCB16: 0 | CCC16: 0 | CCD16: 0 | CCE16: 0 | CCF16: 0 | CCG16: 0 | CCH16: 0 | CCI16: =1.05*CCI6^1.4*((2*$N$5)/($N$5*$G$5))*IF($B$5=100,CCI9,CCI12)+CCI13+CCI14 -> 0 | CCJ16: 0 | CCK16: 0 | CCL16: 0 | CCM16: 0 | CCN16: 0 | CCO16: 0 | CCP16: 0 | CCQ16: 0 | CCR16: 0 | CCS16: 0 | CCT16: 0 | CCU16: 0 | CCV16: 0 | CCW16: 0 | CCX16: 0 | CCY16: 0 | CCZ16: 0 | CDA16: 0 | CDB16: 0 | CDC16: 0 | CDD16: 0 | CDE16: 0 | CDF16: 0 | CDG16: 0 | CDH16: 0 | CDI16: 0 | CDJ16: 0 | CDK16: 0 | CDL16: 0 | CDM16: 0 | CDN16: 0 | CDO16: 0 | CDP16: 0 | CDQ16: 0 | CDR16: 0 | CDS16: 0 | CDT16: 0 | CDU16: 0 | CDV16: 0 | CDW16: 0 | CDX16: 0 | CDY16: 0 | CDZ16: 0 | CEA16: 0 | CEB16: 0 | CEC16: 0 | CED16: 0 | CEE16: 0 | CEF16: 0 | CEG16: 0 | CEH16: 0 | CEI16: 0 | CEJ16: 0 | CEK16: 0 | CEL16: 0 | CEM16: 0 | CEN16: 0 | CEO16: 0 | CEP16: 0 | CEQ16: 0 | CER16: 0 | CES16: 0 | CET16: 0 | CEU16: =1.05*CEU6^1.4*((2*$N$5)/($N$5*$G$5))*IF($B$5=100,CEU9,CEU12)+CEU13+CEU14 -> 0 | CEV16: 0 | CEW16: 0 | CEX16: 0 | CEY16: 0 | CEZ16: 0 | CFA16: 0 | CFB16: 0 | CFC16: 0 | CFD16: 0 | CFE16: 0 | CFF16: 0 | CFG16: 0 | CFH16: 0 | CFI16: 0 | CFJ16: 0 | CFK16: 0 | CFL16: 0 | CFM16: 0 | CFN16: 0 | CFO16: 0 | CFP16: 0 | CFQ16: 0 | CFR16: 0 | CFS16: 0 | CFT16: 0 | CFU16: 0 | CFV16: 0 | CFW16: 0 | CFX16: 0 | CFY16: 0 | CFZ16: 0 | CGA16: 0 | CGB16: 0 | CGC16: 0 | CGD16: 0 | CGE16: 0 | CGF16: 0 | CGG16: 0 | CGH16: 0 | CGI16: 0 | CGJ16: 0 | CGK16: 0 | CGL16: 0 | CGM16: 0 | CGN16: 0 | CGO16: 0 | CGP16: 0 | CGQ16: 0 | CGR16: 0 | CGS16: 0 | CGT16: 0 | CGU16: 0 | CGV16: 0 | CGW16: 0 | CGX16: 0 | CGY16: 0 | CGZ16: 0 | CHA16: 0 | CHB16: 0 | CHC16: 0 | CHD16: 0 | CHE16: 0 | CHF16: 0 | CHG16: =1.05*CHG6^1.4*((2*$N$5)/($N$5*$G$5))*IF($B$5=100,CHG9,CHG12)+CHG13+CHG14 -> 0 | CHH16: 0 | CHI16: 0 | CHJ16: 0 | CHK16: 0 | CHL16: 0 | CHM16: 0 | CHN16: 0 | CHO16: 0 | CHP16: 0 | CHQ16: 0 | CHR16: 0 | CHS16: 0 | CHT16: 0 | CHU16: 0 | CHV16: 0 | CHW16: 0 | CHX16: 0 | CHY16: 0 | CHZ16: 0 | CIA16: 0 | CIB16: 0 | CIC16: 0 | CID16: 0 | CIE16: 0 | CIF16: 0 | CIG16: 0 | CIH16: 0 | CII16: 0 | CIJ16: 0 | CIK16: 0 | CIL16: 0 | CIM16: 0 | CIN16: 0 | CIO16: 0 | CIP16: 0 | CIQ16: 0 | CIR16: 0 | CIS16: 0 | CIT16: 0 | CIU16: 0 | CIV16: 0 | CIW16: 0 | CIX16: 0 | CIY16: 0 | CIZ16: 0 | CJA16: 0 | CJB16: 0 | CJC16: 0 | CJD16: 0 | CJE16: 0 | CJF16: 0 | CJG16: 0 | CJH16: 0 | CJI16: 0 | CJJ16: 0 | CJK16: 0 | CJL16: 0 | CJM16: 0 | CJN16: 0 | CJO16: 0 | CJP16: 0 | CJQ16: 0 | CJR16: 0 | CJS16: =1.05*CJS6^1.4*((2*$N$5)/($N$5*$G$5))*IF($B$5=100,CJS9,CJS12)+CJS13+CJS14 -> 0 | CJT16: 0 | CJU16: 0 | CJV16: 0 | CJW16: 0 | CJX16: 0 | CJY16: 0 | CJZ16: 0 | CKA16: 0 | CKB16: 0 | CKC16: 0 | CKD16: 0 | CKE16: 0 | CKF16: 0 | CKG16: 0 | CKH16: 0 | CKI16: 0 | CKJ16: 0 | CKK16: 0 | CKL16: 0 | CKM16: 0 | CKN16: 0 | CKO16: 0 | CKP16: 0 | CKQ16: 0 | CKR16: 0 | CKS16: 0 | CKT16: 0 | CKU16: 0 | CKV16: 0 | CKW16: 0 | CKX16: 0 | CKY16: 0 | CKZ16: 0 | CLA16: 0 | CLB16: 0 | CLC16: 0 | CLD16: 0 | CLE16: 0 | CLF16: 0 | CLG16: 0 | CLH16: 0 | CLI16: 0 | CLJ16: 0 | CLK16: 0 | CLL16: 0 | CLM16: 0 | CLN16: 0 | CLO16: 0 | CLP16: 0 | CLQ16: 0 | CLR16: 0 | CLS16: 0 | CLT16: 0 | CLU16: 0 | CLV16: 0 | CLW16: 0 | CLX16: 0 | CLY16: 0 | CLZ16: 0 | CMA16: 0 | CMB16: 0 | CMC16: 0 | CMD16: 0 | CME16: =1.05*CME6^1.4*((2*$N$5)/($N$5*$G$5))*IF($B$5=100,CME9,CME12)+CME13+CME14 -> 0 | CMF16: 0 | CMG16: 0 | CMH16: 0 | CMI16: 0 | CMJ16: 0 | CMK16: 0 | CML16: 0 | CMM16: 0 | CMN16: 0 | CMO16: 0 | CMP16: 0 | CMQ16: 0 | CMR16: 0 | CMS16: 0 | CMT16: 0 | CMU16: 0 | CMV16: 0 | CMW16: 0 | CMX16: 0 | CMY16: 0 | CMZ16: 0 | CNA16: 0 | CNB16: 0 | CNC16: 0 | CND16: 0 | CNE16: 0 | CNF16: 0 | CNG16: 0 | CNH16: 0 | CNI16: 0 | CNJ16: 0 | CNK16: 0 | CNL16: 0 | CNM16: 0 | CNN16: 0 | CNO16: 0 | CNP16: 0 | CNQ16: 0 | CNR16: 0 | CNS16: 0 | CNT16: 0 | CNU16: 0 | CNV16: 0 | CNW16: 0 | CNX16: 0 | CNY16: 0 | CNZ16: 0 | COA16: 0 | COB16: 0 | COC16: 0 | COD16: 0 | COE16: 0 | COF16: 0 | COG16: 0 | COH16: 0 | COI16: 0 | COJ16: 0 | COK16: 0 | COL16: 0 | COM16: 0 | CON16: 0 | COO16: 0 | COP16: 0 | COQ16: =1.05*COQ6^1.4*((2*$N$5)/($N$5*$G$5))*IF($B$5=100,COQ9,COQ12)+COQ13+COQ14 -> 0 | COR16: 0 | COS16: 0 | COT16: 0 | COU16: 0 | COV16: 0 | COW16: 0 | COX16: 0 | COY16: 0 | COZ16: 0 | CPA16: 0 | CPB16: 0 | CPC16: 0 | CPD16: 0 | CPE16: 0 | CPF16: 0 | CPG16: 0 | CPH16: 0 | CPI16: 0 | CPJ16: 0 | CPK16: 0 | CPL16: 0 | CPM16: 0 | CPN16: 0 | CPO16: 0 | CPP16: 0 | CPQ16: 0 | CPR16: 0 | CPS16: 0 | CPT16: 0 | CPU16: 0 | CPV16: 0 | CPW16: 0 | CPX16: 0 | CPY16: 0 | CPZ16: 0 | CQA16: 0 | CQB16: 0 | CQC16: 0 | CQD16: 0 | CQE16: 0 | CQF16: 0 | CQG16: 0 | CQH16: 0 | CQI16: 0 | CQJ16: 0 | CQK16: 0 | CQL16: 0 | CQM16: 0 | CQN16: 0 | CQO16: 0 | CQP16: 0 | CQQ16: 0 | CQR16: 0 | CQS16: 0 | CQT16: 0 | CQU16: 0 | CQV16: 0 | CQW16: 0 | CQX16: 0 | CQY16: 0 | CQZ16: 0 | CRA16: 0 | CRB16: 0 | CRC16: =1.05*CRC6^1.4*((2*$N$5)/($N$5*$G$5))*IF($B$5=100,CRC9,CRC12)+CRC13+CRC14 -> 0 | CRD16: 0 | CRE16: 0 | CRF16: 0 | CRG16: 0 | CRH16: 0 | CRI16: 0 | CRJ16: 0 | CRK16: 0 | CRL16: 0 | CRM16: 0 | CRN16: 0 | CRO16: 0 | CRP16: 0 | CRQ16: 0 | CRR16: 0 | CRS16: 0 | CRT16: 0 | CRU16: 0 | CRV16: 0 | CRW16: 0 | CRX16: 0 | CRY16: 0 | CRZ16: 0 | CSA16: 0 | CSB16: 0 | CSC16: 0 | CSD16: 0 | CSE16: 0 | CSF16: 0 | CSG16: 0 | CSH16: 0 | CSI16: 0 | CSJ16: 0 | CSK16: 0 | CSL16: 0 | CSM16: 0 | CSN16: 0 | CSO16: 0 | CSP16: 0 | CSQ16: 0 | CSR16: 0 | CSS16: 0 | CST16: 0 | CSU16: 0 | CSV16: 0 | CSW16: 0 | CSX16: 0 | CSY16: 0 | CSZ16: 0 | CTA16: 0 | CTB16: 0 | CTC16: 0 | CTD16: 0 | CTE16: 0 | CTF16: 0 | CTG16: 0 | CTH16: 0 | CTI16: 0 | CTJ16: 0 | CTK16: 0 | CTL16: 0 | CTM16: 0 | CTN16: 0 | CTO16: =1.05*CTO6^1.4*((2*$N$5)/($N$5*$G$5))*IF($B$5=100,CTO9,CTO12)+CTO13+CTO14 -> 0 | CTP16: 0 | CTQ16: 0 | CTR16: 0 | CTS16: 0 | CTT16: 0 | CTU16: 0 | CTV16: 0 | CTW16: 0 | CTX16: 0 | CTY16: 0 | CTZ16: 0 | CUA16: 0 | CUB16: 0 | CUC16: 0 | CUD16: 0 | CUE16: 0 | CUF16: 0 | CUG16: 0 | CUH16: 0 | CUI16: 0 | CUJ16: 0 | CUK16: 0 | CUL16: 0 | CUM16: 0 | CUN16: 0 | CUO16: 0 | CUP16: 0 | CUQ16: 0 | CUR16: 0 | CUS16: 0 | CUT16: 0 | CUU16: 0 | CUV16: 0 | CUW16: 0 | CUX16: 0 | CUY16: 0 | CUZ16: 0 | CVA16: 0 | CVB16: 0 | CVC16: 0 | CVD16: 0 | CVE16: 0 | CVF16: 0 | CVG16: 0 | CVH16: 0 | CVI16: 0 | CVJ16: 0 | CVK16: 0 | CVL16: 0 | CVM16: 0 | CVN16: 0 | CVO16: 0 | CVP16: 0 | CVQ16: 0 | CVR16: 0 | CVS16: 0 | CVT16: 0 | CVU16: 0 | CVV16: 0 | CVW16: 0 | CVX16: 0 | CVY16: 0 | CVZ16: 0 | CWA16: =1.05*CWA6^1.4*((2*$N$5)/($N$5*$G$5))*IF($B$5=100,CWA9,CWA12)+CWA13+CWA14 -> 0 | CWB16: 0 | CWC16: 0 | CWD16: 0 | CWE16: 0 | CWF16: 0 | CWG16: 0 | CWH16: 0 | CWI16: 0 | CWJ16: 0 | CWK16: 0 | CWL16: 0 | CWM16: 0 | CWN16: 0 | CWO16: 0 | CWP16: 0 | CWQ16: 0 | CWR16: 0 | CWS16: 0 | CWT16: 0 | CWU16: 0 | CWV16: 0 | CWW16: 0 | CWX16: 0 | CWY16: 0 | CWZ16: 0 | CXA16: 0 | CXB16: 0 | CXC16: 0 | CXD16: 0 | CXE16: 0 | CXF16: 0 | CXG16: 0 | CXH16: 0 | CXI16: 0 | CXJ16: 0 | CXK16: 0 | CXL16: 0 | CXM16: 0 | CXN16: 0 | CXO16: 0 | CXP16: 0 | CXQ16: 0 | CXR16: 0 | CXS16: 0 | CXT16: 0 | CXU16: 0 | CXV16: 0 | CXW16: 0 | CXX16: 0 | CXY16: 0 | CXZ16: 0 | CYA16: 0 | CYB16: 0 | CYC16: 0 | CYD16: 0 | CYE16: 0 | CYF16: 0 | CYG16: 0 | CYH16: 0 | CYI16: 0 | CYJ16: 0 | CYK16: 0 | CYL16: 0 | CYM16: =1.05*CYM6^1.4*((2*$N$5)/($N$5*$G$5))*IF($B$5=100,CYM9,CYM12)+CYM13+CYM14 -> 0 | CYN16: 0 | CYO16: 0 | CYP16: 0 | CYQ16: 0 | CYR16: 0 | CYS16: 0 | CYT16: 0 | CYU16: 0 | CYV16: 0 | CYW16: 0 | CYX16: 0 | CYY16: 0 | CYZ16: 0 | CZA16: 0 | CZB16: 0 | CZC16: 0 | CZD16: 0 | CZE16: 0 | CZF16: 0 | CZG16: 0 | CZH16: 0 | CZI16: 0 | CZJ16: 0 | CZK16: 0 | CZL16: 0 | CZM16: 0 | CZN16: 0 | CZO16: 0 | CZP16: 0 | CZQ16: 0 | CZR16: 0 | CZS16: 0 | CZT16: 0 | CZU16: 0 | CZV16: 0 | CZW16: 0 | CZX16: 0 | CZY16: 0 | CZZ16: 0 | DAA16: 0 | DAB16: 0 | DAC16: 0 | DAD16: 0 | DAE16: 0 | DAF16: 0 | DAG16: 0 | DAH16: 0 | DAI16: 0 | DAJ16: 0 | DAK16: 0 | DAL16: 0 | DAM16: 0 | DAN16: 0 | DAO16: 0 | DAP16: 0 | DAQ16: 0 | DAR16: 0 | DAS16: 0 | DAT16: 0 | DAU16: 0 | DAV16: 0 | DAW16: 0 | DAX16: 0 | DAY16: =1.05*DAY6^1.4*((2*$N$5)/($N$5*$G$5))*IF($B$5=100,DAY9,DAY12)+DAY13+DAY14 -> 0 | DAZ16: 0 | DBA16: 0 | DBB16: 0 | DBC16: 0 | DBD16: 0 | DBE16: 0 | DBF16: 0 | DBG16: 0 | DBH16: 0 | DBI16: 0 | DBJ16: 0 | DBK16: 0 | DBL16: 0 | DBM16: 0 | DBN16: 0 | DBO16: 0 | DBP16: 0 | DBQ16: 0 | DBR16: 0 | DBS16: 0 | DBT16: 0 | DBU16: 0 | DBV16: 0 | DBW16: 0 | DBX16: 0 | DBY16: 0 | DBZ16: 0 | DCA16: 0 | DCB16: 0 | DCC16: 0 | DCD16: 0 | DCE16: 0 | DCF16: 0 | DCG16: 0 | DCH16: 0 | DCI16: 0 | DCJ16: 0 | DCK16: 0 | DCL16: 0 | DCM16: 0 | DCN16: 0 | DCO16: 0 | DCP16: 0 | DCQ16: 0 | DCR16: 0 | DCS16: 0 | DCT16: 0 | DCU16: 0 | DCV16: 0 | DCW16: 0 | DCX16: 0 | DCY16: 0 | DCZ16: 0 | DDA16: 0 | DDB16: 0 | DDC16: 0 | DDD16: 0 | DDE16: 0 | DDF16: 0 | DDG16: 0 | DDH16: 0 | DDI16: 0 | DDJ16: 0 | DDK16: =1.05*DDK6^1.4*((2*$N$5)/($N$5*$G$5))*IF($B$5=100,DDK9,DDK12)+DDK13+DDK14 -> 0 | DDL16: 0 | DDM16: 0 | DDN16: 0 | DDO16: 0 | DDP16: 0 | DDQ16: 0 | DDR16: 0 | DDS16: 0 | DDT16: 0 | DDU16: 0 | DDV16: 0 | DDW16: 0 | DDX16: 0 | DDY16: 0 | DDZ16: 0 | DEA16: 0 | DEB16: 0 | DEC16: 0 | DED16: 0 | DEE16: 0 | DEF16: 0 | DEG16: 0 | DEH16: 0 | DEI16: 0 | DEJ16: 0 | DEK16: 0 | DEL16: 0 | DEM16: 0 | DEN16: 0 | DEO16: 0 | DEP16: 0 | DEQ16: 0 | DER16: 0 | DES16: 0 | DET16: 0 | DEU16: 0 | DEV16: 0 | DEW16: 0 | DEX16: 0 | DEY16: 0 | DEZ16: 0 | DFA16: 0 | DFB16: 0 | DFC16: 0 | DFD16: 0 | DFE16: 0 | DFF16: 0 | DFG16: 0 | DFH16: 0 | DFI16: 0 | DFJ16: 0 | DFK16: 0 | DFL16: 0 | DFM16: 0 | DFN16: 0 | DFO16: 0 | DFP16: 0 | DFQ16: 0 | DFR16: 0 | DFS16: 0 | DFT16: 0 | DFU16: 0 | DFV16: 0 | DFW16: =1.05*DFW6^1.4*((2*$N$5)/($N$5*$G$5))*IF($B$5=100,DFW9,DFW12)+DFW13+DFW14 -> 0 | DFX16: 0 | DFY16: 0 | DFZ16: 0 | DGA16: 0 | DGB16: 0 | DGC16: 0 | DGD16: 0 | DGE16: 0 | DGF16: 0 | DGG16: 0 | DGH16: 0 | DGI16: 0 | DGJ16: 0 | DGK16: 0 | DGL16: 0 | DGM16: 0 | DGN16: 0 | DGO16: 0 | DGP16: 0 | DGQ16: 0 | DGR16: 0 | DGS16: 0 | DGT16: 0 | DGU16: 0 | DGV16: 0 | DGW16: 0 | DGX16: 0 | DGY16: 0 | DGZ16: 0 | DHA16: 0 | DHB16: 0 | DHC16: 0 | DHD16: 0 | DHE16: 0 | DHF16: 0 | DHG16: 0 | DHH16: 0 | DHI16: 0 | DHJ16: 0 | DHK16: 0 | DHL16: 0 | DHM16: 0 | DHN16: 0 | DHO16: 0 | DHP16: 0 | DHQ16: 0 | DHR16: 0 | DHS16: 0 | DHT16: 0 | DHU16: 0 | DHV16: 0 | DHW16: 0 | DHX16: 0 | DHY16: 0 | DHZ16: 0 | DIA16: 0 | DIB16: 0 | DIC16: 0 | DID16: 0 | DIE16: 0 | DIF16: 0 | DIG16: 0 | DIH16: 0 | DII16: =1.05*DII6^1.4*((2*$N$5)/($N$5*$G$5))*IF($B$5=100,DII9,DII12)+DII13+DII14 -> 0 | DIJ16: 0 | DIK16: 0 | DIL16: 0 | DIM16: 0 | DIN16: 0 | DIO16: 0 | DIP16: 0 | DIQ16: 0 | DIR16: 0 | DIS16: 0 | DIT16: 0 | DIU16: 0 | DIV16: 0 | DIW16: 0 | DIX16: 0 | DIY16: 0 | DIZ16: 0 | DJA16: 0 | DJB16: 0 | DJC16: 0 | DJD16: 0 | DJE16: 0 | DJF16: 0 | DJG16: 0 | DJH16: 0 | DJI16: 0 | DJJ16: 0 | DJK16: 0 | DJL16: 0 | DJM16: 0 | DJN16: 0 | DJO16: 0 | DJP16: 0 | DJQ16: 0 | DJR16: 0 | DJS16: 0 | DJT16: 0 | DJU16: 0 | DJV16: 0 | DJW16: 0 | DJX16: 0 | DJY16: 0 | DJZ16: 0 | DKA16: 0 | DKB16: 0 | DKC16: 0 | DKD16: 0 | DKE16: 0 | DKF16: 0 | DKG16: 0 | DKH16: 0 | DKI16: 0 | DKJ16: 0 | DKK16: 0 | DKL16: 0 | DKM16: 0 | DKN16: 0 | DKO16: 0 | DKP16: 0 | DKQ16: 0 | DKR16: 0 | DKS16: 0 | DKT16: 0 | DKU16: =1.05*DKU6^1.4*((2*$N$5)/($N$5*$G$5))*IF($B$5=100,DKU9,DKU12)+DKU13+DKU14 -> 0 | DKV16: 0 | DKW16: 0 | DKX16: 0 | DKY16: 0 | DKZ16: 0 | DLA16: 0 | DLB16: 0 | DLC16: 0 | DLD16: 0 | DLE16: 0 | DLF16: 0 | DLG16: 0 | DLH16: 0 | DLI16: 0 | DLJ16: 0 | DLK16: 0 | DLL16: 0 | DLM16: 0 | DLN16: 0 | DLO16: 0 | DLP16: 0 | DLQ16: 0 | DLR16: 0 | DLS16: 0 | DLT16: 0 | DLU16: 0 | DLV16: 0 | DLW16: 0 | DLX16: 0 | DLY16: 0 | DLZ16: 0 | DMA16: 0 | DMB16: 0 | DMC16: 0 | DMD16: 0 | DME16: 0 | DMF16: 0 | DMG16: 0 | DMH16: 0 | DMI16: 0 | DMJ16: 0 | DMK16: 0 | DML16: 0 | DMM16: 0 | DMN16: 0 | DMO16: 0 | DMP16: 0 | DMQ16: 0 | DMR16: 0 | DMS16: 0 | DMT16: 0 | DMU16: 0 | DMV16: 0 | DMW16: 0 | DMX16: 0 | DMY16: 0 | DMZ16: 0 | DNA16: 0 | DNB16: 0 | DNC16: 0 | DND16: 0 | DNE16: 0 | DNF16: 0 | DNG16: =1.05*DNG6^1.4*((2*$N$5)/($N$5*$G$5))*IF($B$5=100,DNG9,DNG12)+DNG13+DNG14 -> 0 | DNH16: 0 | DNI16: 0 | DNJ16: 0 | DNK16: 0 | DNL16: 0 | DNM16: 0 | DNN16: 0 | DNO16: 0 | DNP16: 0 | DNQ16: 0 | DNR16: 0 | DNS16: 0 | DNT16: 0 | DNU16: 0 | DNV16: 0 | DNW16: 0 | DNX16: 0 | DNY16: 0 | DNZ16: 0 | DOA16: 0 | DOB16: 0 | DOC16: 0 | DOD16: 0 | DOE16: 0 | DOF16: 0 | DOG16: 0 | DOH16: 0 | DOI16: 0 | DOJ16: 0 | DOK16: 0 | DOL16: 0 | DOM16: 0 | DON16: 0 | DOO16: 0 | DOP16: 0 | DOQ16: 0 | DOR16: 0 | DOS16: 0 | DOT16: 0 | DOU16: 0 | DOV16: 0 | DOW16: 0 | DOX16: 0 | DOY16: 0 | DOZ16: 0 | DPA16: 0 | DPB16: 0 | DPC16: 0 | DPD16: 0 | DPE16: 0 | DPF16: 0 | DPG16: 0 | DPH16: 0 | DPI16: 0 | DPJ16: 0 | DPK16: 0 | DPL16: 0 | DPM16: 0 | DPN16: 0 | DPO16: 0 | DPP16: 0 | DPQ16: 0 | DPR16: 0 | DPS16: =1.05*DPS6^1.4*((2*$N$5)/($N$5*$G$5))*IF($B$5=100,DPS9,DPS12)+DPS13+DPS14 -> 0 | DPT16: 0 | DPU16: 0 | DPV16: 0 | DPW16: 0 | DPX16: 0 | DPY16: 0 | DPZ16: 0 | DQA16: 0 | DQB16: 0 | DQC16: 0 | DQD16: 0 | DQE16: 0 | DQF16: 0 | DQG16: 0 | DQH16: 0 | DQI16: 0 | DQJ16: 0 | DQK16: 0 | DQL16: 0 | DQM16: 0 | DQN16: 0 | DQO16: 0 | DQP16: 0 | DQQ16: 0 | DQR16: 0 | DQS16: 0 | DQT16: 0 | DQU16: 0 | DQV16: 0 | DQW16: 0 | DQX16: 0 | DQY16: 0 | DQZ16: 0 | DRA16: 0 | DRB16: 0 | DRC16: 0 | DRD16: 0 | DRE16: 0 | DRF16: 0 | DRG16: 0 | DRH16: 0 | DRI16: 0 | DRJ16: 0 | DRK16: 0 | DRL16: 0 | DRM16: 0 | DRN16: 0 | DRO16: 0 | DRP16: 0 | DRQ16: 0 | DRR16: 0 | DRS16: 0 | DRT16: 0 | DRU16: 0 | DRV16: 0 | DRW16: 0 | DRX16: 0 | DRY16: 0 | DRZ16: 0 | DSA16: 0 | DSB16: 0 | DSC16: 0 | DSD16: 0 | DSE16: =1.05*DSE6^1.4*((2*$N$5)/($N$5*$G$5))*IF($B$5=100,DSE9,DSE12)+DSE13+DSE14 -> 0 | DSF16: 0 | DSG16: 0 | DSH16: 0 | DSI16: 0 | DSJ16: 0 | DSK16: 0 | DSL16: 0 | DSM16: 0 | DSN16: 0 | DSO16: 0 | DSP16: 0 | DSQ16: 0 | DSR16: 0 | DSS16: 0 | DST16: 0 | DSU16: 0 | DSV16: 0 | DSW16: 0 | DSX16: 0 | DSY16: 0 | DSZ16: 0 | DTA16: 0 | DTB16: 0 | DTC16: 0 | DTD16: 0 | DTE16: 0 | DTF16: 0 | DTG16: 0 | DTH16: 0 | DTI16: 0 | DTJ16: 0 | DTK16: 0 | DTL16: 0 | DTM16: 0 | DTN16: 0 | DTO16: 0 | DTP16: 0 | DTQ16: 0 | DTR16: 0 | DTS16: 0 | DTT16: 0 | DTU16: 0 | DTV16: 0 | DTW16: 0 | DTX16: 0 | DTY16: 0 | DTZ16: 0 | DUA16: 0 | DUB16: 0 | DUC16: 0 | DUD16: 0 | DUE16: 0 | DUF16: 0 | DUG16: 0 | DUH16: 0 | DUI16: 0 | DUJ16: 0 | DUK16: 0 | DUL16: 0 | DUM16: 0 | DUN16: 0 | DUO16: 0 | DUP16: 0 | DUQ16: =1.05*DUQ6^1.4*((2*$N$5)/($N$5*$G$5))*IF($B$5=100,DUQ9,DUQ12)+DUQ13+DUQ14 -> 0 | DUR16: 0 | DUS16: 0 | DUT16: 0 | DUU16: 0 | DUV16: 0 | DUW16: 0 | DUX16: 0 | DUY16: 0 | DUZ16: 0 | DVA16: 0 | DVB16: 0 | DVC16: 0 | DVD16: 0 | DVE16: 0 | DVF16: 0 | DVG16: 0 | DVH16: 0 | DVI16: 0 | DVJ16: 0 | DVK16: 0 | DVL16: 0 | DVM16: 0 | DVN16: 0 | DVO16: 0 | DVP16: 0 | DVQ16: 0 | DVR16: 0 | DVS16: 0 | DVT16: 0 | DVU16: 0 | DVV16: 0 | DVW16: 0 | DVX16: 0 | DVY16: 0 | DVZ16: 0 | DWA16: 0 | DWB16: 0 | DWC16: 0 | DWD16: 0 | DWE16: 0 | DWF16: 0 | DWG16: 0 | DWH16: 0 | DWI16: 0 | DWJ16: 0 | DWK16: 0 | DWL16: 0 | DWM16: 0 | DWN16: 0 | DWO16: 0 | DWP16: 0 | DWQ16: 0 | DWR16: 0 | DWS16: 0 | DWT16: 0 | DWU16: 0 | DWV16: 0 | DWW16: 0 | DWX16: 0 | DWY16: 0 | DWZ16: 0 | DXA16: 0 | DXB16: 0 | DXC16: =1.05*DXC6^1.4*((2*$N$5)/($N$5*$G$5))*IF($B$5=100,DXC9,DXC12)+DXC13+DXC14 -> 0 | DXD16: 0 | DXE16: 0 | DXF16: 0 | DXG16: 0 | DXH16: 0 | DXI16: 0 | DXJ16: 0 | DXK16: 0 | DXL16: 0 | DXM16: 0 | DXN16: 0 | DXO16: 0 | DXP16: 0 | DXQ16: 0 | DXR16: 0 | DXS16: 0 | DXT16: 0 | DXU16: 0 | DXV16: 0 | DXW16: 0 | DXX16: 0 | DXY16: 0 | DXZ16: 0 | DYA16: 0 | DYB16: 0 | DYC16: 0 | DYD16: 0 | DYE16: 0 | DYF16: 0 | DYG16: 0 | DYH16: 0 | DYI16: 0 | DYJ16: 0 | DYK16: 0 | DYL16: 0 | DYM16: 0 | DYN16: 0 | DYO16: 0 | DYP16: 0 | DYQ16: 0 | DYR16: 0 | DYS16: 0 | DYT16: 0 | DYU16: 0 | DYV16: 0 | DYW16: 0 | DYX16: 0 | DYY16: 0 | DYZ16: 0 | DZA16: 0 | DZB16: 0 | DZC16: 0 | DZD16: 0 | DZE16: 0 | DZF16: 0 | DZG16: 0 | DZH16: 0 | DZI16: 0 | DZJ16: 0 | DZK16: 0 | DZL16: 0 | DZM16: 0 | DZN16: 0 | DZO16: =1.05*DZO6^1.4*((2*$N$5)/($N$5*$G$5))*IF($B$5=100,DZO9,DZO12)+DZO13+DZO14 -> 0 | DZP16: 0 | DZQ16: 0 | DZR16: 0 | DZS16: 0 | DZT16: 0 | DZU16: 0 | DZV16: 0 | DZW16: 0 | DZX16: 0 | DZY16: 0 | DZZ16: 0 | EAA16: 0 | EAB16: 0 | EAC16: 0 | EAD16: 0 | EAE16: 0 | EAF16: 0 | EAG16: 0 | EAH16: 0 | EAI16: 0 | EAJ16: 0 | EAK16: 0 | EAL16: 0 | EAM16: 0 | EAN16: 0 | EAO16: 0 | EAP16: 0 | EAQ16: 0 | EAR16: 0 | EAS16: 0 | EAT16: 0 | EAU16: 0 | EAV16: 0 | EAW16: 0 | EAX16: 0 | EAY16: 0 | EAZ16: 0 | EBA16: 0 | EBB16: 0 | EBC16: 0 | EBD16: 0 | EBE16: 0 | EBF16: 0 | EBG16: 0 | EBH16: 0 | EBI16: 0 | EBJ16: 0 | EBK16: 0 | EBL16: 0 | EBM16: 0 | EBN16: 0 | EBO16: 0 | EBP16: 0 | EBQ16: 0 | EBR16: 0 | EBS16: 0 | EBT16: 0 | EBU16: 0 | EBV16: 0 | EBW16: 0 | EBX16: 0 | EBY16: 0 | EBZ16: 0 | ECA16: =1.05*ECA6^1.4*((2*$N$5)/($N$5*$G$5))*IF($B$5=100,ECA9,ECA12)+ECA13+ECA14 -> 0 | ECB16: 0 | ECC16: 0 | ECD16: 0 | ECE16: 0 | ECF16: 0 | ECG16: 0 | ECH16: 0 | ECI16: 0 | ECJ16: 0 | ECK16: 0 | ECL16: 0 | ECM16: 0 | ECN16: 0 | ECO16: 0 | ECP16: 0 | ECQ16: 0 | ECR16: 0 | ECS16: 0 | ECT16: 0 | ECU16: 0 | ECV16: 0 | ECW16: 0 | ECX16: 0 | ECY16: 0 | ECZ16: 0 | EDA16: 0 | EDB16: 0 | EDC16: 0 | EDD16: 0 | EDE16: 0 | EDF16: 0 | EDG16: 0 | EDH16: 0 | EDI16: 0 | EDJ16: 0 | EDK16: 0 | EDL16: 0 | EDM16: 0 | EDN16: 0 | EDO16: 0 | EDP16: 0 | EDQ16: 0 | EDR16: 0 | EDS16: 0 | EDT16: 0 | EDU16: 0 | EDV16: 0 | EDW16: 0 | EDX16: 0 | EDY16: 0 | EDZ16: 0 | EEA16: 0 | EEB16: 0 | EEC16: 0 | EED16: 0 | EEE16: 0 | EEF16: 0 | EEG16: 0 | EEH16: 0 | EEI16: 0 | EEJ16: 0 | EEK16: 0 | EEL16: 0 | EEM16: =1.05*EEM6^1.4*((2*$N$5)/($N$5*$G$5))*IF($B$5=100,EEM9,EEM12)+EEM13+EEM14 -> 0 | EEN16: 0 | EEO16: 0 | EEP16: 0 | EEQ16: 0 | EER16: 0 | EES16: 0 | EET16: 0 | EEU16: 0 | EEV16: 0 | EEW16: 0 | EEX16: 0 | EEY16: 0 | EEZ16: 0 | EFA16: 0 | EFB16: 0 | EFC16: 0 | EFD16: 0 | EFE16: 0 | EFF16: 0 | EFG16: 0 | EFH16: 0 | EFI16: 0 | EFJ16: 0 | EFK16: 0 | EFL16: 0 | EFM16: 0 | EFN16: 0 | EFO16: 0 | EFP16: 0 | EFQ16: 0 | EFR16: 0 | EFS16: 0 | EFT16: 0 | EFU16: 0 | EFV16: 0 | EFW16: 0 | EFX16: 0 | EFY16: 0 | EFZ16: 0 | EGA16: 0 | EGB16: 0 | EGC16: 0 | EGD16: 0 | EGE16: 0 | EGF16: 0 | EGG16: 0 | EGH16: 0 | EGI16: 0 | EGJ16: 0 | EGK16: 0 | EGL16: 0 | EGM16: 0 | EGN16: 0 | EGO16: 0 | EGP16: 0 | EGQ16: 0 | EGR16: 0 | EGS16: 0 | EGT16: 0 | EGU16: 0 | EGV16: 0 | EGW16: 0 | EGX16: 0 | EGY16: =1.05*EGY6^1.4*((2*$N$5)/($N$5*$G$5))*IF($B$5=100,EGY9,EGY12)+EGY13+EGY14 -> 0 | EGZ16: 0 | EHA16: 0 | EHB16: 0 | EHC16: 0 | EHD16: 0 | EHE16: 0 | EHF16: 0 | EHG16: 0 | EHH16: 0 | EHI16: 0 | EHJ16: 0 | EHK16: 0 | EHL16: 0 | EHM16: 0 | EHN16: 0 | EHO16: 0 | EHP16: 0 | EHQ16: 0 | EHR16: 0 | EHS16: 0 | EHT16: 0 | EHU16: 0 | EHV16: 0 | EHW16: 0 | EHX16: 0 | EHY16: 0 | EHZ16: 0 | EIA16: 0 | EIB16: 0 | EIC16: 0 | EID16: 0 | EIE16: 0 | EIF16: 0 | EIG16: 0 | EIH16: 0 | EII16: 0 | EIJ16: 0 | EIK16: 0 | EIL16: 0 | EIM16: 0 | EIN16: 0 | EIO16: 0 | EIP16: 0 | EIQ16: 0 | EIR16: 0 | EIS16: 0 | EIT16: 0 | EIU16: 0 | EIV16: 0 | EIW16: 0 | EIX16: 0 | EIY16: 0 | EIZ16: 0 | EJA16: 0 | EJB16: 0 | EJC16: 0 | EJD16: 0 | EJE16: 0 | EJF16: 0 | EJG16: 0 | EJH16: 0 | EJI16: 0 | EJJ16: 0 | EJK16: =1.05*EJK6^1.4*((2*$N$5)/($N$5*$G$5))*IF($B$5=100,EJK9,EJK12)+EJK13+EJK14 -> 0 | EJL16: 0 | EJM16: 0 | EJN16: 0 | EJO16: 0 | EJP16: 0 | EJQ16: 0 | EJR16: 0 | EJS16: 0 | EJT16: 0 | EJU16: 0 | EJV16: 0 | EJW16: 0 | EJX16: 0 | EJY16: 0 | EJZ16: 0 | EKA16: 0 | EKB16: 0 | EKC16: 0 | EKD16: 0 | EKE16: 0 | EKF16: 0 | EKG16: 0 | EKH16: 0 | EKI16: 0 | EKJ16: 0 | EKK16: 0 | EKL16: 0 | EKM16: 0 | EKN16: 0 | EKO16: 0 | EKP16: 0 | EKQ16: 0 | EKR16: 0 | EKS16: 0 | EKT16: 0 | EKU16: 0 | EKV16: 0 | EKW16: 0 | EKX16: 0 | EKY16: 0 | EKZ16: 0 | ELA16: 0 | ELB16: 0 | ELC16: 0 | ELD16: 0 | ELE16: 0 | ELF16: 0 | ELG16: 0 | ELH16: 0 | ELI16: 0 | ELJ16: 0 | ELK16: 0 | ELL16: 0 | ELM16: 0 | ELN16: 0 | ELO16: 0 | ELP16: 0 | ELQ16: 0 | ELR16: 0 | ELS16: 0 | ELT16: 0 | ELU16: 0 | ELV16: 0 | ELW16: =1.05*ELW6^1.4*((2*$N$5)/($N$5*$G$5))*IF($B$5=100,ELW9,ELW12)+ELW13+ELW14 -> 0 | ELX16: 0 | ELY16: 0 | ELZ16: 0 | EMA16: 0 | EMB16: 0 | EMC16: 0 | EMD16: 0 | EME16: 0 | EMF16: 0 | EMG16: 0 | EMH16: 0 | EMI16: 0 | EMJ16: 0 | EMK16: 0 | EML16: 0 | EMM16: 0 | EMN16: 0 | EMO16: 0 | EMP16: 0 | EMQ16: 0 | EMR16: 0 | EMS16: 0 | EMT16: 0 | EMU16: 0 | EMV16: 0 | EMW16: 0 | EMX16: 0 | EMY16: 0 | EMZ16: 0 | ENA16: 0 | ENB16: 0 | ENC16: 0 | END16: 0 | ENE16: 0 | ENF16: 0 | ENG16: 0 | ENH16: 0 | ENI16: 0 | ENJ16: 0 | ENK16: 0 | ENL16: 0 | ENM16: 0 | ENN16: 0 | ENO16: 0 | ENP16: 0 | ENQ16: 0 | ENR16: 0 | ENS16: 0 | ENT16: 0 | ENU16: 0 | ENV16: 0 | ENW16: 0 | ENX16: 0 | ENY16: 0 | ENZ16: 0 | EOA16: 0 | EOB16: 0 | EOC16: 0 | EOD16: 0 | EOE16: 0 | EOF16: 0 | EOG16: 0 | EOH16: 0 | EOI16: =1.05*EOI6^1.4*((2*$N$5)/($N$5*$G$5))*IF($B$5=100,EOI9,EOI12)+EOI13+EOI14 -> 0 | EOJ16: 0 | EOK16: 0 | EOL16: 0 | EOM16: 0 | EON16: 0 | EOO16: 0 | EOP16: 0 | EOQ16: 0 | EOR16: 0 | EOS16: 0 | EOT16: 0 | EOU16: 0 | EOV16: 0 | EOW16: 0 | EOX16: 0 | EOY16: 0 | EOZ16: 0 | EPA16: 0 | EPB16: 0 | EPC16: 0 | EPD16: 0 | EPE16: 0 | EPF16: 0 | EPG16: 0 | EPH16: 0 | EPI16: 0 | EPJ16: 0 | EPK16: 0 | EPL16: 0 | EPM16: 0 | EPN16: 0 | EPO16: 0 | EPP16: 0 | EPQ16: 0 | EPR16: 0 | EPS16: 0 | EPT16: 0 | EPU16: 0 | EPV16: 0 | EPW16: 0 | EPX16: 0 | EPY16: 0 | EPZ16: 0 | EQA16: 0 | EQB16: 0 | EQC16: 0 | EQD16: 0 | EQE16: 0 | EQF16: 0 | EQG16: 0 | EQH16: 0 | EQI16: 0 | EQJ16: 0 | EQK16: 0 | EQL16: 0 | EQM16: 0 | EQN16: 0 | EQO16: 0 | EQP16: 0 | EQQ16: 0 | EQR16: 0 | EQS16: 0 | EQT16: 0 | EQU16: =1.05*EQU6^1.4*((2*$N$5)/($N$5*$G$5))*IF($B$5=100,EQU9,EQU12)+EQU13+EQU14 -> 0 | EQV16: 0 | EQW16: 0 | EQX16: 0 | EQY16: 0 | EQZ16: 0 | ERA16: 0 | ERB16: 0 | ERC16: 0 | ERD16: 0 | ERE16: 0 | ERF16: 0 | ERG16: 0 | ERH16: 0 | ERI16: 0 | ERJ16: 0 | ERK16: 0 | ERL16: 0 | ERM16: 0 | ERN16: 0 | ERO16: 0 | ERP16: 0 | ERQ16: 0 | ERR16: 0 | ERS16: 0 | ERT16: 0 | ERU16: 0 | ERV16: 0 | ERW16: 0 | ERX16: 0 | ERY16: 0 | ERZ16: 0 | ESA16: 0 | ESB16: 0 | ESC16: 0 | ESD16: 0 | ESE16: 0 | ESF16: 0 | ESG16: 0 | ESH16: 0 | ESI16: 0 | ESJ16: 0 | ESK16: 0 | ESL16: 0 | ESM16: 0 | ESN16: 0 | ESO16: 0 | ESP16: 0 | ESQ16: 0 | ESR16: 0 | ESS16: 0 | EST16: 0 | ESU16: 0 | ESV16: 0 | ESW16: 0 | ESX16: 0 | ESY16: 0 | ESZ16: 0 | ETA16: 0 | ETB16: 0 | ETC16: 0 | ETD16: 0 | ETE16: 0 | ETF16: 0 | ETG16: =1.05*ETG6^1.4*((2*$N$5)/($N$5*$G$5))*IF($B$5=100,ETG9,ETG12)+ETG13+ETG14 -> 0 | ETH16: 0 | ETI16: 0 | ETJ16: 0 | ETK16: 0 | ETL16: 0 | ETM16: 0 | ETN16: 0 | ETO16: 0 | ETP16: 0 | ETQ16: 0 | ETR16: 0 | ETS16: 0 | ETT16: 0 | ETU16: 0 | ETV16: 0 | ETW16: 0 | ETX16: 0 | ETY16: 0 | ETZ16: 0 | EUA16: 0 | EUB16: 0 | EUC16: 0 | EUD16: 0 | EUE16: 0 | EUF16: 0 | EUG16: 0 | EUH16: 0 | EUI16: 0 | EUJ16: 0 | EUK16: 0 | EUL16: 0 | EUM16: 0 | EUN16: 0 | EUO16: 0 | EUP16: 0 | EUQ16: 0 | EUR16: 0 | EUS16: 0 | EUT16: 0 | EUU16: 0 | EUV16: 0 | EUW16: 0 | EUX16: 0 | EUY16: 0 | EUZ16: 0 | EVA16: 0 | EVB16: 0 | EVC16: 0 | EVD16: 0 | EVE16: 0 | EVF16: 0 | EVG16: 0 | EVH16: 0 | EVI16: 0 | EVJ16: 0 | EVK16: 0 | EVL16: 0 | EVM16: 0 | EVN16: 0 | EVO16: 0 | EVP16: 0 | EVQ16: 0 | EVR16: 0 | EVS16: =1.05*EVS6^1.4*((2*$N$5)/($N$5*$G$5))*IF($B$5=100,EVS9,EVS12)+EVS13+EVS14 -> 0 | EVT16: 0 | EVU16: 0 | EVV16: 0 | EVW16: 0 | EVX16: 0 | EVY16: 0 | EVZ16: 0 | EWA16: 0 | EWB16: 0 | EWC16: 0 | EWD16: 0 | EWE16: 0 | EWF16: 0 | EWG16: 0 | EWH16: 0 | EWI16: 0 | EWJ16: 0 | EWK16: 0 | EWL16: 0 | EWM16: 0 | EWN16: 0 | EWO16: 0 | EWP16: 0 | EWQ16: 0 | EWR16: 0 | EWS16: 0 | EWT16: 0 | EWU16: 0 | EWV16: 0 | EWW16: 0 | EWX16: 0 | EWY16: 0 | EWZ16: 0 | EXA16: 0 | EXB16: 0 | EXC16: 0 | EXD16: 0 | EXE16: 0 | EXF16: 0 | EXG16: 0 | EXH16: 0 | EXI16: 0 | EXJ16: 0 | EXK16: 0 | EXL16: 0 | EXM16: 0 | EXN16: 0 | EXO16: 0 | EXP16: 0 | EXQ16: 0 | EXR16: 0 | EXS16: 0 | EXT16: 0 | EXU16: 0 | EXV16: 0 | EXW16: 0 | EXX16: 0 | EXY16: 0 | EXZ16: 0 | EYA16: 0 | EYB16: 0 | EYC16: 0 | EYD16: 0 | EYE16: =1.05*EYE6^1.4*((2*$N$5)/($N$5*$G$5))*IF($B$5=100,EYE9,EYE12)+EYE13+EYE14 -> 0 | EYF16: 0 | EYG16: 0 | EYH16: 0 | EYI16: 0 | EYJ16: 0 | EYK16: 0 | EYL16: 0 | EYM16: 0 | EYN16: 0 | EYO16: 0 | EYP16: 0 | EYQ16: 0 | EYR16: 0 | EYS16: 0 | EYT16: 0 | EYU16: 0 | EYV16: 0 | EYW16: 0 | EYX16: 0 | EYY16: 0 | EYZ16: 0 | EZA16: 0 | EZB16: 0 | EZC16: 0 | EZD16: 0 | EZE16: 0 | EZF16: 0 | EZG16: 0 | EZH16: 0 | EZI16: 0 | EZJ16: 0 | EZK16: 0 | EZL16: 0 | EZM16: 0 | EZN16: 0 | EZO16: 0 | EZP16: 0 | EZQ16: 0 | EZR16: 0 | EZS16: 0 | EZT16: 0 | EZU16: 0 | EZV16: 0 | EZW16: 0 | EZX16: 0 | EZY16: 0 | EZZ16: 0 | FAA16: 0 | FAB16: 0 | FAC16: 0 | FAD16: 0 | FAE16: 0 | FAF16: 0 | FAG16: 0 | FAH16: 0 | FAI16: 0 | FAJ16: 0 | FAK16: 0 | FAL16: 0 | FAM16: 0 | FAN16: 0 | FAO16: 0 | FAP16: 0 | FAQ16: =1.05*FAQ6^1.4*((2*$N$5)/($N$5*$G$5))*IF($B$5=100,FAQ9,FAQ12)+FAQ13+FAQ14 -> 0 | FAR16: 0 | FAS16: 0 | FAT16: 0 | FAU16: 0 | FAV16: 0 | FAW16: 0 | FAX16: 0 | FAY16: 0 | FAZ16: 0 | FBA16: 0 | FBB16: 0 | FBC16: 0 | FBD16: 0 | FBE16: 0 | FBF16: 0 | FBG16: 0 | FBH16: 0 | FBI16: 0 | FBJ16: 0 | FBK16: 0 | FBL16: 0 | FBM16: 0 | FBN16: 0 | FBO16: 0 | FBP16: 0 | FBQ16: 0 | FBR16: 0 | FBS16: 0 | FBT16: 0 | FBU16: 0 | FBV16: 0 | FBW16: 0 | FBX16: 0 | FBY16: 0 | FBZ16: 0 | FCA16: 0 | FCB16: 0 | FCC16: 0 | FCD16: 0 | FCE16: 0 | FCF16: 0 | FCG16: 0 | FCH16: 0 | FCI16: 0 | FCJ16: 0 | FCK16: 0 | FCL16: 0 | FCM16: 0 | FCN16: 0 | FCO16: 0 | FCP16: 0 | FCQ16: 0 | FCR16: 0 | FCS16: 0 | FCT16: 0 | FCU16: 0 | FCV16: 0 | FCW16: 0 | FCX16: 0 | FCY16: 0 | FCZ16: 0 | FDA16: 0 | FDB16: 0 | FDC16: =1.05*FDC6^1.4*((2*$N$5)/($N$5*$G$5))*IF($B$5=100,FDC9,FDC12)+FDC13+FDC14 -> 0 | FDD16: 0 | FDE16: 0 | FDF16: 0 | FDG16: 0 | FDH16: 0 | FDI16: 0 | FDJ16: 0 | FDK16: 0 | FDL16: 0 | FDM16: 0 | FDN16: 0 | FDO16: 0 | FDP16: 0 | FDQ16: 0 | FDR16: 0 | FDS16: 0 | FDT16: 0 | FDU16: 0 | FDV16: 0 | FDW16: 0 | FDX16: 0 | FDY16: 0 | FDZ16: 0 | FEA16: 0 | FEB16: 0 | FEC16: 0 | FED16: 0 | FEE16: 0 | FEF16: 0 | FEG16: 0 | FEH16: 0 | FEI16: 0 | FEJ16: 0 | FEK16: 0 | FEL16: 0 | FEM16: 0 | FEN16: 0 | FEO16: 0 | FEP16: 0 | FEQ16: 0 | FER16: 0 | FES16: 0 | FET16: 0 | FEU16: 0 | FEV16: 0 | FEW16: 0 | FEX16: 0 | FEY16: 0 | FEZ16: 0 | FFA16: 0 | FFB16: 0 | FFC16: 0 | FFD16: 0 | FFE16: 0 | FFF16: 0 | FFG16: 0 | FFH16: 0 | FFI16: 0 | FFJ16: 0 | FFK16: 0 | FFL16: 0 | FFM16: 0 | FFN16: 0 | FFO16: =1.05*FFO6^1.4*((2*$N$5)/($N$5*$G$5))*IF($B$5=100,FFO9,FFO12)+FFO13+FFO14 -> 0 | FFP16: 0 | FFQ16: 0 | FFR16: 0 | FFS16: 0 | FFT16: 0 | FFU16: 0 | FFV16: 0 | FFW16: 0 | FFX16: 0 | FFY16: 0 | FFZ16: 0 | FGA16: 0 | FGB16: 0 | FGC16: 0 | FGD16: 0 | FGE16: 0 | FGF16: 0 | FGG16: 0 | FGH16: 0 | FGI16: 0 | FGJ16: 0 | FGK16: 0 | FGL16: 0 | FGM16: 0 | FGN16: 0 | FGO16: 0 | FGP16: 0 | FGQ16: 0 | FGR16: 0 | FGS16: 0 | FGT16: 0 | FGU16: 0 | FGV16: 0 | FGW16: 0 | FGX16: 0 | FGY16: 0 | FGZ16: 0 | FHA16: 0 | FHB16: 0 | FHC16: 0 | FHD16: 0 | FHE16: 0 | FHF16: 0 | FHG16: 0 | FHH16: 0 | FHI16: 0 | FHJ16: 0 | FHK16: 0 | FHL16: 0 | FHM16: 0 | FHN16: 0 | FHO16: 0 | FHP16: 0 | FHQ16: 0 | FHR16: 0 | FHS16: 0 | FHT16: 0 | FHU16: 0 | FHV16: 0 | FHW16: 0 | FHX16: 0 | FHY16: 0 | FHZ16: 0 | FIA16: =1.05*FIA6^1.4*((2*$N$5)/($N$5*$G$5))*IF($B$5=100,FIA9,FIA12)+FIA13+FIA14 -> 0 | FIB16: 0 | FIC16: 0 | FID16: 0 | FIE16: 0 | FIF16: 0 | FIG16: 0 | FIH16: 0 | FII16: 0 | FIJ16: 0 | FIK16: 0 | FIL16: 0 | FIM16: 0 | FIN16: 0 | FIO16: 0 | FIP16: 0 | FIQ16: 0 | FIR16: 0 | FIS16: 0 | FIT16: 0 | FIU16: 0 | FIV16: 0 | FIW16: 0 | FIX16: 0 | FIY16: 0 | FIZ16: 0 | FJA16: 0 | FJB16: 0 | FJC16: 0 | FJD16: 0 | FJE16: 0 | FJF16: 0 | FJG16: 0 | FJH16: 0 | FJI16: 0 | FJJ16: 0 | FJK16: 0 | FJL16: 0 | FJM16: 0 | FJN16: 0 | FJO16: 0 | FJP16: 0 | FJQ16: 0 | FJR16: 0 | FJS16: 0 | FJT16: 0 | FJU16: 0 | FJV16: 0 | FJW16: 0 | FJX16: 0 | FJY16: 0 | FJZ16: 0 | FKA16: 0 | FKB16: 0 | FKC16: 0 | FKD16: 0 | FKE16: 0 | FKF16: 0 | FKG16: 0 | FKH16: 0 | FKI16: 0 | FKJ16: 0 | FKK16: 0 | FKL16: 0 | FKM16: =1.05*FKM6^1.4*((2*$N$5)/($N$5*$G$5))*IF($B$5=100,FKM9,FKM12)+FKM13+FKM14 -> 0 | FKN16: 0 | FKO16: 0 | FKP16: 0 | FKQ16: 0 | FKR16: 0 | FKS16: 0 | FKT16: 0 | FKU16: 0 | FKV16: 0 | FKW16: 0 | FKX16: 0 | FKY16: 0 | FKZ16: 0 | FLA16: 0 | FLB16: 0 | FLC16: 0 | FLD16: 0 | FLE16: 0 | FLF16: 0 | FLG16: 0 | FLH16: 0 | FLI16: 0 | FLJ16: 0 | FLK16: 0 | FLL16: 0 | FLM16: 0 | FLN16: 0 | FLO16: 0 | FLP16: 0 | FLQ16: 0 | FLR16: 0 | FLS16: 0 | FLT16: 0 | FLU16: 0 | FLV16: 0 | FLW16: 0 | FLX16: 0 | FLY16: 0 | FLZ16: 0 | FMA16: 0 | FMB16: 0 | FMC16: 0 | FMD16: 0 | FME16: 0 | FMF16: 0 | FMG16: 0 | FMH16: 0 | FMI16: 0 | FMJ16: 0 | FMK16: 0 | FML16: 0 | FMM16: 0 | FMN16: 0 | FMO16: 0 | FMP16: 0 | FMQ16: 0 | FMR16: 0 | FMS16: 0 | FMT16: 0 | FMU16: 0 | FMV16: 0 | FMW16: 0 | FMX16: 0 | FMY16: =1.05*FMY6^1.4*((2*$N$5)/($N$5*$G$5))*IF($B$5=100,FMY9,FMY12)+FMY13+FMY14 -> 0 | FMZ16: 0 | FNA16: 0 | FNB16: 0 | FNC16: 0 | FND16: 0 | FNE16: 0 | FNF16: 0 | FNG16: 0 | FNH16: 0 | FNI16: 0 | FNJ16: 0 | FNK16: 0 | FNL16: 0 | FNM16: 0 | FNN16: 0 | FNO16: 0 | FNP16: 0 | FNQ16: 0 | FNR16: 0 | FNS16: 0 | FNT16: 0 | FNU16: 0 | FNV16: 0 | FNW16: 0 | FNX16: 0 | FNY16: 0 | FNZ16: 0 | FOA16: 0 | FOB16: 0 | FOC16: 0 | FOD16: 0 | FOE16: 0 | FOF16: 0 | FOG16: 0 | FOH16: 0 | FOI16: 0 | FOJ16: 0 | FOK16: 0 | FOL16: 0 | FOM16: 0 | FON16: 0 | FOO16: 0 | FOP16: 0 | FOQ16: 0 | FOR16: 0 | FOS16: 0 | FOT16: 0 | FOU16: 0 | FOV16: 0 | FOW16: 0 | FOX16: 0 | FOY16: 0 | FOZ16: 0 | FPA16: 0 | FPB16: 0 | FPC16: 0 | FPD16: 0 | FPE16: 0 | FPF16: 0 | FPG16: 0 | FPH16: 0 | FPI16: 0 | FPJ16: 0 | FPK16: =1.05*FPK6^1.4*((2*$N$5)/($N$5*$G$5))*IF($B$5=100,FPK9,FPK12)+FPK13+FPK14 -> 0 | FPL16: 0 | FPM16: 0 | FPN16: 0 | FPO16: 0 | FPP16: 0 | FPQ16: 0 | FPR16: 0 | FPS16: 0 | FPT16: 0 | FPU16: 0 | FPV16: 0 | FPW16: 0 | FPX16: 0 | FPY16: 0 | FPZ16: 0 | FQA16: 0 | FQB16: 0 | FQC16: 0 | FQD16: 0 | FQE16: 0 | FQF16: 0 | FQG16: 0 | FQH16: 0 | FQI16: 0 | FQJ16: 0 | FQK16: 0 | FQL16: 0 | FQM16: 0 | FQN16: 0 | FQO16: 0 | FQP16: 0 | FQQ16: 0 | FQR16: 0 | FQS16: 0 | FQT16: 0 | FQU16: 0 | FQV16: 0 | FQW16: 0 | FQX16: 0 | FQY16: 0 | FQZ16: 0 | FRA16: 0 | FRB16: 0 | FRC16: 0 | FRD16: 0 | FRE16: 0 | FRF16: 0 | FRG16: 0 | FRH16: 0 | FRI16: 0 | FRJ16: 0 | FRK16: 0 | FRL16: 0 | FRM16: 0 | FRN16: 0 | FRO16: 0 | FRP16: 0 | FRQ16: 0 | FRR16: 0 | FRS16: 0 | FRT16: 0 | FRU16: 0 | FRV16: 0 | FRW16: =1.05*FRW6^1.4*((2*$N$5)/($N$5*$G$5))*IF($B$5=100,FRW9,FRW12)+FRW13+FRW14 -> 0 | FRX16: 0 | FRY16: 0 | FRZ16: 0 | FSA16: 0 | FSB16: 0 | FSC16: 0 | FSD16: 0 | FSE16: 0 | FSF16: 0 | FSG16: 0 | FSH16: 0 | FSI16: 0 | FSJ16: 0 | FSK16: 0 | FSL16: 0 | FSM16: 0 | FSN16: 0 | FSO16: 0 | FSP16: 0 | FSQ16: 0 | FSR16: 0 | FSS16: 0 | FST16: 0 | FSU16: 0 | FSV16: 0 | FSW16: 0 | FSX16: 0 | FSY16: 0 | FSZ16: 0 | FTA16: 0 | FTB16: 0 | FTC16: 0 | FTD16: 0 | FTE16: 0 | FTF16: 0 | FTG16: 0 | FTH16: 0 | FTI16: 0 | FTJ16: 0 | FTK16: 0 | FTL16: 0 | FTM16: 0 | FTN16: 0 | FTO16: 0 | FTP16: 0 | FTQ16: 0 | FTR16: 0 | FTS16: 0 | FTT16: 0 | FTU16: 0 | FTV16: 0 | FTW16: 0 | FTX16: 0 | FTY16: 0 | FTZ16: 0 | FUA16: 0 | FUB16: 0 | FUC16: 0 | FUD16: 0 | FUE16: 0 | FUF16: 0 | FUG16: 0 | FUH16: 0 | FUI16: =1.05*FUI6^1.4*((2*$N$5)/($N$5*$G$5))*IF($B$5=100,FUI9,FUI12)+FUI13+FUI14 -> 0 | FUJ16: 0 | FUK16: 0 | FUL16: 0 | FUM16: 0 | FUN16: 0 | FUO16: 0 | FUP16: 0 | FUQ16: 0 | FUR16: 0 | FUS16: 0 | FUT16: 0 | FUU16: 0 | FUV16: 0 | FUW16: 0 | FUX16: 0 | FUY16: 0 | FUZ16: 0 | FVA16: 0 | FVB16: 0 | FVC16: 0 | FVD16: 0 | FVE16: 0 | FVF16: 0 | FVG16: 0 | FVH16: 0 | FVI16: 0 | FVJ16: 0 | FVK16: 0 | FVL16: 0 | FVM16: 0 | FVN16: 0 | FVO16: 0 | FVP16: 0 | FVQ16: 0 | FVR16: 0 | FVS16: 0 | FVT16: 0 | FVU16: 0 | FVV16: 0 | FVW16: 0 | FVX16: 0 | FVY16: 0 | FVZ16: 0 | FWA16: 0 | FWB16: 0 | FWC16: 0 | FWD16: 0 | FWE16: 0 | FWF16: 0 | FWG16: 0 | FWH16: 0 | FWI16: 0 | FWJ16: 0 | FWK16: 0 | FWL16: 0 | FWM16: 0 | FWN16: 0 | FWO16: 0 | FWP16: 0 | FWQ16: 0 | FWR16: 0 | FWS16: 0 | FWT16: 0 | FWU16: =1.05*FWU6^1.4*((2*$N$5)/($N$5*$G$5))*IF($B$5=100,FWU9,FWU12)+FWU13+FWU14 -> 0 | FWV16: 0 | FWW16: 0 | FWX16: 0 | FWY16: 0 | FWZ16: 0 | FXA16: 0 | FXB16: 0 | FXC16: 0 | FXD16: 0 | FXE16: 0 | FXF16: 0 | FXG16: 0 | FXH16: 0 | FXI16: 0 | FXJ16: 0 | FXK16: 0 | FXL16: 0 | FXM16: 0 | FXN16: 0 | FXO16: 0 | FXP16: 0 | FXQ16: 0 | FXR16: 0 | FXS16: 0 | FXT16: 0 | FXU16: 0 | FXV16: 0 | FXW16: 0 | FXX16: 0 | FXY16: 0 | FXZ16: 0 | FYA16: 0 | FYB16: 0 | FYC16: 0 | FYD16: 0 | FYE16: 0 | FYF16: 0 | FYG16: 0 | FYH16: 0 | FYI16: 0 | FYJ16: 0 | FYK16: 0 | FYL16: 0 | FYM16: 0 | FYN16: 0 | FYO16: 0 | FYP16: 0 | FYQ16: 0 | FYR16: 0 | FYS16: 0 | FYT16: 0 | FYU16: 0 | FYV16: 0 | FYW16: 0 | FYX16: 0 | FYY16: 0 | FYZ16: 0 | FZA16: 0 | FZB16: 0 | FZC16: 0 | FZD16: 0 | FZE16: 0 | FZF16: 0 | FZG16: =1.05*FZG6^1.4*((2*$N$5)/($N$5*$G$5))*IF($B$5=100,FZG9,FZG12)+FZG13+FZG14 -> 0 | FZH16: 0 | FZI16: 0 | FZJ16: 0 | FZK16: 0 | FZL16: 0 | FZM16: 0 | FZN16: 0 | FZO16: 0 | FZP16: 0 | FZQ16: 0 | FZR16: 0 | FZS16: 0 | FZT16: 0 | FZU16: 0 | FZV16: 0 | FZW16: 0 | FZX16: 0 | FZY16: 0 | FZZ16: 0 | GAA16: 0 | GAB16: 0 | GAC16: 0 | GAD16: 0 | GAE16: 0 | GAF16: 0 | GAG16: 0 | GAH16: 0 | GAI16: 0 | GAJ16: 0 | GAK16: 0 | GAL16: 0 | GAM16: 0 | GAN16: 0 | GAO16: 0 | GAP16: 0 | GAQ16: 0 | GAR16: 0 | GAS16: 0 | GAT16: 0 | GAU16: 0 | GAV16: 0 | GAW16: 0 | GAX16: 0 | GAY16: 0 | GAZ16: 0 | GBA16: 0 | GBB16: 0 | GBC16: 0 | GBD16: 0 | GBE16: 0 | GBF16: 0 | GBG16: 0 | GBH16: 0 | GBI16: 0 | GBJ16: 0 | GBK16: 0 | GBL16: 0 | GBM16: 0 | GBN16: 0 | GBO16: 0 | GBP16: 0 | GBQ16: 0 | GBR16: 0 | GBS16: =1.05*GBS6^1.4*((2*$N$5)/($N$5*$G$5))*IF($B$5=100,GBS9,GBS12)+GBS13+GBS14 -> 0 | GBT16: 0 | GBU16: 0 | GBV16: 0 | GBW16: 0 | GBX16: 0 | GBY16: 0 | GBZ16: 0 | GCA16: 0 | GCB16: 0 | GCC16: 0 | GCD16: 0 | GCE16: 0 | GCF16: 0 | GCG16: 0 | GCH16: 0 | GCI16: 0 | GCJ16: 0 | GCK16: 0 | GCL16: 0 | GCM16: 0 | GCN16: 0 | GCO16: 0 | GCP16: 0 | GCQ16: 0 | GCR16: 0 | GCS16: 0 | GCT16: 0 | GCU16: 0 | GCV16: 0 | GCW16: 0 | GCX16: 0 | GCY16: 0 | GCZ16: 0 | GDA16: 0 | GDB16: 0 | GDC16: 0 | GDD16: 0 | GDE16: 0 | GDF16: 0 | GDG16: 0 | GDH16: 0 | GDI16: 0 | GDJ16: 0 | GDK16: 0 | GDL16: 0 | GDM16: 0 | GDN16: 0 | GDO16: 0 | GDP16: 0 | GDQ16: 0 | GDR16: 0 | GDS16: 0 | GDT16: 0 | GDU16: 0 | GDV16: 0 | GDW16: 0 | GDX16: 0 | GDY16: 0 | GDZ16: 0 | GEA16: 0 | GEB16: 0 | GEC16: 0 | GED16: 0 | GEE16: =1.05*GEE6^1.4*((2*$N$5)/($N$5*$G$5))*IF($B$5=100,GEE9,GEE12)+GEE13+GEE14 -> 0 | GEF16: 0 | GEG16: 0 | GEH16: 0 | GEI16: 0 | GEJ16: 0 | GEK16: 0 | GEL16: 0 | GEM16: 0 | GEN16: 0 | GEO16: 0 | GEP16: 0 | GEQ16: 0 | GER16: 0 | GES16: 0 | GET16: 0 | GEU16: 0 | GEV16: 0 | GEW16: 0 | GEX16: 0 | GEY16: 0 | GEZ16: 0 | GFA16: 0 | GFB16: 0 | GFC16: 0 | GFD16: 0 | GFE16: 0 | GFF16: 0 | GFG16: 0 | GFH16: 0 | GFI16: 0 | GFJ16: 0 | GFK16: 0 | GFL16: 0 | GFM16: 0 | GFN16: 0 | GFO16: 0 | GFP16: 0 | GFQ16: 0 | GFR16: 0 | GFS16: 0 | GFT16: 0 | GFU16: 0 | GFV16: 0 | GFW16: 0 | GFX16: 0 | GFY16: 0 | GFZ16: 0 | GGA16: 0 | GGB16: 0 | GGC16: 0 | GGD16: 0 | GGE16: 0 | GGF16: 0 | GGG16: 0 | GGH16: 0 | GGI16: 0 | GGJ16: 0 | GGK16: 0 | GGL16: 0 | GGM16: 0 | GGN16: 0 | GGO16: 0 | GGP16: 0 | GGQ16: =1.05*GGQ6^1.4*((2*$N$5)/($N$5*$G$5))*IF($B$5=100,GGQ9,GGQ12)+GGQ13+GGQ14 -> 0 | GGR16: 0 | GGS16: 0 | GGT16: 0 | GGU16: 0 | GGV16: 0 | GGW16: 0 | GGX16: 0 | GGY16: 0 | GGZ16: 0 | GHA16: 0 | GHB16: 0 | GHC16: 0 | GHD16: 0 | GHE16: 0 | GHF16: 0 | GHG16: 0 | GHH16: 0 | GHI16: 0 | GHJ16: 0 | GHK16: 0 | GHL16: 0 | GHM16: 0 | GHN16: 0 | GHO16: 0 | GHP16: 0 | GHQ16: 0 | GHR16: 0 | GHS16: 0 | GHT16: 0 | GHU16: 0 | GHV16: 0 | GHW16: 0 | GHX16: 0 | GHY16: 0 | GHZ16: 0 | GIA16: 0 | GIB16: 0 | GIC16: 0 | GID16: 0 | GIE16: 0 | GIF16: 0 | GIG16: 0 | GIH16: 0 | GII16: 0 | GIJ16: 0 | GIK16: 0 | GIL16: 0 | GIM16: 0 | GIN16: 0 | GIO16: 0 | GIP16: 0 | GIQ16: 0 | GIR16: 0 | GIS16: 0 | GIT16: 0 | GIU16: 0 | GIV16: 0 | GIW16: 0 | GIX16: 0 | GIY16: 0 | GIZ16: 0 | GJA16: 0 | GJB16: 0 | GJC16: =1.05*GJC6^1.4*((2*$N$5)/($N$5*$G$5))*IF($B$5=100,GJC9,GJC12)+GJC13+GJC14 -> 0 | GJD16: 0 | GJE16: 0 | GJF16: 0 | GJG16: 0 | GJH16: 0 | GJI16: 0 | GJJ16: 0 | GJK16: 0 | GJL16: 0 | GJM16: 0 | GJN16: 0 | GJO16: 0 | GJP16: 0 | GJQ16: 0 | GJR16: 0 | GJS16: 0 | GJT16: 0 | GJU16: 0 | GJV16: 0 | GJW16: 0 | GJX16: 0 | GJY16: 0 | GJZ16: 0 | GKA16: 0 | GKB16: 0 | GKC16: 0 | GKD16: 0 | GKE16: 0 | GKF16: 0 | GKG16: 0 | GKH16: 0 | GKI16: 0 | GKJ16: 0 | GKK16: 0 | GKL16: 0 | GKM16: 0 | GKN16: 0 | GKO16: 0 | GKP16: 0 | GKQ16: 0 | GKR16: 0 | GKS16: 0 | GKT16: 0 | GKU16: 0 | GKV16: 0 | GKW16: 0 | GKX16: 0 | GKY16: 0 | GKZ16: 0 | GLA16: 0 | GLB16: 0 | GLC16: 0 | GLD16: 0 | GLE16: 0 | GLF16: 0 | GLG16: 0 | GLH16: 0 | GLI16: 0 | GLJ16: 0 | GLK16: 0 | GLL16: 0 | GLM16: 0 | GLN16: 0 | GLO16: =1.05*GLO6^1.4*((2*$N$5)/($N$5*$G$5))*IF($B$5=100,GLO9,GLO12)+GLO13+GLO14 -> 0 | GLP16: 0 | GLQ16: 0 | GLR16: 0 | GLS16: 0 | GLT16: 0 | GLU16: 0 | GLV16: 0 | GLW16: 0 | GLX16: 0 | GLY16: 0 | GLZ16: 0 | GMA16: 0 | GMB16: 0 | GMC16: 0 | GMD16: 0 | GME16: 0 | GMF16: 0 | GMG16: 0 | GMH16: 0 | GMI16: 0 | GMJ16: 0 | GMK16: 0 | GML16: 0 | GMM16: 0 | GMN16: 0 | GMO16: 0 | GMP16: 0 | GMQ16: 0 | GMR16: 0 | GMS16: 0 | GMT16: 0 | GMU16: 0 | GMV16: 0 | GMW16: 0 | GMX16: 0 | GMY16: 0 | GMZ16: 0 | GNA16: 0 | GNB16: 0 | GNC16: 0 | GND16: 0 | GNE16: 0 | GNF16: 0 | GNG16: 0 | GNH16: 0 | GNI16: 0 | GNJ16: 0 | GNK16: 0 | GNL16: 0 | GNM16: 0 | GNN16: 0 | GNO16: 0 | GNP16: 0 | GNQ16: 0 | GNR16: 0 | GNS16: 0 | GNT16: 0 | GNU16: 0 | GNV16: 0 | GNW16: 0 | GNX16: 0 | GNY16: 0 | GNZ16: 0 | GOA16: =1.05*GOA6^1.4*((2*$N$5)/($N$5*$G$5))*IF($B$5=100,GOA9,GOA12)+GOA13+GOA14 -> 0 | GOB16: 0 | GOC16: 0 | GOD16: 0 | GOE16: 0 | GOF16: 0 | GOG16: 0 | GOH16: 0 | GOI16: 0 | GOJ16: 0 | GOK16: 0 | GOL16: 0 | GOM16: 0 | GON16: 0 | GOO16: 0 | GOP16: 0 | GOQ16: 0 | GOR16: 0 | GOS16: 0 | GOT16: 0 | GOU16: 0 | GOV16: 0 | GOW16: 0 | GOX16: 0 | GOY16: 0 | GOZ16: 0 | GPA16: 0 | GPB16: 0 | GPC16: 0 | GPD16: 0 | GPE16: 0 | GPF16: 0 | GPG16: 0 | GPH16: 0 | GPI16: 0 | GPJ16: 0 | GPK16: 0 | GPL16: 0 | GPM16: 0 | GPN16: 0 | GPO16: 0 | GPP16: 0 | GPQ16: 0 | GPR16: 0 | GPS16: 0 | GPT16: 0 | GPU16: 0 | GPV16: 0 | GPW16: 0 | GPX16: 0 | GPY16: 0 | GPZ16: 0 | GQA16: 0 | GQB16: 0 | GQC16: 0 | GQD16: 0 | GQE16: 0 | GQF16: 0 | GQG16: 0 | GQH16: 0 | GQI16: 0 | GQJ16: 0 | GQK16: 0 | GQL16: 0 | GQM16: =1.05*GQM6^1.4*((2*$N$5)/($N$5*$G$5))*IF($B$5=100,GQM9,GQM12)+GQM13+GQM14 -> 0 | GQN16: 0 | GQO16: 0 | GQP16: 0 | GQQ16: 0 | GQR16: 0 | GQS16: 0 | GQT16: 0 | GQU16: 0 | GQV16: 0 | GQW16: 0 | GQX16: 0 | GQY16: 0 | GQZ16: 0 | GRA16: 0 | GRB16: 0 | GRC16: 0 | GRD16: 0 | GRE16: 0 | GRF16: 0 | GRG16: 0 | GRH16: 0 | GRI16: 0 | GRJ16: 0 | GRK16: 0 | GRL16: 0 | GRM16: 0 | GRN16: 0 | GRO16: 0 | GRP16: 0 | GRQ16: 0 | GRR16: 0 | GRS16: 0 | GRT16: 0 | GRU16: 0 | GRV16: 0 | GRW16: 0 | GRX16: 0 | GRY16: 0 | GRZ16: 0 | GSA16: 0 | GSB16: 0 | GSC16: 0 | GSD16: 0 | GSE16: 0 | GSF16: 0 | GSG16: 0 | GSH16: 0 | GSI16: 0 | GSJ16: 0 | GSK16: 0 | GSL16: 0 | GSM16: 0 | GSN16: 0 | GSO16: 0 | GSP16: 0 | GSQ16: 0 | GSR16: 0 | GSS16: 0 | GST16: 0 | GSU16: 0 | GSV16: 0 | GSW16: 0 | GSX16: 0 | GSY16: =1.05*GSY6^1.4*((2*$N$5)/($N$5*$G$5))*IF($B$5=100,GSY9,GSY12)+GSY13+GSY14 -> 0 | GSZ16: 0 | GTA16: 0 | GTB16: 0 | GTC16: 0 | GTD16: 0 | GTE16: 0 | GTF16: 0 | GTG16: 0 | GTH16: 0 | GTI16: 0 | GTJ16: 0 | GTK16: 0 | GTL16: 0 | GTM16: 0 | GTN16: 0 | GTO16: 0 | GTP16: 0 | GTQ16: 0 | GTR16: 0 | GTS16: 0 | GTT16: 0 | GTU16: 0 | GTV16: 0 | GTW16: 0 | GTX16: 0 | GTY16: 0 | GTZ16: 0 | GUA16: 0 | GUB16: 0 | GUC16: 0 | GUD16: 0 | GUE16: 0 | GUF16: 0 | GUG16: 0 | GUH16: 0 | GUI16: 0 | GUJ16: 0 | GUK16: 0 | GUL16: 0 | GUM16: 0 | GUN16: 0 | GUO16: 0 | GUP16: 0 | GUQ16: 0 | GUR16: 0 | GUS16: 0 | GUT16: 0 | GUU16: 0 | GUV16: 0 | GUW16: 0 | GUX16: 0 | GUY16: 0 | GUZ16: 0 | GVA16: 0 | GVB16: 0 | GVC16: 0 | GVD16: 0 | GVE16: 0 | GVF16: 0 | GVG16: 0 | GVH16: 0 | GVI16: 0 | GVJ16: 0 | GVK16: =1.05*GVK6^1.4*((2*$N$5)/($N$5*$G$5))*IF($B$5=100,GVK9,GVK12)+GVK13+GVK14 -> 0 | GVL16: 0 | GVM16: 0 | GVN16: 0 | GVO16: 0 | GVP16: 0 | GVQ16: 0 | GVR16: 0 | GVS16: 0 | GVT16: 0 | GVU16: 0 | GVV16: 0 | GVW16: 0 | GVX16: 0 | GVY16: 0 | GVZ16: 0 | GWA16: 0 | GWB16: 0 | GWC16: 0 | GWD16: 0 | GWE16: 0 | GWF16: 0 | GWG16: 0 | GWH16: 0 | GWI16: 0 | GWJ16: 0 | GWK16: 0 | GWL16: 0 | GWM16: 0 | GWN16: 0 | GWO16: 0 | GWP16: 0 | GWQ16: 0 | GWR16: 0 | GWS16: 0 | GWT16: 0 | GWU16: 0 | GWV16: 0 | GWW16: 0 | GWX16: 0 | GWY16: 0 | GWZ16: 0 | GXA16: 0 | GXB16: 0 | GXC16: 0 | GXD16: 0 | GXE16: 0 | GXF16: 0 | GXG16: 0 | GXH16: 0 | GXI16: 0 | GXJ16: 0 | GXK16: 0 | GXL16: 0 | GXM16: 0 | GXN16: 0 | GXO16: 0 | GXP16: 0 | GXQ16: 0 | GXR16: 0 | GXS16: 0 | GXT16: 0 | GXU16: 0 | GXV16: 0 | GXW16: =1.05*GXW6^1.4*((2*$N$5)/($N$5*$G$5))*IF($B$5=100,GXW9,GXW12)+GXW13+GXW14 -> 0 | GXX16: 0 | GXY16: 0 | GXZ16: 0 | GYA16: 0 | GYB16: 0 | GYC16: 0 | GYD16: 0 | GYE16: 0 | GYF16: 0 | GYG16: 0 | GYH16: 0 | GYI16: 0 | GYJ16: 0 | GYK16: 0 | GYL16: 0 | GYM16: 0 | GYN16: 0 | GYO16: 0 | GYP16: 0 | GYQ16: 0 | GYR16: 0 | GYS16: 0 | GYT16: 0 | GYU16: 0 | GYV16: 0 | GYW16: 0 | GYX16: 0 | GYY16: 0 | GYZ16: 0 | GZA16: 0 | GZB16: 0 | GZC16: 0 | GZD16: 0 | GZE16: 0 | GZF16: 0 | GZG16: 0 | GZH16: 0 | GZI16: 0 | GZJ16: 0 | GZK16: 0 | GZL16: 0 | GZM16: 0 | GZN16: 0 | GZO16: 0 | GZP16: 0 | GZQ16: 0 | GZR16: 0 | GZS16: 0 | GZT16: 0 | GZU16: 0 | GZV16: 0 | GZW16: 0 | GZX16: 0 | GZY16: 0 | GZZ16: 0 | HAA16: 0 | HAB16: 0 | HAC16: 0 | HAD16: 0 | HAE16: 0 | HAF16: 0 | HAG16: 0 | HAH16: 0 | HAI16: =1.05*HAI6^1.4*((2*$N$5)/($N$5*$G$5))*IF($B$5=100,HAI9,HAI12)+HAI13+HAI14 -> 0 | HAJ16: 0 | HAK16: 0 | HAL16: 0 | HAM16: 0 | HAN16: 0 | HAO16: 0 | HAP16: 0 | HAQ16: 0 | HAR16: 0 | HAS16: 0 | HAT16: 0 | HAU16: 0 | HAV16: 0 | HAW16: 0 | HAX16: 0 | HAY16: 0 | HAZ16: 0 | HBA16: 0 | HBB16: 0 | HBC16: 0 | HBD16: 0 | HBE16: 0 | HBF16: 0 | HBG16: 0 | HBH16: 0 | HBI16: 0 | HBJ16: 0 | HBK16: 0 | HBL16: 0 | HBM16: 0 | HBN16: 0 | HBO16: 0 | HBP16: 0 | HBQ16: 0 | HBR16: 0 | HBS16: 0 | HBT16: 0 | HBU16: 0 | HBV16: 0 | HBW16: 0 | HBX16: 0 | HBY16: 0 | HBZ16: 0 | HCA16: 0 | HCB16: 0 | HCC16: 0 | HCD16: 0 | HCE16: 0 | HCF16: 0 | HCG16: 0 | HCH16: 0 | HCI16: 0 | HCJ16: 0 | HCK16: 0 | HCL16: 0 | HCM16: 0 | HCN16: 0 | HCO16: 0 | HCP16: 0 | HCQ16: 0 | HCR16: 0 | HCS16: 0 | HCT16: 0 | HCU16: =1.05*HCU6^1.4*((2*$N$5)/($N$5*$G$5))*IF($B$5=100,HCU9,HCU12)+HCU13+HCU14 -> 0 | HCV16: 0 | HCW16: 0 | HCX16: 0 | HCY16: 0 | HCZ16: 0 | HDA16: 0 | HDB16: 0 | HDC16: 0 | HDD16: 0 | HDE16: 0 | HDF16: 0 | HDG16: 0 | HDH16: 0 | HDI16: 0 | HDJ16: 0 | HDK16: 0 | HDL16: 0 | HDM16: 0 | HDN16: 0 | HDO16: 0 | HDP16: 0 | HDQ16: 0 | HDR16: 0 | HDS16: 0 | HDT16: 0 | HDU16: 0 | HDV16: 0 | HDW16: 0 | HDX16: 0 | HDY16: 0 | HDZ16: 0 | HEA16: 0 | HEB16: 0 | HEC16: 0 | HED16: 0 | HEE16: 0 | HEF16: 0 | HEG16: 0 | HEH16: 0 | HEI16: 0 | HEJ16: 0 | HEK16: 0 | HEL16: 0 | HEM16: 0 | HEN16: 0 | HEO16: 0 | HEP16: 0 | HEQ16: 0 | HER16: 0 | HES16: 0 | HET16: 0 | HEU16: 0 | HEV16: 0 | HEW16: 0 | HEX16: 0 | HEY16: 0 | HEZ16: 0 | HFA16: 0 | HFB16: 0 | HFC16: 0 | HFD16: 0 | HFE16: 0 | HFF16: 0 | HFG16: =1.05*HFG6^1.4*((2*$N$5)/($N$5*$G$5))*IF($B$5=100,HFG9,HFG12)+HFG13+HFG14 -> 0 | HFH16: 0 | HFI16: 0 | HFJ16: 0 | HFK16: 0 | HFL16: 0 | HFM16: 0 | HFN16: 0 | HFO16: 0 | HFP16: 0 | HFQ16: 0 | HFR16: 0 | HFS16: 0 | HFT16: 0 | HFU16: 0 | HFV16: 0 | HFW16: 0 | HFX16: 0 | HFY16: 0 | HFZ16: 0 | HGA16: 0 | HGB16: 0 | HGC16: 0 | HGD16: 0 | HGE16: 0 | HGF16: 0 | HGG16: 0 | HGH16: 0 | HGI16: 0 | HGJ16: 0 | HGK16: 0 | HGL16: 0 | HGM16: 0 | HGN16: 0 | HGO16: 0 | HGP16: 0 | HGQ16: 0 | HGR16: 0 | HGS16: 0 | HGT16: 0 | HGU16: 0 | HGV16: 0 | HGW16: 0 | HGX16: 0 | HGY16: 0 | HGZ16: 0 | HHA16: 0 | HHB16: 0 | HHC16: 0 | HHD16: 0 | HHE16: 0 | HHF16: 0 | HHG16: 0 | HHH16: 0 | HHI16: 0 | HHJ16: 0 | HHK16: 0 | HHL16: 0 | HHM16: 0 | HHN16: 0 | HHO16: 0 | HHP16: 0 | HHQ16: 0 | HHR16: 0 | HHS16: =1.05*HHS6^1.4*((2*$N$5)/($N$5*$G$5))*IF($B$5=100,HHS9,HHS12)+HHS13+HHS14 -> 0 | HHT16: 0 | HHU16: 0 | HHV16: 0 | HHW16: 0 | HHX16: 0 | HHY16: 0 | HHZ16: 0 | HIA16: 0 | HIB16: 0 | HIC16: 0 | HID16: 0 | HIE16: 0 | HIF16: 0 | HIG16: 0 | HIH16: 0 | HII16: 0 | HIJ16: 0 | HIK16: 0 | HIL16: 0 | HIM16: 0 | HIN16: 0 | HIO16: 0 | HIP16: 0 | HIQ16: 0 | HIR16: 0 | HIS16: 0 | HIT16: 0 | HIU16: 0 | HIV16: 0 | HIW16: 0 | HIX16: 0 | HIY16: 0 | HIZ16: 0 | HJA16: 0 | HJB16: 0 | HJC16: 0 | HJD16: 0 | HJE16: 0 | HJF16: 0 | HJG16: 0 | HJH16: 0 | HJI16: 0 | HJJ16: 0 | HJK16: 0 | HJL16: 0 | HJM16: 0 | HJN16: 0 | HJO16: 0 | HJP16: 0 | HJQ16: 0 | HJR16: 0 | HJS16: 0 | HJT16: 0 | HJU16: 0 | HJV16: 0 | HJW16: 0 | HJX16: 0 | HJY16: 0 | HJZ16: 0 | HKA16: 0 | HKB16: 0 | HKC16: 0 | HKD16: 0 | HKE16: =1.05*HKE6^1.4*((2*$N$5)/($N$5*$G$5))*IF($B$5=100,HKE9,HKE12)+HKE13+HKE14 -> 0 | HKF16: 0 | HKG16: 0 | HKH16: 0 | HKI16: 0 | HKJ16: 0 | HKK16: 0 | HKL16: 0 | HKM16: 0 | HKN16: 0 | HKO16: 0 | HKP16: 0 | HKQ16: 0 | HKR16: 0 | HKS16: 0 | HKT16: 0 | HKU16: 0 | HKV16: 0 | HKW16: 0 | HKX16: 0 | HKY16: 0 | HKZ16: 0 | HLA16: 0 | HLB16: 0 | HLC16: 0 | HLD16: 0 | HLE16: 0 | HLF16: 0 | HLG16: 0 | HLH16: 0 | HLI16: 0 | HLJ16: 0 | HLK16: 0 | HLL16: 0 | HLM16: 0 | HLN16: 0 | HLO16: 0 | HLP16: 0 | HLQ16: 0 | HLR16: 0 | HLS16: 0 | HLT16: 0 | HLU16: 0 | HLV16: 0 | HLW16: 0 | HLX16: 0 | HLY16: 0 | HLZ16: 0 | HMA16: 0 | HMB16: 0 | HMC16: 0 | HMD16: 0 | HME16: 0 | HMF16: 0 | HMG16: 0 | HMH16: 0 | HMI16: 0 | HMJ16: 0 | HMK16: 0 | HML16: 0 | HMM16: 0 | HMN16: 0 | HMO16: 0 | HMP16: 0 | HMQ16: =1.05*HMQ6^1.4*((2*$N$5)/($N$5*$G$5))*IF($B$5=100,HMQ9,HMQ12)+HMQ13+HMQ14 -> 0 | HMR16: 0 | HMS16: 0 | HMT16: 0 | HMU16: 0 | HMV16: 0 | HMW16: 0 | HMX16: 0 | HMY16: 0 | HMZ16: 0 | HNA16: 0 | HNB16: 0 | HNC16: 0 | HND16: 0 | HNE16: 0 | HNF16: 0 | HNG16: 0 | HNH16: 0 | HNI16: 0 | HNJ16: 0 | HNK16: 0 | HNL16: 0 | HNM16: 0 | HNN16: 0 | HNO16: 0 | HNP16: 0 | HNQ16: 0 | HNR16: 0 | HNS16: 0 | HNT16: 0 | HNU16: 0 | HNV16: 0 | HNW16: 0 | HNX16: 0 | HNY16: 0 | HNZ16: 0 | HOA16: 0 | HOB16: 0 | HOC16: 0 | HOD16: 0 | HOE16: 0 | HOF16: 0 | HOG16: 0 | HOH16: 0 | HOI16: 0 | HOJ16: 0 | HOK16: 0 | HOL16: 0 | HOM16: 0 | HON16: 0 | HOO16: 0 | HOP16: 0 | HOQ16: 0 | HOR16: 0 | HOS16: 0 | HOT16: 0 | HOU16: 0 | HOV16: 0 | HOW16: 0 | HOX16: 0 | HOY16: 0 | HOZ16: 0 | HPA16: 0 | HPB16: 0 | HPC16: =1.05*HPC6^1.4*((2*$N$5)/($N$5*$G$5))*IF($B$5=100,HPC9,HPC12)+HPC13+HPC14 -> 0 | HPD16: 0 | HPE16: 0 | HPF16: 0 | HPG16: 0 | HPH16: 0 | HPI16: 0 | HPJ16: 0 | HPK16: 0 | HPL16: 0 | HPM16: 0 | HPN16: 0 | HPO16: 0 | HPP16: 0 | HPQ16: 0 | HPR16: 0 | HPS16: 0 | HPT16: 0 | HPU16: 0 | HPV16: 0 | HPW16: 0 | HPX16: 0 | HPY16: 0 | HPZ16: 0 | HQA16: 0 | HQB16: 0 | HQC16: 0 | HQD16: 0 | HQE16: 0 | HQF16: 0 | HQG16: 0 | HQH16: 0 | HQI16: 0 | HQJ16: 0 | HQK16: 0 | HQL16: 0 | HQM16: 0 | HQN16: 0 | HQO16: 0 | HQP16: 0 | HQQ16: 0 | HQR16: 0 | HQS16: 0 | HQT16: 0 | HQU16: 0 | HQV16: 0 | HQW16: 0 | HQX16: 0 | HQY16: 0 | HQZ16: 0 | HRA16: 0 | HRB16: 0 | HRC16: 0 | HRD16: 0 | HRE16: 0 | HRF16: 0 | HRG16: 0 | HRH16: 0 | HRI16: 0 | HRJ16: 0 | HRK16: 0 | HRL16: 0 | HRM16: 0 | HRN16: 0 | HRO16: =1.05*HRO6^1.4*((2*$N$5)/($N$5*$G$5))*IF($B$5=100,HRO9,HRO12)+HRO13+HRO14 -> 0 | HRP16: 0 | HRQ16: 0 | HRR16: 0 | HRS16: 0 | HRT16: 0 | HRU16: 0 | HRV16: 0 | HRW16: 0 | HRX16: 0 | HRY16: 0 | HRZ16: 0 | HSA16: 0 | HSB16: 0 | HSC16: 0 | HSD16: 0 | HSE16: 0 | HSF16: 0 | HSG16: 0 | HSH16: 0 | HSI16: 0 | HSJ16: 0 | HSK16: 0 | HSL16: 0 | HSM16: 0 | HSN16: 0 | HSO16: 0 | HSP16: 0 | HSQ16: 0 | HSR16: 0 | HSS16: 0 | HST16: 0 | HSU16: 0 | HSV16: 0 | HSW16: 0 | HSX16: 0 | HSY16: 0 | HSZ16: 0 | HTA16: 0 | HTB16: 0 | HTC16: 0 | HTD16: 0 | HTE16: 0 | HTF16: 0 | HTG16: 0 | HTH16: 0 | HTI16: 0 | HTJ16: 0 | HTK16: 0 | HTL16: 0 | HTM16: 0 | HTN16: 0 | HTO16: 0 | HTP16: 0 | HTQ16: 0 | HTR16: 0 | HTS16: 0 | HTT16: 0 | HTU16: 0 | HTV16: 0 | HTW16: 0 | HTX16: 0 | HTY16: 0 | HTZ16: 0 | HUA16: =1.05*HUA6^1.4*((2*$N$5)/($N$5*$G$5))*IF($B$5=100,HUA9,HUA12)+HUA13+HUA14 -> 0 | HUB16: 0 | HUC16: 0 | HUD16: 0 | HUE16: 0 | HUF16: 0 | HUG16: 0 | HUH16: 0 | HUI16: 0 | HUJ16: 0 | HUK16: 0 | HUL16: 0 | HUM16: 0 | HUN16: 0 | HUO16: 0 | HUP16: 0 | HUQ16: 0 | HUR16: 0 | HUS16: 0 | HUT16: 0 | HUU16: 0 | HUV16: 0 | HUW16: 0 | HUX16: 0 | HUY16: 0 | HUZ16: 0 | HVA16: 0 | HVB16: 0 | HVC16: 0 | HVD16: 0 | HVE16: 0 | HVF16: 0 | HVG16: 0 | HVH16: 0 | HVI16: 0 | HVJ16: 0 | HVK16: 0 | HVL16: 0 | HVM16: 0 | HVN16: 0 | HVO16: 0 | HVP16: 0 | HVQ16: 0 | HVR16: 0 | HVS16: 0 | HVT16: 0 | HVU16: 0 | HVV16: 0 | HVW16: 0 | HVX16: 0 | HVY16: 0 | HVZ16: 0 | HWA16: 0 | HWB16: 0 | HWC16: 0 | HWD16: 0 | HWE16: 0 | HWF16: 0 | HWG16: 0 | HWH16: 0 | HWI16: 0 | HWJ16: 0 | HWK16: 0 | HWL16: 0 | HWM16: =1.05*HWM6^1.4*((2*$N$5)/($N$5*$G$5))*IF($B$5=100,HWM9,HWM12)+HWM13+HWM14 -> 0 | HWN16: 0 | HWO16: 0 | HWP16: 0 | HWQ16: 0 | HWR16: 0 | HWS16: 0 | HWT16: 0 | HWU16: 0 | HWV16: 0 | HWW16: 0 | HWX16: 0 | HWY16: 0 | HWZ16: 0 | HXA16: 0 | HXB16: 0 | HXC16: 0 | HXD16: 0 | HXE16: 0 | HXF16: 0 | HXG16: 0 | HXH16: 0 | HXI16: 0 | HXJ16: 0 | HXK16: 0 | HXL16: 0 | HXM16: 0 | HXN16: 0 | HXO16: 0 | HXP16: 0 | HXQ16: 0 | HXR16: 0 | HXS16: 0 | HXT16: 0 | HXU16: 0 | HXV16: 0 | HXW16: 0 | HXX16: 0 | HXY16: 0 | HXZ16: 0 | HYA16: 0 | HYB16: 0 | HYC16: 0 | HYD16: 0 | HYE16: 0 | HYF16: 0 | HYG16: 0 | HYH16: 0 | HYI16: 0 | HYJ16: 0 | HYK16: 0 | HYL16: 0 | HYM16: 0 | HYN16: 0 | HYO16: 0 | HYP16: 0 | HYQ16: 0 | HYR16: 0 | HYS16: 0 | HYT16: 0 | HYU16: 0 | HYV16: 0 | HYW16: 0 | HYX16: 0 | HYY16: =1.05*HYY6^1.4*((2*$N$5)/($N$5*$G$5))*IF($B$5=100,HYY9,HYY12)+HYY13+HYY14 -> 0 | HYZ16: 0 | HZA16: 0 | HZB16: 0 | HZC16: 0 | HZD16: 0 | HZE16: 0 | HZF16: 0 | HZG16: 0 | HZH16: 0 | HZI16: 0 | HZJ16: 0 | HZK16: 0 | HZL16: 0 | HZM16: 0 | HZN16: 0 | HZO16: 0 | HZP16: 0 | HZQ16: 0 | HZR16: 0 | HZS16: 0 | HZT16: 0 | HZU16: 0 | HZV16: 0 | HZW16: 0 | HZX16: 0 | HZY16: 0 | HZZ16: 0 | IAA16: 0 | IAB16: 0 | IAC16: 0 | IAD16: 0 | IAE16: 0 | IAF16: 0 | IAG16: 0 | IAH16: 0 | IAI16: 0 | IAJ16: 0 | IAK16: 0 | IAL16: 0 | IAM16: 0 | IAN16: 0 | IAO16: 0 | IAP16: 0 | IAQ16: 0 | IAR16: 0 | IAS16: 0 | IAT16: 0 | IAU16: 0 | IAV16: 0 | IAW16: 0 | IAX16: 0 | IAY16: 0 | IAZ16: 0 | IBA16: 0 | IBB16: 0 | IBC16: 0 | IBD16: 0 | IBE16: 0 | IBF16: 0 | IBG16: 0 | IBH16: 0 | IBI16: 0 | IBJ16: 0 | IBK16: =1.05*IBK6^1.4*((2*$N$5)/($N$5*$G$5))*IF($B$5=100,IBK9,IBK12)+IBK13+IBK14 -> 0 | IBL16: 0 | IBM16: 0 | IBN16: 0 | IBO16: 0 | IBP16: 0 | IBQ16: 0 | IBR16: 0 | IBS16: 0 | IBT16: 0 | IBU16: 0 | IBV16: 0 | IBW16: 0 | IBX16: 0 | IBY16: 0 | IBZ16: 0 | ICA16: 0 | ICB16: 0 | ICC16: 0 | ICD16: 0 | ICE16: 0 | ICF16: 0 | ICG16: 0 | ICH16: 0 | ICI16: 0 | ICJ16: 0 | ICK16: 0 | ICL16: 0 | ICM16: 0 | ICN16: 0 | ICO16: 0 | ICP16: 0 | ICQ16: 0 | ICR16: 0 | ICS16: 0 | ICT16: 0 | ICU16: 0 | ICV16: 0 | ICW16: 0 | ICX16: 0 | ICY16: 0 | ICZ16: 0 | IDA16: 0 | IDB16: 0 | IDC16: 0 | IDD16: 0 | IDE16: 0 | IDF16: 0 | IDG16: 0 | IDH16: 0 | IDI16: 0 | IDJ16: 0 | IDK16: 0 | IDL16: 0 | IDM16: 0 | IDN16: 0 | IDO16: 0 | IDP16: 0 | IDQ16: 0 | IDR16: 0 | IDS16: 0 | IDT16: 0 | IDU16: 0 | IDV16: 0 | IDW16: =1.05*IDW6^1.4*((2*$N$5)/($N$5*$G$5))*IF($B$5=100,IDW9,IDW12)+IDW13+IDW14 -> 0 | IDX16: 0 | IDY16: 0 | IDZ16: 0 | IEA16: 0 | IEB16: 0 | IEC16: 0 | IED16: 0 | IEE16: 0 | IEF16: 0 | IEG16: 0 | IEH16: 0 | IEI16: 0 | IEJ16: 0 | IEK16: 0 | IEL16: 0 | IEM16: 0 | IEN16: 0 | IEO16: 0 | IEP16: 0 | IEQ16: 0 | IER16: 0 | IES16: 0 | IET16: 0 | IEU16: 0 | IEV16: 0 | IEW16: 0 | IEX16: 0 | IEY16: 0 | IEZ16: 0 | IFA16: 0 | IFB16: 0 | IFC16: 0 | IFD16: 0 | IFE16: 0 | IFF16: 0 | IFG16: 0 | IFH16: 0 | IFI16: 0 | IFJ16: 0 | IFK16: 0 | IFL16: 0 | IFM16: 0 | IFN16: 0 | IFO16: 0 | IFP16: 0 | IFQ16: 0 | IFR16: 0 | IFS16: 0 | IFT16: 0 | IFU16: 0 | IFV16: 0 | IFW16: 0 | IFX16: 0 | IFY16: 0 | IFZ16: 0 | IGA16: 0 | IGB16: 0 | IGC16: 0 | IGD16: 0 | IGE16: 0 | IGF16: 0 | IGG16: 0 | IGH16: 0 | IGI16: =1.05*IGI6^1.4*((2*$N$5)/($N$5*$G$5))*IF($B$5=100,IGI9,IGI12)+IGI13+IGI14 -> 0 | IGJ16: 0 | IGK16: 0 | IGL16: 0 | IGM16: 0 | IGN16: 0 | IGO16: 0 | IGP16: 0 | IGQ16: 0 | IGR16: 0 | IGS16: 0 | IGT16: 0 | IGU16: 0 | IGV16: 0 | IGW16: 0 | IGX16: 0 | IGY16: 0 | IGZ16: 0 | IHA16: 0 | IHB16: 0 | IHC16: 0 | IHD16: 0 | IHE16: 0 | IHF16: 0 | IHG16: 0 | IHH16: 0 | IHI16: 0 | IHJ16: 0 | IHK16: 0 | IHL16: 0 | IHM16: 0 | IHN16: 0 | IHO16: 0 | IHP16: 0 | IHQ16: 0 | IHR16: 0 | IHS16: 0 | IHT16: 0 | IHU16: 0 | IHV16: 0 | IHW16: 0 | IHX16: 0 | IHY16: 0 | IHZ16: 0 | IIA16: 0 | IIB16: 0 | IIC16: 0 | IID16: 0 | IIE16: 0 | IIF16: 0 | IIG16: 0 | IIH16: 0 | III16: 0 | IIJ16: 0 | IIK16: 0 | IIL16: 0 | IIM16: 0 | IIN16: 0 | IIO16: 0 | IIP16: 0 | IIQ16: 0 | IIR16: 0 | IIS16: 0 | IIT16: 0 | IIU16: =1.05*IIU6^1.4*((2*$N$5)/($N$5*$G$5))*IF($B$5=100,IIU9,IIU12)+IIU13+IIU14 -> 0 | IIV16: 0 | IIW16: 0 | IIX16: 0 | IIY16: 0 | IIZ16: 0 | IJA16: 0 | IJB16: 0 | IJC16: 0 | IJD16: 0 | IJE16: 0 | IJF16: 0 | IJG16: 0 | IJH16: 0 | IJI16: 0 | IJJ16: 0 | IJK16: 0 | IJL16: 0 | IJM16: 0 | IJN16: 0 | IJO16: 0 | IJP16: 0 | IJQ16: 0 | IJR16: 0 | IJS16: 0 | IJT16: 0 | IJU16: 0 | IJV16: 0 | IJW16: 0 | IJX16: 0 | IJY16: 0 | IJZ16: 0 | IKA16: 0 | IKB16: 0 | IKC16: 0 | IKD16: 0 | IKE16: 0 | IKF16: 0 | IKG16: 0 | IKH16: 0 | IKI16: 0 | IKJ16: 0 | IKK16: 0 | IKL16: 0 | IKM16: 0 | IKN16: 0 | IKO16: 0 | IKP16: 0 | IKQ16: 0 | IKR16: 0 | IKS16: 0 | IKT16: 0 | IKU16: 0 | IKV16: 0 | IKW16: 0 | IKX16: 0 | IKY16: 0 | IKZ16: 0 | ILA16: 0 | ILB16: 0 | ILC16: 0 | ILD16: 0 | ILE16: 0 | ILF16: 0 | ILG16: =1.05*ILG6^1.4*((2*$N$5)/($N$5*$G$5))*IF($B$5=100,ILG9,ILG12)+ILG13+ILG14 -> 0 | ILH16: 0 | ILI16: 0 | ILJ16: 0 | ILK16: 0 | ILL16: 0 | ILM16: 0 | ILN16: 0 | ILO16: 0 | ILP16: 0 | ILQ16: 0 | ILR16: 0 | ILS16: 0 | ILT16: 0 | ILU16: 0 | ILV16: 0 | ILW16: 0 | ILX16: 0 | ILY16: 0 | ILZ16: 0 | IMA16: 0 | IMB16: 0 | IMC16: 0 | IMD16: 0 | IME16: 0 | IMF16: 0 | IMG16: 0 | IMH16: 0 | IMI16: 0 | IMJ16: 0 | IMK16: 0 | IML16: 0 | IMM16: 0 | IMN16: 0 | IMO16: 0 | IMP16: 0 | IMQ16: 0 | IMR16: 0 | IMS16: 0 | IMT16: 0 | IMU16: 0 | IMV16: 0 | IMW16: 0 | IMX16: 0 | IMY16: 0 | IMZ16: 0 | INA16: 0 | INB16: 0 | INC16: 0 | IND16: 0 | INE16: 0 | INF16: 0 | ING16: 0 | INH16: 0 | INI16: 0 | INJ16: 0 | INK16: 0 | INL16: 0 | INM16: 0 | INN16: 0 | INO16: 0 | INP16: 0 | INQ16: 0 | INR16: 0 | INS16: =1.05*INS6^1.4*((2*$N$5)/($N$5*$G$5))*IF($B$5=100,INS9,INS12)+INS13+INS14 -> 0 | INT16: 0 | INU16: 0 | INV16: 0 | INW16: 0 | INX16: 0 | INY16: 0 | INZ16: 0 | IOA16: 0 | IOB16: 0 | IOC16: 0 | IOD16: 0 | IOE16: 0 | IOF16: 0 | IOG16: 0 | IOH16: 0 | IOI16: 0 | IOJ16: 0 | IOK16: 0 | IOL16: 0 | IOM16: 0 | ION16: 0 | IOO16: 0 | IOP16: 0 | IOQ16: 0 | IOR16: 0 | IOS16: 0 | IOT16: 0 | IOU16: 0 | IOV16: 0 | IOW16: 0 | IOX16: 0 | IOY16: 0 | IOZ16: 0 | IPA16: 0 | IPB16: 0 | IPC16: 0 | IPD16: 0 | IPE16: 0 | IPF16: 0 | IPG16: 0 | IPH16: 0 | IPI16: 0 | IPJ16: 0 | IPK16: 0 | IPL16: 0 | IPM16: 0 | IPN16: 0 | IPO16: 0 | IPP16: 0 | IPQ16: 0 | IPR16: 0 | IPS16: 0 | IPT16: 0 | IPU16: 0 | IPV16: 0 | IPW16: 0 | IPX16: 0 | IPY16: 0 | IPZ16: 0 | IQA16: 0 | IQB16: 0 | IQC16: 0 | IQD16: 0 | IQE16: =1.05*IQE6^1.4*((2*$N$5)/($N$5*$G$5))*IF($B$5=100,IQE9,IQE12)+IQE13+IQE14 -> 0 | IQF16: 0 | IQG16: 0 | IQH16: 0 | IQI16: 0 | IQJ16: 0 | IQK16: 0 | IQL16: 0 | IQM16: 0 | IQN16: 0 | IQO16: 0 | IQP16: 0 | IQQ16: 0 | IQR16: 0 | IQS16: 0 | IQT16: 0 | IQU16: 0 | IQV16: 0 | IQW16: 0 | IQX16: 0 | IQY16: 0 | IQZ16: 0 | IRA16: 0 | IRB16: 0 | IRC16: 0 | IRD16: 0 | IRE16: 0 | IRF16: 0 | IRG16: 0 | IRH16: 0 | IRI16: 0 | IRJ16: 0 | IRK16: 0 | IRL16: 0 | IRM16: 0 | IRN16: 0 | IRO16: 0 | IRP16: 0 | IRQ16: 0 | IRR16: 0 | IRS16: 0 | IRT16: 0 | IRU16: 0 | IRV16: 0 | IRW16: 0 | IRX16: 0 | IRY16: 0 | IRZ16: 0 | ISA16: 0 | ISB16: 0 | ISC16: 0 | ISD16: 0 | ISE16: 0 | ISF16: 0 | ISG16: 0 | ISH16: 0 | ISI16: 0 | ISJ16: 0 | ISK16: 0 | ISL16: 0 | ISM16: 0 | ISN16: 0 | ISO16: 0 | ISP16: 0 | ISQ16: =1.05*ISQ6^1.4*((2*$N$5)/($N$5*$G$5))*IF($B$5=100,ISQ9,ISQ12)+ISQ13+ISQ14 -> 0 | ISR16: 0 | ISS16: 0 | IST16: 0 | ISU16: 0 | ISV16: 0 | ISW16: 0 | ISX16: 0 | ISY16: 0 | ISZ16: 0 | ITA16: 0 | ITB16: 0 | ITC16: 0 | ITD16: 0 | ITE16: 0 | ITF16: 0 | ITG16: 0 | ITH16: 0 | ITI16: 0 | ITJ16: 0 | ITK16: 0 | ITL16: 0 | ITM16: 0 | ITN16: 0 | ITO16: 0 | ITP16: 0 | ITQ16: 0 | ITR16: 0 | ITS16: 0 | ITT16: 0 | ITU16: 0 | ITV16: 0 | ITW16: 0 | ITX16: 0 | ITY16: 0 | ITZ16: 0 | IUA16: 0 | IUB16: 0 | IUC16: 0 | IUD16: 0 | IUE16: 0 | IUF16: 0 | IUG16: 0 | IUH16: 0 | IUI16: 0 | IUJ16: 0 | IUK16: 0 | IUL16: 0 | IUM16: 0 | IUN16: 0 | IUO16: 0 | IUP16: 0 | IUQ16: 0 | IUR16: 0 | IUS16: 0 | IUT16: 0 | IUU16: 0 | IUV16: 0 | IUW16: 0 | IUX16: 0 | IUY16: 0 | IUZ16: 0 | IVA16: 0 | IVB16: 0 | IVC16: =1.05*IVC6^1.4*((2*$N$5)/($N$5*$G$5))*IF($B$5=100,IVC9,IVC12)+IVC13+IVC14 -> 0 | IVD16: 0 | IVE16: 0 | IVF16: 0 | IVG16: 0 | IVH16: 0 | IVI16: 0 | IVJ16: 0 | IVK16: 0 | IVL16: 0 | IVM16: 0 | IVN16: 0 | IVO16: 0 | IVP16: 0 | IVQ16: 0 | IVR16: 0 | IVS16: 0 | IVT16: 0 | IVU16: 0 | IVV16: 0 | IVW16: 0 | IVX16: 0 | IVY16: 0 | IVZ16: 0 | IWA16: 0 | IWB16: 0 | IWC16: 0 | IWD16: 0 | IWE16: 0 | IWF16: 0 | IWG16: 0 | IWH16: 0 | IWI16: 0 | IWJ16: 0 | IWK16: 0 | IWL16: 0 | IWM16: 0 | IWN16: 0 | IWO16: 0 | IWP16: 0 | IWQ16: 0 | IWR16: 0 | IWS16: 0 | IWT16: 0 | IWU16: 0 | IWV16: 0 | IWW16: 0 | IWX16: 0 | IWY16: 0 | IWZ16: 0 | IXA16: 0 | IXB16: 0 | IXC16: 0 | IXD16: 0 | IXE16: 0 | IXF16: 0 | IXG16: 0 | IXH16: 0 | IXI16: 0 | IXJ16: 0 | IXK16: 0 | IXL16: 0 | IXM16: 0 | IXN16: 0 | IXO16: =1.05*IXO6^1.4*((2*$N$5)/($N$5*$G$5))*IF($B$5=100,IXO9,IXO12)+IXO13+IXO14 -> 0 | IXP16: 0 | IXQ16: 0 | IXR16: 0 | IXS16: 0 | IXT16: 0 | IXU16: 0 | IXV16: 0 | IXW16: 0 | IXX16: 0 | IXY16: 0 | IXZ16: 0 | IYA16: 0 | IYB16: 0 | IYC16: 0 | IYD16: 0 | IYE16: 0 | IYF16: 0 | IYG16: 0 | IYH16: 0 | IYI16: 0 | IYJ16: 0 | IYK16: 0 | IYL16: 0 | IYM16: 0 | IYN16: 0 | IYO16: 0 | IYP16: 0 | IYQ16: 0 | IYR16: 0 | IYS16: 0 | IYT16: 0 | IYU16: 0 | IYV16: 0 | IYW16: 0 | IYX16: 0 | IYY16: 0 | IYZ16: 0 | IZA16: 0 | IZB16: 0 | IZC16: 0 | IZD16: 0 | IZE16: 0 | IZF16: 0 | IZG16: 0 | IZH16: 0 | IZI16: 0 | IZJ16: 0 | IZK16: 0 | IZL16: 0 | IZM16: 0 | IZN16: 0 | IZO16: 0 | IZP16: 0 | IZQ16: 0 | IZR16: 0 | IZS16: 0 | IZT16: 0 | IZU16: 0 | IZV16: 0 | IZW16: 0 | IZX16: 0 | IZY16: 0 | IZZ16: 0 | JAA16: =1.05*JAA6^1.4*((2*$N$5)/($N$5*$G$5))*IF($B$5=100,JAA9,JAA12)+JAA13+JAA14 -> 0 | JAB16: 0 | JAC16: 0 | JAD16: 0 | JAE16: 0 | JAF16: 0 | JAG16: 0 | JAH16: 0 | JAI16: 0 | JAJ16: 0 | JAK16: 0 | JAL16: 0 | JAM16: 0 | JAN16: 0 | JAO16: 0 | JAP16: 0 | JAQ16: 0 | JAR16: 0 | JAS16: 0 | JAT16: 0 | JAU16: 0 | JAV16: 0 | JAW16: 0 | JAX16: 0 | JAY16: 0 | JAZ16: 0 | JBA16: 0 | JBB16: 0 | JBC16: 0 | JBD16: 0 | JBE16: 0 | JBF16: 0 | JBG16: 0 | JBH16: 0 | JBI16: 0 | JBJ16: 0 | JBK16: 0 | JBL16: 0 | JBM16: 0 | JBN16: 0 | JBO16: 0 | JBP16: 0 | JBQ16: 0 | JBR16: 0 | JBS16: 0 | JBT16: 0 | JBU16: 0 | JBV16: 0 | JBW16: 0 | JBX16: 0 | JBY16: 0 | JBZ16: 0 | JCA16: 0 | JCB16: 0 | JCC16: 0 | JCD16: 0 | JCE16: 0 | JCF16: 0 | JCG16: 0 | JCH16: 0 | JCI16: 0 | JCJ16: 0 | JCK16: 0 | JCL16: 0 | JCM16: =1.05*JCM6^1.4*((2*$N$5)/($N$5*$G$5))*IF($B$5=100,JCM9,JCM12)+JCM13+JCM14 -> 0 | JCN16: 0 | JCO16: 0 | JCP16: 0 | JCQ16: 0 | JCR16: 0 | JCS16: 0 | JCT16: 0 | JCU16: 0 | JCV16: 0 | JCW16: 0 | JCX16: 0 | JCY16: 0 | JCZ16: 0 | JDA16: 0 | JDB16: 0 | JDC16: 0 | JDD16: 0 | JDE16: 0 | JDF16: 0 | JDG16: 0 | JDH16: 0 | JDI16: 0 | JDJ16: 0 | JDK16: 0 | JDL16: 0 | JDM16: 0 | JDN16: 0 | JDO16: 0 | JDP16: 0 | JDQ16: 0 | JDR16: 0 | JDS16: 0 | JDT16: 0 | JDU16: 0 | JDV16: 0 | JDW16: 0 | JDX16: 0 | JDY16: 0 | JDZ16: 0 | JEA16: 0 | JEB16: 0 | JEC16: 0 | JED16: 0 | JEE16: 0 | JEF16: 0 | JEG16: 0 | JEH16: 0 | JEI16: 0 | JEJ16: 0 | JEK16: 0 | JEL16: 0 | JEM16: 0 | JEN16: 0 | JEO16: 0 | JEP16: 0 | JEQ16: 0 | JER16: 0 | JES16: 0 | JET16: 0 | JEU16: 0 | JEV16: 0 | JEW16: 0 | JEX16: 0 | JEY16: =1.05*JEY6^1.4*((2*$N$5)/($N$5*$G$5))*IF($B$5=100,JEY9,JEY12)+JEY13+JEY14 -> 0 | JEZ16: 0 | JFA16: 0 | JFB16: 0 | JFC16: 0 | JFD16: 0 | JFE16: 0 | JFF16: 0 | JFG16: 0 | JFH16: 0 | JFI16: 0 | JFJ16: 0 | JFK16: 0 | JFL16: 0 | JFM16: 0 | JFN16: 0 | JFO16: 0 | JFP16: 0 | JFQ16: 0 | JFR16: 0 | JFS16: 0 | JFT16: 0 | JFU16: 0 | JFV16: 0 | JFW16: 0 | JFX16: 0 | JFY16: 0 | JFZ16: 0 | JGA16: 0 | JGB16: 0 | JGC16: 0 | JGD16: 0 | JGE16: 0 | JGF16: 0 | JGG16: 0 | JGH16: 0 | JGI16: 0 | JGJ16: 0 | JGK16: 0 | JGL16: 0 | JGM16: 0 | JGN16: 0 | JGO16: 0 | JGP16: 0 | JGQ16: 0 | JGR16: 0 | JGS16: 0 | JGT16: 0 | JGU16: 0 | JGV16: 0 | JGW16: 0 | JGX16: 0 | JGY16: 0 | JGZ16: 0 | JHA16: 0 | JHB16: 0 | JHC16: 0 | JHD16: 0 | JHE16: 0 | JHF16: 0 | JHG16: 0 | JHH16: 0 | JHI16: 0 | JHJ16: 0 | JHK16: =1.05*JHK6^1.4*((2*$N$5)/($N$5*$G$5))*IF($B$5=100,JHK9,JHK12)+JHK13+JHK14 -> 0 | JHL16: 0 | JHM16: 0 | JHN16: 0 | JHO16: 0 | JHP16: 0 | JHQ16: 0 | JHR16: 0 | JHS16: 0 | JHT16: 0 | JHU16: 0 | JHV16: 0 | JHW16: 0 | JHX16: 0 | JHY16: 0 | JHZ16: 0 | JIA16: 0 | JIB16: 0 | JIC16: 0 | JID16: 0 | JIE16: 0 | JIF16: 0 | JIG16: 0 | JIH16: 0 | JII16: 0 | JIJ16: 0 | JIK16: 0 | JIL16: 0 | JIM16: 0 | JIN16: 0 | JIO16: 0 | JIP16: 0 | JIQ16: 0 | JIR16: 0 | JIS16: 0 | JIT16: 0 | JIU16: 0 | JIV16: 0 | JIW16: 0 | JIX16: 0 | JIY16: 0 | JIZ16: 0 | JJA16: 0 | JJB16: 0 | JJC16: 0 | JJD16: 0 | JJE16: 0 | JJF16: 0 | JJG16: 0 | JJH16: 0 | JJI16: 0 | JJJ16: 0 | JJK16: 0 | JJL16: 0 | JJM16: 0 | JJN16: 0 | JJO16: 0 | JJP16: 0 | JJQ16: 0 | JJR16: 0 | JJS16: 0 | JJT16: 0 | JJU16: 0 | JJV16: 0 | JJW16: =1.05*JJW6^1.4*((2*$N$5)/($N$5*$G$5))*IF($B$5=100,JJW9,JJW12)+JJW13+JJW14 -> 0 | JJX16: 0 | JJY16: 0 | JJZ16: 0 | JKA16: 0 | JKB16: 0 | JKC16: 0 | JKD16: 0 | JKE16: 0 | JKF16: 0 | JKG16: 0 | JKH16: 0 | JKI16: 0 | JKJ16: 0 | JKK16: 0 | JKL16: 0 | JKM16: 0 | JKN16: 0 | JKO16: 0 | JKP16: 0 | JKQ16: 0 | JKR16: 0 | JKS16: 0 | JKT16: 0 | JKU16: 0 | JKV16: 0 | JKW16: 0 | JKX16: 0 | JKY16: 0 | JKZ16: 0 | JLA16: 0 | JLB16: 0 | JLC16: 0 | JLD16: 0 | JLE16: 0 | JLF16: 0 | JLG16: 0 | JLH16: 0 | JLI16: 0 | JLJ16: 0 | JLK16: 0 | JLL16: 0 | JLM16: 0 | JLN16: 0 | JLO16: 0 | JLP16: 0 | JLQ16: 0 | JLR16: 0 | JLS16: 0 | JLT16: 0 | JLU16: 0 | JLV16: 0 | JLW16: 0 | JLX16: 0 | JLY16: 0 | JLZ16: 0 | JMA16: 0 | JMB16: 0 | JMC16: 0 | JMD16: 0 | JME16: 0 | JMF16: 0 | JMG16: 0 | JMH16: 0 | JMI16: =1.05*JMI6^1.4*((2*$N$5)/($N$5*$G$5))*IF($B$5=100,JMI9,JMI12)+JMI13+JMI14 -> 0 | JMJ16: 0 | JMK16: 0 | JML16: 0 | JMM16: 0 | JMN16: 0 | JMO16: 0 | JMP16: 0 | JMQ16: 0 | JMR16: 0 | JMS16: 0 | JMT16: 0 | JMU16: 0 | JMV16: 0 | JMW16: 0 | JMX16: 0 | JMY16: 0 | JMZ16: 0 | JNA16: 0 | JNB16: 0 | JNC16: 0 | JND16: 0 | JNE16: 0 | JNF16: 0 | JNG16: 0 | JNH16: 0 | JNI16: 0 | JNJ16: 0 | JNK16: 0 | JNL16: 0 | JNM16: 0 | JNN16: 0 | JNO16: 0 | JNP16: 0 | JNQ16: 0 | JNR16: 0 | JNS16: 0 | JNT16: 0 | JNU16: 0 | JNV16: 0 | JNW16: 0 | JNX16: 0 | JNY16: 0 | JNZ16: 0 | JOA16: 0 | JOB16: 0 | JOC16: 0 | JOD16: 0 | JOE16: 0 | JOF16: 0 | JOG16: 0 | JOH16: 0 | JOI16: 0 | JOJ16: 0 | JOK16: 0 | JOL16: 0 | JOM16: 0 | JON16: 0 | JOO16: 0 | JOP16: 0 | JOQ16: 0 | JOR16: 0 | JOS16: 0 | JOT16: 0 | JOU16: =1.05*JOU6^1.4*((2*$N$5)/($N$5*$G$5))*IF($B$5=100,JOU9,JOU12)+JOU13+JOU14 -> 0 | JOV16: 0 | JOW16: 0 | JOX16: 0 | JOY16: 0 | JOZ16: 0 | JPA16: 0 | JPB16: 0 | JPC16: 0 | JPD16: 0 | JPE16: 0 | JPF16: 0 | JPG16: 0 | JPH16: 0 | JPI16: 0 | JPJ16: 0 | JPK16: 0 | JPL16: 0 | JPM16: 0 | JPN16: 0 | JPO16: 0 | JPP16: 0 | JPQ16: 0 | JPR16: 0 | JPS16: 0 | JPT16: 0 | JPU16: 0 | JPV16: 0 | JPW16: 0 | JPX16: 0 | JPY16: 0 | JPZ16: 0 | JQA16: 0 | JQB16: 0 | JQC16: 0 | JQD16: 0 | JQE16: 0 | JQF16: 0 | JQG16: 0 | JQH16: 0 | JQI16: 0 | JQJ16: 0 | JQK16: 0 | JQL16: 0 | JQM16: 0 | JQN16: 0 | JQO16: 0 | JQP16: 0 | JQQ16: 0 | JQR16: 0 | JQS16: 0 | JQT16: 0 | JQU16: 0 | JQV16: 0 | JQW16: 0 | JQX16: 0 | JQY16: 0 | JQZ16: 0 | JRA16: 0 | JRB16: 0 | JRC16: 0 | JRD16: 0 | JRE16: 0 | JRF16: 0 | JRG16: =1.05*JRG6^1.4*((2*$N$5)/($N$5*$G$5))*IF($B$5=100,JRG9,JRG12)+JRG13+JRG14 -> 0 | JRH16: 0 | JRI16: 0 | JRJ16: 0 | JRK16: 0 | JRL16: 0 | JRM16: 0 | JRN16: 0 | JRO16: 0 | JRP16: 0 | JRQ16: 0 | JRR16: 0 | JRS16: 0 | JRT16: 0 | JRU16: 0 | JRV16: 0 | JRW16: 0 | JRX16: 0 | JRY16: 0 | JRZ16: 0 | JSA16: 0 | JSB16: 0 | JSC16: 0 | JSD16: 0 | JSE16: 0 | JSF16: 0 | JSG16: 0 | JSH16: 0 | JSI16: 0 | JSJ16: 0 | JSK16: 0 | JSL16: 0 | JSM16: 0 | JSN16: 0 | JSO16: 0 | JSP16: 0 | JSQ16: 0 | JSR16: 0 | JSS16: 0 | JST16: 0 | JSU16: 0 | JSV16: 0 | JSW16: 0 | JSX16: 0 | JSY16: 0 | JSZ16: 0 | JTA16: 0 | JTB16: 0 | JTC16: 0 | JTD16: 0 | JTE16: 0 | JTF16: 0 | JTG16: 0 | JTH16: 0 | JTI16: 0 | JTJ16: 0 | JTK16: 0 | JTL16: 0 | JTM16: 0 | JTN16: 0 | JTO16: 0 | JTP16: 0 | JTQ16: 0 | JTR16: 0 | JTS16: =1.05*JTS6^1.4*((2*$N$5)/($N$5*$G$5))*IF($B$5=100,JTS9,JTS12)+JTS13+JTS14 -> 0 | JTT16: 0 | JTU16: 0 | JTV16: 0 | JTW16: 0 | JTX16: 0 | JTY16: 0 | JTZ16: 0 | JUA16: 0 | JUB16: 0 | JUC16: 0 | JUD16: 0 | JUE16: 0 | JUF16: 0 | JUG16: 0 | JUH16: 0 | JUI16: 0 | JUJ16: 0 | JUK16: 0 | JUL16: 0 | JUM16: 0 | JUN16: 0 | JUO16: 0 | JUP16: 0 | JUQ16: 0 | JUR16: 0 | JUS16: 0 | JUT16: 0 | JUU16: 0 | JUV16: 0 | JUW16: 0 | JUX16: 0 | JUY16: 0 | JUZ16: 0 | JVA16: 0 | JVB16: 0 | JVC16: 0 | JVD16: 0 | JVE16: 0 | JVF16: 0 | JVG16: 0 | JVH16: 0 | JVI16: 0 | JVJ16: 0 | JVK16: 0 | JVL16: 0 | JVM16: 0 | JVN16: 0 | JVO16: 0 | JVP16: 0 | JVQ16: 0 | JVR16: 0 | JVS16: 0 | JVT16: 0 | JVU16: 0 | JVV16: 0 | JVW16: 0 | JVX16: 0 | JVY16: 0 | JVZ16: 0 | JWA16: 0 | JWB16: 0 | JWC16: 0 | JWD16: 0 | JWE16: =1.05*JWE6^1.4*((2*$N$5)/($N$5*$G$5))*IF($B$5=100,JWE9,JWE12)+JWE13+JWE14 -> 0 | JWF16: 0 | JWG16: 0 | JWH16: 0 | JWI16: 0 | JWJ16: 0 | JWK16: 0 | JWL16: 0 | JWM16: 0 | JWN16: 0 | JWO16: 0 | JWP16: 0 | JWQ16: 0 | JWR16: 0 | JWS16: 0 | JWT16: 0 | JWU16: 0 | JWV16: 0 | JWW16: 0 | JWX16: 0 | JWY16: 0 | JWZ16: 0 | JXA16: 0 | JXB16: 0 | JXC16: 0 | JXD16: 0 | JXE16: 0 | JXF16: 0 | JXG16: 0 | JXH16: 0 | JXI16: 0 | JXJ16: 0 | JXK16: 0 | JXL16: 0 | JXM16: 0 | JXN16: 0 | JXO16: 0 | JXP16: 0 | JXQ16: 0 | JXR16: 0 | JXS16: 0 | JXT16: 0 | JXU16: 0 | JXV16: 0 | JXW16: 0 | JXX16: 0 | JXY16: 0 | JXZ16: 0 | JYA16: 0 | JYB16: 0 | JYC16: 0 | JYD16: 0 | JYE16: 0 | JYF16: 0 | JYG16: 0 | JYH16: 0 | JYI16: 0 | JYJ16: 0 | JYK16: 0 | JYL16: 0 | JYM16: 0 | JYN16: 0 | JYO16: 0 | JYP16: 0 | JYQ16: =1.05*JYQ6^1.4*((2*$N$5)/($N$5*$G$5))*IF($B$5=100,JYQ9,JYQ12)+JYQ13+JYQ14 -> 0 | JYR16: 0 | JYS16: 0 | JYT16: 0 | JYU16: 0 | JYV16: 0 | JYW16: 0 | JYX16: 0 | JYY16: 0 | JYZ16: 0 | JZA16: 0 | JZB16: 0 | JZC16: 0 | JZD16: 0 | JZE16: 0 | JZF16: 0 | JZG16: 0 | JZH16: 0 | JZI16: 0 | JZJ16: 0 | JZK16: 0 | JZL16: 0 | JZM16: 0 | JZN16: 0 | JZO16: 0 | JZP16: 0 | JZQ16: 0 | JZR16: 0 | JZS16: 0 | JZT16: 0 | JZU16: 0 | JZV16: 0 | JZW16: 0 | JZX16: 0 | JZY16: 0 | JZZ16: 0 | KAA16: 0 | KAB16: 0 | KAC16: 0 | KAD16: 0 | KAE16: 0 | KAF16: 0 | KAG16: 0 | KAH16: 0 | KAI16: 0 | KAJ16: 0 | KAK16: 0 | KAL16: 0 | KAM16: 0 | KAN16: 0 | KAO16: 0 | KAP16: 0 | KAQ16: 0 | KAR16: 0 | KAS16: 0 | KAT16: 0 | KAU16: 0 | KAV16: 0 | KAW16: 0 | KAX16: 0 | KAY16: 0 | KAZ16: 0 | KBA16: 0 | KBB16: 0 | KBC16: =1.05*KBC6^1.4*((2*$N$5)/($N$5*$G$5))*IF($B$5=100,KBC9,KBC12)+KBC13+KBC14 -> 0 | KBD16: 0 | KBE16: 0 | KBF16: 0 | KBG16: 0 | KBH16: 0 | KBI16: 0 | KBJ16: 0 | KBK16: 0 | KBL16: 0 | KBM16: 0 | KBN16: 0 | KBO16: 0 | KBP16: 0 | KBQ16: 0 | KBR16: 0 | KBS16: 0 | KBT16: 0 | KBU16: 0 | KBV16: 0 | KBW16: 0 | KBX16: 0 | KBY16: 0 | KBZ16: 0 | KCA16: 0 | KCB16: 0 | KCC16: 0 | KCD16: 0 | KCE16: 0 | KCF16: 0 | KCG16: 0 | KCH16: 0 | KCI16: 0 | KCJ16: 0 | KCK16: 0 | KCL16: 0 | KCM16: 0 | KCN16: 0 | KCO16: 0 | KCP16: 0 | KCQ16: 0 | KCR16: 0 | KCS16: 0 | KCT16: 0 | KCU16: 0 | KCV16: 0 | KCW16: 0 | KCX16: 0 | KCY16: 0 | KCZ16: 0 | KDA16: 0 | KDB16: 0 | KDC16: 0 | KDD16: 0 | KDE16: 0 | KDF16: 0 | KDG16: 0 | KDH16: 0 | KDI16: 0 | KDJ16: 0 | KDK16: 0 | KDL16: 0 | KDM16: 0 | KDN16: 0 | KDO16: =1.05*KDO6^1.4*((2*$N$5)/($N$5*$G$5))*IF($B$5=100,KDO9,KDO12)+KDO13+KDO14 -> 0 | KDP16: 0 | KDQ16: 0 | KDR16: 0 | KDS16: 0 | KDT16: 0 | KDU16: 0 | KDV16: 0 | KDW16: 0 | KDX16: 0 | KDY16: 0 | KDZ16: 0 | KEA16: 0 | KEB16: 0 | KEC16: 0 | KED16: 0 | KEE16: 0 | KEF16: 0 | KEG16: 0 | KEH16: 0 | KEI16: 0 | KEJ16: 0 | KEK16: 0 | KEL16: 0 | KEM16: 0 | KEN16: 0 | KEO16: 0 | KEP16: 0 | KEQ16: 0 | KER16: 0 | KES16: 0 | KET16: 0 | KEU16: 0 | KEV16: 0 | KEW16: 0 | KEX16: 0 | KEY16: 0 | KEZ16: 0 | KFA16: 0 | KFB16: 0 | KFC16: 0 | KFD16: 0 | KFE16: 0 | KFF16: 0 | KFG16: 0 | KFH16: 0 | KFI16: 0 | KFJ16: 0 | KFK16: 0 | KFL16: 0 | KFM16: 0 | KFN16: 0 | KFO16: 0 | KFP16: 0 | KFQ16: 0 | KFR16: 0 | KFS16: 0 | KFT16: 0 | KFU16: 0 | KFV16: 0 | KFW16: 0 | KFX16: 0 | KFY16: 0 | KFZ16: 0 | KGA16: =1.05*KGA6^1.4*((2*$N$5)/($N$5*$G$5))*IF($B$5=100,KGA9,KGA12)+KGA13+KGA14 -> 0 | KGB16: 0 | KGC16: 0 | KGD16: 0 | KGE16: 0 | KGF16: 0 | KGG16: 0 | KGH16: 0 | KGI16: 0 | KGJ16: 0 | KGK16: 0 | KGL16: 0 | KGM16: 0 | KGN16: 0 | KGO16: 0 | KGP16: 0 | KGQ16: 0 | KGR16: 0 | KGS16: 0 | KGT16: 0 | KGU16: 0 | KGV16: 0 | KGW16: 0 | KGX16: 0 | KGY16: 0 | KGZ16: 0 | KHA16: 0 | KHB16: 0 | KHC16: 0 | KHD16: 0 | KHE16: 0 | KHF16: 0 | KHG16: 0 | KHH16: 0 | KHI16: 0 | KHJ16: 0 | KHK16: 0 | KHL16: 0 | KHM16: 0 | KHN16: 0 | KHO16: 0 | KHP16: 0 | KHQ16: 0 | KHR16: 0 | KHS16: 0 | KHT16: 0 | KHU16: 0 | KHV16: 0 | KHW16: 0 | KHX16: 0 | KHY16: 0 | KHZ16: 0 | KIA16: 0 | KIB16: 0 | KIC16: 0 | KID16: 0 | KIE16: 0 | KIF16: 0 | KIG16: 0 | KIH16: 0 | KII16: 0 | KIJ16: 0 | KIK16: 0 | KIL16: 0 | KIM16: =1.05*KIM6^1.4*((2*$N$5)/($N$5*$G$5))*IF($B$5=100,KIM9,KIM12)+KIM13+KIM14 -> 0 | KIN16: 0 | KIO16: 0 | KIP16: 0 | KIQ16: 0 | KIR16: 0 | KIS16: 0 | KIT16: 0 | KIU16: 0 | KIV16: 0 | KIW16: 0 | KIX16: 0 | KIY16: 0 | KIZ16: 0 | KJA16: 0 | KJB16: 0 | KJC16: 0 | KJD16: 0 | KJE16: 0 | KJF16: 0 | KJG16: 0 | KJH16: 0 | KJI16: 0 | KJJ16: 0 | KJK16: 0 | KJL16: 0 | KJM16: 0 | KJN16: 0 | KJO16: 0 | KJP16: 0 | KJQ16: 0 | KJR16: 0 | KJS16: 0 | KJT16: 0 | KJU16: 0 | KJV16: 0 | KJW16: 0 | KJX16: 0 | KJY16: 0 | KJZ16: 0 | KKA16: 0 | KKB16: 0 | KKC16: 0 | KKD16: 0 | KKE16: 0 | KKF16: 0 | KKG16: 0 | KKH16: 0 | KKI16: 0 | KKJ16: 0 | KKK16: 0 | KKL16: 0 | KKM16: 0 | KKN16: 0 | KKO16: 0 | KKP16: 0 | KKQ16: 0 | KKR16: 0 | KKS16: 0 | KKT16: 0 | KKU16: 0 | KKV16: 0 | KKW16: 0 | KKX16: 0 | KKY16: =1.05*KKY6^1.4*((2*$N$5)/($N$5*$G$5))*IF($B$5=100,KKY9,KKY12)+KKY13+KKY14 -> 0 | KKZ16: 0 | KLA16: 0 | KLB16: 0 | KLC16: 0 | KLD16: 0 | KLE16: 0 | KLF16: 0 | KLG16: 0 | KLH16: 0 | KLI16: 0 | KLJ16: 0 | KLK16: 0 | KLL16: 0 | KLM16: 0 | KLN16: 0 | KLO16: 0 | KLP16: 0 | KLQ16: 0 | KLR16: 0 | KLS16: 0 | KLT16: 0 | KLU16: 0 | KLV16: 0 | KLW16: 0 | KLX16: 0 | KLY16: 0 | KLZ16: 0 | KMA16: 0 | KMB16: 0 | KMC16: 0 | KMD16: 0 | KME16: 0 | KMF16: 0 | KMG16: 0 | KMH16: 0 | KMI16: 0 | KMJ16: 0 | KMK16: 0 | KML16: 0 | KMM16: 0 | KMN16: 0 | KMO16: 0 | KMP16: 0 | KMQ16: 0 | KMR16: 0 | KMS16: 0 | KMT16: 0 | KMU16: 0 | KMV16: 0 | KMW16: 0 | KMX16: 0 | KMY16: 0 | KMZ16: 0 | KNA16: 0 | KNB16: 0 | KNC16: 0 | KND16: 0 | KNE16: 0 | KNF16: 0 | KNG16: 0 | KNH16: 0 | KNI16: 0 | KNJ16: 0 | KNK16: =1.05*KNK6^1.4*((2*$N$5)/($N$5*$G$5))*IF($B$5=100,KNK9,KNK12)+KNK13+KNK14 -> 0 | KNL16: 0 | KNM16: 0 | KNN16: 0 | KNO16: 0 | KNP16: 0 | KNQ16: 0 | KNR16: 0 | KNS16: 0 | KNT16: 0 | KNU16: 0 | KNV16: 0 | KNW16: 0 | KNX16: 0 | KNY16: 0 | KNZ16: 0 | KOA16: 0 | KOB16: 0 | KOC16: 0 | KOD16: 0 | KOE16: 0 | KOF16: 0 | KOG16: 0 | KOH16: 0 | KOI16: 0 | KOJ16: 0 | KOK16: 0 | KOL16: 0 | KOM16: 0 | KON16: 0 | KOO16: 0 | KOP16: 0 | KOQ16: 0 | KOR16: 0 | KOS16: 0 | KOT16: 0 | KOU16: 0 | KOV16: 0 | KOW16: 0 | KOX16: 0 | KOY16: 0 | KOZ16: 0 | KPA16: 0 | KPB16: 0 | KPC16: 0 | KPD16: 0 | KPE16: 0 | KPF16: 0 | KPG16: 0 | KPH16: 0 | KPI16: 0 | KPJ16: 0 | KPK16: 0 | KPL16: 0 | KPM16: 0 | KPN16: 0 | KPO16: 0 | KPP16: 0 | KPQ16: 0 | KPR16: 0 | KPS16: 0 | KPT16: 0 | KPU16: 0 | KPV16: 0 | KPW16: =1.05*KPW6^1.4*((2*$N$5)/($N$5*$G$5))*IF($B$5=100,KPW9,KPW12)+KPW13+KPW14 -> 0 | KPX16: 0 | KPY16: 0 | KPZ16: 0 | KQA16: 0 | KQB16: 0 | KQC16: 0 | KQD16: 0 | KQE16: 0 | KQF16: 0 | KQG16: 0 | KQH16: 0 | KQI16: 0 | KQJ16: 0 | KQK16: 0 | KQL16: 0 | KQM16: 0 | KQN16: 0 | KQO16: 0 | KQP16: 0 | KQQ16: 0 | KQR16: 0 | KQS16: 0 | KQT16: 0 | KQU16: 0 | KQV16: 0 | KQW16: 0 | KQX16: 0 | KQY16: 0 | KQZ16: 0 | KRA16: 0 | KRB16: 0 | KRC16: 0 | KRD16: 0 | KRE16: 0 | KRF16: 0 | KRG16: 0 | KRH16: 0 | KRI16: 0 | KRJ16: 0 | KRK16: 0 | KRL16: 0 | KRM16: 0 | KRN16: 0 | KRO16: 0 | KRP16: 0 | KRQ16: 0 | KRR16: 0 | KRS16: 0 | KRT16: 0 | KRU16: 0 | KRV16: 0 | KRW16: 0 | KRX16: 0 | KRY16: 0 | KRZ16: 0 | KSA16: 0 | KSB16: 0 | KSC16: 0 | KSD16: 0 | KSE16: 0 | KSF16: 0 | KSG16: 0 | KSH16: 0 | KSI16: =1.05*KSI6^1.4*((2*$N$5)/($N$5*$G$5))*IF($B$5=100,KSI9,KSI12)+KSI13+KSI14 -> 0 | KSJ16: 0 | KSK16: 0 | KSL16: 0 | KSM16: 0 | KSN16: 0 | KSO16: 0 | KSP16: 0 | KSQ16: 0 | KSR16: 0 | KSS16: 0 | KST16: 0 | KSU16: 0 | KSV16: 0 | KSW16: 0 | KSX16: 0 | KSY16: 0 | KSZ16: 0 | KTA16: 0 | KTB16: 0 | KTC16: 0 | KTD16: 0 | KTE16: 0 | KTF16: 0 | KTG16: 0 | KTH16: 0 | KTI16: 0 | KTJ16: 0 | KTK16: 0 | KTL16: 0 | KTM16: 0 | KTN16: 0 | KTO16: 0 | KTP16: 0 | KTQ16: 0 | KTR16: 0 | KTS16: 0 | KTT16: 0 | KTU16: 0 | KTV16: 0 | KTW16: 0 | KTX16: 0 | KTY16: 0 | KTZ16: 0 | KUA16: 0 | KUB16: 0 | KUC16: 0 | KUD16: 0 | KUE16: 0 | KUF16: 0 | KUG16: 0 | KUH16: 0 | KUI16: 0 | KUJ16: 0 | KUK16: 0 | KUL16: 0 | KUM16: 0 | KUN16: 0 | KUO16: 0 | KUP16: 0 | KUQ16: 0 | KUR16: 0 | KUS16: 0 | KUT16: 0 | KUU16: =1.05*KUU6^1.4*((2*$N$5)/($N$5*$G$5))*IF($B$5=100,KUU9,KUU12)+KUU13+KUU14 -> 0 | KUV16: 0 | KUW16: 0 | KUX16: 0 | KUY16: 0 | KUZ16: 0 | KVA16: 0 | KVB16: 0 | KVC16: 0 | KVD16: 0 | KVE16: 0 | KVF16: 0 | KVG16: 0 | KVH16: 0 | KVI16: 0 | KVJ16: 0 | KVK16: 0 | KVL16: 0 | KVM16: 0 | KVN16: 0 | KVO16: 0 | KVP16: 0 | KVQ16: 0 | KVR16: 0 | KVS16: 0 | KVT16: 0 | KVU16: 0 | KVV16: 0 | KVW16: 0 | KVX16: 0 | KVY16: 0 | KVZ16: 0 | KWA16: 0 | KWB16: 0 | KWC16: 0 | KWD16: 0 | KWE16: 0 | KWF16: 0 | KWG16: 0 | KWH16: 0 | KWI16: 0 | KWJ16: 0 | KWK16: 0 | KWL16: 0 | KWM16: 0 | KWN16: 0 | KWO16: 0 | KWP16: 0 | KWQ16: 0 | KWR16: 0 | KWS16: 0 | KWT16: 0 | KWU16: 0 | KWV16: 0 | KWW16: 0 | KWX16: 0 | KWY16: 0 | KWZ16: 0 | KXA16: 0 | KXB16: 0 | KXC16: 0 | KXD16: 0 | KXE16: 0 | KXF16: 0 | KXG16: =1.05*KXG6^1.4*((2*$N$5)/($N$5*$G$5))*IF($B$5=100,KXG9,KXG12)+KXG13+KXG14 -> 0 | KXH16: 0 | KXI16: 0 | KXJ16: 0 | KXK16: 0 | KXL16: 0 | KXM16: 0 | KXN16: 0 | KXO16: 0 | KXP16: 0 | KXQ16: 0 | KXR16: 0 | KXS16: 0 | KXT16: 0 | KXU16: 0 | KXV16: 0 | KXW16: 0 | KXX16: 0 | KXY16: 0 | KXZ16: 0 | KYA16: 0 | KYB16: 0 | KYC16: 0 | KYD16: 0 | KYE16: 0 | KYF16: 0 | KYG16: 0 | KYH16: 0 | KYI16: 0 | KYJ16: 0 | KYK16: 0 | KYL16: 0 | KYM16: 0 | KYN16: 0 | KYO16: 0 | KYP16: 0 | KYQ16: 0 | KYR16: 0 | KYS16: 0 | KYT16: 0 | KYU16: 0 | KYV16: 0 | KYW16: 0 | KYX16: 0 | KYY16: 0 | KYZ16: 0 | KZA16: 0 | KZB16: 0 | KZC16: 0 | KZD16: 0 | KZE16: 0 | KZF16: 0 | KZG16: 0 | KZH16: 0 | KZI16: 0 | KZJ16: 0 | KZK16: 0 | KZL16: 0 | KZM16: 0 | KZN16: 0 | KZO16: 0 | KZP16: 0 | KZQ16: 0 | KZR16: 0 | KZS16: =1.05*KZS6^1.4*((2*$N$5)/($N$5*$G$5))*IF($B$5=100,KZS9,KZS12)+KZS13+KZS14 -> 0 | KZT16: 0 | KZU16: 0 | KZV16: 0 | KZW16: 0 | KZX16: 0 | KZY16: 0 | KZZ16: 0 | LAA16: 0 | LAB16: 0 | LAC16: 0 | LAD16: 0 | LAE16: 0 | LAF16: 0 | LAG16: 0 | LAH16: 0 | LAI16: 0 | LAJ16: 0 | LAK16: 0 | LAL16: 0 | LAM16: 0 | LAN16: 0 | LAO16: 0 | LAP16: 0 | LAQ16: 0 | LAR16: 0 | LAS16: 0 | LAT16: 0 | LAU16: 0 | LAV16: 0 | LAW16: 0 | LAX16: 0 | LAY16: 0 | LAZ16: 0 | LBA16: 0 | LBB16: 0 | LBC16: 0 | LBD16: 0 | LBE16: 0 | LBF16: 0 | LBG16: 0 | LBH16: 0 | LBI16: 0 | LBJ16: 0 | LBK16: 0 | LBL16: 0 | LBM16: 0 | LBN16: 0 | LBO16: 0 | LBP16: 0 | LBQ16: 0 | LBR16: 0 | LBS16: 0 | LBT16: 0 | LBU16: 0 | LBV16: 0 | LBW16: 0 | LBX16: 0 | LBY16: 0 | LBZ16: 0 | LCA16: 0 | LCB16: 0 | LCC16: 0 | LCD16: 0 | LCE16: =1.05*LCE6^1.4*((2*$N$5)/($N$5*$G$5))*IF($B$5=100,LCE9,LCE12)+LCE13+LCE14 -> 0 | LCF16: 0 | LCG16: 0 | LCH16: 0 | LCI16: 0 | LCJ16: 0 | LCK16: 0 | LCL16: 0 | LCM16: 0 | LCN16: 0 | LCO16: 0 | LCP16: 0 | LCQ16: 0 | LCR16: 0 | LCS16: 0 | LCT16: 0 | LCU16: 0 | LCV16: 0 | LCW16: 0 | LCX16: 0 | LCY16: 0 | LCZ16: 0 | LDA16: 0 | LDB16: 0 | LDC16: 0 | LDD16: 0 | LDE16: 0 | LDF16: 0 | LDG16: 0 | LDH16: 0 | LDI16: 0 | LDJ16: 0 | LDK16: 0 | LDL16: 0 | LDM16: 0 | LDN16: 0 | LDO16: 0 | LDP16: 0 | LDQ16: 0 | LDR16: 0 | LDS16: 0 | LDT16: 0 | LDU16: 0 | LDV16: 0 | LDW16: 0 | LDX16: 0 | LDY16: 0 | LDZ16: 0 | LEA16: 0 | LEB16: 0 | LEC16: 0 | LED16: 0 | LEE16: 0 | LEF16: 0 | LEG16: 0 | LEH16: 0 | LEI16: 0 | LEJ16: 0 | LEK16: 0 | LEL16: 0 | LEM16: 0 | LEN16: 0 | LEO16: 0 | LEP16: 0 | LEQ16: =1.05*LEQ6^1.4*((2*$N$5)/($N$5*$G$5))*IF($B$5=100,LEQ9,LEQ12)+LEQ13+LEQ14 -> 0 | LER16: 0 | LES16: 0 | LET16: 0 | LEU16: 0 | LEV16: 0 | LEW16: 0 | LEX16: 0 | LEY16: 0 | LEZ16: 0 | LFA16: 0 | LFB16: 0 | LFC16: 0 | LFD16: 0 | LFE16: 0 | LFF16: 0 | LFG16: 0 | LFH16: 0 | LFI16: 0 | LFJ16: 0 | LFK16: 0 | LFL16: 0 | LFM16: 0 | LFN16: 0 | LFO16: 0 | LFP16: 0 | LFQ16: 0 | LFR16: 0 | LFS16: 0 | LFT16: 0 | LFU16: 0 | LFV16: 0 | LFW16: 0 | LFX16: 0 | LFY16: 0 | LFZ16: 0 | LGA16: 0 | LGB16: 0 | LGC16: 0 | LGD16: 0 | LGE16: 0 | LGF16: 0 | LGG16: 0 | LGH16: 0 | LGI16: 0 | LGJ16: 0 | LGK16: 0 | LGL16: 0 | LGM16: 0 | LGN16: 0 | LGO16: 0 | LGP16: 0 | LGQ16: 0 | LGR16: 0 | LGS16: 0 | LGT16: 0 | LGU16: 0 | LGV16: 0 | LGW16: 0 | LGX16: 0 | LGY16: 0 | LGZ16: 0 | LHA16: 0 | LHB16: 0 | LHC16: =1.05*LHC6^1.4*((2*$N$5)/($N$5*$G$5))*IF($B$5=100,LHC9,LHC12)+LHC13+LHC14 -> 0 | LHD16: 0 | LHE16: 0 | LHF16: 0 | LHG16: 0 | LHH16: 0 | LHI16: 0 | LHJ16: 0 | LHK16: 0 | LHL16: 0 | LHM16: 0 | LHN16: 0 | LHO16: 0 | LHP16: 0 | LHQ16: 0 | LHR16: 0 | LHS16: 0 | LHT16: 0 | LHU16: 0 | LHV16: 0 | LHW16: 0 | LHX16: 0 | LHY16: 0 | LHZ16: 0 | LIA16: 0 | LIB16: 0 | LIC16: 0 | LID16: 0 | LIE16: 0 | LIF16: 0 | LIG16: 0 | LIH16: 0 | LII16: 0 | LIJ16: 0 | LIK16: 0 | LIL16: 0 | LIM16: 0 | LIN16: 0 | LIO16: 0 | LIP16: 0 | LIQ16: 0 | LIR16: 0 | LIS16: 0 | LIT16: 0 | LIU16: 0 | LIV16: 0 | LIW16: 0 | LIX16: 0 | LIY16: 0 | LIZ16: 0 | LJA16: 0 | LJB16: 0 | LJC16: 0 | LJD16: 0 | LJE16: 0 | LJF16: 0 | LJG16: 0 | LJH16: 0 | LJI16: 0 | LJJ16: 0 | LJK16: 0 | LJL16: 0 | LJM16: 0 | LJN16: 0 | LJO16: =1.05*LJO6^1.4*((2*$N$5)/($N$5*$G$5))*IF($B$5=100,LJO9,LJO12)+LJO13+LJO14 -> 0 | LJP16: 0 | LJQ16: 0 | LJR16: 0 | LJS16: 0 | LJT16: 0 | LJU16: 0 | LJV16: 0 | LJW16: 0 | LJX16: 0 | LJY16: 0 | LJZ16: 0 | LKA16: 0 | LKB16: 0 | LKC16: 0 | LKD16: 0 | LKE16: 0 | LKF16: 0 | LKG16: 0 | LKH16: 0 | LKI16: 0 | LKJ16: 0 | LKK16: 0 | LKL16: 0 | LKM16: 0 | LKN16: 0 | LKO16: 0 | LKP16: 0 | LKQ16: 0 | LKR16: 0 | LKS16: 0 | LKT16: 0 | LKU16: 0 | LKV16: 0 | LKW16: 0 | LKX16: 0 | LKY16: 0 | LKZ16: 0 | LLA16: 0 | LLB16: 0 | LLC16: 0 | LLD16: 0 | LLE16: 0 | LLF16: 0 | LLG16: 0 | LLH16: 0 | LLI16: 0 | LLJ16: 0 | LLK16: 0 | LLL16: 0 | LLM16: 0 | LLN16: 0 | LLO16: 0 | LLP16: 0 | LLQ16: 0 | LLR16: 0 | LLS16: 0 | LLT16: 0 | LLU16: 0 | LLV16: 0 | LLW16: 0 | LLX16: 0 | LLY16: 0 | LLZ16: 0 | LMA16: =1.05*LMA6^1.4*((2*$N$5)/($N$5*$G$5))*IF($B$5=100,LMA9,LMA12)+LMA13+LMA14 -> 0 | LMB16: 0 | LMC16: 0 | LMD16: 0 | LME16: 0 | LMF16: 0 | LMG16: 0 | LMH16: 0 | LMI16: 0 | LMJ16: 0 | LMK16: 0 | LML16: 0 | LMM16: 0 | LMN16: 0 | LMO16: 0 | LMP16: 0 | LMQ16: 0 | LMR16: 0 | LMS16: 0 | LMT16: 0 | LMU16: 0 | LMV16: 0 | LMW16: 0 | LMX16: 0 | LMY16: 0 | LMZ16: 0 | LNA16: 0 | LNB16: 0 | LNC16: 0 | LND16: 0 | LNE16: 0 | LNF16: 0 | LNG16: 0 | LNH16: 0 | LNI16: 0 | LNJ16: 0 | LNK16: 0 | LNL16: 0 | LNM16: 0 | LNN16: 0 | LNO16: 0 | LNP16: 0 | LNQ16: 0 | LNR16: 0 | LNS16: 0 | LNT16: 0 | LNU16: 0 | LNV16: 0 | LNW16: 0 | LNX16: 0 | LNY16: 0 | LNZ16: 0 | LOA16: 0 | LOB16: 0 | LOC16: 0 | LOD16: 0 | LOE16: 0 | LOF16: 0 | LOG16: 0 | LOH16: 0 | LOI16: 0 | LOJ16: 0 | LOK16: 0 | LOL16: 0 | LOM16: =1.05*LOM6^1.4*((2*$N$5)/($N$5*$G$5))*IF($B$5=100,LOM9,LOM12)+LOM13+LOM14 -> 0 | LON16: 0 | LOO16: 0 | LOP16: 0 | LOQ16: 0 | LOR16: 0 | LOS16: 0 | LOT16: 0 | LOU16: 0 | LOV16: 0 | LOW16: 0 | LOX16: 0 | LOY16: 0 | LOZ16: 0 | LPA16: 0 | LPB16: 0 | LPC16: 0 | LPD16: 0 | LPE16: 0 | LPF16: 0 | LPG16: 0 | LPH16: 0 | LPI16: 0 | LPJ16: 0 | LPK16: 0 | LPL16: 0 | LPM16: 0 | LPN16: 0 | LPO16: 0 | LPP16: 0 | LPQ16: 0 | LPR16: 0 | LPS16: 0 | LPT16: 0 | LPU16: 0 | LPV16: 0 | LPW16: 0 | LPX16: 0 | LPY16: 0 | LPZ16: 0 | LQA16: 0 | LQB16: 0 | LQC16: 0 | LQD16: 0 | LQE16: 0 | LQF16: 0 | LQG16: 0 | LQH16: 0 | LQI16: 0 | LQJ16: 0 | LQK16: 0 | LQL16: 0 | LQM16: 0 | LQN16: 0 | LQO16: 0 | LQP16: 0 | LQQ16: 0 | LQR16: 0 | LQS16: 0 | LQT16: 0 | LQU16: 0 | LQV16: 0 | LQW16: 0 | LQX16: 0 | LQY16: =1.05*LQY6^1.4*((2*$N$5)/($N$5*$G$5))*IF($B$5=100,LQY9,LQY12)+LQY13+LQY14 -> 0 | LQZ16: 0 | LRA16: 0 | LRB16: 0 | LRC16: 0 | LRD16: 0 | LRE16: 0 | LRF16: 0 | LRG16: 0 | LRH16: 0 | LRI16: 0 | LRJ16: 0 | LRK16: 0 | LRL16: 0 | LRM16: 0 | LRN16: 0 | LRO16: 0 | LRP16: 0 | LRQ16: 0 | LRR16: 0 | LRS16: 0 | LRT16: 0 | LRU16: 0 | LRV16: 0 | LRW16: 0 | LRX16: 0 | LRY16: 0 | LRZ16: 0 | LSA16: 0 | LSB16: 0 | LSC16: 0 | LSD16: 0 | LSE16: 0 | LSF16: 0 | LSG16: 0 | LSH16: 0 | LSI16: 0 | LSJ16: 0 | LSK16: 0 | LSL16: 0 | LSM16: 0 | LSN16: 0 | LSO16: 0 | LSP16: 0 | LSQ16: 0 | LSR16: 0 | LSS16: 0 | LST16: 0 | LSU16: 0 | LSV16: 0 | LSW16: 0 | LSX16: 0 | LSY16: 0 | LSZ16: 0 | LTA16: 0 | LTB16: 0 | LTC16: 0 | LTD16: 0 | LTE16: 0 | LTF16: 0 | LTG16: 0 | LTH16: 0 | LTI16: 0 | LTJ16: 0 | LTK16: =1.05*LTK6^1.4*((2*$N$5)/($N$5*$G$5))*IF($B$5=100,LTK9,LTK12)+LTK13+LTK14 -> 0 | LTL16: 0 | LTM16: 0 | LTN16: 0 | LTO16: 0 | LTP16: 0 | LTQ16: 0 | LTR16: 0 | LTS16: 0 | LTT16: 0 | LTU16: 0 | LTV16: 0 | LTW16: 0 | LTX16: 0 | LTY16: 0 | LTZ16: 0 | LUA16: 0 | LUB16: 0 | LUC16: 0 | LUD16: 0 | LUE16: 0 | LUF16: 0 | LUG16: 0 | LUH16: 0 | LUI16: 0 | LUJ16: 0 | LUK16: 0 | LUL16: 0 | LUM16: 0 | LUN16: 0 | LUO16: 0 | LUP16: 0 | LUQ16: 0 | LUR16: 0 | LUS16: 0 | LUT16: 0 | LUU16: 0 | LUV16: 0 | LUW16: 0 | LUX16: 0 | LUY16: 0 | LUZ16: 0 | LVA16: 0 | LVB16: 0 | LVC16: 0 | LVD16: 0 | LVE16: 0 | LVF16: 0 | LVG16: 0 | LVH16: 0 | LVI16: 0 | LVJ16: 0 | LVK16: 0 | LVL16: 0 | LVM16: 0 | LVN16: 0 | LVO16: 0 | LVP16: 0 | LVQ16: 0 | LVR16: 0 | LVS16: 0 | LVT16: 0 | LVU16: 0 | LVV16: 0 | LVW16: =1.05*LVW6^1.4*((2*$N$5)/($N$5*$G$5))*IF($B$5=100,LVW9,LVW12)+LVW13+LVW14 -> 0 | LVX16: 0 | LVY16: 0 | LVZ16: 0 | LWA16: 0 | LWB16: 0 | LWC16: 0 | LWD16: 0 | LWE16: 0 | LWF16: 0 | LWG16: 0 | LWH16: 0 | LWI16: 0 | LWJ16: 0 | LWK16: 0 | LWL16: 0 | LWM16: 0 | LWN16: 0 | LWO16: 0 | LWP16: 0 | LWQ16: 0 | LWR16: 0 | LWS16: 0 | LWT16: 0 | LWU16: 0 | LWV16: 0 | LWW16: 0 | LWX16: 0 | LWY16: 0 | LWZ16: 0 | LXA16: 0 | LXB16: 0 | LXC16: 0 | LXD16: 0 | LXE16: 0 | LXF16: 0 | LXG16: 0 | LXH16: 0 | LXI16: 0 | LXJ16: 0 | LXK16: 0 | LXL16: 0 | LXM16: 0 | LXN16: 0 | LXO16: 0 | LXP16: 0 | LXQ16: 0 | LXR16: 0 | LXS16: 0 | LXT16: 0 | LXU16: 0 | LXV16: 0 | LXW16: 0 | LXX16: 0 | LXY16: 0 | LXZ16: 0 | LYA16: 0 | LYB16: 0 | LYC16: 0 | LYD16: 0 | LYE16: 0 | LYF16: 0 | LYG16: 0 | LYH16: 0 | LYI16: =1.05*LYI6^1.4*((2*$N$5)/($N$5*$G$5))*IF($B$5=100,LYI9,LYI12)+LYI13+LYI14 -> 0 | LYJ16: 0 | LYK16: 0 | LYL16: 0 | LYM16: 0 | LYN16: 0 | LYO16: 0 | LYP16: 0 | LYQ16: 0 | LYR16: 0 | LYS16: 0 | LYT16: 0 | LYU16: 0 | LYV16: 0 | LYW16: 0 | LYX16: 0 | LYY16: 0 | LYZ16: 0 | LZA16: 0 | LZB16: 0 | LZC16: 0 | LZD16: 0 | LZE16: 0 | LZF16: 0 | LZG16: 0 | LZH16: 0 | LZI16: 0 | LZJ16: 0 | LZK16: 0 | LZL16: 0 | LZM16: 0 | LZN16: 0 | LZO16: 0 | LZP16: 0 | LZQ16: 0 | LZR16: 0 | LZS16: 0 | LZT16: 0 | LZU16: 0 | LZV16: 0 | LZW16: 0 | LZX16: 0 | LZY16: 0 | LZZ16: 0 | MAA16: 0 | MAB16: 0 | MAC16: 0 | MAD16: 0 | MAE16: 0 | MAF16: 0 | MAG16: 0 | MAH16: 0 | MAI16: 0 | MAJ16: 0 | MAK16: 0 | MAL16: 0 | MAM16: 0 | MAN16: 0 | MAO16: 0 | MAP16: 0 | MAQ16: 0 | MAR16: 0 | MAS16: 0 | MAT16: 0 | MAU16: =1.05*MAU6^1.4*((2*$N$5)/($N$5*$G$5))*IF($B$5=100,MAU9,MAU12)+MAU13+MAU14 -> 0 | MAV16: 0 | MAW16: 0 | MAX16: 0 | MAY16: 0 | MAZ16: 0 | MBA16: 0 | MBB16: 0 | MBC16: 0 | MBD16: 0 | MBE16: 0 | MBF16: 0 | MBG16: 0 | MBH16: 0 | MBI16: 0 | MBJ16: 0 | MBK16: 0 | MBL16: 0 | MBM16: 0 | MBN16: 0 | MBO16: 0 | MBP16: 0 | MBQ16: 0 | MBR16: 0 | MBS16: 0 | MBT16: 0 | MBU16: 0 | MBV16: 0 | MBW16: 0 | MBX16: 0 | MBY16: 0 | MBZ16: 0 | MCA16: 0 | MCB16: 0 | MCC16: 0 | MCD16: 0 | MCE16: 0 | MCF16: 0 | MCG16: 0 | MCH16: 0 | MCI16: 0 | MCJ16: 0 | MCK16: 0 | MCL16: 0 | MCM16: 0 | MCN16: 0 | MCO16: 0 | MCP16: 0 | MCQ16: 0 | MCR16: 0 | MCS16: 0 | MCT16: 0 | MCU16: 0 | MCV16: 0 | MCW16: 0 | MCX16: 0 | MCY16: 0 | MCZ16: 0 | MDA16: 0 | MDB16: 0 | MDC16: 0 | MDD16: 0 | MDE16: 0 | MDF16: 0 | MDG16: =1.05*MDG6^1.4*((2*$N$5)/($N$5*$G$5))*IF($B$5=100,MDG9,MDG12)+MDG13+MDG14 -> 0 | MDH16: 0 | MDI16: 0 | MDJ16: 0 | MDK16: 0 | MDL16: 0 | MDM16: 0 | MDN16: 0 | MDO16: 0 | MDP16: 0 | MDQ16: 0 | MDR16: 0 | MDS16: 0 | MDT16: 0 | MDU16: 0 | MDV16: 0 | MDW16: 0 | MDX16: 0 | MDY16: 0 | MDZ16: 0 | MEA16: 0 | MEB16: 0 | MEC16: 0 | MED16: 0 | MEE16: 0 | MEF16: 0 | MEG16: 0 | MEH16: 0 | MEI16: 0 | MEJ16: 0 | MEK16: 0 | MEL16: 0 | MEM16: 0 | MEN16: 0 | MEO16: 0 | MEP16: 0 | MEQ16: 0 | MER16: 0 | MES16: 0 | MET16: 0 | MEU16: 0 | MEV16: 0 | MEW16: 0 | MEX16: 0 | MEY16: 0 | MEZ16: 0 | MFA16: 0 | MFB16: 0 | MFC16: 0 | MFD16: 0 | MFE16: 0 | MFF16: 0 | MFG16: 0 | MFH16: 0 | MFI16: 0 | MFJ16: 0 | MFK16: 0 | MFL16: 0 | MFM16: 0 | MFN16: 0 | MFO16: 0 | MFP16: 0 | MFQ16: 0 | MFR16: 0 | MFS16: =1.05*MFS6^1.4*((2*$N$5)/($N$5*$G$5))*IF($B$5=100,MFS9,MFS12)+MFS13+MFS14 -> 0 | MFT16: 0 | MFU16: 0 | MFV16: 0 | MFW16: 0 | MFX16: 0 | MFY16: 0 | MFZ16: 0 | MGA16: 0 | MGB16: 0 | MGC16: 0 | MGD16: 0 | MGE16: 0 | MGF16: 0 | MGG16: 0 | MGH16: 0 | MGI16: 0 | MGJ16: 0 | MGK16: 0 | MGL16: 0 | MGM16: 0 | MGN16: 0 | MGO16: 0 | MGP16: 0 | MGQ16: 0 | MGR16: 0 | MGS16: 0 | MGT16: 0 | MGU16: 0 | MGV16: 0 | MGW16: 0 | MGX16: 0 | MGY16: 0 | MGZ16: 0 | MHA16: 0 | MHB16: 0 | MHC16: 0 | MHD16: 0 | MHE16: 0 | MHF16: 0 | MHG16: 0 | MHH16: 0 | MHI16: 0 | MHJ16: 0 | MHK16: 0 | MHL16: 0 | MHM16: 0 | MHN16: 0 | MHO16: 0 | MHP16: 0 | MHQ16: 0 | MHR16: 0 | MHS16: 0 | MHT16: 0 | MHU16: 0 | MHV16: 0 | MHW16: 0 | MHX16: 0 | MHY16: 0 | MHZ16: 0 | MIA16: 0 | MIB16: 0 | MIC16: 0 | MID16: 0 | MIE16: =1.05*MIE6^1.4*((2*$N$5)/($N$5*$G$5))*IF($B$5=100,MIE9,MIE12)+MIE13+MIE14 -> 0 | MIF16: 0 | MIG16: 0 | MIH16: 0 | MII16: 0 | MIJ16: 0 | MIK16: 0 | MIL16: 0 | MIM16: 0 | MIN16: 0 | MIO16: 0 | MIP16: 0 | MIQ16: 0 | MIR16: 0 | MIS16: 0 | MIT16: 0 | MIU16: 0 | MIV16: 0 | MIW16: 0 | MIX16: 0 | MIY16: 0 | MIZ16: 0 | MJA16: 0 | MJB16: 0 | MJC16: 0 | MJD16: 0 | MJE16: 0 | MJF16: 0 | MJG16: 0 | MJH16: 0 | MJI16: 0 | MJJ16: 0 | MJK16: 0 | MJL16: 0 | MJM16: 0 | MJN16: 0 | MJO16: 0 | MJP16: 0 | MJQ16: 0 | MJR16: 0 | MJS16: 0 | MJT16: 0 | MJU16: 0 | MJV16: 0 | MJW16: 0 | MJX16: 0 | MJY16: 0 | MJZ16: 0 | MKA16: 0 | MKB16: 0 | MKC16: 0 | MKD16: 0 | MKE16: 0 | MKF16: 0 | MKG16: 0 | MKH16: 0 | MKI16: 0 | MKJ16: 0 | MKK16: 0 | MKL16: 0 | MKM16: 0 | MKN16: 0 | MKO16: 0 | MKP16: 0 | MKQ16: =1.05*MKQ6^1.4*((2*$N$5)/($N$5*$G$5))*IF($B$5=100,MKQ9,MKQ12)+MKQ13+MKQ14 -> 0 | MKR16: 0 | MKS16: 0 | MKT16: 0 | MKU16: 0 | MKV16: 0 | MKW16: 0 | MKX16: 0 | MKY16: 0 | MKZ16: 0 | MLA16: 0 | MLB16: 0 | MLC16: 0 | MLD16: 0 | MLE16: 0 | MLF16: 0 | MLG16: 0 | MLH16: 0 | MLI16: 0 | MLJ16: 0 | MLK16: 0 | MLL16: 0 | MLM16: 0 | MLN16: 0 | MLO16: 0 | MLP16: 0 | MLQ16: 0 | MLR16: 0 | MLS16: 0 | MLT16: 0 | MLU16: 0 | MLV16: 0 | MLW16: 0 | MLX16: 0 | MLY16: 0 | MLZ16: 0 | MMA16: 0 | MMB16: 0 | MMC16: 0 | MMD16: 0 | MME16: 0 | MMF16: 0 | MMG16: 0 | MMH16: 0 | MMI16: 0 | MMJ16: 0 | MMK16: 0 | MML16: 0 | MMM16: 0 | MMN16: 0 | MMO16: 0 | MMP16: 0 | MMQ16: 0 | MMR16: 0 | MMS16: 0 | MMT16: 0 | MMU16: 0 | MMV16: 0 | MMW16: 0 | MMX16: 0 | MMY16: 0 | MMZ16: 0 | MNA16: 0 | MNB16: 0 | MNC16: =1.05*MNC6^1.4*((2*$N$5)/($N$5*$G$5))*IF($B$5=100,MNC9,MNC12)+MNC13+MNC14 -> 0 | MND16: 0 | MNE16: 0 | MNF16: 0 | MNG16: 0 | MNH16: 0 | MNI16: 0 | MNJ16: 0 | MNK16: 0 | MNL16: 0 | MNM16: 0 | MNN16: 0 | MNO16: 0 | MNP16: 0 | MNQ16: 0 | MNR16: 0 | MNS16: 0 | MNT16: 0 | MNU16: 0 | MNV16: 0 | MNW16: 0 | MNX16: 0 | MNY16: 0 | MNZ16: 0 | MOA16: 0 | MOB16: 0 | MOC16: 0 | MOD16: 0 | MOE16: 0 | MOF16: 0 | MOG16: 0 | MOH16: 0 | MOI16: 0 | MOJ16: 0 | MOK16: 0 | MOL16: 0 | MOM16: 0 | MON16: 0 | MOO16: 0 | MOP16: 0 | MOQ16: 0 | MOR16: 0 | MOS16: 0 | MOT16: 0 | MOU16: 0 | MOV16: 0 | MOW16: 0 | MOX16: 0 | MOY16: 0 | MOZ16: 0 | MPA16: 0 | MPB16: 0 | MPC16: 0 | MPD16: 0 | MPE16: 0 | MPF16: 0 | MPG16: 0 | MPH16: 0 | MPI16: 0 | MPJ16: 0 | MPK16: 0 | MPL16: 0 | MPM16: 0 | MPN16: 0 | MPO16: =1.05*MPO6^1.4*((2*$N$5)/($N$5*$G$5))*IF($B$5=100,MPO9,MPO12)+MPO13+MPO14 -> 0 | MPP16: 0 | MPQ16: 0 | MPR16: 0 | MPS16: 0 | MPT16: 0 | MPU16: 0 | MPV16: 0 | MPW16: 0 | MPX16: 0 | MPY16: 0 | MPZ16: 0 | MQA16: 0 | MQB16: 0 | MQC16: 0 | MQD16: 0 | MQE16: 0 | MQF16: 0 | MQG16: 0 | MQH16: 0 | MQI16: 0 | MQJ16: 0 | MQK16: 0 | MQL16: 0 | MQM16: 0 | MQN16: 0 | MQO16: 0 | MQP16: 0 | MQQ16: 0 | MQR16: 0 | MQS16: 0 | MQT16: 0 | MQU16: 0 | MQV16: 0 | MQW16: 0 | MQX16: 0 | MQY16: 0 | MQZ16: 0 | MRA16: 0 | MRB16: 0 | MRC16: 0 | MRD16: 0 | MRE16: 0 | MRF16: 0 | MRG16: 0 | MRH16: 0 | MRI16: 0 | MRJ16: 0 | MRK16: 0 | MRL16: 0 | MRM16: 0 | MRN16: 0 | MRO16: 0 | MRP16: 0 | MRQ16: 0 | MRR16: 0 | MRS16: 0 | MRT16: 0 | MRU16: 0 | MRV16: 0 | MRW16: 0 | MRX16: 0 | MRY16: 0 | MRZ16: 0 | MSA16: =1.05*MSA6^1.4*((2*$N$5)/($N$5*$G$5))*IF($B$5=100,MSA9,MSA12)+MSA13+MSA14 -> 0 | MSB16: 0 | MSC16: 0 | MSD16: 0 | MSE16: 0 | MSF16: 0 | MSG16: 0 | MSH16: 0 | MSI16: 0 | MSJ16: 0 | MSK16: 0 | MSL16: 0 | MSM16: 0 | MSN16: 0 | MSO16: 0 | MSP16: 0 | MSQ16: 0 | MSR16: 0 | MSS16: 0 | MST16: 0 | MSU16: 0 | MSV16: 0 | MSW16: 0 | MSX16: 0 | MSY16: 0 | MSZ16: 0 | MTA16: 0 | MTB16: 0 | MTC16: 0 | MTD16: 0 | MTE16: 0 | MTF16: 0 | MTG16: 0 | MTH16: 0 | MTI16: 0 | MTJ16: 0 | MTK16: 0 | MTL16: 0 | MTM16: 0 | MTN16: 0 | MTO16: 0 | MTP16: 0 | MTQ16: 0 | MTR16: 0 | MTS16: 0 | MTT16: 0 | MTU16: 0 | MTV16: 0 | MTW16: 0 | MTX16: 0 | MTY16: 0 | MTZ16: 0 | MUA16: 0 | MUB16: 0 | MUC16: 0 | MUD16: 0 | MUE16: 0 | MUF16: 0 | MUG16: 0 | MUH16: 0 | MUI16: 0 | MUJ16: 0 | MUK16: 0 | MUL16: 0 | MUM16: =1.05*MUM6^1.4*((2*$N$5)/($N$5*$G$5))*IF($B$5=100,MUM9,MUM12)+MUM13+MUM14 -> 0 | MUN16: 0 | MUO16: 0 | MUP16: 0 | MUQ16: 0 | MUR16: 0 | MUS16: 0 | MUT16: 0 | MUU16: 0 | MUV16: 0 | MUW16: 0 | MUX16: 0 | MUY16: 0 | MUZ16: 0 | MVA16: 0 | MVB16: 0 | MVC16: 0 | MVD16: 0 | MVE16: 0 | MVF16: 0 | MVG16: 0 | MVH16: 0 | MVI16: 0 | MVJ16: 0 | MVK16: 0 | MVL16: 0 | MVM16: 0 | MVN16: 0 | MVO16: 0 | MVP16: 0 | MVQ16: 0 | MVR16: 0 | MVS16: 0 | MVT16: 0 | MVU16: 0 | MVV16: 0 | MVW16: 0 | MVX16: 0 | MVY16: 0 | MVZ16: 0 | MWA16: 0 | MWB16: 0 | MWC16: 0 | MWD16: 0 | MWE16: 0 | MWF16: 0 | MWG16: 0 | MWH16: 0 | MWI16: 0 | MWJ16: 0 | MWK16: 0 | MWL16: 0 | MWM16: 0 | MWN16: 0 | MWO16: 0 | MWP16: 0 | MWQ16: 0 | MWR16: 0 | MWS16: 0 | MWT16: 0 | MWU16: 0 | MWV16: 0 | MWW16: 0 | MWX16: 0 | MWY16: =1.05*MWY6^1.4*((2*$N$5)/($N$5*$G$5))*IF($B$5=100,MWY9,MWY12)+MWY13+MWY14 -> 0 | MWZ16: 0 | MXA16: 0 | MXB16: 0 | MXC16: 0 | MXD16: 0 | MXE16: 0 | MXF16: 0 | MXG16: 0 | MXH16: 0 | MXI16: 0 | MXJ16: 0 | MXK16: 0 | MXL16: 0 | MXM16: 0 | MXN16: 0 | MXO16: 0 | MXP16: 0 | MXQ16: 0 | MXR16: 0 | MXS16: 0 | MXT16: 0 | MXU16: 0 | MXV16: 0 | MXW16: 0 | MXX16: 0 | MXY16: 0 | MXZ16: 0 | MYA16: 0 | MYB16: 0 | MYC16: 0 | MYD16: 0 | MYE16: 0 | MYF16: 0 | MYG16: 0 | MYH16: 0 | MYI16: 0 | MYJ16: 0 | MYK16: 0 | MYL16: 0 | MYM16: 0 | MYN16: 0 | MYO16: 0 | MYP16: 0 | MYQ16: 0 | MYR16: 0 | MYS16: 0 | MYT16: 0 | MYU16: 0 | MYV16: 0 | MYW16: 0 | MYX16: 0 | MYY16: 0 | MYZ16: 0 | MZA16: 0 | MZB16: 0 | MZC16: 0 | MZD16: 0 | MZE16: 0 | MZF16: 0 | MZG16: 0 | MZH16: 0 | MZI16: 0 | MZJ16: 0 | MZK16: =1.05*MZK6^1.4*((2*$N$5)/($N$5*$G$5))*IF($B$5=100,MZK9,MZK12)+MZK13+MZK14 -> 0 | MZL16: 0 | MZM16: 0 | MZN16: 0 | MZO16: 0 | MZP16: 0 | MZQ16: 0 | MZR16: 0 | MZS16: 0 | MZT16: 0 | MZU16: 0 | MZV16: 0 | MZW16: 0 | MZX16: 0 | MZY16: 0 | MZZ16: 0 | NAA16: 0 | NAB16: 0 | NAC16: 0 | NAD16: 0 | NAE16: 0 | NAF16: 0 | NAG16: 0 | NAH16: 0 | NAI16: 0 | NAJ16: 0 | NAK16: 0 | NAL16: 0 | NAM16: 0 | NAN16: 0 | NAO16: 0 | NAP16: 0 | NAQ16: 0 | NAR16: 0 | NAS16: 0 | NAT16: 0 | NAU16: 0 | NAV16: 0 | NAW16: 0 | NAX16: 0 | NAY16: 0 | NAZ16: 0 | NBA16: 0 | NBB16: 0 | NBC16: 0 | NBD16: 0 | NBE16: 0 | NBF16: 0 | NBG16: 0 | NBH16: 0 | NBI16: 0 | NBJ16: 0 | NBK16: 0 | NBL16: 0 | NBM16: 0 | NBN16: 0 | NBO16: 0 | NBP16: 0 | NBQ16: 0 | NBR16: 0 | NBS16: 0 | NBT16: 0 | NBU16: 0 | NBV16: 0 | NBW16: =1.05*NBW6^1.4*((2*$N$5)/($N$5*$G$5))*IF($B$5=100,NBW9,NBW12)+NBW13+NBW14 -> 0 | NBX16: 0 | NBY16: 0 | NBZ16: 0 | NCA16: 0 | NCB16: 0 | NCC16: 0 | NCD16: 0 | NCE16: 0 | NCF16: 0 | NCG16: 0 | NCH16: 0 | NCI16: 0 | NCJ16: 0 | NCK16: 0 | NCL16: 0 | NCM16: 0 | NCN16: 0 | NCO16: 0 | NCP16: 0 | NCQ16: 0 | NCR16: 0 | NCS16: 0 | NCT16: 0 | NCU16: 0 | NCV16: 0 | NCW16: 0 | NCX16: 0 | NCY16: 0 | NCZ16: 0 | NDA16: 0 | NDB16: 0 | NDC16: 0 | NDD16: 0 | NDE16: 0 | NDF16: 0 | NDG16: 0 | NDH16: 0 | NDI16: 0 | NDJ16: 0 | NDK16: 0 | NDL16: 0 | NDM16: 0 | NDN16: 0 | NDO16: 0 | NDP16: 0 | NDQ16: 0 | NDR16: 0 | NDS16: 0 | NDT16: 0 | NDU16: 0 | NDV16: 0 | NDW16: 0 | NDX16: 0 | NDY16: 0 | NDZ16: 0 | NEA16: 0 | NEB16: 0 | NEC16: 0 | NED16: 0 | NEE16: 0 | NEF16: 0 | NEG16: 0 | NEH16: 0 | NEI16: =1.05*NEI6^1.4*((2*$N$5)/($N$5*$G$5))*IF($B$5=100,NEI9,NEI12)+NEI13+NEI14 -> 0 | NEJ16: 0 | NEK16: 0 | NEL16: 0 | NEM16: 0 | NEN16: 0 | NEO16: 0 | NEP16: 0 | NEQ16: 0 | NER16: 0 | NES16: 0 | NET16: 0 | NEU16: 0 | NEV16: 0 | NEW16: 0 | NEX16: 0 | NEY16: 0 | NEZ16: 0 | NFA16: 0 | NFB16: 0 | NFC16: 0 | NFD16: 0 | NFE16: 0 | NFF16: 0 | NFG16: 0 | NFH16: 0 | NFI16: 0 | NFJ16: 0 | NFK16: 0 | NFL16: 0 | NFM16: 0 | NFN16: 0 | NFO16: 0 | NFP16: 0 | NFQ16: 0 | NFR16: 0 | NFS16: 0 | NFT16: 0 | NFU16: 0 | NFV16: 0 | NFW16: 0 | NFX16: 0 | NFY16: 0 | NFZ16: 0 | NGA16: 0 | NGB16: 0 | NGC16: 0 | NGD16: 0 | NGE16: 0 | NGF16: 0 | NGG16: 0 | NGH16: 0 | NGI16: 0 | NGJ16: 0 | NGK16: 0 | NGL16: 0 | NGM16: 0 | NGN16: 0 | NGO16: 0 | NGP16: 0 | NGQ16: 0 | NGR16: 0 | NGS16: 0 | NGT16: 0 | NGU16: =1.05*NGU6^1.4*((2*$N$5)/($N$5*$G$5))*IF($B$5=100,NGU9,NGU12)+NGU13+NGU14 -> 0 | NGV16: 0 | NGW16: 0 | NGX16: 0 | NGY16: 0 | NGZ16: 0 | NHA16: 0 | NHB16: 0 | NHC16: 0 | NHD16: 0 | NHE16: 0 | NHF16: 0 | NHG16: 0 | NHH16: 0 | NHI16: 0 | NHJ16: 0 | NHK16: 0 | NHL16: 0 | NHM16: 0 | NHN16: 0 | NHO16: 0 | NHP16: 0 | NHQ16: 0 | NHR16: 0 | NHS16: 0 | NHT16: 0 | NHU16: 0 | NHV16: 0 | NHW16: 0 | NHX16: 0 | NHY16: 0 | NHZ16: 0 | NIA16: 0 | NIB16: 0 | NIC16: 0 | NID16: 0 | NIE16: 0 | NIF16: 0 | NIG16: 0 | NIH16: 0 | NII16: 0 | NIJ16: 0 | NIK16: 0 | NIL16: 0 | NIM16: 0 | NIN16: 0 | NIO16: 0 | NIP16: 0 | NIQ16: 0 | NIR16: 0 | NIS16: 0 | NIT16: 0 | NIU16: 0 | NIV16: 0 | NIW16: 0 | NIX16: 0 | NIY16: 0 | NIZ16: 0 | NJA16: 0 | NJB16: 0 | NJC16: 0 | NJD16: 0 | NJE16: 0 | NJF16: 0 | NJG16: =1.05*NJG6^1.4*((2*$N$5)/($N$5*$G$5))*IF($B$5=100,NJG9,NJG12)+NJG13+NJG14 -> 0 | NJH16: 0 | NJI16: 0 | NJJ16: 0 | NJK16: 0 | NJL16: 0 | NJM16: 0 | NJN16: 0 | NJO16: 0 | NJP16: 0 | NJQ16: 0 | NJR16: 0 | NJS16: 0 | NJT16: 0 | NJU16: 0 | NJV16: 0 | NJW16: 0 | NJX16: 0 | NJY16: 0 | NJZ16: 0 | NKA16: 0 | NKB16: 0 | NKC16: 0 | NKD16: 0 | NKE16: 0 | NKF16: 0 | NKG16: 0 | NKH16: 0 | NKI16: 0 | NKJ16: 0 | NKK16: 0 | NKL16: 0 | NKM16: 0 | NKN16: 0 | NKO16: 0 | NKP16: 0 | NKQ16: 0 | NKR16: 0 | NKS16: 0 | NKT16: 0 | NKU16: 0 | NKV16: 0 | NKW16: 0 | NKX16: 0 | NKY16: 0 | NKZ16: 0 | NLA16: 0 | NLB16: 0 | NLC16: 0 | NLD16: 0 | NLE16: 0 | NLF16: 0 | NLG16: 0 | NLH16: 0 | NLI16: 0 | NLJ16: 0 | NLK16: 0 | NLL16: 0 | NLM16: 0 | NLN16: 0 | NLO16: 0 | NLP16: 0 | NLQ16: 0 | NLR16: 0 | NLS16: =1.05*NLS6^1.4*((2*$N$5)/($N$5*$G$5))*IF($B$5=100,NLS9,NLS12)+NLS13+NLS14 -> 0 | NLT16: 0 | NLU16: 0 | NLV16: 0 | NLW16: 0 | NLX16: 0 | NLY16: 0 | NLZ16: 0 | NMA16: 0 | NMB16: 0 | NMC16: 0 | NMD16: 0 | NME16: 0 | NMF16: 0 | NMG16: 0 | NMH16: 0 | NMI16: 0 | NMJ16: 0 | NMK16: 0 | NML16: 0 | NMM16: 0 | NMN16: 0 | NMO16: 0 | NMP16: 0 | NMQ16: 0 | NMR16: 0 | NMS16: 0 | NMT16: 0 | NMU16: 0 | NMV16: 0 | NMW16: 0 | NMX16: 0 | NMY16: 0 | NMZ16: 0 | NNA16: 0 | NNB16: 0 | NNC16: 0 | NND16: 0 | NNE16: 0 | NNF16: 0 | NNG16: 0 | NNH16: 0 | NNI16: 0 | NNJ16: 0 | NNK16: 0 | NNL16: 0 | NNM16: 0 | NNN16: 0 | NNO16: 0 | NNP16: 0 | NNQ16: 0 | NNR16: 0 | NNS16: 0 | NNT16: 0 | NNU16: 0 | NNV16: 0 | NNW16: 0 | NNX16: 0 | NNY16: 0 | NNZ16: 0 | NOA16: 0 | NOB16: 0 | NOC16: 0 | NOD16: 0 | NOE16: =1.05*NOE6^1.4*((2*$N$5)/($N$5*$G$5))*IF($B$5=100,NOE9,NOE12)+NOE13+NOE14 -> 0 | NOF16: 0 | NOG16: 0 | NOH16: 0 | NOI16: 0 | NOJ16: 0 | NOK16: 0 | NOL16: 0 | NOM16: 0 | NON16: 0 | NOO16: 0 | NOP16: 0 | NOQ16: 0 | NOR16: 0 | NOS16: 0 | NOT16: 0 | NOU16: 0 | NOV16: 0 | NOW16: 0 | NOX16: 0 | NOY16: 0 | NOZ16: 0 | NPA16: 0 | NPB16: 0 | NPC16: 0 | NPD16: 0 | NPE16: 0 | NPF16: 0 | NPG16: 0 | NPH16: 0 | NPI16: 0 | NPJ16: 0 | NPK16: 0 | NPL16: 0 | NPM16: 0 | NPN16: 0 | NPO16: 0 | NPP16: 0 | NPQ16: 0 | NPR16: 0 | NPS16: 0 | NPT16: 0 | NPU16: 0 | NPV16: 0 | NPW16: 0 | NPX16: 0 | NPY16: 0 | NPZ16: 0 | NQA16: 0 | NQB16: 0 | NQC16: 0 | NQD16: 0 | NQE16: 0 | NQF16: 0 | NQG16: 0 | NQH16: 0 | NQI16: 0 | NQJ16: 0 | NQK16: 0 | NQL16: 0 | NQM16: 0 | NQN16: 0 | NQO16: 0 | NQP16: 0 | NQQ16: =1.05*NQQ6^1.4*((2*$N$5)/($N$5*$G$5))*IF($B$5=100,NQQ9,NQQ12)+NQQ13+NQQ14 -> 0 | NQR16: 0 | NQS16: 0 | NQT16: 0 | NQU16: 0 | NQV16: 0 | NQW16: 0 | NQX16: 0 | NQY16: 0 | NQZ16: 0 | NRA16: 0 | NRB16: 0 | NRC16: 0 | NRD16: 0 | NRE16: 0 | NRF16: 0 | NRG16: 0 | NRH16: 0 | NRI16: 0 | NRJ16: 0 | NRK16: 0 | NRL16: 0 | NRM16: 0 | NRN16: 0 | NRO16: 0 | NRP16: 0 | NRQ16: 0 | NRR16: 0 | NRS16: 0 | NRT16: 0 | NRU16: 0 | NRV16: 0 | NRW16: 0 | NRX16: 0 | NRY16: 0 | NRZ16: 0 | NSA16: 0 | NSB16: 0 | NSC16: 0 | NSD16: 0 | NSE16: 0 | NSF16: 0 | NSG16: 0 | NSH16: 0 | NSI16: 0 | NSJ16: 0 | NSK16: 0 | NSL16: 0 | NSM16: 0 | NSN16: 0 | NSO16: 0 | NSP16: 0 | NSQ16: 0 | NSR16: 0 | NSS16: 0 | NST16: 0 | NSU16: 0 | NSV16: 0 | NSW16: 0 | NSX16: 0 | NSY16: 0 | NSZ16: 0 | NTA16: 0 | NTB16: 0 | NTC16: =1.05*NTC6^1.4*((2*$N$5)/($N$5*$G$5))*IF($B$5=100,NTC9,NTC12)+NTC13+NTC14 -> 0 | NTD16: 0 | NTE16: 0 | NTF16: 0 | NTG16: 0 | NTH16: 0 | NTI16: 0 | NTJ16: 0 | NTK16: 0 | NTL16: 0 | NTM16: 0 | NTN16: 0 | NTO16: 0 | NTP16: 0 | NTQ16: 0 | NTR16: 0 | NTS16: 0 | NTT16: 0 | NTU16: 0 | NTV16: 0 | NTW16: 0 | NTX16: 0 | NTY16: 0 | NTZ16: 0 | NUA16: 0 | NUB16: 0 | NUC16: 0 | NUD16: 0 | NUE16: 0 | NUF16: 0 | NUG16: 0 | NUH16: 0 | NUI16: 0 | NUJ16: 0 | NUK16: 0 | NUL16: 0 | NUM16: 0 | NUN16: 0 | NUO16: 0 | NUP16: 0 | NUQ16: 0 | NUR16: 0 | NUS16: 0 | NUT16: 0 | NUU16: 0 | NUV16: 0 | NUW16: 0 | NUX16: 0 | NUY16: 0 | NUZ16: 0 | NVA16: 0 | NVB16: 0 | NVC16: 0 | NVD16: 0 | NVE16: 0 | NVF16: 0 | NVG16: 0 | NVH16: 0 | NVI16: 0 | NVJ16: 0 | NVK16: 0 | NVL16: 0 | NVM16: 0 | NVN16: 0 | NVO16: =1.05*NVO6^1.4*((2*$N$5)/($N$5*$G$5))*IF($B$5=100,NVO9,NVO12)+NVO13+NVO14 -> 0 | NVP16: 0 | NVQ16: 0 | NVR16: 0 | NVS16: 0 | NVT16: 0 | NVU16: 0 | NVV16: 0 | NVW16: 0 | NVX16: 0 | NVY16: 0 | NVZ16: 0 | NWA16: 0 | NWB16: 0 | NWC16: 0 | NWD16: 0 | NWE16: 0 | NWF16: 0 | NWG16: 0 | NWH16: 0 | NWI16: 0 | NWJ16: 0 | NWK16: 0 | NWL16: 0 | NWM16: 0 | NWN16: 0 | NWO16: 0 | NWP16: 0 | NWQ16: 0 | NWR16: 0 | NWS16: 0 | NWT16: 0 | NWU16: 0 | NWV16: 0 | NWW16: 0 | NWX16: 0 | NWY16: 0 | NWZ16: 0 | NXA16: 0 | NXB16: 0 | NXC16: 0 | NXD16: 0 | NXE16: 0 | NXF16: 0 | NXG16: 0 | NXH16: 0 | NXI16: 0 | NXJ16: 0 | NXK16: 0 | NXL16: 0 | NXM16: 0 | NXN16: 0 | NXO16: 0 | NXP16: 0 | NXQ16: 0 | NXR16: 0 | NXS16: 0 | NXT16: 0 | NXU16: 0 | NXV16: 0 | NXW16: 0 | NXX16: 0 | NXY16: 0 | NXZ16: 0 | NYA16: =1.05*NYA6^1.4*((2*$N$5)/($N$5*$G$5))*IF($B$5=100,NYA9,NYA12)+NYA13+NYA14 -> 0 | NYB16: 0 | NYC16: 0 | NYD16: 0 | NYE16: 0 | NYF16: 0 | NYG16: 0 | NYH16: 0 | NYI16: 0 | NYJ16: 0 | NYK16: 0 | NYL16: 0 | NYM16: 0 | NYN16: 0 | NYO16: 0 | NYP16: 0 | NYQ16: 0 | NYR16: 0 | NYS16: 0 | NYT16: 0 | NYU16: 0 | NYV16: 0 | NYW16: 0 | NYX16: 0 | NYY16: 0 | NYZ16: 0 | NZA16: 0 | NZB16: 0 | NZC16: 0 | NZD16: 0 | NZE16: 0 | NZF16: 0 | NZG16: 0 | NZH16: 0 | NZI16: 0 | NZJ16: 0 | NZK16: 0 | NZL16: 0 | NZM16: 0 | NZN16: 0 | NZO16: 0 | NZP16: 0 | NZQ16: 0 | NZR16: 0 | NZS16: 0 | NZT16: 0 | NZU16: 0 | NZV16: 0 | NZW16: 0 | NZX16: 0 | NZY16: 0 | NZZ16: 0 | OAA16: 0 | OAB16: 0 | OAC16: 0 | OAD16: 0 | OAE16: 0 | OAF16: 0 | OAG16: 0 | OAH16: 0 | OAI16: 0 | OAJ16: 0 | OAK16: 0 | OAL16: 0 | OAM16: =1.05*OAM6^1.4*((2*$N$5)/($N$5*$G$5))*IF($B$5=100,OAM9,OAM12)+OAM13+OAM14 -> 0 | OAN16: 0 | OAO16: 0 | OAP16: 0 | OAQ16: 0 | OAR16: 0 | OAS16: 0 | OAT16: 0 | OAU16: 0 | OAV16: 0 | OAW16: 0 | OAX16: 0 | OAY16: 0 | OAZ16: 0 | OBA16: 0 | OBB16: 0 | OBC16: 0 | OBD16: 0 | OBE16: 0 | OBF16: 0 | OBG16: 0 | OBH16: 0 | OBI16: 0 | OBJ16: 0 | OBK16: 0 | OBL16: 0 | OBM16: 0 | OBN16: 0 | OBO16: 0 | OBP16: 0 | OBQ16: 0 | OBR16: 0 | OBS16: 0 | OBT16: 0 | OBU16: 0 | OBV16: 0 | OBW16: 0 | OBX16: 0 | OBY16: 0 | OBZ16: 0 | OCA16: 0 | OCB16: 0 | OCC16: 0 | OCD16: 0 | OCE16: 0 | OCF16: 0 | OCG16: 0 | OCH16: 0 | OCI16: 0 | OCJ16: 0 | OCK16: 0 | OCL16: 0 | OCM16: 0 | OCN16: 0 | OCO16: 0 | OCP16: 0 | OCQ16: 0 | OCR16: 0 | OCS16: 0 | OCT16: 0 | OCU16: 0 | OCV16: 0 | OCW16: 0 | OCX16: 0 | OCY16: =1.05*OCY6^1.4*((2*$N$5)/($N$5*$G$5))*IF($B$5=100,OCY9,OCY12)+OCY13+OCY14 -> 0 | OCZ16: 0 | ODA16: 0 | ODB16: 0 | ODC16: 0 | ODD16: 0 | ODE16: 0 | ODF16: 0 | ODG16: 0 | ODH16: 0 | ODI16: 0 | ODJ16: 0 | ODK16: 0 | ODL16: 0 | ODM16: 0 | ODN16: 0 | ODO16: 0 | ODP16: 0 | ODQ16: 0 | ODR16: 0 | ODS16: 0 | ODT16: 0 | ODU16: 0 | ODV16: 0 | ODW16: 0 | ODX16: 0 | ODY16: 0 | ODZ16: 0 | OEA16: 0 | OEB16: 0 | OEC16: 0 | OED16: 0 | OEE16: 0 | OEF16: 0 | OEG16: 0 | OEH16: 0 | OEI16: 0 | OEJ16: 0 | OEK16: 0 | OEL16: 0 | OEM16: 0 | OEN16: 0 | OEO16: 0 | OEP16: 0 | OEQ16: 0 | OER16: 0 | OES16: 0 | OET16: 0 | OEU16: 0 | OEV16: 0 | OEW16: 0 | OEX16: 0 | OEY16: 0 | OEZ16: 0 | OFA16: 0 | OFB16: 0 | OFC16: 0 | OFD16: 0 | OFE16: 0 | OFF16: 0 | OFG16: 0 | OFH16: 0 | OFI16: 0 | OFJ16: 0 | OFK16: =1.05*OFK6^1.4*((2*$N$5)/($N$5*$G$5))*IF($B$5=100,OFK9,OFK12)+OFK13+OFK14 -> 0 | OFL16: 0 | OFM16: 0 | OFN16: 0 | OFO16: 0 | OFP16: 0 | OFQ16: 0 | OFR16: 0 | OFS16: 0 | OFT16: 0 | OFU16: 0 | OFV16: 0 | OFW16: 0 | OFX16: 0 | OFY16: 0 | OFZ16: 0 | OGA16: 0 | OGB16: 0 | OGC16: 0 | OGD16: 0 | OGE16: 0 | OGF16: 0 | OGG16: 0 | OGH16: 0 | OGI16: 0 | OGJ16: 0 | OGK16: 0 | OGL16: 0 | OGM16: 0 | OGN16: 0 | OGO16: 0 | OGP16: 0 | OGQ16: 0 | OGR16: 0 | OGS16: 0 | OGT16: 0 | OGU16: 0 | OGV16: 0 | OGW16: 0 | OGX16: 0 | OGY16: 0 | OGZ16: 0 | OHA16: 0 | OHB16: 0 | OHC16: 0 | OHD16: 0 | OHE16: 0 | OHF16: 0 | OHG16: 0 | OHH16: 0 | OHI16: 0 | OHJ16: 0 | OHK16: 0 | OHL16: 0 | OHM16: 0 | OHN16: 0 | OHO16: 0 | OHP16: 0 | OHQ16: 0 | OHR16: 0 | OHS16: 0 | OHT16: 0 | OHU16: 0 | OHV16: 0 | OHW16: =1.05*OHW6^1.4*((2*$N$5)/($N$5*$G$5))*IF($B$5=100,OHW9,OHW12)+OHW13+OHW14 -> 0 | OHX16: 0 | OHY16: 0 | OHZ16: 0 | OIA16: 0 | OIB16: 0 | OIC16: 0 | OID16: 0 | OIE16: 0 | OIF16: 0 | OIG16: 0 | OIH16: 0 | OII16: 0 | OIJ16: 0 | OIK16: 0 | OIL16: 0 | OIM16: 0 | OIN16: 0 | OIO16: 0 | OIP16: 0 | OIQ16: 0 | OIR16: 0 | OIS16: 0 | OIT16: 0 | OIU16: 0 | OIV16: 0 | OIW16: 0 | OIX16: 0 | OIY16: 0 | OIZ16: 0 | OJA16: 0 | OJB16: 0 | OJC16: 0 | OJD16: 0 | OJE16: 0 | OJF16: 0 | OJG16: 0 | OJH16: 0 | OJI16: 0 | OJJ16: 0 | OJK16: 0 | OJL16: 0 | OJM16: 0 | OJN16: 0 | OJO16: 0 | OJP16: 0 | OJQ16: 0 | OJR16: 0 | OJS16: 0 | OJT16: 0 | OJU16: 0 | OJV16: 0 | OJW16: 0 | OJX16: 0 | OJY16: 0 | OJZ16: 0 | OKA16: 0 | OKB16: 0 | OKC16: 0 | OKD16: 0 | OKE16: 0 | OKF16: 0 | OKG16: 0 | OKH16: 0 | OKI16: =1.05*OKI6^1.4*((2*$N$5)/($N$5*$G$5))*IF($B$5=100,OKI9,OKI12)+OKI13+OKI14 -> 0 | OKJ16: 0 | OKK16: 0 | OKL16: 0 | OKM16: 0 | OKN16: 0 | OKO16: 0 | OKP16: 0 | OKQ16: 0 | OKR16: 0 | OKS16: 0 | OKT16: 0 | OKU16: 0 | OKV16: 0 | OKW16: 0 | OKX16: 0 | OKY16: 0 | OKZ16: 0 | OLA16: 0 | OLB16: 0 | OLC16: 0 | OLD16: 0 | OLE16: 0 | OLF16: 0 | OLG16: 0 | OLH16: 0 | OLI16: 0 | OLJ16: 0 | OLK16: 0 | OLL16: 0 | OLM16: 0 | OLN16: 0 | OLO16: 0 | OLP16: 0 | OLQ16: 0 | OLR16: 0 | OLS16: 0 | OLT16: 0 | OLU16: 0 | OLV16: 0 | OLW16: 0 | OLX16: 0 | OLY16: 0 | OLZ16: 0 | OMA16: 0 | OMB16: 0 | OMC16: 0 | OMD16: 0 | OME16: 0 | OMF16: 0 | OMG16: 0 | OMH16: 0 | OMI16: 0 | OMJ16: 0 | OMK16: 0 | OML16: 0 | OMM16: 0 | OMN16: 0 | OMO16: 0 | OMP16: 0 | OMQ16: 0 | OMR16: 0 | OMS16: 0 | OMT16: 0 | OMU16: =1.05*OMU6^1.4*((2*$N$5)/($N$5*$G$5))*IF($B$5=100,OMU9,OMU12)+OMU13+OMU14 -> 0 | OMV16: 0 | OMW16: 0 | OMX16: 0 | OMY16: 0 | OMZ16: 0 | ONA16: 0 | ONB16: 0 | ONC16: 0 | OND16: 0 | ONE16: 0 | ONF16: 0 | ONG16: 0 | ONH16: 0 | ONI16: 0 | ONJ16: 0 | ONK16: 0 | ONL16: 0 | ONM16: 0 | ONN16: 0 | ONO16: 0 | ONP16: 0 | ONQ16: 0 | ONR16: 0 | ONS16: 0 | ONT16: 0 | ONU16: 0 | ONV16: 0 | ONW16: 0 | ONX16: 0 | ONY16: 0 | ONZ16: 0 | OOA16: 0 | OOB16: 0 | OOC16: 0 | OOD16: 0 | OOE16: 0 | OOF16: 0 | OOG16: 0 | OOH16: 0 | OOI16: 0 | OOJ16: 0 | OOK16: 0 | OOL16: 0 | OOM16: 0 | OON16: 0 | OOO16: 0 | OOP16: 0 | OOQ16: 0 | OOR16: 0 | OOS16: 0 | OOT16: 0 | OOU16: 0 | OOV16: 0 | OOW16: 0 | OOX16: 0 | OOY16: 0 | OOZ16: 0 | OPA16: 0 | OPB16: 0 | OPC16: 0 | OPD16: 0 | OPE16: 0 | OPF16: 0 | OPG16: =1.05*OPG6^1.4*((2*$N$5)/($N$5*$G$5))*IF($B$5=100,OPG9,OPG12)+OPG13+OPG14 -> 0 | OPH16: 0 | OPI16: 0 | OPJ16: 0 | OPK16: 0 | OPL16: 0 | OPM16: 0 | OPN16: 0 | OPO16: 0 | OPP16: 0 | OPQ16: 0 | OPR16: 0 | OPS16: 0 | OPT16: 0 | OPU16: 0 | OPV16: 0 | OPW16: 0 | OPX16: 0 | OPY16: 0 | OPZ16: 0 | OQA16: 0 | OQB16: 0 | OQC16: 0 | OQD16: 0 | OQE16: 0 | OQF16: 0 | OQG16: 0 | OQH16: 0 | OQI16: 0 | OQJ16: 0 | OQK16: 0 | OQL16: 0 | OQM16: 0 | OQN16: 0 | OQO16: 0 | OQP16: 0 | OQQ16: 0 | OQR16: 0 | OQS16: 0 | OQT16: 0 | OQU16: 0 | OQV16: 0 | OQW16: 0 | OQX16: 0 | OQY16: 0 | OQZ16: 0 | ORA16: 0 | ORB16: 0 | ORC16: 0 | ORD16: 0 | ORE16: 0 | ORF16: 0 | ORG16: 0 | ORH16: 0 | ORI16: 0 | ORJ16: 0 | ORK16: 0 | ORL16: 0 | ORM16: 0 | ORN16: 0 | ORO16: 0 | ORP16: 0 | ORQ16: 0 | ORR16: 0 | ORS16: =1.05*ORS6^1.4*((2*$N$5)/($N$5*$G$5))*IF($B$5=100,ORS9,ORS12)+ORS13+ORS14 -> 0 | ORT16: 0 | ORU16: 0 | ORV16: 0 | ORW16: 0 | ORX16: 0 | ORY16: 0 | ORZ16: 0 | OSA16: 0 | OSB16: 0 | OSC16: 0 | OSD16: 0 | OSE16: 0 | OSF16: 0 | OSG16: 0 | OSH16: 0 | OSI16: 0 | OSJ16: 0 | OSK16: 0 | OSL16: 0 | OSM16: 0 | OSN16: 0 | OSO16: 0 | OSP16: 0 | OSQ16: 0 | OSR16: 0 | OSS16: 0 | OST16: 0 | OSU16: 0 | OSV16: 0 | OSW16: 0 | OSX16: 0 | OSY16: 0 | OSZ16: 0 | OTA16: 0 | OTB16: 0 | OTC16: 0 | OTD16: 0 | OTE16: 0 | OTF16: 0 | OTG16: 0 | OTH16: 0 | OTI16: 0 | OTJ16: 0 | OTK16: 0 | OTL16: 0 | OTM16: 0 | OTN16: 0 | OTO16: 0 | OTP16: 0 | OTQ16: 0 | OTR16: 0 | OTS16: 0 | OTT16: 0 | OTU16: 0 | OTV16: 0 | OTW16: 0 | OTX16: 0 | OTY16: 0 | OTZ16: 0 | OUA16: 0 | OUB16: 0 | OUC16: 0 | OUD16: 0 | OUE16: =1.05*OUE6^1.4*((2*$N$5)/($N$5*$G$5))*IF($B$5=100,OUE9,OUE12)+OUE13+OUE14 -> 0 | OUF16: 0 | OUG16: 0 | OUH16: 0 | OUI16: 0 | OUJ16: 0 | OUK16: 0 | OUL16: 0 | OUM16: 0 | OUN16: 0 | OUO16: 0 | OUP16: 0 | OUQ16: 0 | OUR16: 0 | OUS16: 0 | OUT16: 0 | OUU16: 0 | OUV16: 0 | OUW16: 0 | OUX16: 0 | OUY16: 0 | OUZ16: 0 | OVA16: 0 | OVB16: 0 | OVC16: 0 | OVD16: 0 | OVE16: 0 | OVF16: 0 | OVG16: 0 | OVH16: 0 | OVI16: 0 | OVJ16: 0 | OVK16: 0 | OVL16: 0 | OVM16: 0 | OVN16: 0 | OVO16: 0 | OVP16: 0 | OVQ16: 0 | OVR16: 0 | OVS16: 0 | OVT16: 0 | OVU16: 0 | OVV16: 0 | OVW16: 0 | OVX16: 0 | OVY16: 0 | OVZ16: 0 | OWA16: 0 | OWB16: 0 | OWC16: 0 | OWD16: 0 | OWE16: 0 | OWF16: 0 | OWG16: 0 | OWH16: 0 | OWI16: 0 | OWJ16: 0 | OWK16: 0 | OWL16: 0 | OWM16: 0 | OWN16: 0 | OWO16: 0 | OWP16: 0 | OWQ16: =1.05*OWQ6^1.4*((2*$N$5)/($N$5*$G$5))*IF($B$5=100,OWQ9,OWQ12)+OWQ13+OWQ14 -> 0 | OWR16: 0 | OWS16: 0 | OWT16: 0 | OWU16: 0 | OWV16: 0 | OWW16: 0 | OWX16: 0 | OWY16: 0 | OWZ16: 0 | OXA16: 0 | OXB16: 0 | OXC16: 0 | OXD16: 0 | OXE16: 0 | OXF16: 0 | OXG16: 0 | OXH16: 0 | OXI16: 0 | OXJ16: 0 | OXK16: 0 | OXL16: 0 | OXM16: 0 | OXN16: 0 | OXO16: 0 | OXP16: 0 | OXQ16: 0 | OXR16: 0 | OXS16: 0 | OXT16: 0 | OXU16: 0 | OXV16: 0 | OXW16: 0 | OXX16: 0 | OXY16: 0 | OXZ16: 0 | OYA16: 0 | OYB16: 0 | OYC16: 0 | OYD16: 0 | OYE16: 0 | OYF16: 0 | OYG16: 0 | OYH16: 0 | OYI16: 0 | OYJ16: 0 | OYK16: 0 | OYL16: 0 | OYM16: 0 | OYN16: 0 | OYO16: 0 | OYP16: 0 | OYQ16: 0 | OYR16: 0 | OYS16: 0 | OYT16: 0 | OYU16: 0 | OYV16: 0 | OYW16: 0 | OYX16: 0 | OYY16: 0 | OYZ16: 0 | OZA16: 0 | OZB16: 0 | OZC16: =1.05*OZC6^1.4*((2*$N$5)/($N$5*$G$5))*IF($B$5=100,OZC9,OZC12)+OZC13+OZC14 -> 0 | OZD16: 0 | OZE16: 0 | OZF16: 0 | OZG16: 0 | OZH16: 0 | OZI16: 0 | OZJ16: 0 | OZK16: 0 | OZL16: 0 | OZM16: 0 | OZN16: 0 | OZO16: 0 | OZP16: 0 | OZQ16: 0 | OZR16: 0 | OZS16: 0 | OZT16: 0 | OZU16: 0 | OZV16: 0 | OZW16: 0 | OZX16: 0 | OZY16: 0 | OZZ16: 0 | PAA16: 0 | PAB16: 0 | PAC16: 0 | PAD16: 0 | PAE16: 0 | PAF16: 0 | PAG16: 0 | PAH16: 0 | PAI16: 0 | PAJ16: 0 | PAK16: 0 | PAL16: 0 | PAM16: 0 | PAN16: 0 | PAO16: 0 | PAP16: 0 | PAQ16: 0 | PAR16: 0 | PAS16: 0 | PAT16: 0 | PAU16: 0 | PAV16: 0 | PAW16: 0 | PAX16: 0 | PAY16: 0 | PAZ16: 0 | PBA16: 0 | PBB16: 0 | PBC16: 0 | PBD16: 0 | PBE16: 0 | PBF16: 0 | PBG16: 0 | PBH16: 0 | PBI16: 0 | PBJ16: 0 | PBK16: 0 | PBL16: 0 | PBM16: 0 | PBN16: 0 | PBO16: =1.05*PBO6^1.4*((2*$N$5)/($N$5*$G$5))*IF($B$5=100,PBO9,PBO12)+PBO13+PBO14 -> 0 | PBP16: 0 | PBQ16: 0 | PBR16: 0 | PBS16: 0 | PBT16: 0 | PBU16: 0 | PBV16: 0 | PBW16: 0 | PBX16: 0 | PBY16: 0 | PBZ16: 0 | PCA16: 0 | PCB16: 0 | PCC16: 0 | PCD16: 0 | PCE16: 0 | PCF16: 0 | PCG16: 0 | PCH16: 0 | PCI16: 0 | PCJ16: 0 | PCK16: 0 | PCL16: 0 | PCM16: 0 | PCN16: 0 | PCO16: 0 | PCP16: 0 | PCQ16: 0 | PCR16: 0 | PCS16: 0 | PCT16: 0 | PCU16: 0 | PCV16: 0 | PCW16: 0 | PCX16: 0 | PCY16: 0 | PCZ16: 0 | PDA16: 0 | PDB16: 0 | PDC16: 0 | PDD16: 0 | PDE16: 0 | PDF16: 0 | PDG16: 0 | PDH16: 0 | PDI16: 0 | PDJ16: 0 | PDK16: 0 | PDL16: 0 | PDM16: 0 | PDN16: 0 | PDO16: 0 | PDP16: 0 | PDQ16: 0 | PDR16: 0 | PDS16: 0 | PDT16: 0 | PDU16: 0 | PDV16: 0 | PDW16: 0 | PDX16: 0 | PDY16: 0 | PDZ16: 0 | PEA16: =1.05*PEA6^1.4*((2*$N$5)/($N$5*$G$5))*IF($B$5=100,PEA9,PEA12)+PEA13+PEA14 -> 0 | PEB16: 0 | PEC16: 0 | PED16: 0 | PEE16: 0 | PEF16: 0 | PEG16: 0 | PEH16: 0 | PEI16: 0 | PEJ16: 0 | PEK16: 0 | PEL16: 0 | PEM16: 0 | PEN16: 0 | PEO16: 0 | PEP16: 0 | PEQ16: 0 | PER16: 0 | PES16: 0 | PET16: 0 | PEU16: 0 | PEV16: 0 | PEW16: 0 | PEX16: 0 | PEY16: 0 | PEZ16: 0 | PFA16: 0 | PFB16: 0 | PFC16: 0 | PFD16: 0 | PFE16: 0 | PFF16: 0 | PFG16: 0 | PFH16: 0 | PFI16: 0 | PFJ16: 0 | PFK16: 0 | PFL16: 0 | PFM16: 0 | PFN16: 0 | PFO16: 0 | PFP16: 0 | PFQ16: 0 | PFR16: 0 | PFS16: 0 | PFT16: 0 | PFU16: 0 | PFV16: 0 | PFW16: 0 | PFX16: 0 | PFY16: 0 | PFZ16: 0 | PGA16: 0 | PGB16: 0 | PGC16: 0 | PGD16: 0 | PGE16: 0 | PGF16: 0 | PGG16: 0 | PGH16: 0 | PGI16: 0 | PGJ16: 0 | PGK16: 0 | PGL16: 0 | PGM16: =1.05*PGM6^1.4*((2*$N$5)/($N$5*$G$5))*IF($B$5=100,PGM9,PGM12)+PGM13+PGM14 -> 0 | PGN16: 0 | PGO16: 0 | PGP16: 0 | PGQ16: 0 | PGR16: 0 | PGS16: 0 | PGT16: 0 | PGU16: 0 | PGV16: 0 | PGW16: 0 | PGX16: 0 | PGY16: 0 | PGZ16: 0 | PHA16: 0 | PHB16: 0 | PHC16: 0 | PHD16: 0 | PHE16: 0 | PHF16: 0 | PHG16: 0 | PHH16: 0 | PHI16: 0 | PHJ16: 0 | PHK16: 0 | PHL16: 0 | PHM16: 0 | PHN16: 0 | PHO16: 0 | PHP16: 0 | PHQ16: 0 | PHR16: 0 | PHS16: 0 | PHT16: 0 | PHU16: 0 | PHV16: 0 | PHW16: 0 | PHX16: 0 | PHY16: 0 | PHZ16: 0 | PIA16: 0 | PIB16: 0 | PIC16: 0 | PID16: 0 | PIE16: 0 | PIF16: 0 | PIG16: 0 | PIH16: 0 | PII16: 0 | PIJ16: 0 | PIK16: 0 | PIL16: 0 | PIM16: 0 | PIN16: 0 | PIO16: 0 | PIP16: 0 | PIQ16: 0 | PIR16: 0 | PIS16: 0 | PIT16: 0 | PIU16: 0 | PIV16: 0 | PIW16: 0 | PIX16: 0 | PIY16: =1.05*PIY6^1.4*((2*$N$5)/($N$5*$G$5))*IF($B$5=100,PIY9,PIY12)+PIY13+PIY14 -> 0 | PIZ16: 0 | PJA16: 0 | PJB16: 0 | PJC16: 0 | PJD16: 0 | PJE16: 0 | PJF16: 0 | PJG16: 0 | PJH16: 0 | PJI16: 0 | PJJ16: 0 | PJK16: 0 | PJL16: 0 | PJM16: 0 | PJN16: 0 | PJO16: 0 | PJP16: 0 | PJQ16: 0 | PJR16: 0 | PJS16: 0 | PJT16: 0 | PJU16: 0 | PJV16: 0 | PJW16: 0 | PJX16: 0 | PJY16: 0 | PJZ16: 0 | PKA16: 0 | PKB16: 0 | PKC16: 0 | PKD16: 0 | PKE16: 0 | PKF16: 0 | PKG16: 0 | PKH16: 0 | PKI16: 0 | PKJ16: 0 | PKK16: 0 | PKL16: 0 | PKM16: 0 | PKN16: 0 | PKO16: 0 | PKP16: 0 | PKQ16: 0 | PKR16: 0 | PKS16: 0 | PKT16: 0 | PKU16: 0 | PKV16: 0 | PKW16: 0 | PKX16: 0 | PKY16: 0 | PKZ16: 0 | PLA16: 0 | PLB16: 0 | PLC16: 0 | PLD16: 0 | PLE16: 0 | PLF16: 0 | PLG16: 0 | PLH16: 0 | PLI16: 0 | PLJ16: 0 | PLK16: =1.05*PLK6^1.4*((2*$N$5)/($N$5*$G$5))*IF($B$5=100,PLK9,PLK12)+PLK13+PLK14 -> 0 | PLL16: 0 | PLM16: 0 | PLN16: 0 | PLO16: 0 | PLP16: 0 | PLQ16: 0 | PLR16: 0 | PLS16: 0 | PLT16: 0 | PLU16: 0 | PLV16: 0 | PLW16: 0 | PLX16: 0 | PLY16: 0 | PLZ16: 0 | PMA16: 0 | PMB16: 0 | PMC16: 0 | PMD16: 0 | PME16: 0 | PMF16: 0 | PMG16: 0 | PMH16: 0 | PMI16: 0 | PMJ16: 0 | PMK16: 0 | PML16: 0 | PMM16: 0 | PMN16: 0 | PMO16: 0 | PMP16: 0 | PMQ16: 0 | PMR16: 0 | PMS16: 0 | PMT16: 0 | PMU16: 0 | PMV16: 0 | PMW16: 0 | PMX16: 0 | PMY16: 0 | PMZ16: 0 | PNA16: 0 | PNB16: 0 | PNC16: 0 | PND16: 0 | PNE16: 0 | PNF16: 0 | PNG16: 0 | PNH16: 0 | PNI16: 0 | PNJ16: 0 | PNK16: 0 | PNL16: 0 | PNM16: 0 | PNN16: 0 | PNO16: 0 | PNP16: 0 | PNQ16: 0 | PNR16: 0 | PNS16: 0 | PNT16: 0 | PNU16: 0 | PNV16: 0 | PNW16: =1.05*PNW6^1.4*((2*$N$5)/($N$5*$G$5))*IF($B$5=100,PNW9,PNW12)+PNW13+PNW14 -> 0 | PNX16: 0 | PNY16: 0 | PNZ16: 0 | POA16: 0 | POB16: 0 | POC16: 0 | POD16: 0 | POE16: 0 | POF16: 0 | POG16: 0 | POH16: 0 | POI16: 0 | POJ16: 0 | POK16: 0 | POL16: 0 | POM16: 0 | PON16: 0 | POO16: 0 | POP16: 0 | POQ16: 0 | POR16: 0 | POS16: 0 | POT16: 0 | POU16: 0 | POV16: 0 | POW16: 0 | POX16: 0 | POY16: 0 | POZ16: 0 | PPA16: 0 | PPB16: 0 | PPC16: 0 | PPD16: 0 | PPE16: 0 | PPF16: 0 | PPG16: 0 | PPH16: 0 | PPI16: 0 | PPJ16: 0 | PPK16: 0 | PPL16: 0 | PPM16: 0 | PPN16: 0 | PPO16: 0 | PPP16: 0 | PPQ16: 0 | PPR16: 0 | PPS16: 0 | PPT16: 0 | PPU16: 0 | PPV16: 0 | PPW16: 0 | PPX16: 0 | PPY16: 0 | PPZ16: 0 | PQA16: 0 | PQB16: 0 | PQC16: 0 | PQD16: 0 | PQE16: 0 | PQF16: 0 | PQG16: 0 | PQH16: 0 | PQI16: =1.05*PQI6^1.4*((2*$N$5)/($N$5*$G$5))*IF($B$5=100,PQI9,PQI12)+PQI13+PQI14 -> 0 | PQJ16: 0 | PQK16: 0 | PQL16: 0 | PQM16: 0 | PQN16: 0 | PQO16: 0 | PQP16: 0 | PQQ16: 0 | PQR16: 0 | PQS16: 0 | PQT16: 0 | PQU16: 0 | PQV16: 0 | PQW16: 0 | PQX16: 0 | PQY16: 0 | PQZ16: 0 | PRA16: 0 | PRB16: 0 | PRC16: 0 | PRD16: 0 | PRE16: 0 | PRF16: 0 | PRG16: 0 | PRH16: 0 | PRI16: 0 | PRJ16: 0 | PRK16: 0 | PRL16: 0 | PRM16: 0 | PRN16: 0 | PRO16: 0 | PRP16: 0 | PRQ16: 0 | PRR16: 0 | PRS16: 0 | PRT16: 0 | PRU16: 0 | PRV16: 0 | PRW16: 0 | PRX16: 0 | PRY16: 0 | PRZ16: 0 | PSA16: 0 | PSB16: 0 | PSC16: 0 | PSD16: 0 | PSE16: 0 | PSF16: 0 | PSG16: 0 | PSH16: 0 | PSI16: 0 | PSJ16: 0 | PSK16: 0 | PSL16: 0 | PSM16: 0 | PSN16: 0 | PSO16: 0 | PSP16: 0 | PSQ16: 0 | PSR16: 0 | PSS16: 0 | PST16: 0 | PSU16: =1.05*PSU6^1.4*((2*$N$5)/($N$5*$G$5))*IF($B$5=100,PSU9,PSU12)+PSU13+PSU14 -> 0 | PSV16: 0 | PSW16: 0 | PSX16: 0 | PSY16: 0 | PSZ16: 0 | PTA16: 0 | PTB16: 0 | PTC16: 0 | PTD16: 0 | PTE16: 0 | PTF16: 0 | PTG16: 0 | PTH16: 0 | PTI16: 0 | PTJ16: 0 | PTK16: 0 | PTL16: 0 | PTM16: 0 | PTN16: 0 | PTO16: 0 | PTP16: 0 | PTQ16: 0 | PTR16: 0 | PTS16: 0 | PTT16: 0 | PTU16: 0 | PTV16: 0 | PTW16: 0 | PTX16: 0 | PTY16: 0 | PTZ16: 0 | PUA16: 0 | PUB16: 0 | PUC16: 0 | PUD16: 0 | PUE16: 0 | PUF16: 0 | PUG16: 0 | PUH16: 0 | PUI16: 0 | PUJ16: 0 | PUK16: 0 | PUL16: 0 | PUM16: 0 | PUN16: 0 | PUO16: 0 | PUP16: 0 | PUQ16: 0 | PUR16: 0 | PUS16: 0 | PUT16: 0 | PUU16: 0 | PUV16: 0 | PUW16: 0 | PUX16: 0 | PUY16: 0 | PUZ16: 0 | PVA16: 0 | PVB16: 0 | PVC16: 0 | PVD16: 0 | PVE16: 0 | PVF16: 0 | PVG16: =1.05*PVG6^1.4*((2*$N$5)/($N$5*$G$5))*IF($B$5=100,PVG9,PVG12)+PVG13+PVG14 -> 0 | PVH16: 0 | PVI16: 0 | PVJ16: 0 | PVK16: 0 | PVL16: 0 | PVM16: 0 | PVN16: 0 | PVO16: 0 | PVP16: 0 | PVQ16: 0 | PVR16: 0 | PVS16: 0 | PVT16: 0 | PVU16: 0 | PVV16: 0 | PVW16: 0 | PVX16: 0 | PVY16: 0 | PVZ16: 0 | PWA16: 0 | PWB16: 0 | PWC16: 0 | PWD16: 0 | PWE16: 0 | PWF16: 0 | PWG16: 0 | PWH16: 0 | PWI16: 0 | PWJ16: 0 | PWK16: 0 | PWL16: 0 | PWM16: 0 | PWN16: 0 | PWO16: 0 | PWP16: 0 | PWQ16: 0 | PWR16: 0 | PWS16: 0 | PWT16: 0 | PWU16: 0 | PWV16: 0 | PWW16: 0 | PWX16: 0 | PWY16: 0 | PWZ16: 0 | PXA16: 0 | PXB16: 0 | PXC16: 0 | PXD16: 0 | PXE16: 0 | PXF16: 0 | PXG16: 0 | PXH16: 0 | PXI16: 0 | PXJ16: 0 | PXK16: 0 | PXL16: 0 | PXM16: 0 | PXN16: 0 | PXO16: 0 | PXP16: 0 | PXQ16: 0 | PXR16: 0 | PXS16: =1.05*PXS6^1.4*((2*$N$5)/($N$5*$G$5))*IF($B$5=100,PXS9,PXS12)+PXS13+PXS14 -> 0 | PXT16: 0 | PXU16: 0 | PXV16: 0 | PXW16: 0 | PXX16: 0 | PXY16: 0 | PXZ16: 0 | PYA16: 0 | PYB16: 0 | PYC16: 0 | PYD16: 0 | PYE16: 0 | PYF16: 0 | PYG16: 0 | PYH16: 0 | PYI16: 0 | PYJ16: 0 | PYK16: 0 | PYL16: 0 | PYM16: 0 | PYN16: 0 | PYO16: 0 | PYP16: 0 | PYQ16: 0 | PYR16: 0 | PYS16: 0 | PYT16: 0 | PYU16: 0 | PYV16: 0 | PYW16: 0 | PYX16: 0 | PYY16: 0 | PYZ16: 0 | PZA16: 0 | PZB16: 0 | PZC16: 0 | PZD16: 0 | PZE16: 0 | PZF16: 0 | PZG16: 0 | PZH16: 0 | PZI16: 0 | PZJ16: 0 | PZK16: 0 | PZL16: 0 | PZM16: 0 | PZN16: 0 | PZO16: 0 | PZP16: 0 | PZQ16: 0 | PZR16: 0 | PZS16: 0 | PZT16: 0 | PZU16: 0 | PZV16: 0 | PZW16: 0 | PZX16: 0 | PZY16: 0 | PZZ16: 0 | QAA16: 0 | QAB16: 0 | QAC16: 0 | QAD16: 0 | QAE16: =1.05*QAE6^1.4*((2*$N$5)/($N$5*$G$5))*IF($B$5=100,QAE9,QAE12)+QAE13+QAE14 -> 0 | QAF16: 0 | QAG16: 0 | QAH16: 0 | QAI16: 0 | QAJ16: 0 | QAK16: 0 | QAL16: 0 | QAM16: 0 | QAN16: 0 | QAO16: 0 | QAP16: 0 | QAQ16: 0 | QAR16: 0 | QAS16: 0 | QAT16: 0 | QAU16: 0 | QAV16: 0 | QAW16: 0 | QAX16: 0 | QAY16: 0 | QAZ16: 0 | QBA16: 0 | QBB16: 0 | QBC16: 0 | QBD16: 0 | QBE16: 0 | QBF16: 0 | QBG16: 0 | QBH16: 0 | QBI16: 0 | QBJ16: 0 | QBK16: 0 | QBL16: 0 | QBM16: 0 | QBN16: 0 | QBO16: 0 | QBP16: 0 | QBQ16: 0 | QBR16: 0 | QBS16: 0 | QBT16: 0 | QBU16: 0 | QBV16: 0 | QBW16: 0 | QBX16: 0 | QBY16: 0 | QBZ16: 0 | QCA16: 0 | QCB16: 0 | QCC16: 0 | QCD16: 0 | QCE16: 0 | QCF16: 0 | QCG16: 0 | QCH16: 0 | QCI16: 0 | QCJ16: 0 | QCK16: 0 | QCL16: 0 | QCM16: 0 | QCN16: 0 | QCO16: 0 | QCP16: 0 | QCQ16: =1.05*QCQ6^1.4*((2*$N$5)/($N$5*$G$5))*IF($B$5=100,QCQ9,QCQ12)+QCQ13+QCQ14 -> 0 | QCR16: 0 | QCS16: 0 | QCT16: 0 | QCU16: 0 | QCV16: 0 | QCW16: 0 | QCX16: 0 | QCY16: 0 | QCZ16: 0 | QDA16: 0 | QDB16: 0 | QDC16: 0 | QDD16: 0 | QDE16: 0 | QDF16: 0 | QDG16: 0 | QDH16: 0 | QDI16: 0 | QDJ16: 0 | QDK16: 0 | QDL16: 0 | QDM16: 0 | QDN16: 0 | QDO16: 0 | QDP16: 0 | QDQ16: 0 | QDR16: 0 | QDS16: 0 | QDT16: 0 | QDU16: 0 | QDV16: 0 | QDW16: 0 | QDX16: 0 | QDY16: 0 | QDZ16: 0 | QEA16: 0 | QEB16: 0 | QEC16: 0 | QED16: 0 | QEE16: 0 | QEF16: 0 | QEG16: 0 | QEH16: 0 | QEI16: 0 | QEJ16: 0 | QEK16: 0 | QEL16: 0 | QEM16: 0 | QEN16: 0 | QEO16: 0 | QEP16: 0 | QEQ16: 0 | QER16: 0 | QES16: 0 | QET16: 0 | QEU16: 0 | QEV16: 0 | QEW16: 0 | QEX16: 0 | QEY16: 0 | QEZ16: 0 | QFA16: 0 | QFB16: 0 | QFC16: =1.05*QFC6^1.4*((2*$N$5)/($N$5*$G$5))*IF($B$5=100,QFC9,QFC12)+QFC13+QFC14 -> 0 | QFD16: 0 | QFE16: 0 | QFF16: 0 | QFG16: 0 | QFH16: 0 | QFI16: 0 | QFJ16: 0 | QFK16: 0 | QFL16: 0 | QFM16: 0 | QFN16: 0 | QFO16: 0 | QFP16: 0 | QFQ16: 0 | QFR16: 0 | QFS16: 0 | QFT16: 0 | QFU16: 0 | QFV16: 0 | QFW16: 0 | QFX16: 0 | QFY16: 0 | QFZ16: 0 | QGA16: 0 | QGB16: 0 | QGC16: 0 | QGD16: 0 | QGE16: 0 | QGF16: 0 | QGG16: 0 | QGH16: 0 | QGI16: 0 | QGJ16: 0 | QGK16: 0 | QGL16: 0 | QGM16: 0 | QGN16: 0 | QGO16: 0 | QGP16: 0 | QGQ16: 0 | QGR16: 0 | QGS16: 0 | QGT16: 0 | QGU16: 0 | QGV16: 0 | QGW16: 0 | QGX16: 0 | QGY16: 0 | QGZ16: 0 | QHA16: 0 | QHB16: 0 | QHC16: 0 | QHD16: 0 | QHE16: 0 | QHF16: 0 | QHG16: 0 | QHH16: 0 | QHI16: 0 | QHJ16: 0 | QHK16: 0 | QHL16: 0 | QHM16: 0 | QHN16: 0 | QHO16: =1.05*QHO6^1.4*((2*$N$5)/($N$5*$G$5))*IF($B$5=100,QHO9,QHO12)+QHO13+QHO14 -> 0 | QHP16: 0 | QHQ16: 0 | QHR16: 0 | QHS16: 0 | QHT16: 0 | QHU16: 0 | QHV16: 0 | QHW16: 0 | QHX16: 0 | QHY16: 0 | QHZ16: 0 | QIA16: 0 | QIB16: 0 | QIC16: 0 | QID16: 0 | QIE16: 0 | QIF16: 0 | QIG16: 0 | QIH16: 0 | QII16: 0 | QIJ16: 0 | QIK16: 0 | QIL16: 0 | QIM16: 0 | QIN16: 0 | QIO16: 0 | QIP16: 0 | QIQ16: 0 | QIR16: 0 | QIS16: 0 | QIT16: 0 | QIU16: 0 | QIV16: 0 | QIW16: 0 | QIX16: 0 | QIY16: 0 | QIZ16: 0 | QJA16: 0 | QJB16: 0 | QJC16: 0 | QJD16: 0 | QJE16: 0 | QJF16: 0 | QJG16: 0 | QJH16: 0 | QJI16: 0 | QJJ16: 0 | QJK16: 0 | QJL16: 0 | QJM16: 0 | QJN16: 0 | QJO16: 0 | QJP16: 0 | QJQ16: 0 | QJR16: 0 | QJS16: 0 | QJT16: 0 | QJU16: 0 | QJV16: 0 | QJW16: 0 | QJX16: 0 | QJY16: 0 | QJZ16: 0 | QKA16: =1.05*QKA6^1.4*((2*$N$5)/($N$5*$G$5))*IF($B$5=100,QKA9,QKA12)+QKA13+QKA14 -> 0 | QKB16: 0 | QKC16: 0 | QKD16: 0 | QKE16: 0 | QKF16: 0 | QKG16: 0 | QKH16: 0 | QKI16: 0 | QKJ16: 0 | QKK16: 0 | QKL16: 0 | QKM16: 0 | QKN16: 0 | QKO16: 0 | QKP16: 0 | QKQ16: 0 | QKR16: 0 | QKS16: 0 | QKT16: 0 | QKU16: 0 | QKV16: 0 | QKW16: 0 | QKX16: 0 | QKY16: 0 | QKZ16: 0 | QLA16: 0 | QLB16: 0 | QLC16: 0 | QLD16: 0 | QLE16: 0 | QLF16: 0 | QLG16: 0 | QLH16: 0 | QLI16: 0 | QLJ16: 0 | QLK16: 0 | QLL16: 0 | QLM16: 0 | QLN16: 0 | QLO16: 0 | QLP16: 0 | QLQ16: 0 | QLR16: 0 | QLS16: 0 | QLT16: 0 | QLU16: 0 | QLV16: 0 | QLW16: 0 | QLX16: 0 | QLY16: 0 | QLZ16: 0 | QMA16: 0 | QMB16: 0 | QMC16: 0 | QMD16: 0 | QME16: 0 | QMF16: 0 | QMG16: 0 | QMH16: 0 | QMI16: 0 | QMJ16: 0 | QMK16: 0 | QML16: 0 | QMM16: =1.05*QMM6^1.4*((2*$N$5)/($N$5*$G$5))*IF($B$5=100,QMM9,QMM12)+QMM13+QMM14 -> 0 | QMN16: 0 | QMO16: 0 | QMP16: 0 | QMQ16: 0 | QMR16: 0 | QMS16: 0 | QMT16: 0 | QMU16: 0 | QMV16: 0 | QMW16: 0 | QMX16: 0 | QMY16: 0 | QMZ16: 0 | QNA16: 0 | QNB16: 0 | QNC16: 0 | QND16: 0 | QNE16: 0 | QNF16: 0 | QNG16: 0 | QNH16: 0 | QNI16: 0 | QNJ16: 0 | QNK16: 0 | QNL16: 0 | QNM16: 0 | QNN16: 0 | QNO16: 0 | QNP16: 0 | QNQ16: 0 | QNR16: 0 | QNS16: 0 | QNT16: 0 | QNU16: 0 | QNV16: 0 | QNW16: 0 | QNX16: 0 | QNY16: 0 | QNZ16: 0 | QOA16: 0 | QOB16: 0 | QOC16: 0 | QOD16: 0 | QOE16: 0 | QOF16: 0 | QOG16: 0 | QOH16: 0 | QOI16: 0 | QOJ16: 0 | QOK16: 0 | QOL16: 0 | QOM16: 0 | QON16: 0 | QOO16: 0 | QOP16: 0 | QOQ16: 0 | QOR16: 0 | QOS16: 0 | QOT16: 0 | QOU16: 0 | QOV16: 0 | QOW16: 0 | QOX16: 0 | QOY16: =1.05*QOY6^1.4*((2*$N$5)/($N$5*$G$5))*IF($B$5=100,QOY9,QOY12)+QOY13+QOY14 -> 0 | QOZ16: 0 | QPA16: 0 | QPB16: 0 | QPC16: 0 | QPD16: 0 | QPE16: 0 | QPF16: 0 | QPG16: 0 | QPH16: 0 | QPI16: 0 | QPJ16: 0 | QPK16: 0 | QPL16: 0 | QPM16: 0 | QPN16: 0 | QPO16: 0 | QPP16: 0 | QPQ16: 0 | QPR16: 0 | QPS16: 0 | QPT16: 0 | QPU16: 0 | QPV16: 0 | QPW16: 0 | QPX16: 0 | QPY16: 0 | QPZ16: 0 | QQA16: 0 | QQB16: 0 | QQC16: 0 | QQD16: 0 | QQE16: 0 | QQF16: 0 | QQG16: 0 | QQH16: 0 | QQI16: 0 | QQJ16: 0 | QQK16: 0 | QQL16: 0 | QQM16: 0 | QQN16: 0 | QQO16: 0 | QQP16: 0 | QQQ16: 0 | QQR16: 0 | QQS16: 0 | QQT16: 0 | QQU16: 0 | QQV16: 0 | QQW16: 0 | QQX16: 0 | QQY16: 0 | QQZ16: 0 | QRA16: 0 | QRB16: 0 | QRC16: 0 | QRD16: 0 | QRE16: 0 | QRF16: 0 | QRG16: 0 | QRH16: 0 | QRI16: 0 | QRJ16: 0 | QRK16: =1.05*QRK6^1.4*((2*$N$5)/($N$5*$G$5))*IF($B$5=100,QRK9,QRK12)+QRK13+QRK14 -> 0 | QRL16: 0 | QRM16: 0 | QRN16: 0 | QRO16: 0 | QRP16: 0 | QRQ16: 0 | QRR16: 0 | QRS16: 0 | QRT16: 0 | QRU16: 0 | QRV16: 0 | QRW16: 0 | QRX16: 0 | QRY16: 0 | QRZ16: 0 | QSA16: 0 | QSB16: 0 | QSC16: 0 | QSD16: 0 | QSE16: 0 | QSF16: 0 | QSG16: 0 | QSH16: 0 | QSI16: 0 | QSJ16: 0 | QSK16: 0 | QSL16: 0 | QSM16: 0 | QSN16: 0 | QSO16: 0 | QSP16: 0 | QSQ16: 0 | QSR16: 0 | QSS16: 0 | QST16: 0 | QSU16: 0 | QSV16: 0 | QSW16: 0 | QSX16: 0 | QSY16: 0 | QSZ16: 0 | QTA16: 0 | QTB16: 0 | QTC16: 0 | QTD16: 0 | QTE16: 0 | QTF16: 0 | QTG16: 0 | QTH16: 0 | QTI16: 0 | QTJ16: 0 | QTK16: 0 | QTL16: 0 | QTM16: 0 | QTN16: 0 | QTO16: 0 | QTP16: 0 | QTQ16: 0 | QTR16: 0 | QTS16: 0 | QTT16: 0 | QTU16: 0 | QTV16: 0 | QTW16: =1.05*QTW6^1.4*((2*$N$5)/($N$5*$G$5))*IF($B$5=100,QTW9,QTW12)+QTW13+QTW14 -> 0 | QTX16: 0 | QTY16: 0 | QTZ16: 0 | QUA16: 0 | QUB16: 0 | QUC16: 0 | QUD16: 0 | QUE16: 0 | QUF16: 0 | QUG16: 0 | QUH16: 0 | QUI16: 0 | QUJ16: 0 | QUK16: 0 | QUL16: 0 | QUM16: 0 | QUN16: 0 | QUO16: 0 | QUP16: 0 | QUQ16: 0 | QUR16: 0 | QUS16: 0 | QUT16: 0 | QUU16: 0 | QUV16: 0 | QUW16: 0 | QUX16: 0 | QUY16: 0 | QUZ16: 0 | QVA16: 0 | QVB16: 0 | QVC16: 0 | QVD16: 0 | QVE16: 0 | QVF16: 0 | QVG16: 0 | QVH16: 0 | QVI16: 0 | QVJ16: 0 | QVK16: 0 | QVL16: 0 | QVM16: 0 | QVN16: 0 | QVO16: 0 | QVP16: 0 | QVQ16: 0 | QVR16: 0 | QVS16: 0 | QVT16: 0 | QVU16: 0 | QVV16: 0 | QVW16: 0 | QVX16: 0 | QVY16: 0 | QVZ16: 0 | QWA16: 0 | QWB16: 0 | QWC16: 0 | QWD16: 0 | QWE16: 0 | QWF16: 0 | QWG16: 0 | QWH16: 0 | QWI16: =1.05*QWI6^1.4*((2*$N$5)/($N$5*$G$5))*IF($B$5=100,QWI9,QWI12)+QWI13+QWI14 -> 0 | QWJ16: 0 | QWK16: 0 | QWL16: 0 | QWM16: 0 | QWN16: 0 | QWO16: 0 | QWP16: 0 | QWQ16: 0 | QWR16: 0 | QWS16: 0 | QWT16: 0 | QWU16: 0 | QWV16: 0 | QWW16: 0 | QWX16: 0 | QWY16: 0 | QWZ16: 0 | QXA16: 0 | QXB16: 0 | QXC16: 0 | QXD16: 0 | QXE16: 0 | QXF16: 0 | QXG16: 0 | QXH16: 0 | QXI16: 0 | QXJ16: 0 | QXK16: 0 | QXL16: 0 | QXM16: 0 | QXN16: 0 | QXO16: 0 | QXP16: 0 | QXQ16: 0 | QXR16: 0 | QXS16: 0 | QXT16: 0 | QXU16: 0 | QXV16: 0 | QXW16: 0 | QXX16: 0 | QXY16: 0 | QXZ16: 0 | QYA16: 0 | QYB16: 0 | QYC16: 0 | QYD16: 0 | QYE16: 0 | QYF16: 0 | QYG16: 0 | QYH16: 0 | QYI16: 0 | QYJ16: 0 | QYK16: 0 | QYL16: 0 | QYM16: 0 | QYN16: 0 | QYO16: 0 | QYP16: 0 | QYQ16: 0 | QYR16: 0 | QYS16: 0 | QYT16: 0 | QYU16: =1.05*QYU6^1.4*((2*$N$5)/($N$5*$G$5))*IF($B$5=100,QYU9,QYU12)+QYU13+QYU14 -> 0 | QYV16: 0 | QYW16: 0 | QYX16: 0 | QYY16: 0 | QYZ16: 0 | QZA16: 0 | QZB16: 0 | QZC16: 0 | QZD16: 0 | QZE16: 0 | QZF16: 0 | QZG16: 0 | QZH16: 0 | QZI16: 0 | QZJ16: 0 | QZK16: 0 | QZL16: 0 | QZM16: 0 | QZN16: 0 | QZO16: 0 | QZP16: 0 | QZQ16: 0 | QZR16: 0 | QZS16: 0 | QZT16: 0 | QZU16: 0 | QZV16: 0 | QZW16: 0 | QZX16: 0 | QZY16: 0 | QZZ16: 0 | RAA16: 0 | RAB16: 0 | RAC16: 0 | RAD16: 0 | RAE16: 0 | RAF16: 0 | RAG16: 0 | RAH16: 0 | RAI16: 0 | RAJ16: 0 | RAK16: 0 | RAL16: 0 | RAM16: 0 | RAN16: 0 | RAO16: 0 | RAP16: 0 | RAQ16: 0 | RAR16: 0 | RAS16: 0 | RAT16: 0 | RAU16: 0 | RAV16: 0 | RAW16: 0 | RAX16: 0 | RAY16: 0 | RAZ16: 0 | RBA16: 0 | RBB16: 0 | RBC16: 0 | RBD16: 0 | RBE16: 0 | RBF16: 0 | RBG16: =1.05*RBG6^1.4*((2*$N$5)/($N$5*$G$5))*IF($B$5=100,RBG9,RBG12)+RBG13+RBG14 -> 0 | RBH16: 0 | RBI16: 0 | RBJ16: 0 | RBK16: 0 | RBL16: 0 | RBM16: 0 | RBN16: 0 | RBO16: 0 | RBP16: 0 | RBQ16: 0 | RBR16: 0 | RBS16: 0 | RBT16: 0 | RBU16: 0 | RBV16: 0 | RBW16: 0 | RBX16: 0 | RBY16: 0 | RBZ16: 0 | RCA16: 0 | RCB16: 0 | RCC16: 0 | RCD16: 0 | RCE16: 0 | RCF16: 0 | RCG16: 0 | RCH16: 0 | RCI16: 0 | RCJ16: 0 | RCK16: 0 | RCL16: 0 | RCM16: 0 | RCN16: 0 | RCO16: 0 | RCP16: 0 | RCQ16: 0 | RCR16: 0 | RCS16: 0 | RCT16: 0 | RCU16: 0 | RCV16: 0 | RCW16: 0 | RCX16: 0 | RCY16: 0 | RCZ16: 0 | RDA16: 0 | RDB16: 0 | RDC16: 0 | RDD16: 0 | RDE16: 0 | RDF16: 0 | RDG16: 0 | RDH16: 0 | RDI16: 0 | RDJ16: 0 | RDK16: 0 | RDL16: 0 | RDM16: 0 | RDN16: 0 | RDO16: 0 | RDP16: 0 | RDQ16: 0 | RDR16: 0 | RDS16: =1.05*RDS6^1.4*((2*$N$5)/($N$5*$G$5))*IF($B$5=100,RDS9,RDS12)+RDS13+RDS14 -> 0 | RDT16: 0 | RDU16: 0 | RDV16: 0 | RDW16: 0 | RDX16: 0 | RDY16: 0 | RDZ16: 0 | REA16: 0 | REB16: 0 | REC16: 0 | RED16: 0 | REE16: 0 | REF16: 0 | REG16: 0 | REH16: 0 | REI16: 0 | REJ16: 0 | REK16: 0 | REL16: 0 | REM16: 0 | REN16: 0 | REO16: 0 | REP16: 0 | REQ16: 0 | RER16: 0 | RES16: 0 | RET16: 0 | REU16: 0 | REV16: 0 | REW16: 0 | REX16: 0 | REY16: 0 | REZ16: 0 | RFA16: 0 | RFB16: 0 | RFC16: 0 | RFD16: 0 | RFE16: 0 | RFF16: 0 | RFG16: 0 | RFH16: 0 | RFI16: 0 | RFJ16: 0 | RFK16: 0 | RFL16: 0 | RFM16: 0 | RFN16: 0 | RFO16: 0 | RFP16: 0 | RFQ16: 0 | RFR16: 0 | RFS16: 0 | RFT16: 0 | RFU16: 0 | RFV16: 0 | RFW16: 0 | RFX16: 0 | RFY16: 0 | RFZ16: 0 | RGA16: 0 | RGB16: 0 | RGC16: 0 | RGD16: 0 | RGE16: =1.05*RGE6^1.4*((2*$N$5)/($N$5*$G$5))*IF($B$5=100,RGE9,RGE12)+RGE13+RGE14 -> 0 | RGF16: 0 | RGG16: 0 | RGH16: 0 | RGI16: 0 | RGJ16: 0 | RGK16: 0 | RGL16: 0 | RGM16: 0 | RGN16: 0 | RGO16: 0 | RGP16: 0 | RGQ16: 0 | RGR16: 0 | RGS16: 0 | RGT16: 0 | RGU16: 0 | RGV16: 0 | RGW16: 0 | RGX16: 0 | RGY16: 0 | RGZ16: 0 | RHA16: 0 | RHB16: 0 | RHC16: 0 | RHD16: 0 | RHE16: 0 | RHF16: 0 | RHG16: 0 | RHH16: 0 | RHI16: 0 | RHJ16: 0 | RHK16: 0 | RHL16: 0 | RHM16: 0 | RHN16: 0 | RHO16: 0 | RHP16: 0 | RHQ16: 0 | RHR16: 0 | RHS16: 0 | RHT16: 0 | RHU16: 0 | RHV16: 0 | RHW16: 0 | RHX16: 0 | RHY16: 0 | RHZ16: 0 | RIA16: 0 | RIB16: 0 | RIC16: 0 | RID16: 0 | RIE16: 0 | RIF16: 0 | RIG16: 0 | RIH16: 0 | RII16: 0 | RIJ16: 0 | RIK16: 0 | RIL16: 0 | RIM16: 0 | RIN16: 0 | RIO16: 0 | RIP16: 0 | RIQ16: =1.05*RIQ6^1.4*((2*$N$5)/($N$5*$G$5))*IF($B$5=100,RIQ9,RIQ12)+RIQ13+RIQ14 -> 0 | RIR16: 0 | RIS16: 0 | RIT16: 0 | RIU16: 0 | RIV16: 0 | RIW16: 0 | RIX16: 0 | RIY16: 0 | RIZ16: 0 | RJA16: 0 | RJB16: 0 | RJC16: 0 | RJD16: 0 | RJE16: 0 | RJF16: 0 | RJG16: 0 | RJH16: 0 | RJI16: 0 | RJJ16: 0 | RJK16: 0 | RJL16: 0 | RJM16: 0 | RJN16: 0 | RJO16: 0 | RJP16: 0 | RJQ16: 0 | RJR16: 0 | RJS16: 0 | RJT16: 0 | RJU16: 0 | RJV16: 0 | RJW16: 0 | RJX16: 0 | RJY16: 0 | RJZ16: 0 | RKA16: 0 | RKB16: 0 | RKC16: 0 | RKD16: 0 | RKE16: 0 | RKF16: 0 | RKG16: 0 | RKH16: 0 | RKI16: 0 | RKJ16: 0 | RKK16: 0 | RKL16: 0 | RKM16: 0 | RKN16: 0 | RKO16: 0 | RKP16: 0 | RKQ16: 0 | RKR16: 0 | RKS16: 0 | RKT16: 0 | RKU16: 0 | RKV16: 0 | RKW16: 0 | RKX16: 0 | RKY16: 0 | RKZ16: 0 | RLA16: 0 | RLB16: 0 | RLC16: =1.05*RLC6^1.4*((2*$N$5)/($N$5*$G$5))*IF($B$5=100,RLC9,RLC12)+RLC13+RLC14 -> 0 | RLD16: 0 | RLE16: 0 | RLF16: 0 | RLG16: 0 | RLH16: 0 | RLI16: 0 | RLJ16: 0 | RLK16: 0 | RLL16: 0 | RLM16: 0 | RLN16: 0 | RLO16: 0 | RLP16: 0 | RLQ16: 0 | RLR16: 0 | RLS16: 0 | RLT16: 0 | RLU16: 0 | RLV16: 0 | RLW16: 0 | RLX16: 0 | RLY16: 0 | RLZ16: 0 | RMA16: 0 | RMB16: 0 | RMC16: 0 | RMD16: 0 | RME16: 0 | RMF16: 0 | RMG16: 0 | RMH16: 0 | RMI16: 0 | RMJ16: 0 | RMK16: 0 | RML16: 0 | RMM16: 0 | RMN16: 0 | RMO16: 0 | RMP16: 0 | RMQ16: 0 | RMR16: 0 | RMS16: 0 | RMT16: 0 | RMU16: 0 | RMV16: 0 | RMW16: 0 | RMX16: 0 | RMY16: 0 | RMZ16: 0 | RNA16: 0 | RNB16: 0 | RNC16: 0 | RND16: 0 | RNE16: 0 | RNF16: 0 | RNG16: 0 | RNH16: 0 | RNI16: 0 | RNJ16: 0 | RNK16: 0 | RNL16: 0 | RNM16: 0 | RNN16: 0 | RNO16: =1.05*RNO6^1.4*((2*$N$5)/($N$5*$G$5))*IF($B$5=100,RNO9,RNO12)+RNO13+RNO14 -> 0 | RNP16: 0 | RNQ16: 0 | RNR16: 0 | RNS16: 0 | RNT16: 0 | RNU16: 0 | RNV16: 0 | RNW16: 0 | RNX16: 0 | RNY16: 0 | RNZ16: 0 | ROA16: 0 | ROB16: 0 | ROC16: 0 | ROD16: 0 | ROE16: 0 | ROF16: 0 | ROG16: 0 | ROH16: 0 | ROI16: 0 | ROJ16: 0 | ROK16: 0 | ROL16: 0 | ROM16: 0 | RON16: 0 | ROO16: 0 | ROP16: 0 | ROQ16: 0 | ROR16: 0 | ROS16: 0 | ROT16: 0 | ROU16: 0 | ROV16: 0 | ROW16: 0 | ROX16: 0 | ROY16: 0 | ROZ16: 0 | RPA16: 0 | RPB16: 0 | RPC16: 0 | RPD16: 0 | RPE16: 0 | RPF16: 0 | RPG16: 0 | RPH16: 0 | RPI16: 0 | RPJ16: 0 | RPK16: 0 | RPL16: 0 | RPM16: 0 | RPN16: 0 | RPO16: 0 | RPP16: 0 | RPQ16: 0 | RPR16: 0 | RPS16: 0 | RPT16: 0 | RPU16: 0 | RPV16: 0 | RPW16: 0 | RPX16: 0 | RPY16: 0 | RPZ16: 0 | RQA16: =1.05*RQA6^1.4*((2*$N$5)/($N$5*$G$5))*IF($B$5=100,RQA9,RQA12)+RQA13+RQA14 -> 0 | RQB16: 0 | RQC16: 0 | RQD16: 0 | RQE16: 0 | RQF16: 0 | RQG16: 0 | RQH16: 0 | RQI16: 0 | RQJ16: 0 | RQK16: 0 | RQL16: 0 | RQM16: 0 | RQN16: 0 | RQO16: 0 | RQP16: 0 | RQQ16: 0 | RQR16: 0 | RQS16: 0 | RQT16: 0 | RQU16: 0 | RQV16: 0 | RQW16: 0 | RQX16: 0 | RQY16: 0 | RQZ16: 0 | RRA16: 0 | RRB16: 0 | RRC16: 0 | RRD16: 0 | RRE16: 0 | RRF16: 0 | RRG16: 0 | RRH16: 0 | RRI16: 0 | RRJ16: 0 | RRK16: 0 | RRL16: 0 | RRM16: 0 | RRN16: 0 | RRO16: 0 | RRP16: 0 | RRQ16: 0 | RRR16: 0 | RRS16: 0 | RRT16: 0 | RRU16: 0 | RRV16: 0 | RRW16: 0 | RRX16: 0 | RRY16: 0 | RRZ16: 0 | RSA16: 0 | RSB16: 0 | RSC16: 0 | RSD16: 0 | RSE16: 0 | RSF16: 0 | RSG16: 0 | RSH16: 0 | RSI16: 0 | RSJ16: 0 | RSK16: 0 | RSL16: 0 | RSM16: =1.05*RSM6^1.4*((2*$N$5)/($N$5*$G$5))*IF($B$5=100,RSM9,RSM12)+RSM13+RSM14 -> 0 | RSN16: 0 | RSO16: 0 | RSP16: 0 | RSQ16: 0 | RSR16: 0 | RSS16: 0 | RST16: 0 | RSU16: 0 | RSV16: 0 | RSW16: 0 | RSX16: 0 | RSY16: 0 | RSZ16: 0 | RTA16: 0 | RTB16: 0 | RTC16: 0 | RTD16: 0 | RTE16: 0 | RTF16: 0 | RTG16: 0 | RTH16: 0 | RTI16: 0 | RTJ16: 0 | RTK16: 0 | RTL16: 0 | RTM16: 0 | RTN16: 0 | RTO16: 0 | RTP16: 0 | RTQ16: 0 | RTR16: 0 | RTS16: 0 | RTT16: 0 | RTU16: 0 | RTV16: 0 | RTW16: 0 | RTX16: 0 | RTY16: 0 | RTZ16: 0 | RUA16: 0 | RUB16: 0 | RUC16: 0 | RUD16: 0 | RUE16: 0 | RUF16: 0 | RUG16: 0 | RUH16: 0 | RUI16: 0 | RUJ16: 0 | RUK16: 0 | RUL16: 0 | RUM16: 0 | RUN16: 0 | RUO16: 0 | RUP16: 0 | RUQ16: 0 | RUR16: 0 | RUS16: 0 | RUT16: 0 | RUU16: 0 | RUV16: 0 | RUW16: 0 | RUX16: 0 | RUY16: =1.05*RUY6^1.4*((2*$N$5)/($N$5*$G$5))*IF($B$5=100,RUY9,RUY12)+RUY13+RUY14 -> 0 | RUZ16: 0 | RVA16: 0 | RVB16: 0 | RVC16: 0 | RVD16: 0 | RVE16: 0 | RVF16: 0 | RVG16: 0 | RVH16: 0 | RVI16: 0 | RVJ16: 0 | RVK16: 0 | RVL16: 0 | RVM16: 0 | RVN16: 0 | RVO16: 0 | RVP16: 0 | RVQ16: 0 | RVR16: 0 | RVS16: 0 | RVT16: 0 | RVU16: 0 | RVV16: 0 | RVW16: 0 | RVX16: 0 | RVY16: 0 | RVZ16: 0 | RWA16: 0 | RWB16: 0 | RWC16: 0 | RWD16: 0 | RWE16: 0 | RWF16: 0 | RWG16: 0 | RWH16: 0 | RWI16: 0 | RWJ16: 0 | RWK16: 0 | RWL16: 0 | RWM16: 0 | RWN16: 0 | RWO16: 0 | RWP16: 0 | RWQ16: 0 | RWR16: 0 | RWS16: 0 | RWT16: 0 | RWU16: 0 | RWV16: 0 | RWW16: 0 | RWX16: 0 | RWY16: 0 | RWZ16: 0 | RXA16: 0 | RXB16: 0 | RXC16: 0 | RXD16: 0 | RXE16: 0 | RXF16: 0 | RXG16: 0 | RXH16: 0 | RXI16: 0 | RXJ16: 0 | RXK16: =1.05*RXK6^1.4*((2*$N$5)/($N$5*$G$5))*IF($B$5=100,RXK9,RXK12)+RXK13+RXK14 -> 0 | RXL16: 0 | RXM16: 0 | RXN16: 0 | RXO16: 0 | RXP16: 0 | RXQ16: 0 | RXR16: 0 | RXS16: 0 | RXT16: 0 | RXU16: 0 | RXV16: 0 | RXW16: 0 | RXX16: 0 | RXY16: 0 | RXZ16: 0 | RYA16: 0 | RYB16: 0 | RYC16: 0 | RYD16: 0 | RYE16: 0 | RYF16: 0 | RYG16: 0 | RYH16: 0 | RYI16: 0 | RYJ16: 0 | RYK16: 0 | RYL16: 0 | RYM16: 0 | RYN16: 0 | RYO16: 0 | RYP16: 0 | RYQ16: 0 | RYR16: 0 | RYS16: 0 | RYT16: 0 | RYU16: 0 | RYV16: 0 | RYW16: 0 | RYX16: 0 | RYY16: 0 | RYZ16: 0 | RZA16: 0 | RZB16: 0 | RZC16: 0 | RZD16: 0 | RZE16: 0 | RZF16: 0 | RZG16: 0 | RZH16: 0 | RZI16: 0 | RZJ16: 0 | RZK16: 0 | RZL16: 0 | RZM16: 0 | RZN16: 0 | RZO16: 0 | RZP16: 0 | RZQ16: 0 | RZR16: 0 | RZS16: 0 | RZT16: 0 | RZU16: 0 | RZV16: 0 | RZW16: =1.05*RZW6^1.4*((2*$N$5)/($N$5*$G$5))*IF($B$5=100,RZW9,RZW12)+RZW13+RZW14 -> 0 | RZX16: 0 | RZY16: 0 | RZZ16: 0 | SAA16: 0 | SAB16: 0 | SAC16: 0 | SAD16: 0 | SAE16: 0 | SAF16: 0 | SAG16: 0 | SAH16: 0 | SAI16: 0 | SAJ16: 0 | SAK16: 0 | SAL16: 0 | SAM16: 0 | SAN16: 0 | SAO16: 0 | SAP16: 0 | SAQ16: 0 | SAR16: 0 | SAS16: 0 | SAT16: 0 | SAU16: 0 | SAV16: 0 | SAW16: 0 | SAX16: 0 | SAY16: 0 | SAZ16: 0 | SBA16: 0 | SBB16: 0 | SBC16: 0 | SBD16: 0 | SBE16: 0 | SBF16: 0 | SBG16: 0 | SBH16: 0 | SBI16: 0 | SBJ16: 0 | SBK16: 0 | SBL16: 0 | SBM16: 0 | SBN16: 0 | SBO16: 0 | SBP16: 0 | SBQ16: 0 | SBR16: 0 | SBS16: 0 | SBT16: 0 | SBU16: 0 | SBV16: 0 | SBW16: 0 | SBX16: 0 | SBY16: 0 | SBZ16: 0 | SCA16: 0 | SCB16: 0 | SCC16: 0 | SCD16: 0 | SCE16: 0 | SCF16: 0 | SCG16: 0 | SCH16: 0 | SCI16: =1.05*SCI6^1.4*((2*$N$5)/($N$5*$G$5))*IF($B$5=100,SCI9,SCI12)+SCI13+SCI14 -> 0 | SCJ16: 0 | SCK16: 0 | SCL16: 0 | SCM16: 0 | SCN16: 0 | SCO16: 0 | SCP16: 0 | SCQ16: 0 | SCR16: 0 | SCS16: 0 | SCT16: 0 | SCU16: 0 | SCV16: 0 | SCW16: 0 | SCX16: 0 | SCY16: 0 | SCZ16: 0 | SDA16: 0 | SDB16: 0 | SDC16: 0 | SDD16: 0 | SDE16: 0 | SDF16: 0 | SDG16: 0 | SDH16: 0 | SDI16: 0 | SDJ16: 0 | SDK16: 0 | SDL16: 0 | SDM16: 0 | SDN16: 0 | SDO16: 0 | SDP16: 0 | SDQ16: 0 | SDR16: 0 | SDS16: 0 | SDT16: 0 | SDU16: 0 | SDV16: 0 | SDW16: 0 | SDX16: 0 | SDY16: 0 | SDZ16: 0 | SEA16: 0 | SEB16: 0 | SEC16: 0 | SED16: 0 | SEE16: 0 | SEF16: 0 | SEG16: 0 | SEH16: 0 | SEI16: 0 | SEJ16: 0 | SEK16: 0 | SEL16: 0 | SEM16: 0 | SEN16: 0 | SEO16: 0 | SEP16: 0 | SEQ16: 0 | SER16: 0 | SES16: 0 | SET16: 0 | SEU16: =1.05*SEU6^1.4*((2*$N$5)/($N$5*$G$5))*IF($B$5=100,SEU9,SEU12)+SEU13+SEU14 -> 0 | SEV16: 0 | SEW16: 0 | SEX16: 0 | SEY16: 0 | SEZ16: 0 | SFA16: 0 | SFB16: 0 | SFC16: 0 | SFD16: 0 | SFE16: 0 | SFF16: 0 | SFG16: 0 | SFH16: 0 | SFI16: 0 | SFJ16: 0 | SFK16: 0 | SFL16: 0 | SFM16: 0 | SFN16: 0 | SFO16: 0 | SFP16: 0 | SFQ16: 0 | SFR16: 0 | SFS16: 0 | SFT16: 0 | SFU16: 0 | SFV16: 0 | SFW16: 0 | SFX16: 0 | SFY16: 0 | SFZ16: 0 | SGA16: 0 | SGB16: 0 | SGC16: 0 | SGD16: 0 | SGE16: 0 | SGF16: 0 | SGG16: 0 | SGH16: 0 | SGI16: 0 | SGJ16: 0 | SGK16: 0 | SGL16: 0 | SGM16: 0 | SGN16: 0 | SGO16: 0 | SGP16: 0 | SGQ16: 0 | SGR16: 0 | SGS16: 0 | SGT16: 0 | SGU16: 0 | SGV16: 0 | SGW16: 0 | SGX16: 0 | SGY16: 0 | SGZ16: 0 | SHA16: 0 | SHB16: 0 | SHC16: 0 | SHD16: 0 | SHE16: 0 | SHF16: 0 | SHG16: =1.05*SHG6^1.4*((2*$N$5)/($N$5*$G$5))*IF($B$5=100,SHG9,SHG12)+SHG13+SHG14 -> 0 | SHH16: 0 | SHI16: 0 | SHJ16: 0 | SHK16: 0 | SHL16: 0 | SHM16: 0 | SHN16: 0 | SHO16: 0 | SHP16: 0 | SHQ16: 0 | SHR16: 0 | SHS16: 0 | SHT16: 0 | SHU16: 0 | SHV16: 0 | SHW16: 0 | SHX16: 0 | SHY16: 0 | SHZ16: 0 | SIA16: 0 | SIB16: 0 | SIC16: 0 | SID16: 0 | SIE16: 0 | SIF16: 0 | SIG16: 0 | SIH16: 0 | SII16: 0 | SIJ16: 0 | SIK16: 0 | SIL16: 0 | SIM16: 0 | SIN16: 0 | SIO16: 0 | SIP16: 0 | SIQ16: 0 | SIR16: 0 | SIS16: 0 | SIT16: 0 | SIU16: 0 | SIV16: 0 | SIW16: 0 | SIX16: 0 | SIY16: 0 | SIZ16: 0 | SJA16: 0 | SJB16: 0 | SJC16: 0 | SJD16: 0 | SJE16: 0 | SJF16: 0 | SJG16: 0 | SJH16: 0 | SJI16: 0 | SJJ16: 0 | SJK16: 0 | SJL16: 0 | SJM16: 0 | SJN16: 0 | SJO16: 0 | SJP16: 0 | SJQ16: 0 | SJR16: 0 | SJS16: =1.05*SJS6^1.4*((2*$N$5)/($N$5*$G$5))*IF($B$5=100,SJS9,SJS12)+SJS13+SJS14 -> 0 | SJT16: 0 | SJU16: 0 | SJV16: 0 | SJW16: 0 | SJX16: 0 | SJY16: 0 | SJZ16: 0 | SKA16: 0 | SKB16: 0 | SKC16: 0 | SKD16: 0 | SKE16: 0 | SKF16: 0 | SKG16: 0 | SKH16: 0 | SKI16: 0 | SKJ16: 0 | SKK16: 0 | SKL16: 0 | SKM16: 0 | SKN16: 0 | SKO16: 0 | SKP16: 0 | SKQ16: 0 | SKR16: 0 | SKS16: 0 | SKT16: 0 | SKU16: 0 | SKV16: 0 | SKW16: 0 | SKX16: 0 | SKY16: 0 | SKZ16: 0 | SLA16: 0 | SLB16: 0 | SLC16: 0 | SLD16: 0 | SLE16: 0 | SLF16: 0 | SLG16: 0 | SLH16: 0 | SLI16: 0 | SLJ16: 0 | SLK16: 0 | SLL16: 0 | SLM16: 0 | SLN16: 0 | SLO16: 0 | SLP16: 0 | SLQ16: 0 | SLR16: 0 | SLS16: 0 | SLT16: 0 | SLU16: 0 | SLV16: 0 | SLW16: 0 | SLX16: 0 | SLY16: 0 | SLZ16: 0 | SMA16: 0 | SMB16: 0 | SMC16: 0 | SMD16: 0 | SME16: =1.05*SME6^1.4*((2*$N$5)/($N$5*$G$5))*IF($B$5=100,SME9,SME12)+SME13+SME14 -> 0 | SMF16: 0 | SMG16: 0 | SMH16: 0 | SMI16: 0 | SMJ16: 0 | SMK16: 0 | SML16: 0 | SMM16: 0 | SMN16: 0 | SMO16: 0 | SMP16: 0 | SMQ16: 0 | SMR16: 0 | SMS16: 0 | SMT16: 0 | SMU16: 0 | SMV16: 0 | SMW16: 0 | SMX16: 0 | SMY16: 0 | SMZ16: 0 | SNA16: 0 | SNB16: 0 | SNC16: 0 | SND16: 0 | SNE16: 0 | SNF16: 0 | SNG16: 0 | SNH16: 0 | SNI16: 0 | SNJ16: 0 | SNK16: 0 | SNL16: 0 | SNM16: 0 | SNN16: 0 | SNO16: 0 | SNP16: 0 | SNQ16: 0 | SNR16: 0 | SNS16: 0 | SNT16: 0 | SNU16: 0 | SNV16: 0 | SNW16: 0 | SNX16: 0 | SNY16: 0 | SNZ16: 0 | SOA16: 0 | SOB16: 0 | SOC16: 0 | SOD16: 0 | SOE16: 0 | SOF16: 0 | SOG16: 0 | SOH16: 0 | SOI16: 0 | SOJ16: 0 | SOK16: 0 | SOL16: 0 | SOM16: 0 | SON16: 0 | SOO16: 0 | SOP16: 0 | SOQ16: =1.05*SOQ6^1.4*((2*$N$5)/($N$5*$G$5))*IF($B$5=100,SOQ9,SOQ12)+SOQ13+SOQ14 -> 0 | SOR16: 0 | SOS16: 0 | SOT16: 0 | SOU16: 0 | SOV16: 0 | SOW16: 0 | SOX16: 0 | SOY16: 0 | SOZ16: 0 | SPA16: 0 | SPB16: 0 | SPC16: 0 | SPD16: 0 | SPE16: 0 | SPF16: 0 | SPG16: 0 | SPH16: 0 | SPI16: 0 | SPJ16: 0 | SPK16: 0 | SPL16: 0 | SPM16: 0 | SPN16: 0 | SPO16: 0 | SPP16: 0 | SPQ16: 0 | SPR16: 0 | SPS16: 0 | SPT16: 0 | SPU16: 0 | SPV16: 0 | SPW16: 0 | SPX16: 0 | SPY16: 0 | SPZ16: 0 | SQA16: 0 | SQB16: 0 | SQC16: 0 | SQD16: 0 | SQE16: 0 | SQF16: 0 | SQG16: 0 | SQH16: 0 | SQI16: 0 | SQJ16: 0 | SQK16: 0 | SQL16: 0 | SQM16: 0 | SQN16: 0 | SQO16: 0 | SQP16: 0 | SQQ16: 0 | SQR16: 0 | SQS16: 0 | SQT16: 0 | SQU16: 0 | SQV16: 0 | SQW16: 0 | SQX16: 0 | SQY16: 0 | SQZ16: 0 | SRA16: 0 | SRB16: 0 | SRC16: =1.05*SRC6^1.4*((2*$N$5)/($N$5*$G$5))*IF($B$5=100,SRC9,SRC12)+SRC13+SRC14 -> 0 | SRD16: 0 | SRE16: 0 | SRF16: 0 | SRG16: 0 | SRH16: 0 | SRI16: 0 | SRJ16: 0 | SRK16: 0 | SRL16: 0 | SRM16: 0 | SRN16: 0 | SRO16: 0 | SRP16: 0 | SRQ16: 0 | SRR16: 0 | SRS16: 0 | SRT16: 0 | SRU16: 0 | SRV16: 0 | SRW16: 0 | SRX16: 0 | SRY16: 0 | SRZ16: 0 | SSA16: 0 | SSB16: 0 | SSC16: 0 | SSD16: 0 | SSE16: 0 | SSF16: 0 | SSG16: 0 | SSH16: 0 | SSI16: 0 | SSJ16: 0 | SSK16: 0 | SSL16: 0 | SSM16: 0 | SSN16: 0 | SSO16: 0 | SSP16: 0 | SSQ16: 0 | SSR16: 0 | SSS16: 0 | SST16: 0 | SSU16: 0 | SSV16: 0 | SSW16: 0 | SSX16: 0 | SSY16: 0 | SSZ16: 0 | STA16: 0 | STB16: 0 | STC16: 0 | STD16: 0 | STE16: 0 | STF16: 0 | STG16: 0 | STH16: 0 | STI16: 0 | STJ16: 0 | STK16: 0 | STL16: 0 | STM16: 0 | STN16: 0 | STO16: =1.05*STO6^1.4*((2*$N$5)/($N$5*$G$5))*IF($B$5=100,STO9,STO12)+STO13+STO14 -> 0 | STP16: 0 | STQ16: 0 | STR16: 0 | STS16: 0 | STT16: 0 | STU16: 0 | STV16: 0 | STW16: 0 | STX16: 0 | STY16: 0 | STZ16: 0 | SUA16: 0 | SUB16: 0 | SUC16: 0 | SUD16: 0 | SUE16: 0 | SUF16: 0 | SUG16: 0 | SUH16: 0 | SUI16: 0 | SUJ16: 0 | SUK16: 0 | SUL16: 0 | SUM16: 0 | SUN16: 0 | SUO16: 0 | SUP16: 0 | SUQ16: 0 | SUR16: 0 | SUS16: 0 | SUT16: 0 | SUU16: 0 | SUV16: 0 | SUW16: 0 | SUX16: 0 | SUY16: 0 | SUZ16: 0 | SVA16: 0 | SVB16: 0 | SVC16: 0 | SVD16: 0 | SVE16: 0 | SVF16: 0 | SVG16: 0 | SVH16: 0 | SVI16: 0 | SVJ16: 0 | SVK16: 0 | SVL16: 0 | SVM16: 0 | SVN16: 0 | SVO16: 0 | SVP16: 0 | SVQ16: 0 | SVR16: 0 | SVS16: 0 | SVT16: 0 | SVU16: 0 | SVV16: 0 | SVW16: 0 | SVX16: 0 | SVY16: 0 | SVZ16: 0 | SWA16: =1.05*SWA6^1.4*((2*$N$5)/($N$5*$G$5))*IF($B$5=100,SWA9,SWA12)+SWA13+SWA14 -> 0 | SWB16: 0 | SWC16: 0 | SWD16: 0 | SWE16: 0 | SWF16: 0 | SWG16: 0 | SWH16: 0 | SWI16: 0 | SWJ16: 0 | SWK16: 0 | SWL16: 0 | SWM16: 0 | SWN16: 0 | SWO16: 0 | SWP16: 0 | SWQ16: 0 | SWR16: 0 | SWS16: 0 | SWT16: 0 | SWU16: 0 | SWV16: 0 | SWW16: 0 | SWX16: 0 | SWY16: 0 | SWZ16: 0 | SXA16: 0 | SXB16: 0 | SXC16: 0 | SXD16: 0 | SXE16: 0 | SXF16: 0 | SXG16: 0 | SXH16: 0 | SXI16: 0 | SXJ16: 0 | SXK16: 0 | SXL16: 0 | SXM16: 0 | SXN16: 0 | SXO16: 0 | SXP16: 0 | SXQ16: 0 | SXR16: 0 | SXS16: 0 | SXT16: 0 | SXU16: 0 | SXV16: 0 | SXW16: 0 | SXX16: 0 | SXY16: 0 | SXZ16: 0 | SYA16: 0 | SYB16: 0 | SYC16: 0 | SYD16: 0 | SYE16: 0 | SYF16: 0 | SYG16: 0 | SYH16: 0 | SYI16: 0 | SYJ16: 0 | SYK16: 0 | SYL16: 0 | SYM16: =1.05*SYM6^1.4*((2*$N$5)/($N$5*$G$5))*IF($B$5=100,SYM9,SYM12)+SYM13+SYM14 -> 0 | SYN16: 0 | SYO16: 0 | SYP16: 0 | SYQ16: 0 | SYR16: 0 | SYS16: 0 | SYT16: 0 | SYU16: 0 | SYV16: 0 | SYW16: 0 | SYX16: 0 | SYY16: 0 | SYZ16: 0 | SZA16: 0 | SZB16: 0 | SZC16: 0 | SZD16: 0 | SZE16: 0 | SZF16: 0 | SZG16: 0 | SZH16: 0 | SZI16: 0 | SZJ16: 0 | SZK16: 0 | SZL16: 0 | SZM16: 0 | SZN16: 0 | SZO16: 0 | SZP16: 0 | SZQ16: 0 | SZR16: 0 | SZS16: 0 | SZT16: 0 | SZU16: 0 | SZV16: 0 | SZW16: 0 | SZX16: 0 | SZY16: 0 | SZZ16: 0 | TAA16: 0 | TAB16: 0 | TAC16: 0 | TAD16: 0 | TAE16: 0 | TAF16: 0 | TAG16: 0 | TAH16: 0 | TAI16: 0 | TAJ16: 0 | TAK16: 0 | TAL16: 0 | TAM16: 0 | TAN16: 0 | TAO16: 0 | TAP16: 0 | TAQ16: 0 | TAR16: 0 | TAS16: 0 | TAT16: 0 | TAU16: 0 | TAV16: 0 | TAW16: 0 | TAX16: 0 | TAY16: =1.05*TAY6^1.4*((2*$N$5)/($N$5*$G$5))*IF($B$5=100,TAY9,TAY12)+TAY13+TAY14 -> 0 | TAZ16: 0 | TBA16: 0 | TBB16: 0 | TBC16: 0 | TBD16: 0 | TBE16: 0 | TBF16: 0 | TBG16: 0 | TBH16: 0 | TBI16: 0 | TBJ16: 0 | TBK16: 0 | TBL16: 0 | TBM16: 0 | TBN16: 0 | TBO16: 0 | TBP16: 0 | TBQ16: 0 | TBR16: 0 | TBS16: 0 | TBT16: 0 | TBU16: 0 | TBV16: 0 | TBW16: 0 | TBX16: 0 | TBY16: 0 | TBZ16: 0 | TCA16: 0 | TCB16: 0 | TCC16: 0 | TCD16: 0 | TCE16: 0 | TCF16: 0 | TCG16: 0 | TCH16: 0 | TCI16: 0 | TCJ16: 0 | TCK16: 0 | TCL16: 0 | TCM16: 0 | TCN16: 0 | TCO16: 0 | TCP16: 0 | TCQ16: 0 | TCR16: 0 | TCS16: 0 | TCT16: 0 | TCU16: 0 | TCV16: 0 | TCW16: 0 | TCX16: 0 | TCY16: 0 | TCZ16: 0 | TDA16: 0 | TDB16: 0 | TDC16: 0 | TDD16: 0 | TDE16: 0 | TDF16: 0 | TDG16: 0 | TDH16: 0 | TDI16: 0 | TDJ16: 0 | TDK16: =1.05*TDK6^1.4*((2*$N$5)/($N$5*$G$5))*IF($B$5=100,TDK9,TDK12)+TDK13+TDK14 -> 0 | TDL16: 0 | TDM16: 0 | TDN16: 0 | TDO16: 0 | TDP16: 0 | TDQ16: 0 | TDR16: 0 | TDS16: 0 | TDT16: 0 | TDU16: 0 | TDV16: 0 | TDW16: 0 | TDX16: 0 | TDY16: 0 | TDZ16: 0 | TEA16: 0 | TEB16: 0 | TEC16: 0 | TED16: 0 | TEE16: 0 | TEF16: 0 | TEG16: 0 | TEH16: 0 | TEI16: 0 | TEJ16: 0 | TEK16: 0 | TEL16: 0 | TEM16: 0 | TEN16: 0 | TEO16: 0 | TEP16: 0 | TEQ16: 0 | TER16: 0 | TES16: 0 | TET16: 0 | TEU16: 0 | TEV16: 0 | TEW16: 0 | TEX16: 0 | TEY16: 0 | TEZ16: 0 | TFA16: 0 | TFB16: 0 | TFC16: 0 | TFD16: 0 | TFE16: 0 | TFF16: 0 | TFG16: 0 | TFH16: 0 | TFI16: 0 | TFJ16: 0 | TFK16: 0 | TFL16: 0 | TFM16: 0 | TFN16: 0 | TFO16: 0 | TFP16: 0 | TFQ16: 0 | TFR16: 0 | TFS16: 0 | TFT16: 0 | TFU16: 0 | TFV16: 0 | TFW16: =1.05*TFW6^1.4*((2*$N$5)/($N$5*$G$5))*IF($B$5=100,TFW9,TFW12)+TFW13+TFW14 -> 0 | TFX16: 0 | TFY16: 0 | TFZ16: 0 | TGA16: 0 | TGB16: 0 | TGC16: 0 | TGD16: 0 | TGE16: 0 | TGF16: 0 | TGG16: 0 | TGH16: 0 | TGI16: 0 | TGJ16: 0 | TGK16: 0 | TGL16: 0 | TGM16: 0 | TGN16: 0 | TGO16: 0 | TGP16: 0 | TGQ16: 0 | TGR16: 0 | TGS16: 0 | TGT16: 0 | TGU16: 0 | TGV16: 0 | TGW16: 0 | TGX16: 0 | TGY16: 0 | TGZ16: 0 | THA16: 0 | THB16: 0 | THC16: 0 | THD16: 0 | THE16: 0 | THF16: 0 | THG16: 0 | THH16: 0 | THI16: 0 | THJ16: 0 | THK16: 0 | THL16: 0 | THM16: 0 | THN16: 0 | THO16: 0 | THP16: 0 | THQ16: 0 | THR16: 0 | THS16: 0 | THT16: 0 | THU16: 0 | THV16: 0 | THW16: 0 | THX16: 0 | THY16: 0 | THZ16: 0 | TIA16: 0 | TIB16: 0 | TIC16: 0 | TID16: 0 | TIE16: 0 | TIF16: 0 | TIG16: 0 | TIH16: 0 | TII16: =1.05*TII6^1.4*((2*$N$5)/($N$5*$G$5))*IF($B$5=100,TII9,TII12)+TII13+TII14 -> 0 | TIJ16: 0 | TIK16: 0 | TIL16: 0 | TIM16: 0 | TIN16: 0 | TIO16: 0 | TIP16: 0 | TIQ16: 0 | TIR16: 0 | TIS16: 0 | TIT16: 0 | TIU16: 0 | TIV16: 0 | TIW16: 0 | TIX16: 0 | TIY16: 0 | TIZ16: 0 | TJA16: 0 | TJB16: 0 | TJC16: 0 | TJD16: 0 | TJE16: 0 | TJF16: 0 | TJG16: 0 | TJH16: 0 | TJI16: 0 | TJJ16: 0 | TJK16: 0 | TJL16: 0 | TJM16: 0 | TJN16: 0 | TJO16: 0 | TJP16: 0 | TJQ16: 0 | TJR16: 0 | TJS16: 0 | TJT16: 0 | TJU16: 0 | TJV16: 0 | TJW16: 0 | TJX16: 0 | TJY16: 0 | TJZ16: 0 | TKA16: 0 | TKB16: 0 | TKC16: 0 | TKD16: 0 | TKE16: 0 | TKF16: 0 | TKG16: 0 | TKH16: 0 | TKI16: 0 | TKJ16: 0 | TKK16: 0 | TKL16: 0 | TKM16: 0 | TKN16: 0 | TKO16: 0 | TKP16: 0 | TKQ16: 0 | TKR16: 0 | TKS16: 0 | TKT16: 0 | TKU16: =1.05*TKU6^1.4*((2*$N$5)/($N$5*$G$5))*IF($B$5=100,TKU9,TKU12)+TKU13+TKU14 -> 0 | TKV16: 0 | TKW16: 0 | TKX16: 0 | TKY16: 0 | TKZ16: 0 | TLA16: 0 | TLB16: 0 | TLC16: 0 | TLD16: 0 | TLE16: 0 | TLF16: 0 | TLG16: 0 | TLH16: 0 | TLI16: 0 | TLJ16: 0 | TLK16: 0 | TLL16: 0 | TLM16: 0 | TLN16: 0 | TLO16: 0 | TLP16: 0 | TLQ16: 0 | TLR16: 0 | TLS16: 0 | TLT16: 0 | TLU16: 0 | TLV16: 0 | TLW16: 0 | TLX16: 0 | TLY16: 0 | TLZ16: 0 | TMA16: 0 | TMB16: 0 | TMC16: 0 | TMD16: 0 | TME16: 0 | TMF16: 0 | TMG16: 0 | TMH16: 0 | TMI16: 0 | TMJ16: 0 | TMK16: 0 | TML16: 0 | TMM16: 0 | TMN16: 0 | TMO16: 0 | TMP16: 0 | TMQ16: 0 | TMR16: 0 | TMS16: 0 | TMT16: 0 | TMU16: 0 | TMV16: 0 | TMW16: 0 | TMX16: 0 | TMY16: 0 | TMZ16: 0 | TNA16: 0 | TNB16: 0 | TNC16: 0 | TND16: 0 | TNE16: 0 | TNF16: 0 | TNG16: =1.05*TNG6^1.4*((2*$N$5)/($N$5*$G$5))*IF($B$5=100,TNG9,TNG12)+TNG13+TNG14 -> 0 | TNH16: 0 | TNI16: 0 | TNJ16: 0 | TNK16: 0 | TNL16: 0 | TNM16: 0 | TNN16: 0 | TNO16: 0 | TNP16: 0 | TNQ16: 0 | TNR16: 0 | TNS16: 0 | TNT16: 0 | TNU16: 0 | TNV16: 0 | TNW16: 0 | TNX16: 0 | TNY16: 0 | TNZ16: 0 | TOA16: 0 | TOB16: 0 | TOC16: 0 | TOD16: 0 | TOE16: 0 | TOF16: 0 | TOG16: 0 | TOH16: 0 | TOI16: 0 | TOJ16: 0 | TOK16: 0 | TOL16: 0 | TOM16: 0 | TON16: 0 | TOO16: 0 | TOP16: 0 | TOQ16: 0 | TOR16: 0 | TOS16: 0 | TOT16: 0 | TOU16: 0 | TOV16: 0 | TOW16: 0 | TOX16: 0 | TOY16: 0 | TOZ16: 0 | TPA16: 0 | TPB16: 0 | TPC16: 0 | TPD16: 0 | TPE16: 0 | TPF16: 0 | TPG16: 0 | TPH16: 0 | TPI16: 0 | TPJ16: 0 | TPK16: 0 | TPL16: 0 | TPM16: 0 | TPN16: 0 | TPO16: 0 | TPP16: 0 | TPQ16: 0 | TPR16: 0 | TPS16: =1.05*TPS6^1.4*((2*$N$5)/($N$5*$G$5))*IF($B$5=100,TPS9,TPS12)+TPS13+TPS14 -> 0 | TPT16: 0 | TPU16: 0 | TPV16: 0 | TPW16: 0 | TPX16: 0 | TPY16: 0 | TPZ16: 0 | TQA16: 0 | TQB16: 0 | TQC16: 0 | TQD16: 0 | TQE16: 0 | TQF16: 0 | TQG16: 0 | TQH16: 0 | TQI16: 0 | TQJ16: 0 | TQK16: 0 | TQL16: 0 | TQM16: 0 | TQN16: 0 | TQO16: 0 | TQP16: 0 | TQQ16: 0 | TQR16: 0 | TQS16: 0 | TQT16: 0 | TQU16: 0 | TQV16: 0 | TQW16: 0 | TQX16: 0 | TQY16: 0 | TQZ16: 0 | TRA16: 0 | TRB16: 0 | TRC16: 0 | TRD16: 0 | TRE16: 0 | TRF16: 0 | TRG16: 0 | TRH16: 0 | TRI16: 0 | TRJ16: 0 | TRK16: 0 | TRL16: 0 | TRM16: 0 | TRN16: 0 | TRO16: 0 | TRP16: 0 | TRQ16: 0 | TRR16: 0 | TRS16: 0 | TRT16: 0 | TRU16: 0 | TRV16: 0 | TRW16: 0 | TRX16: 0 | TRY16: 0 | TRZ16: 0 | TSA16: 0 | TSB16: 0 | TSC16: 0 | TSD16: 0 | TSE16: =1.05*TSE6^1.4*((2*$N$5)/($N$5*$G$5))*IF($B$5=100,TSE9,TSE12)+TSE13+TSE14 -> 0 | TSF16: 0 | TSG16: 0 | TSH16: 0 | TSI16: 0 | TSJ16: 0 | TSK16: 0 | TSL16: 0 | TSM16: 0 | TSN16: 0 | TSO16: 0 | TSP16: 0 | TSQ16: 0 | TSR16: 0 | TSS16: 0 | TST16: 0 | TSU16: 0 | TSV16: 0 | TSW16: 0 | TSX16: 0 | TSY16: 0 | TSZ16: 0 | TTA16: 0 | TTB16: 0 | TTC16: 0 | TTD16: 0 | TTE16: 0 | TTF16: 0 | TTG16: 0 | TTH16: 0 | TTI16: 0 | TTJ16: 0 | TTK16: 0 | TTL16: 0 | TTM16: 0 | TTN16: 0 | TTO16: 0 | TTP16: 0 | TTQ16: 0 | TTR16: 0 | TTS16: 0 | TTT16: 0 | TTU16: 0 | TTV16: 0 | TTW16: 0 | TTX16: 0 | TTY16: 0 | TTZ16: 0 | TUA16: 0 | TUB16: 0 | TUC16: 0 | TUD16: 0 | TUE16: 0 | TUF16: 0 | TUG16: 0 | TUH16: 0 | TUI16: 0 | TUJ16: 0 | TUK16: 0 | TUL16: 0 | TUM16: 0 | TUN16: 0 | TUO16: 0 | TUP16: 0 | TUQ16: =1.05*TUQ6^1.4*((2*$N$5)/($N$5*$G$5))*IF($B$5=100,TUQ9,TUQ12)+TUQ13+TUQ14 -> 0 | TUR16: 0 | TUS16: 0 | TUT16: 0 | TUU16: 0 | TUV16: 0 | TUW16: 0 | TUX16: 0 | TUY16: 0 | TUZ16: 0 | TVA16: 0 | TVB16: 0 | TVC16: 0 | TVD16: 0 | TVE16: 0 | TVF16: 0 | TVG16: 0 | TVH16: 0 | TVI16: 0 | TVJ16: 0 | TVK16: 0 | TVL16: 0 | TVM16: 0 | TVN16: 0 | TVO16: 0 | TVP16: 0 | TVQ16: 0 | TVR16: 0 | TVS16: 0 | TVT16: 0 | TVU16: 0 | TVV16: 0 | TVW16: 0 | TVX16: 0 | TVY16: 0 | TVZ16: 0 | TWA16: 0 | TWB16: 0 | TWC16: 0 | TWD16: 0 | TWE16: 0 | TWF16: 0 | TWG16: 0 | TWH16: 0 | TWI16: 0 | TWJ16: 0 | TWK16: 0 | TWL16: 0 | TWM16: 0 | TWN16: 0 | TWO16: 0 | TWP16: 0 | TWQ16: 0 | TWR16: 0 | TWS16: 0 | TWT16: 0 | TWU16: 0 | TWV16: 0 | TWW16: 0 | TWX16: 0 | TWY16: 0 | TWZ16: 0 | TXA16: 0 | TXB16: 0 | TXC16: =1.05*TXC6^1.4*((2*$N$5)/($N$5*$G$5))*IF($B$5=100,TXC9,TXC12)+TXC13+TXC14 -> 0 | TXD16: 0 | TXE16: 0 | TXF16: 0 | TXG16: 0 | TXH16: 0 | TXI16: 0 | TXJ16: 0 | TXK16: 0 | TXL16: 0 | TXM16: 0 | TXN16: 0 | TXO16: 0 | TXP16: 0 | TXQ16: 0 | TXR16: 0 | TXS16: 0 | TXT16: 0 | TXU16: 0 | TXV16: 0 | TXW16: 0 | TXX16: 0 | TXY16: 0 | TXZ16: 0 | TYA16: 0 | TYB16: 0 | TYC16: 0 | TYD16: 0 | TYE16: 0 | TYF16: 0 | TYG16: 0 | TYH16: 0 | TYI16: 0 | TYJ16: 0 | TYK16: 0 | TYL16: 0 | TYM16: 0 | TYN16: 0 | TYO16: 0 | TYP16: 0 | TYQ16: 0 | TYR16: 0 | TYS16: 0 | TYT16: 0 | TYU16: 0 | TYV16: 0 | TYW16: 0 | TYX16: 0 | TYY16: 0 | TYZ16: 0 | TZA16: 0 | TZB16: 0 | TZC16: 0 | TZD16: 0 | TZE16: 0 | TZF16: 0 | TZG16: 0 | TZH16: 0 | TZI16: 0 | TZJ16: 0 | TZK16: 0 | TZL16: 0 | TZM16: 0 | TZN16: 0 | TZO16: =1.05*TZO6^1.4*((2*$N$5)/($N$5*$G$5))*IF($B$5=100,TZO9,TZO12)+TZO13+TZO14 -> 0 | TZP16: 0 | TZQ16: 0 | TZR16: 0 | TZS16: 0 | TZT16: 0 | TZU16: 0 | TZV16: 0 | TZW16: 0 | TZX16: 0 | TZY16: 0 | TZZ16: 0 | UAA16: 0 | UAB16: 0 | UAC16: 0 | UAD16: 0 | UAE16: 0 | UAF16: 0 | UAG16: 0 | UAH16: 0 | UAI16: 0 | UAJ16: 0 | UAK16: 0 | UAL16: 0 | UAM16: 0 | UAN16: 0 | UAO16: 0 | UAP16: 0 | UAQ16: 0 | UAR16: 0 | UAS16: 0 | UAT16: 0 | UAU16: 0 | UAV16: 0 | UAW16: 0 | UAX16: 0 | UAY16: 0 | UAZ16: 0 | UBA16: 0 | UBB16: 0 | UBC16: 0 | UBD16: 0 | UBE16: 0 | UBF16: 0 | UBG16: 0 | UBH16: 0 | UBI16: 0 | UBJ16: 0 | UBK16: 0 | UBL16: 0 | UBM16: 0 | UBN16: 0 | UBO16: 0 | UBP16: 0 | UBQ16: 0 | UBR16: 0 | UBS16: 0 | UBT16: 0 | UBU16: 0 | UBV16: 0 | UBW16: 0 | UBX16: 0 | UBY16: 0 | UBZ16: 0 | UCA16: =1.05*UCA6^1.4*((2*$N$5)/($N$5*$G$5))*IF($B$5=100,UCA9,UCA12)+UCA13+UCA14 -> 0 | UCB16: 0 | UCC16: 0 | UCD16: 0 | UCE16: 0 | UCF16: 0 | UCG16: 0 | UCH16: 0 | UCI16: 0 | UCJ16: 0 | UCK16: 0 | UCL16: 0 | UCM16: 0 | UCN16: 0 | UCO16: 0 | UCP16: 0 | UCQ16: 0 | UCR16: 0 | UCS16: 0 | UCT16: 0 | UCU16: 0 | UCV16: 0 | UCW16: 0 | UCX16: 0 | UCY16: 0 | UCZ16: 0 | UDA16: 0 | UDB16: 0 | UDC16: 0 | UDD16: 0 | UDE16: 0 | UDF16: 0 | UDG16: 0 | UDH16: 0 | UDI16: 0 | UDJ16: 0 | UDK16: 0 | UDL16: 0 | UDM16: 0 | UDN16: 0 | UDO16: 0 | UDP16: 0 | UDQ16: 0 | UDR16: 0 | UDS16: 0 | UDT16: 0 | UDU16: 0 | UDV16: 0 | UDW16: 0 | UDX16: 0 | UDY16: 0 | UDZ16: 0 | UEA16: 0 | UEB16: 0 | UEC16: 0 | UED16: 0 | UEE16: 0 | UEF16: 0 | UEG16: 0 | UEH16: 0 | UEI16: 0 | UEJ16: 0 | UEK16: 0 | UEL16: 0 | UEM16: =1.05*UEM6^1.4*((2*$N$5)/($N$5*$G$5))*IF($B$5=100,UEM9,UEM12)+UEM13+UEM14 -> 0 | UEN16: 0 | UEO16: 0 | UEP16: 0 | UEQ16: 0 | UER16: 0 | UES16: 0 | UET16: 0 | UEU16: 0 | UEV16: 0 | UEW16: 0 | UEX16: 0 | UEY16: 0 | UEZ16: 0 | UFA16: 0 | UFB16: 0 | UFC16: 0 | UFD16: 0 | UFE16: 0 | UFF16: 0 | UFG16: 0 | UFH16: 0 | UFI16: 0 | UFJ16: 0 | UFK16: 0 | UFL16: 0 | UFM16: 0 | UFN16: 0 | UFO16: 0 | UFP16: 0 | UFQ16: 0 | UFR16: 0 | UFS16: 0 | UFT16: 0 | UFU16: 0 | UFV16: 0 | UFW16: 0 | UFX16: 0 | UFY16: 0 | UFZ16: 0 | UGA16: 0 | UGB16: 0 | UGC16: 0 | UGD16: 0 | UGE16: 0 | UGF16: 0 | UGG16: 0 | UGH16: 0 | UGI16: 0 | UGJ16: 0 | UGK16: 0 | UGL16: 0 | UGM16: 0 | UGN16: 0 | UGO16: 0 | UGP16: 0 | UGQ16: 0 | UGR16: 0 | UGS16: 0 | UGT16: 0 | UGU16: 0 | UGV16: 0 | UGW16: 0 | UGX16: 0 | UGY16: =1.05*UGY6^1.4*((2*$N$5)/($N$5*$G$5))*IF($B$5=100,UGY9,UGY12)+UGY13+UGY14 -> 0 | UGZ16: 0 | UHA16: 0 | UHB16: 0 | UHC16: 0 | UHD16: 0 | UHE16: 0 | UHF16: 0 | UHG16: 0 | UHH16: 0 | UHI16: 0 | UHJ16: 0 | UHK16: 0 | UHL16: 0 | UHM16: 0 | UHN16: 0 | UHO16: 0 | UHP16: 0 | UHQ16: 0 | UHR16: 0 | UHS16: 0 | UHT16: 0 | UHU16: 0 | UHV16: 0 | UHW16: 0 | UHX16: 0 | UHY16: 0 | UHZ16: 0 | UIA16: 0 | UIB16: 0 | UIC16: 0 | UID16: 0 | UIE16: 0 | UIF16: 0 | UIG16: 0 | UIH16: 0 | UII16: 0 | UIJ16: 0 | UIK16: 0 | UIL16: 0 | UIM16: 0 | UIN16: 0 | UIO16: 0 | UIP16: 0 | UIQ16: 0 | UIR16: 0 | UIS16: 0 | UIT16: 0 | UIU16: 0 | UIV16: 0 | UIW16: 0 | UIX16: 0 | UIY16: 0 | UIZ16: 0 | UJA16: 0 | UJB16: 0 | UJC16: 0 | UJD16: 0 | UJE16: 0 | UJF16: 0 | UJG16: 0 | UJH16: 0 | UJI16: 0 | UJJ16: 0 | UJK16: =1.05*UJK6^1.4*((2*$N$5)/($N$5*$G$5))*IF($B$5=100,UJK9,UJK12)+UJK13+UJK14 -> 0 | UJL16: 0 | UJM16: 0 | UJN16: 0 | UJO16: 0 | UJP16: 0 | UJQ16: 0 | UJR16: 0 | UJS16: 0 | UJT16: 0 | UJU16: 0 | UJV16: 0 | UJW16: 0 | UJX16: 0 | UJY16: 0 | UJZ16: 0 | UKA16: 0 | UKB16: 0 | UKC16: 0 | UKD16: 0 | UKE16: 0 | UKF16: 0 | UKG16: 0 | UKH16: 0 | UKI16: 0 | UKJ16: 0 | UKK16: 0 | UKL16: 0 | UKM16: 0 | UKN16: 0 | UKO16: 0 | UKP16: 0 | UKQ16: 0 | UKR16: 0 | UKS16: 0 | UKT16: 0 | UKU16: 0 | UKV16: 0 | UKW16: 0 | UKX16: 0 | UKY16: 0 | UKZ16: 0 | ULA16: 0 | ULB16: 0 | ULC16: 0 | ULD16: 0 | ULE16: 0 | ULF16: 0 | ULG16: 0 | ULH16: 0 | ULI16: 0 | ULJ16: 0 | ULK16: 0 | ULL16: 0 | ULM16: 0 | ULN16: 0 | ULO16: 0 | ULP16: 0 | ULQ16: 0 | ULR16: 0 | ULS16: 0 | ULT16: 0 | ULU16: 0 | ULV16: 0 | ULW16: =1.05*ULW6^1.4*((2*$N$5)/($N$5*$G$5))*IF($B$5=100,ULW9,ULW12)+ULW13+ULW14 -> 0 | ULX16: 0 | ULY16: 0 | ULZ16: 0 | UMA16: 0 | UMB16: 0 | UMC16: 0 | UMD16: 0 | UME16: 0 | UMF16: 0 | UMG16: 0 | UMH16: 0 | UMI16: 0 | UMJ16: 0 | UMK16: 0 | UML16: 0 | UMM16: 0 | UMN16: 0 | UMO16: 0 | UMP16: 0 | UMQ16: 0 | UMR16: 0 | UMS16: 0 | UMT16: 0 | UMU16: 0 | UMV16: 0 | UMW16: 0 | UMX16: 0 | UMY16: 0 | UMZ16: 0 | UNA16: 0 | UNB16: 0 | UNC16: 0 | UND16: 0 | UNE16: 0 | UNF16: 0 | UNG16: 0 | UNH16: 0 | UNI16: 0 | UNJ16: 0 | UNK16: 0 | UNL16: 0 | UNM16: 0 | UNN16: 0 | UNO16: 0 | UNP16: 0 | UNQ16: 0 | UNR16: 0 | UNS16: 0 | UNT16: 0 | UNU16: 0 | UNV16: 0 | UNW16: 0 | UNX16: 0 | UNY16: 0 | UNZ16: 0 | UOA16: 0 | UOB16: 0 | UOC16: 0 | UOD16: 0 | UOE16: 0 | UOF16: 0 | UOG16: 0 | UOH16: 0 | UOI16: =1.05*UOI6^1.4*((2*$N$5)/($N$5*$G$5))*IF($B$5=100,UOI9,UOI12)+UOI13+UOI14 -> 0 | UOJ16: 0 | UOK16: 0 | UOL16: 0 | UOM16: 0 | UON16: 0 | UOO16: 0 | UOP16: 0 | UOQ16: 0 | UOR16: 0 | UOS16: 0 | UOT16: 0 | UOU16: 0 | UOV16: 0 | UOW16: 0 | UOX16: 0 | UOY16: 0 | UOZ16: 0 | UPA16: 0 | UPB16: 0 | UPC16: 0 | UPD16: 0 | UPE16: 0 | UPF16: 0 | UPG16: 0 | UPH16: 0 | UPI16: 0 | UPJ16: 0 | UPK16: 0 | UPL16: 0 | UPM16: 0 | UPN16: 0 | UPO16: 0 | UPP16: 0 | UPQ16: 0 | UPR16: 0 | UPS16: 0 | UPT16: 0 | UPU16: 0 | UPV16: 0 | UPW16: 0 | UPX16: 0 | UPY16: 0 | UPZ16: 0 | UQA16: 0 | UQB16: 0 | UQC16: 0 | UQD16: 0 | UQE16: 0 | UQF16: 0 | UQG16: 0 | UQH16: 0 | UQI16: 0 | UQJ16: 0 | UQK16: 0 | UQL16: 0 | UQM16: 0 | UQN16: 0 | UQO16: 0 | UQP16: 0 | UQQ16: 0 | UQR16: 0 | UQS16: 0 | UQT16: 0 | UQU16: =1.05*UQU6^1.4*((2*$N$5)/($N$5*$G$5))*IF($B$5=100,UQU9,UQU12)+UQU13+UQU14 -> 0 | UQV16: 0 | UQW16: 0 | UQX16: 0 | UQY16: 0 | UQZ16: 0 | URA16: 0 | URB16: 0 | URC16: 0 | URD16: 0 | URE16: 0 | URF16: 0 | URG16: 0 | URH16: 0 | URI16: 0 | URJ16: 0 | URK16: 0 | URL16: 0 | URM16: 0 | URN16: 0 | URO16: 0 | URP16: 0 | URQ16: 0 | URR16: 0 | URS16: 0 | URT16: 0 | URU16: 0 | URV16: 0 | URW16: 0 | URX16: 0 | URY16: 0 | URZ16: 0 | USA16: 0 | USB16: 0 | USC16: 0 | USD16: 0 | USE16: 0 | USF16: 0 | USG16: 0 | USH16: 0 | USI16: 0 | USJ16: 0 | USK16: 0 | USL16: 0 | USM16: 0 | USN16: 0 | USO16: 0 | USP16: 0 | USQ16: 0 | USR16: 0 | USS16: 0 | UST16: 0 | USU16: 0 | USV16: 0 | USW16: 0 | USX16: 0 | USY16: 0 | USZ16: 0 | UTA16: 0 | UTB16: 0 | UTC16: 0 | UTD16: 0 | UTE16: 0 | UTF16: 0 | UTG16: =1.05*UTG6^1.4*((2*$N$5)/($N$5*$G$5))*IF($B$5=100,UTG9,UTG12)+UTG13+UTG14 -> 0 | UTH16: 0 | UTI16: 0 | UTJ16: 0 | UTK16: 0 | UTL16: 0 | UTM16: 0 | UTN16: 0 | UTO16: 0 | UTP16: 0 | UTQ16: 0 | UTR16: 0 | UTS16: 0 | UTT16: 0 | UTU16: 0 | UTV16: 0 | UTW16: 0 | UTX16: 0 | UTY16: 0 | UTZ16: 0 | UUA16: 0 | UUB16: 0 | UUC16: 0 | UUD16: 0 | UUE16: 0 | UUF16: 0 | UUG16: 0 | UUH16: 0 | UUI16: 0 | UUJ16: 0 | UUK16: 0 | UUL16: 0 | UUM16: 0 | UUN16: 0 | UUO16: 0 | UUP16: 0 | UUQ16: 0 | UUR16: 0 | UUS16: 0 | UUT16: 0 | UUU16: 0 | UUV16: 0 | UUW16: 0 | UUX16: 0 | UUY16: 0 | UUZ16: 0 | UVA16: 0 | UVB16: 0 | UVC16: 0 | UVD16: 0 | UVE16: 0 | UVF16: 0 | UVG16: 0 | UVH16: 0 | UVI16: 0 | UVJ16: 0 | UVK16: 0 | UVL16: 0 | UVM16: 0 | UVN16: 0 | UVO16: 0 | UVP16: 0 | UVQ16: 0 | UVR16: 0 | UVS16: =1.05*UVS6^1.4*((2*$N$5)/($N$5*$G$5))*IF($B$5=100,UVS9,UVS12)+UVS13+UVS14 -> 0 | UVT16: 0 | UVU16: 0 | UVV16: 0 | UVW16: 0 | UVX16: 0 | UVY16: 0 | UVZ16: 0 | UWA16: 0 | UWB16: 0 | UWC16: 0 | UWD16: 0 | UWE16: 0 | UWF16: 0 | UWG16: 0 | UWH16: 0 | UWI16: 0 | UWJ16: 0 | UWK16: 0 | UWL16: 0 | UWM16: 0 | UWN16: 0 | UWO16: 0 | UWP16: 0 | UWQ16: 0 | UWR16: 0 | UWS16: 0 | UWT16: 0 | UWU16: 0 | UWV16: 0 | UWW16: 0 | UWX16: 0 | UWY16: 0 | UWZ16: 0 | UXA16: 0 | UXB16: 0 | UXC16: 0 | UXD16: 0 | UXE16: 0 | UXF16: 0 | UXG16: 0 | UXH16: 0 | UXI16: 0 | UXJ16: 0 | UXK16: 0 | UXL16: 0 | UXM16: 0 | UXN16: 0 | UXO16: 0 | UXP16: 0 | UXQ16: 0 | UXR16: 0 | UXS16: 0 | UXT16: 0 | UXU16: 0 | UXV16: 0 | UXW16: 0 | UXX16: 0 | UXY16: 0 | UXZ16: 0 | UYA16: 0 | UYB16: 0 | UYC16: 0 | UYD16: 0 | UYE16: =1.05*UYE6^1.4*((2*$N$5)/($N$5*$G$5))*IF($B$5=100,UYE9,UYE12)+UYE13+UYE14 -> 0 | UYF16: 0 | UYG16: 0 | UYH16: 0 | UYI16: 0 | UYJ16: 0 | UYK16: 0 | UYL16: 0 | UYM16: 0 | UYN16: 0 | UYO16: 0 | UYP16: 0 | UYQ16: 0 | UYR16: 0 | UYS16: 0 | UYT16: 0 | UYU16: 0 | UYV16: 0 | UYW16: 0 | UYX16: 0 | UYY16: 0 | UYZ16: 0 | UZA16: 0 | UZB16: 0 | UZC16: 0 | UZD16: 0 | UZE16: 0 | UZF16: 0 | UZG16: 0 | UZH16: 0 | UZI16: 0 | UZJ16: 0 | UZK16: 0 | UZL16: 0 | UZM16: 0 | UZN16: 0 | UZO16: 0 | UZP16: 0 | UZQ16: 0 | UZR16: 0 | UZS16: 0 | UZT16: 0 | UZU16: 0 | UZV16: 0 | UZW16: 0 | UZX16: 0 | UZY16: 0 | UZZ16: 0 | VAA16: 0 | VAB16: 0 | VAC16: 0 | VAD16: 0 | VAE16: 0 | VAF16: 0 | VAG16: 0 | VAH16: 0 | VAI16: 0 | VAJ16: 0 | VAK16: 0 | VAL16: 0 | VAM16: 0 | VAN16: 0 | VAO16: 0 | VAP16: 0 | VAQ16: =1.05*VAQ6^1.4*((2*$N$5)/($N$5*$G$5))*IF($B$5=100,VAQ9,VAQ12)+VAQ13+VAQ14 -> 0 | VAR16: 0 | VAS16: 0 | VAT16: 0 | VAU16: 0 | VAV16: 0 | VAW16: 0 | VAX16: 0 | VAY16: 0 | VAZ16: 0 | VBA16: 0 | VBB16: 0 | VBC16: 0 | VBD16: 0 | VBE16: 0 | VBF16: 0 | VBG16: 0 | VBH16: 0 | VBI16: 0 | VBJ16: 0 | VBK16: 0 | VBL16: 0 | VBM16: 0 | VBN16: 0 | VBO16: 0 | VBP16: 0 | VBQ16: 0 | VBR16: 0 | VBS16: 0 | VBT16: 0 | VBU16: 0 | VBV16: 0 | VBW16: 0 | VBX16: 0 | VBY16: 0 | VBZ16: 0 | VCA16: 0 | VCB16: 0 | VCC16: 0 | VCD16: 0 | VCE16: 0 | VCF16: 0 | VCG16: 0 | VCH16: 0 | VCI16: 0 | VCJ16: 0 | VCK16: 0 | VCL16: 0 | VCM16: 0 | VCN16: 0 | VCO16: 0 | VCP16: 0 | VCQ16: 0 | VCR16: 0 | VCS16: 0 | VCT16: 0 | VCU16: 0 | VCV16: 0 | VCW16: 0 | VCX16: 0 | VCY16: 0 | VCZ16: 0 | VDA16: 0 | VDB16: 0 | VDC16: =1.05*VDC6^1.4*((2*$N$5)/($N$5*$G$5))*IF($B$5=100,VDC9,VDC12)+VDC13+VDC14 -> 0 | VDD16: 0 | VDE16: 0 | VDF16: 0 | VDG16: 0 | VDH16: 0 | VDI16: 0 | VDJ16: 0 | VDK16: 0 | VDL16: 0 | VDM16: 0 | VDN16: 0 | VDO16: 0 | VDP16: 0 | VDQ16: 0 | VDR16: 0 | VDS16: 0 | VDT16: 0 | VDU16: 0 | VDV16: 0 | VDW16: 0 | VDX16: 0 | VDY16: 0 | VDZ16: 0 | VEA16: 0 | VEB16: 0 | VEC16: 0 | VED16: 0 | VEE16: 0 | VEF16: 0 | VEG16: 0 | VEH16: 0 | VEI16: 0 | VEJ16: 0 | VEK16: 0 | VEL16: 0 | VEM16: 0 | VEN16: 0 | VEO16: 0 | VEP16: 0 | VEQ16: 0 | VER16: 0 | VES16: 0 | VET16: 0 | VEU16: 0 | VEV16: 0 | VEW16: 0 | VEX16: 0 | VEY16: 0 | VEZ16: 0 | VFA16: 0 | VFB16: 0 | VFC16: 0 | VFD16: 0 | VFE16: 0 | VFF16: 0 | VFG16: 0 | VFH16: 0 | VFI16: 0 | VFJ16: 0 | VFK16: 0 | VFL16: 0 | VFM16: 0 | VFN16: 0 | VFO16: =1.05*VFO6^1.4*((2*$N$5)/($N$5*$G$5))*IF($B$5=100,VFO9,VFO12)+VFO13+VFO14 -> 0 | VFP16: 0 | VFQ16: 0 | VFR16: 0 | VFS16: 0 | VFT16: 0 | VFU16: 0 | VFV16: 0 | VFW16: 0 | VFX16: 0 | VFY16: 0 | VFZ16: 0 | VGA16: 0 | VGB16: 0 | VGC16: 0 | VGD16: 0 | VGE16: 0 | VGF16: 0 | VGG16: 0 | VGH16: 0 | VGI16: 0 | VGJ16: 0 | VGK16: 0 | VGL16: 0 | VGM16: 0 | VGN16: 0 | VGO16: 0 | VGP16: 0 | VGQ16: 0 | VGR16: 0 | VGS16: 0 | VGT16: 0 | VGU16: 0 | VGV16: 0 | VGW16: 0 | VGX16: 0 | VGY16: 0 | VGZ16: 0 | VHA16: 0 | VHB16: 0 | VHC16: 0 | VHD16: 0 | VHE16: 0 | VHF16: 0 | VHG16: 0 | VHH16: 0 | VHI16: 0 | VHJ16: 0 | VHK16: 0 | VHL16: 0 | VHM16: 0 | VHN16: 0 | VHO16: 0 | VHP16: 0 | VHQ16: 0 | VHR16: 0 | VHS16: 0 | VHT16: 0 | VHU16: 0 | VHV16: 0 | VHW16: 0 | VHX16: 0 | VHY16: 0 | VHZ16: 0 | VIA16: =1.05*VIA6^1.4*((2*$N$5)/($N$5*$G$5))*IF($B$5=100,VIA9,VIA12)+VIA13+VIA14 -> 0 | VIB16: 0 | VIC16: 0 | VID16: 0 | VIE16: 0 | VIF16: 0 | VIG16: 0 | VIH16: 0 | VII16: 0 | VIJ16: 0 | VIK16: 0 | VIL16: 0 | VIM16: 0 | VIN16: 0 | VIO16: 0 | VIP16: 0 | VIQ16: 0 | VIR16: 0 | VIS16: 0 | VIT16: 0 | VIU16: 0 | VIV16: 0 | VIW16: 0 | VIX16: 0 | VIY16: 0 | VIZ16: 0 | VJA16: 0 | VJB16: 0 | VJC16: 0 | VJD16: 0 | VJE16: 0 | VJF16: 0 | VJG16: 0 | VJH16: 0 | VJI16: 0 | VJJ16: 0 | VJK16: 0 | VJL16: 0 | VJM16: 0 | VJN16: 0 | VJO16: 0 | VJP16: 0 | VJQ16: 0 | VJR16: 0 | VJS16: 0 | VJT16: 0 | VJU16: 0 | VJV16: 0 | VJW16: 0 | VJX16: 0 | VJY16: 0 | VJZ16: 0 | VKA16: 0 | VKB16: 0 | VKC16: 0 | VKD16: 0 | VKE16: 0 | VKF16: 0 | VKG16: 0 | VKH16: 0 | VKI16: 0 | VKJ16: 0 | VKK16: 0 | VKL16: 0 | VKM16: =1.05*VKM6^1.4*((2*$N$5)/($N$5*$G$5))*IF($B$5=100,VKM9,VKM12)+VKM13+VKM14 -> 0 | VKN16: 0 | VKO16: 0 | VKP16: 0 | VKQ16: 0 | VKR16: 0 | VKS16: 0 | VKT16: 0 | VKU16: 0 | VKV16: 0 | VKW16: 0 | VKX16: 0 | VKY16: 0 | VKZ16: 0 | VLA16: 0 | VLB16: 0 | VLC16: 0 | VLD16: 0 | VLE16: 0 | VLF16: 0 | VLG16: 0 | VLH16: 0 | VLI16: 0 | VLJ16: 0 | VLK16: 0 | VLL16: 0 | VLM16: 0 | VLN16: 0 | VLO16: 0 | VLP16: 0 | VLQ16: 0 | VLR16: 0 | VLS16: 0 | VLT16: 0 | VLU16: 0 | VLV16: 0 | VLW16: 0 | VLX16: 0 | VLY16: 0 | VLZ16: 0 | VMA16: 0 | VMB16: 0 | VMC16: 0 | VMD16: 0 | VME16: 0 | VMF16: 0 | VMG16: 0 | VMH16: 0 | VMI16: 0 | VMJ16: 0 | VMK16: 0 | VML16: 0 | VMM16: 0 | VMN16: 0 | VMO16: 0 | VMP16: 0 | VMQ16: 0 | VMR16: 0 | VMS16: 0 | VMT16: 0 | VMU16: 0 | VMV16: 0 | VMW16: 0 | VMX16: 0 | VMY16: =1.05*VMY6^1.4*((2*$N$5)/($N$5*$G$5))*IF($B$5=100,VMY9,VMY12)+VMY13+VMY14 -> 0 | VMZ16: 0 | VNA16: 0 | VNB16: 0 | VNC16: 0 | VND16: 0 | VNE16: 0 | VNF16: 0 | VNG16: 0 | VNH16: 0 | VNI16: 0 | VNJ16: 0 | VNK16: 0 | VNL16: 0 | VNM16: 0 | VNN16: 0 | VNO16: 0 | VNP16: 0 | VNQ16: 0 | VNR16: 0 | VNS16: 0 | VNT16: 0 | VNU16: 0 | VNV16: 0 | VNW16: 0 | VNX16: 0 | VNY16: 0 | VNZ16: 0 | VOA16: 0 | VOB16: 0 | VOC16: 0 | VOD16: 0 | VOE16: 0 | VOF16: 0 | VOG16: 0 | VOH16: 0 | VOI16: 0 | VOJ16: 0 | VOK16: 0 | VOL16: 0 | VOM16: 0 | VON16: 0 | VOO16: 0 | VOP16: 0 | VOQ16: 0 | VOR16: 0 | VOS16: 0 | VOT16: 0 | VOU16: 0 | VOV16: 0 | VOW16: 0 | VOX16: 0 | VOY16: 0 | VOZ16: 0 | VPA16: 0 | VPB16: 0 | VPC16: 0 | VPD16: 0 | VPE16: 0 | VPF16: 0 | VPG16: 0 | VPH16: 0 | VPI16: 0 | VPJ16: 0 | VPK16: =1.05*VPK6^1.4*((2*$N$5)/($N$5*$G$5))*IF($B$5=100,VPK9,VPK12)+VPK13+VPK14 -> 0 | VPL16: 0 | VPM16: 0 | VPN16: 0 | VPO16: 0 | VPP16: 0 | VPQ16: 0 | VPR16: 0 | VPS16: 0 | VPT16: 0 | VPU16: 0 | VPV16: 0 | VPW16: 0 | VPX16: 0 | VPY16: 0 | VPZ16: 0 | VQA16: 0 | VQB16: 0 | VQC16: 0 | VQD16: 0 | VQE16: 0 | VQF16: 0 | VQG16: 0 | VQH16: 0 | VQI16: 0 | VQJ16: 0 | VQK16: 0 | VQL16: 0 | VQM16: 0 | VQN16: 0 | VQO16: 0 | VQP16: 0 | VQQ16: 0 | VQR16: 0 | VQS16: 0 | VQT16: 0 | VQU16: 0 | VQV16: 0 | VQW16: 0 | VQX16: 0 | VQY16: 0 | VQZ16: 0 | VRA16: 0 | VRB16: 0 | VRC16: 0 | VRD16: 0 | VRE16: 0 | VRF16: 0 | VRG16: 0 | VRH16: 0 | VRI16: 0 | VRJ16: 0 | VRK16: 0 | VRL16: 0 | VRM16: 0 | VRN16: 0 | VRO16: 0 | VRP16: 0 | VRQ16: 0 | VRR16: 0 | VRS16: 0 | VRT16: 0 | VRU16: 0 | VRV16: 0 | VRW16: =1.05*VRW6^1.4*((2*$N$5)/($N$5*$G$5))*IF($B$5=100,VRW9,VRW12)+VRW13+VRW14 -> 0 | VRX16: 0 | VRY16: 0 | VRZ16: 0 | VSA16: 0 | VSB16: 0 | VSC16: 0 | VSD16: 0 | VSE16: 0 | VSF16: 0 | VSG16: 0 | VSH16: 0 | VSI16: 0 | VSJ16: 0 | VSK16: 0 | VSL16: 0 | VSM16: 0 | VSN16: 0 | VSO16: 0 | VSP16: 0 | VSQ16: 0 | VSR16: 0 | VSS16: 0 | VST16: 0 | VSU16: 0 | VSV16: 0 | VSW16: 0 | VSX16: 0 | VSY16: 0 | VSZ16: 0 | VTA16: 0 | VTB16: 0 | VTC16: 0 | VTD16: 0 | VTE16: 0 | VTF16: 0 | VTG16: 0 | VTH16: 0 | VTI16: 0 | VTJ16: 0 | VTK16: 0 | VTL16: 0 | VTM16: 0 | VTN16: 0 | VTO16: 0 | VTP16: 0 | VTQ16: 0 | VTR16: 0 | VTS16: 0 | VTT16: 0 | VTU16: 0 | VTV16: 0 | VTW16: 0 | VTX16: 0 | VTY16: 0 | VTZ16: 0 | VUA16: 0 | VUB16: 0 | VUC16: 0 | VUD16: 0 | VUE16: 0 | VUF16: 0 | VUG16: 0 | VUH16: 0 | VUI16: =1.05*VUI6^1.4*((2*$N$5)/($N$5*$G$5))*IF($B$5=100,VUI9,VUI12)+VUI13+VUI14 -> 0 | VUJ16: 0 | VUK16: 0 | VUL16: 0 | VUM16: 0 | VUN16: 0 | VUO16: 0 | VUP16: 0 | VUQ16: 0 | VUR16: 0 | VUS16: 0 | VUT16: 0 | VUU16: 0 | VUV16: 0 | VUW16: 0 | VUX16: 0 | VUY16: 0 | VUZ16: 0 | VVA16: 0 | VVB16: 0 | VVC16: 0 | VVD16: 0 | VVE16: 0 | VVF16: 0 | VVG16: 0 | VVH16: 0 | VVI16: 0 | VVJ16: 0 | VVK16: 0 | VVL16: 0 | VVM16: 0 | VVN16: 0 | VVO16: 0 | VVP16: 0 | VVQ16: 0 | VVR16: 0 | VVS16: 0 | VVT16: 0 | VVU16: 0 | VVV16: 0 | VVW16: 0 | VVX16: 0 | VVY16: 0 | VVZ16: 0 | VWA16: 0 | VWB16: 0 | VWC16: 0 | VWD16: 0 | VWE16: 0 | VWF16: 0 | VWG16: 0 | VWH16: 0 | VWI16: 0 | VWJ16: 0 | VWK16: 0 | VWL16: 0 | VWM16: 0 | VWN16: 0 | VWO16: 0 | VWP16: 0 | VWQ16: 0 | VWR16: 0 | VWS16: 0 | VWT16: 0 | VWU16: =1.05*VWU6^1.4*((2*$N$5)/($N$5*$G$5))*IF($B$5=100,VWU9,VWU12)+VWU13+VWU14 -> 0 | VWV16: 0 | VWW16: 0 | VWX16: 0 | VWY16: 0 | VWZ16: 0 | VXA16: 0 | VXB16: 0 | VXC16: 0 | VXD16: 0 | VXE16: 0 | VXF16: 0 | VXG16: 0 | VXH16: 0 | VXI16: 0 | VXJ16: 0 | VXK16: 0 | VXL16: 0 | VXM16: 0 | VXN16: 0 | VXO16: 0 | VXP16: 0 | VXQ16: 0 | VXR16: 0 | VXS16: 0 | VXT16: 0 | VXU16: 0 | VXV16: 0 | VXW16: 0 | VXX16: 0 | VXY16: 0 | VXZ16: 0 | VYA16: 0 | VYB16: 0 | VYC16: 0 | VYD16: 0 | VYE16: 0 | VYF16: 0 | VYG16: 0 | VYH16: 0 | VYI16: 0 | VYJ16: 0 | VYK16: 0 | VYL16: 0 | VYM16: 0 | VYN16: 0 | VYO16: 0 | VYP16: 0 | VYQ16: 0 | VYR16: 0 | VYS16: 0 | VYT16: 0 | VYU16: 0 | VYV16: 0 | VYW16: 0 | VYX16: 0 | VYY16: 0 | VYZ16: 0 | VZA16: 0 | VZB16: 0 | VZC16: 0 | VZD16: 0 | VZE16: 0 | VZF16: 0 | VZG16: =1.05*VZG6^1.4*((2*$N$5)/($N$5*$G$5))*IF($B$5=100,VZG9,VZG12)+VZG13+VZG14 -> 0 | VZH16: 0 | VZI16: 0 | VZJ16: 0 | VZK16: 0 | VZL16: 0 | VZM16: 0 | VZN16: 0 | VZO16: 0 | VZP16: 0 | VZQ16: 0 | VZR16: 0 | VZS16: 0 | VZT16: 0 | VZU16: 0 | VZV16: 0 | VZW16: 0 | VZX16: 0 | VZY16: 0 | VZZ16: 0 | WAA16: 0 | WAB16: 0 | WAC16: 0 | WAD16: 0 | WAE16: 0 | WAF16: 0 | WAG16: 0 | WAH16: 0 | WAI16: 0 | WAJ16: 0 | WAK16: 0 | WAL16: 0 | WAM16: 0 | WAN16: 0 | WAO16: 0 | WAP16: 0 | WAQ16: 0 | WAR16: 0 | WAS16: 0 | WAT16: 0 | WAU16: 0 | WAV16: 0 | WAW16: 0 | WAX16: 0 | WAY16: 0 | WAZ16: 0 | WBA16: 0 | WBB16: 0 | WBC16: 0 | WBD16: 0 | WBE16: 0 | WBF16: 0 | WBG16: 0 | WBH16: 0 | WBI16: 0 | WBJ16: 0 | WBK16: 0 | WBL16: 0 | WBM16: 0 | WBN16: 0 | WBO16: 0 | WBP16: 0 | WBQ16: 0 | WBR16: 0 | WBS16: =1.05*WBS6^1.4*((2*$N$5)/($N$5*$G$5))*IF($B$5=100,WBS9,WBS12)+WBS13+WBS14 -> 0 | WBT16: 0 | WBU16: 0 | WBV16: 0 | WBW16: 0 | WBX16: 0 | WBY16: 0 | WBZ16: 0 | WCA16: 0 | WCB16: 0 | WCC16: 0 | WCD16: 0 | WCE16: 0 | WCF16: 0 | WCG16: 0 | WCH16: 0 | WCI16: 0 | WCJ16: 0 | WCK16: 0 | WCL16: 0 | WCM16: 0 | WCN16: 0 | WCO16: 0 | WCP16: 0 | WCQ16: 0 | WCR16: 0 | WCS16: 0 | WCT16: 0 | WCU16: 0 | WCV16: 0 | WCW16: 0 | WCX16: 0 | WCY16: 0 | WCZ16: 0 | WDA16: 0 | WDB16: 0 | WDC16: 0 | WDD16: 0 | WDE16: 0 | WDF16: 0 | WDG16: 0 | WDH16: 0 | WDI16: 0 | WDJ16: 0 | WDK16: 0 | WDL16: 0 | WDM16: 0 | WDN16: 0 | WDO16: 0 | WDP16: 0 | WDQ16: 0 | WDR16: 0 | WDS16: 0 | WDT16: 0 | WDU16: 0 | WDV16: 0 | WDW16: 0 | WDX16: 0 | WDY16: 0 | WDZ16: 0 | WEA16: 0 | WEB16: 0 | WEC16: 0 | WED16: 0 | WEE16: =1.05*WEE6^1.4*((2*$N$5)/($N$5*$G$5))*IF($B$5=100,WEE9,WEE12)+WEE13+WEE14 -> 0 | WEF16: 0 | WEG16: 0 | WEH16: 0 | WEI16: 0 | WEJ16: 0 | WEK16: 0 | WEL16: 0 | WEM16: 0 | WEN16: 0 | WEO16: 0 | WEP16: 0 | WEQ16: 0 | WER16: 0 | WES16: 0 | WET16: 0 | WEU16: 0 | WEV16: 0 | WEW16: 0 | WEX16: 0 | WEY16: 0 | WEZ16: 0 | WFA16: 0 | WFB16: 0 | WFC16: 0 | WFD16: 0 | WFE16: 0 | WFF16: 0 | WFG16: 0 | WFH16: 0 | WFI16: 0 | WFJ16: 0 | WFK16: 0 | WFL16: 0 | WFM16: 0 | WFN16: 0 | WFO16: 0 | WFP16: 0 | WFQ16: 0 | WFR16: 0 | WFS16: 0 | WFT16: 0 | WFU16: 0 | WFV16: 0 | WFW16: 0 | WFX16: 0 | WFY16: 0 | WFZ16: 0 | WGA16: 0 | WGB16: 0 | WGC16: 0 | WGD16: 0 | WGE16: 0 | WGF16: 0 | WGG16: 0 | WGH16: 0 | WGI16: 0 | WGJ16: 0 | WGK16: 0 | WGL16: 0 | WGM16: 0 | WGN16: 0 | WGO16: 0 | WGP16: 0 | WGQ16: =1.05*WGQ6^1.4*((2*$N$5)/($N$5*$G$5))*IF($B$5=100,WGQ9,WGQ12)+WGQ13+WGQ14 -> 0 | WGR16: 0 | WGS16: 0 | WGT16: 0 | WGU16: 0 | WGV16: 0 | WGW16: 0 | WGX16: 0 | WGY16: 0 | WGZ16: 0 | WHA16: 0 | WHB16: 0 | WHC16: 0 | WHD16: 0 | WHE16: 0 | WHF16: 0 | WHG16: 0 | WHH16: 0 | WHI16: 0 | WHJ16: 0 | WHK16: 0 | WHL16: 0 | WHM16: 0 | WHN16: 0 | WHO16: 0 | WHP16: 0 | WHQ16: 0 | WHR16: 0 | WHS16: 0 | WHT16: 0 | WHU16: 0 | WHV16: 0 | WHW16: 0 | WHX16: 0 | WHY16: 0 | WHZ16: 0 | WIA16: 0 | WIB16: 0 | WIC16: 0 | WID16: 0 | WIE16: 0 | WIF16: 0 | WIG16: 0 | WIH16: 0 | WII16: 0 | WIJ16: 0 | WIK16: 0 | WIL16: 0 | WIM16: 0 | WIN16: 0 | WIO16: 0 | WIP16: 0 | WIQ16: 0 | WIR16: 0 | WIS16: 0 | WIT16: 0 | WIU16: 0 | WIV16: 0 | WIW16: 0 | WIX16: 0 | WIY16: 0 | WIZ16: 0 | WJA16: 0 | WJB16: 0 | WJC16: =1.05*WJC6^1.4*((2*$N$5)/($N$5*$G$5))*IF($B$5=100,WJC9,WJC12)+WJC13+WJC14 -> 0 | WJD16: 0 | WJE16: 0 | WJF16: 0 | WJG16: 0 | WJH16: 0 | WJI16: 0 | WJJ16: 0 | WJK16: 0 | WJL16: 0 | WJM16: 0 | WJN16: 0 | WJO16: 0 | WJP16: 0 | WJQ16: 0 | WJR16: 0 | WJS16: 0 | WJT16: 0 | WJU16: 0 | WJV16: 0 | WJW16: 0 | WJX16: 0 | WJY16: 0 | WJZ16: 0 | WKA16: 0 | WKB16: 0 | WKC16: 0 | WKD16: 0 | WKE16: 0 | WKF16: 0 | WKG16: 0 | WKH16: 0 | WKI16: 0 | WKJ16: 0 | WKK16: 0 | WKL16: 0 | WKM16: 0 | WKN16: 0 | WKO16: 0 | WKP16: 0 | WKQ16: 0 | WKR16: 0 | WKS16: 0 | WKT16: 0 | WKU16: 0 | WKV16: 0 | WKW16: 0 | WKX16: 0 | WKY16: 0 | WKZ16: 0 | WLA16: 0 | WLB16: 0 | WLC16: 0 | WLD16: 0 | WLE16: 0 | WLF16: 0 | WLG16: 0 | WLH16: 0 | WLI16: 0 | WLJ16: 0 | WLK16: 0 | WLL16: 0 | WLM16: 0 | WLN16: 0 | WLO16: =1.05*WLO6^1.4*((2*$N$5)/($N$5*$G$5))*IF($B$5=100,WLO9,WLO12)+WLO13+WLO14 -> 0 | WLP16: 0 | WLQ16: 0 | WLR16: 0 | WLS16: 0 | WLT16: 0 | WLU16: 0 | WLV16: 0 | WLW16: 0 | WLX16: 0 | WLY16: 0 | WLZ16: 0 | WMA16: 0 | WMB16: 0 | WMC16: 0 | WMD16: 0 | WME16: 0 | WMF16: 0 | WMG16: 0 | WMH16: 0 | WMI16: 0 | WMJ16: 0 | WMK16: 0 | WML16: 0 | WMM16: 0 | WMN16: 0 | WMO16: 0 | WMP16: 0 | WMQ16: 0 | WMR16: 0 | WMS16: 0 | WMT16: 0 | WMU16: 0 | WMV16: 0 | WMW16: 0 | WMX16: 0 | WMY16: 0 | WMZ16: 0 | WNA16: 0 | WNB16: 0 | WNC16: 0 | WND16: 0 | WNE16: 0 | WNF16: 0 | WNG16: 0 | WNH16: 0 | WNI16: 0 | WNJ16: 0 | WNK16: 0 | WNL16: 0 | WNM16: 0 | WNN16: 0 | WNO16: 0 | WNP16: 0 | WNQ16: 0 | WNR16: 0 | WNS16: 0 | WNT16: 0 | WNU16: 0 | WNV16: 0 | WNW16: 0 | WNX16: 0 | WNY16: 0 | WNZ16: 0 | WOA16: =1.05*WOA6^1.4*((2*$N$5)/($N$5*$G$5))*IF($B$5=100,WOA9,WOA12)+WOA13+WOA14 -> 0 | WOB16: 0 | WOC16: 0 | WOD16: 0 | WOE16: 0 | WOF16: 0 | WOG16: 0 | WOH16: 0 | WOI16: 0 | WOJ16: 0 | WOK16: 0 | WOL16: 0 | WOM16: 0 | WON16: 0 | WOO16: 0 | WOP16: 0 | WOQ16: 0 | WOR16: 0 | WOS16: 0 | WOT16: 0 | WOU16: 0 | WOV16: 0 | WOW16: 0 | WOX16: 0 | WOY16: 0 | WOZ16: 0 | WPA16: 0 | WPB16: 0 | WPC16: 0 | WPD16: 0 | WPE16: 0 | WPF16: 0 | WPG16: 0 | WPH16: 0 | WPI16: 0 | WPJ16: 0 | WPK16: 0 | WPL16: 0 | WPM16: 0 | WPN16: 0 | WPO16: 0 | WPP16: 0 | WPQ16: 0 | WPR16: 0 | WPS16: 0 | WPT16: 0 | WPU16: 0 | WPV16: 0 | WPW16: 0 | WPX16: 0 | WPY16: 0 | WPZ16: 0 | WQA16: 0 | WQB16: 0 | WQC16: 0 | WQD16: 0 | WQE16: 0 | WQF16: 0 | WQG16: 0 | WQH16: 0 | WQI16: 0 | WQJ16: 0 | WQK16: 0 | WQL16: 0 | WQM16: =1.05*WQM6^1.4*((2*$N$5)/($N$5*$G$5))*IF($B$5=100,WQM9,WQM12)+WQM13+WQM14 -> 0 | WQN16: 0 | WQO16: 0 | WQP16: 0 | WQQ16: 0 | WQR16: 0 | WQS16: 0 | WQT16: 0 | WQU16: 0 | WQV16: 0 | WQW16: 0 | WQX16: 0 | WQY16: 0 | WQZ16: 0 | WRA16: 0 | WRB16: 0 | WRC16: 0 | WRD16: 0 | WRE16: 0 | WRF16: 0 | WRG16: 0 | WRH16: 0 | WRI16: 0 | WRJ16: 0 | WRK16: 0 | WRL16: 0 | WRM16: 0 | WRN16: 0 | WRO16: 0 | WRP16: 0 | WRQ16: 0 | WRR16: 0 | WRS16: 0 | WRT16: 0 | WRU16: 0 | WRV16: 0 | WRW16: 0 | WRX16: 0 | WRY16: 0 | WRZ16: 0 | WSA16: 0 | WSB16: 0 | WSC16: 0 | WSD16: 0 | WSE16: 0 | WSF16: 0 | WSG16: 0 | WSH16: 0 | WSI16: 0 | WSJ16: 0 | WSK16: 0 | WSL16: 0 | WSM16: 0 | WSN16: 0 | WSO16: 0 | WSP16: 0 | WSQ16: 0 | WSR16: 0 | WSS16: 0 | WST16: 0 | WSU16: 0 | WSV16: 0 | WSW16: 0 | WSX16: 0 | WSY16: =1.05*WSY6^1.4*((2*$N$5)/($N$5*$G$5))*IF($B$5=100,WSY9,WSY12)+WSY13+WSY14 -> 0 | WSZ16: 0 | WTA16: 0 | WTB16: 0 | WTC16: 0 | WTD16: 0 | WTE16: 0 | WTF16: 0 | WTG16: 0 | WTH16: 0 | WTI16: 0 | WTJ16: 0 | WTK16: 0 | WTL16: 0 | WTM16: 0 | WTN16: 0 | WTO16: 0 | WTP16: 0 | WTQ16: 0 | WTR16: 0 | WTS16: 0 | WTT16: 0 | WTU16: 0 | WTV16: 0 | WTW16: 0 | WTX16: 0 | WTY16: 0 | WTZ16: 0 | WUA16: 0 | WUB16: 0 | WUC16: 0 | WUD16: 0 | WUE16: 0 | WUF16: 0 | WUG16: 0 | WUH16: 0 | WUI16: 0 | WUJ16: 0 | WUK16: 0 | WUL16: 0 | WUM16: 0 | WUN16: 0 | WUO16: 0 | WUP16: 0 | WUQ16: 0 | WUR16: 0 | WUS16: 0 | WUT16: 0 | WUU16: 0 | WUV16: 0 | WUW16: 0 | WUX16: 0 | WUY16: 0 | WUZ16: 0 | WVA16: 0 | WVB16: 0 | WVC16: 0 | WVD16: 0 | WVE16: 0 | WVF16: 0 | WVG16: 0 | WVH16: 0 | WVI16: 0 | WVJ16: 0 | WVK16: =1.05*WVK6^1.4*((2*$N$5)/($N$5*$G$5))*IF($B$5=100,WVK9,WVK12)+WVK13+WVK14 -> 0 | WVL16: 0 | WVM16: 0 | WVN16: 0 | WVO16: 0 | WVP16: 0 | WVQ16: 0 | WVR16: 0 | WVS16: 0 | WVT16: 0 | WVU16: 0 | WVV16: 0 | WVW16: 0 | WVX16: 0 | WVY16: 0 | WVZ16: 0 | WWA16: 0 | WWB16: 0 | WWC16: 0 | WWD16: 0 | WWE16: 0 | WWF16: 0 | WWG16: 0 | WWH16: 0 | WWI16: 0 | WWJ16: 0 | WWK16: 0 | WWL16: 0 | WWM16: 0 | WWN16: 0 | WWO16: 0 | WWP16: 0 | WWQ16: 0 | WWR16: 0 | WWS16: 0 | WWT16: 0 | WWU16: 0 | WWV16: 0 | WWW16: 0 | WWX16: 0 | WWY16: 0 | WWZ16: 0 | WXA16: 0 | WXB16: 0 | WXC16: 0 | WXD16: 0 | WXE16: 0 | WXF16: 0 | WXG16: 0 | WXH16: 0 | WXI16: 0 | WXJ16: 0 | WXK16: 0 | WXL16: 0 | WXM16: 0 | WXN16: 0 | WXO16: 0 | WXP16: 0 | WXQ16: 0 | WXR16: 0 | WXS16: 0 | WXT16: 0 | WXU16: 0 | WXV16: 0 | WXW16: =1.05*WXW6^1.4*((2*$N$5)/($N$5*$G$5))*IF($B$5=100,WXW9,WXW12)+WXW13+WXW14 -> 0 | WXX16: 0 | WXY16: 0 | WXZ16: 0 | WYA16: 0 | WYB16: 0 | WYC16: 0 | WYD16: 0 | WYE16: 0 | WYF16: 0 | WYG16: 0 | WYH16: 0 | WYI16: 0 | WYJ16: 0 | WYK16: 0 | WYL16: 0 | WYM16: 0 | WYN16: 0 | WYO16: 0 | WYP16: 0 | WYQ16: 0 | WYR16: 0 | WYS16: 0 | WYT16: 0 | WYU16: 0 | WYV16: 0 | WYW16: 0 | WYX16: 0 | WYY16: 0 | WYZ16: 0 | WZA16: 0 | WZB16: 0 | WZC16: 0 | WZD16: 0 | WZE16: 0 | WZF16: 0 | WZG16: 0 | WZH16: 0 | WZI16: 0 | WZJ16: 0 | WZK16: 0 | WZL16: 0 | WZM16: 0 | WZN16: 0 | WZO16: 0 | WZP16: 0 | WZQ16: 0 | WZR16: 0 | WZS16: 0 | WZT16: 0 | WZU16: 0 | WZV16: 0 | WZW16: 0 | WZX16: 0 | WZY16: 0 | WZZ16: 0 | XAA16: 0 | XAB16: 0 | XAC16: 0 | XAD16: 0 | XAE16: 0 | XAF16: 0 | XAG16: 0 | XAH16: 0 | XAI16: =1.05*XAI6^1.4*((2*$N$5)/($N$5*$G$5))*IF($B$5=100,XAI9,XAI12)+XAI13+XAI14 -> 0 | XAJ16: 0 | XAK16: 0 | XAL16: 0 | XAM16: 0 | XAN16: 0 | XAO16: 0 | XAP16: 0 | XAQ16: 0 | XAR16: 0 | XAS16: 0 | XAT16: 0 | XAU16: 0 | XAV16: 0 | XAW16: 0 | XAX16: 0 | XAY16: 0 | XAZ16: 0 | XBA16: 0 | XBB16: 0 | XBC16: 0 | XBD16: 0 | XBE16: 0 | XBF16: 0 | XBG16: 0 | XBH16: 0 | XBI16: 0 | XBJ16: 0 | XBK16: 0 | XBL16: 0 | XBM16: 0 | XBN16: 0 | XBO16: 0 | XBP16: 0 | XBQ16: 0 | XBR16: 0 | XBS16: 0 | XBT16: 0 | XBU16: 0 | XBV16: 0 | XBW16: 0 | XBX16: 0 | XBY16: 0 | XBZ16: 0 | XCA16: 0 | XCB16: 0 | XCC16: 0 | XCD16: 0 | XCE16: 0 | XCF16: 0 | XCG16: 0 | XCH16: 0 | XCI16: 0 | XCJ16: 0 | XCK16: 0 | XCL16: 0 | XCM16: 0 | XCN16: 0 | XCO16: 0 | XCP16: 0 | XCQ16: 0 | XCR16: 0 | XCS16: 0 | XCT16: 0 | XCU16: =1.05*XCU6^1.4*((2*$N$5)/($N$5*$G$5))*IF($B$5=100,XCU9,XCU12)+XCU13+XCU14 -> 0 | XCV16: 0 | XCW16: 0 | XCX16: 0 | XCY16: 0 | XCZ16: 0 | XDA16: 0 | XDB16: 0 | XDC16: 0 | XDD16: 0 | XDE16: 0 | XDF16: 0 | XDG16: 0 | XDH16: 0 | XDI16: 0 | XDJ16: 0 | XDK16: 0 | XDL16: 0 | XDM16: 0 | XDN16: 0 | XDO16: 0 | XDP16: 0 | XDQ16: 0 | XDR16: 0 | XDS16: 0 | XDT16: 0 | XDU16: 0 | XDV16: 0 | XDW16: 0 | XDX16: 0 | XDY16: 0 | XDZ16: 0 | XEA16: 0 | XEB16: 0 | XEC16: 0 | XED16: 0 | XEE16: 0 | XEF16: 0 | XEG16: 0 | XEH16: 0 | XEI16: 0 | XEJ16: 0 | XEK16: 0 | XEL16: 0 | XEM16: 0 | XEN16: 0 | XEO16: 0 | XEP16: 0 | XEQ16: 0 | XER16: 0 | XES16: 0 | XET16: 0 | XEU16: 0 | XEV16: 0 | XEW16: 0 | XEX16: 0 | XEY16: 0 | XEZ16: 0 | XFA16: 0 | XFB16: 0 | XFC16: 0 | XFD16: 0
A17: bez mínus | B17: =IF(B16<0,0,B16) -> 0 | C17: =IF(C16<0,0,C16) -> 0.2105008746 | D17: 1.716891914 | E17: 1.459554509 | F17: 1.149660986 | G17: 0.5530677374 | H17: 3.08906194 | I17: 4.293522078 | J17: 4.779558906 | K17: 2.252702556 | L17: 0.8150570802 | M17: 2.297967695 | N17: 4.603895987 | O17: 3.851787443 | P17: 4.867456463 | Q17: 5.762043654 | R17: 8.999125774 | S17: 11.26877699 | T17: 10.53291254 | U17: 9.760951032 | V17: 9.917113223 | W17: 10.03318393 | X17: 7.764501227 | Y17: 6.247042939 | Z17: 5.746994922 | AA17: 5.762043654 | AB17: 6.715328096 | AC17: 4.743183807 | AD17: 4.779558906 | AE17: 4.779558906 | AF17: 3.362743814
A18: regrese | B18: 16 | C18: =TRANSPOSE(B17:AF17) -> 0 | F18: 16-63 Hz | K18: 40-250 Hz | P18: 160-1600 Hz | V18: 400-2500 Hz | AA18: 2000-16000 Hz
B19: 20 | C19: 0.2105008746 | F19: =LINEST(C18:C24,B18:B24^{1,2,3}) -> 0.0002538567217 | G19: -0.029451157 | H19: 1.068913663 | I19: -10.86786373 | K19: =LINEST(C22:C30,B22:B30^{1,2,3}) -> 5.480547718e-06 | L19: -0.002351182665 | M19: 0.2958816051 | N19: -7.781722932 | P19: =LINEST(C28:C36,B28:B36^{1,2,3}) -> -2.626595791e-08 | Q19: 3.531831822e-05 | R19: 0.0008179556855 | S19: 0.8738550152 | V19: =LINEST(C32:C40,B32:B40^{1,2,3}) -> 3.384443057e-09 | W19: -1.8534871e-05 | X19: 0.03010255313 | Y19: -4.208598558 | AA19: =LINEST(C39:C48,B39:B48^{1,2,3}) -> -8.807716506e-12 | AB19: 2.605694997e-07 | AC19: -0.002518623258 | AD19: 12.93642823
B20: 25 | C20: 1.716891914
B21: 31.5 | C21: 1.459554509 | Z21: limitní útlum | AA21: 60 | AB21: dB | AD21: korekce C | AE21: ano
B22: 40 | C22: 1.149660986
B23: 50 | C23: 0.5530677374
B24: 63 | C24: 3.08906194
B25: 80 | C25: 4.293522078
B26: 100 | C26: 4.779558906
B27: 125 | C27: 2.252702556
B28: 160 | C28: 0.8150570802
B29: 200 | C29: 2.297967695
B30: 250 | C30: 4.603895987
B31: 315 | C31: 3.851787443
B32: 400 | C32: 4.867456463
B33: 500 | C33: 5.762043654
B34: 630 | C34: 8.999125774
B35: 800 | C35: 11.26877699
B36: 1000 | C36: 10.53291254
B37: 1250 | C37: 9.760951032
B38: 1600 | C38: 9.917113223
B39: 2000 | C39: 10.03318393
B40: 2500 | C40: 7.764501227
B41: 3150 | C41: 6.247042939
B42: 4000 | C42: 5.746994922
B43: 5000 | C43: 5.762043654
B44: 6300 | C44: 6.715328096
B45: 8000 | C45: 4.743183807
B46: 10000 | C46: 4.779558906
B47: 12500 | C47: 4.779558906
B48: 16000 | C48: 3.362743814
B49: 16 | C49: 20 | D49: 25 | E49: 31.5 | F49: 40 | G49: 50 | H49: 63 | I49: 80 | J49: 100 | K49: 125 | L49: 160 | M49: 200 | N49: 250 | O49: 315 | P49: 400 | Q49: 500 | R49: 630 | S49: 800 | T49: 1000 | U49: 1250 | V49: 1600 | W49: 2000 | X49: 2500 | Y49: 3150 | Z49: 4000 | AA49: 5000 | AB49: 6300 | AC49: 8000 | AD49: 10000 | AE49: 12500 | AF49: 16000
A50: výpočet | B50: =B17 -> 0 | C50: 0.2105008746 | D50: 1.716891914 | E50: 1.459554509 | F50: 1.149660986 | G50: 0.5530677374 | H50: 3.08906194 | I50: 4.293522078 | J50: 4.779558906 | K50: 2.252702556 | L50: 0.8150570802 | M50: 2.297967695 | N50: 4.603895987 | O50: 3.851787443 | P50: 4.867456463 | Q50: 5.762043654 | R50: 8.999125774 | S50: 11.26877699 | T50: 10.53291254 | U50: 9.760951032 | V50: 9.917113223 | W50: 10.03318393 | X50: 7.764501227 | Y50: 6.247042939 | Z50: 5.746994922 | AA50: 5.762043654 | AB50: 6.715328096 | AC50: 4.743183807 | AD50: 4.779558906 | AE50: 4.779558906 | AF50: 3.362743814
A51: regrese 1 | B51: =$F$19*B49^3+$G$19*B49^2+$H$19*B49+$I$19 -> -0.2649441757 | C51: 0.7608005104 | D51: 1.414516004 | E51: 1.514520091 | F51: 1.013661787 | G51: 0.6820171409 | H51: 3.058166603
A52: regrese 2 | F52: =$K$19*F49^3+$L$19*F49^2+$M$19*F49+$N$19 -> 0.6424040629 | G52: 1.819469126 | H52: 2.897368709 | I52: 3.647276853 | J52: 3.775158648 | K52: 3.17044333 | L52: 1.817381117 | M52: 1.191673237
A53: regrese 3 | L53: =$P$19*L49^3+$Q$19*L49^2+$R$19*L49+$S$19 -> 1.801291508 | M53: 2.240051218 | N53: 2.875333233 | O53: 3.815005685 | P53: 5.170946899 | Q53: 6.829167675 | R53: 8.839283623 | S53: 10.68377278 | T53: 10.74417101
A54: regrese 4 | P54: =$V$19*P49^3+$W$19*P49^2+$X$19*P49+$Y$19 -> 5.083447688 | Q54: 6.632015636 | R54: 8.245789444 | S54: 9.743961347 | T54: 10.74352662 | U54: 11.06909725 | V54: 10.36889544 | W54: 8.932568144 | X54: 8.086763264
A55: regrese 5 | W55: =$AA$19*W49^3+$AB$19*W49^2+$AC$19*W49+$AD$19 -> 8.870997977 | X55: 8.130808885 | Y55: 7.312972939 | Z55: 6.467353334 | AA55: 5.756584867 | AB55: 5.208762056 | AC55: 4.954339293 | AD55: 4.999429112 | AE55: 4.96505053 | AF55: 3.267841212
A56: výsledek | B56: =B50 -> 0 | C56: =C50 -> 0.2105008746 | D56: =D51 -> 1.414516004 | E56: =E51 -> 1.514520091 | F56: =IF(F51<0,F52,AVERAGE(F51:F52)) -> 0.8280329252 | G56: =IF(G51<0,G52,AVERAGE(G51:G52)) -> 1.250743134 | H56: 2.977767656 | I56: =I52 -> 3.647276853 | J56: 3.775158648 | K56: 3.17044333 | L56: =IF(L52<0,L53,AVERAGE(L52:L53)) -> 1.809336312 | M56: =IF(M52<0,M53,AVERAGE(M52:M53)) -> 1.715862228 | N56: =N53 -> 2.875333233 | O56: =O53 -> 3.815005685 | P56: =MEDIAN(P53:P54) -> 5.127197293 | Q56: =MEDIAN(Q53:Q54) -> 6.730591656 | R56: 8.542536533 | S56: 10.21386706 | T56: 10.74384882 | U56: =U54 -> 11.06909725 | V56: =V54 -> 10.36889544 | W56: =AVERAGE(W54:W55) -> 8.901783061 | X56: =AVERAGE(X54:X55) -> 8.108786074 | Y56: =Y55 -> 7.312972939 | Z56: =Z55 -> 6.467353334 | AA56: 5.756584867 | AB56: 5.208762056 | AC56: 4.954339293 | AD56: 4.999429112 | AE56: 4.96505053 | AF56: 3.267841212
A57: bez mínus | B57: =IF(B56<0,0,B56) -> 0 | C57: =IF(C56<0,0,C56) -> 0.2105008746 | D57: 1.414516004 | E57: 1.514520091 | F57: 0.8280329252 | G57: 1.250743134 | H57: 2.977767656 | I57: 3.647276853 | J57: 3.775158648 | K57: 3.17044333 | L57: 1.809336312 | M57: 1.715862228 | N57: 2.875333233 | O57: 3.815005685 | P57: 5.127197293 | Q57: 6.730591656 | R57: 8.542536533 | S57: 10.21386706 | T57: 10.74384882 | U57: 11.06909725 | V57: 10.36889544 | W57: 8.901783061 | X57: 8.108786074 | Y57: 7.312972939 | Z57: 6.467353334 | AA57: 5.756584867 | AB57: 5.208762056 | AC57: 4.954339293 | AD57: 4.999429112 | AE57: 4.96505053 | AF57: 3.267841212
A58: S/λ | B58: =SQRT($U$5)*(B2/344) -> 0.0227859511 | C58: 0.02848243887 | D58: 0.03560304859 | E58: 0.04485984122 | F58: 0.05696487774 | G58: 0.07120609717 | H58: 0.08971968244 | I58: 0.1139297555 | J58: 0.1424121943 | K58: 0.1780152429 | L58: 0.227859511 | M58: 0.2848243887 | N58: 0.3560304859 | O58: 0.4485984122 | P58: 0.5696487774 | Q58: 0.7120609717 | R58: 0.8971968244 | S58: 1.139297555 | T58: 1.424121943 | U58: 1.780152429 | V58: 2.27859511 | W58: 2.848243887 | X58: 3.560304859 | Y58: 4.485984122 | Z58: 5.696487774 | AA58: 7.120609717 | AB58: 8.971968244 | AC58: 11.39297555 | AD58: 14.24121943 | AE58: 17.80152429 | AF58: 22.7859511
A59: křivka C | B59: =IF(B58<0.08,0,IF(B58>0.9,9,11.258*POWER(B58,3)-33.404*POWER(B58,2)+34.944*B58-2.8221)) -> 0 | C59: 0 | D59: 0 | E59: 0 | F59: 0 | G59: 0 | H59: 0 | I59: 0 | J59: 0 | K59: 0 | L59: 0 | M59: 0 | N59: 0 | O59: 0 | P59: 0 | Q59: 0 | R59: 0 | S59: 0 | T59: 0 | U59: 0 | V59: 0 | W59: 0 | X59: 0 | Y59: 0 | Z59: 0 | AA59: 0 | AB59: 0 | AC59: 0 | AD59: 0 | AE59: 0 | AF59: 0
A60: přen. útl. | B60: =B57+B59 -> 0 | C60: =C57+C59 -> 0.2105008746 | D60: 1.414516004 | E60: 1.514520091 | F60: 0.8280329252 | G60: 1.250743134 | H60: 2.977767656 | I60: 3.647276853 | J60: 3.775158648 | K60: 3.17044333 | L60: 1.809336312 | M60: 1.715862228 | N60: 2.875333233 | O60: 3.815005685 | P60: 5.127197293 | Q60: 6.730591656 | R60: 8.542536533 | S60: 10.21386706 | T60: 10.74384882 | U60: 11.06909725 | V60: 10.36889544 | W60: 8.901783061 | X60: 8.108786074 | Y60: 7.312972939 | Z60: 6.467353334 | AA60: 5.756584867 | AB60: 5.208762056 | AC60: 4.954339293 | AD60: 4.999429112 | AE60: 4.96505053 | AF60: 3.267841212

Sheet db_bun (hidden)
A1: 1 | B1: 2 | C1: 3 | D1: 4 | E1: 5 | F1: 6 | G1: 7 | H1: 8 | I1: 9 | J1: 10 | K1: 11 | L1: 12 | M1: 13 | N1: 14 | O1: 15 | P1: 16 | Q1: 17 | R1: 18 | S1: 19 | T1: 20 | U1: 21 | V1: 22 | W1: 23 | X1: 24 | Y1: 25 | Z1: 26 | AA1: 27 | AB1: 28 | AC1: 29 | AD1: 30 | AE1: 31 | AF1: 32
B2: 16 | C2: 20 | D2: 25 | E2: 31.5 | F2: 40 | G2: 50 | H2: 63 | I2: 80 | J2: 100 | K2: 125 | L2: 160 | M2: 200 | N2: 250 | O2: 315 | P2: 400 | Q2: 500 | R2: 630 | S2: 800 | T2: 1000 | U2: 1250 | V2: 1600 | W2: 2000 | X2: 2500 | Y2: 3150 | Z2: 4000 | AA2: 5000 | AB2: 6300 | AC2: 8000 | AD2: 10000 | AE2: 12500 | AF2: 16000
A3: 100 | B3: 0 | C3: 0.52 | D3: 2.685 | E3: 6.85 | F3: 6.945 | G3: 3.24 | H3: 8.275 | I3: 9.075 | J3: 4.185 | K3: 6.64 | L3: 1.87 | M3: 2.395 | N3: 3.81 | O3: 5.48 | P3: 4.845 | Q3: 8.615 | R3: 13.055 | S3: 17.755 | T3: 21.205 | U3: 23.99 | V3: 23.675 | W3: 19.93 | X3: 18.44 | Y3: 17.37 | Z3: 15.255 | AA3: 12.965 | AB3: 13.03 | AC3: 10.125 | AD3: 9 | AE3: 8.255 | AF3: 7.39
A4: 150 | B4: 0 | C4: 0 | D4: 7.075 | E4: 6.645 | F4: 6.315 | G4: 4.71 | H4: 4.705 | I4: 11.67 | J4: 7.465 | K4: 4.905 | L4: 0 | M4: 3.35 | N4: 4.405 | O4: 5.02 | P4: 4.025 | Q4: 6.655 | R4: 9.57 | S4: 15.03 | T4: 18.75 | U4: 19.545 | V4: 16.48 | W4: 11.77 | X4: 9.615 | Y4: 7.71 | Z4: 6.79 | AA4: 5.475 | AB4: 6.465 | AC4: 4.695 | AD4: 5.155 | AE4: 5.58 | AF4: 4.4
A5: 200 | B5: 0 | C5: 0 | D5: 7.5 | E5: 7 | F5: 7.5 | G5: 6 | H5: 6.5 | I5: 10.9 | J5: 4.5 | K5: 3.5 | L5: 0 | M5: 3.2 | N5: 4 | O5: 4.8 | P5: 3.8 | Q5: 7 | R5: 8.6 | S5: 16 | T5: 19 | U5: 18.8 | V5: 15.5 | W5: 11.6 | X5: 9 | Y5: 7.7 | Z5: 5.5 | AA5: 5 | AB5: 5 | AC5: 4.4 | AD5: 5 | AE5: 5.9 | AF5: 5
A6: 300 | B6: 0 | C6: 0 | D6: 8 | E6: 9 | F6: 8 | G6: 9 | H6: 7.4 | I6: 10.8 | J6: 2.5 | K6: 2.5 | L6: 0 | M6: 3.3 | N6: 4 | O6: 4.5 | P6: 3.7 | Q6: 7.5 | R6: 10 | S6: 17 | T6: 20 | U6: 18.8 | V6: 15 | W6: 11.5 | X6: 8.5 | Y6: 7.7 | Z6: 5 | AA6: 4.6 | AB6: 4 | AC6: 4.5 | AD6: 4.9 | AE6: 6 | AF6: 5
A7: 400 | B7: 0 | C7: 0 | D7: 8.45 | E7: 11.395 | F7: 12.435 | G7: 14.145 | H7: 8.455 | I7: 11.935 | J7: 0.23 | K7: 1.045 | L7: 0 | M7: 3.465 | N7: 4.945 | O7: 4.28 | P7: 3.65 | Q7: 10.405 | R7: 12.62 | S7: 19.61 | T7: 22.55 | U7: 18.75 | V7: 14.415 | W7: 11.59 | X7: 8.22 | Y7: 7.8 | Z7: 4.97 | AA7: 4.265 | AB7: 3.325 | AC7: 4.93 | AD7: 4.93 | AE7: 6.06 | AF7: 5.5
A8: kritéria výběru | B8: =COUNTIF(A3:A7,F12) -> 1 | E8: šířka buňky | F8: 200 | G8: 250 | H8: 300 | I8: 400
A9: =INDEX(A3:A7,MATCH(F12,A3:A7)) -> 150 | B9: =VLOOKUP($A$9,$A$3:$AF$7,B$1,FALSE) -> 0 | C9: 0 | D9: 7.075 | E9: 6.645 | F9: 6.315 | G9: 4.71 | H9: 4.705 | I9: 11.67 | J9: 7.465 | K9: 4.905 | L9: 0 | M9: 3.35 | N9: 4.405 | O9: 5.02 | P9: 4.025 | Q9: 6.655 | R9: 9.57 | S9: 15.03 | T9: 18.75 | U9: 19.545 | V9: 16.48 | W9: 11.77 | X9: 9.615 | Y9: 7.71 | Z9: 6.79 | AA9: 5.475 | AB9: 6.465 | AC9: 4.695 | AD9: 5.155 | AE9: 5.58 | AF9: 4.4
A10: =INDEX(A3:A7,MATCH(F12,A3:A7)+1) -> 200 | B10: =VLOOKUP($A$10,$A$3:$AF$7,B$1,FALSE) -> 0 | C10: 0 | D10: 7.5 | E10: 7 | F10: 7.5 | G10: 6 | H10: 6.5 | I10: 10.9 | J10: 4.5 | K10: 3.5 | L10: 0 | M10: 3.2 | N10: 4 | O10: 4.8 | P10: 3.8 | Q10: 7 | R10: 8.6 | S10: 16 | T10: 19 | U10: 18.8 | V10: 15.5 | W10: 11.6 | X10: 9 | Y10: 7.7 | Z10: 5.5 | AA10: 5 | AB10: 5 | AC10: 4.4 | AD10: 5 | AE10: 5.9 | AF10: 5
A11: izol 50 výběr | B11: =IF($B$8=1,VLOOKUP($F$12,$A$3:$AF$7,B1,FALSE),TREND(B9:B10,$A$9:$A$10,$F$12,)) -> 0 | C11: 0 | D11: 7.075 | E11: 6.645 | F11: 6.315 | G11: 4.71 | H11: 4.705 | I11: 11.67 | J11: 7.465 | K11: 4.905 | L11: 0 | M11: 3.35 | N11: 4.405 | O11: 5.02 | P11: 4.025 | Q11: 6.655 | R11: 9.57 | S11: 15.03 | T11: 18.75 | U11: 19.545 | V11: 16.48 | W11: 11.77 | X11: 9.615 | Y11: 7.71 | Z11: 6.79 | AA11: 5.475 | AB11: 6.465 | AC11: 4.695 | AD11: 5.155 | AE11: 5.58 | AF11: 4.4
A12: izolace | B12: =zadání!L22 -> 50 | C12: =B12/1000 -> 0.05 | E12: pr. mezera | F12: =zadání!D22-2*db_bun!B12 -> 150 | G12: =F12/1000 -> 0.15 | I12: délka | J12: =zadání!D26 -> 2000 | K12: =J12/1000 -> 2 | L12: výška | M12: =zadání!D24 -> 600 | N12: =M12/1000 -> 0.6 | Q12: počet sloupců n | R12: =zadání!L24 -> 5 | T12: počet řad m | U12: =zadání!N24 -> 2 | Y12: průt. plocha | Z12: =G12*N12*R12*U12 -> 0.9
A13: korekce délky | B13: 0 | C13: 0 | D13: 0 | E13: 6.51 | F13: 5.69 | G13: 0 | H13: 1.5 | I13: 3.5 | J13: 3.31 | K13: 7.72 | L13: 0 | M13: 0 | N13: 2 | O13: 3.19 | P13: 7 | Q13: 5.54 | R13: 16.92 | S13: 18.53 | T13: 21.63 | U13: 15.25 | V13: 7.28 | W13: 4.9 | X13: 4.36 | Y13: 2.46 | Z13: 3.89 | AA13: 2.33 | AB13: 8.95 | AC13: 0.9 | AD13: 1.89 | AE13: 0.31 | AF13: 2.79
B14: =($K$12-1)*B13 -> 0 | C14: =($K$12-1)*C13 -> 0 | D14: 0 | E14: 6.51 | F14: 5.69 | G14: 0 | H14: 1.5 | I14: 3.5 | J14: 3.31 | K14: 7.72 | L14: 0 | M14: 0 | N14: 2 | O14: 3.19 | P14: 7 | Q14: 5.54 | R14: 16.92 | S14: 18.53 | T14: 21.63 | U14: 15.25 | V14: 7.28 | W14: 4.9 | X14: 4.36 | Y14: 2.46 | Z14: 3.89 | AA14: =($K$12-1)*AA13 -> 2.33 | AB14: 8.95 | AC14: 0.9 | AD14: 1.89 | AE14: 0.31 | AF14: 2.79
A15: korekce výšky | B15: 0 | C15: 0 | D15: 0 | E15: 0 | F15: 0.08 | G15: 0.1 | H15: 0.3 | I15: 0 | J15: 0 | K15: 0.07 | L15: 0 | M15: 0 | N15: 0 | O15: 0.09 | P15: 0.34 | Q15: 0.3 | R15: 0.32 | S15: 0.22 | T15: 0.19 | U15: 0.19 | V15: 0.22 | W15: 0.41 | X15: 0.39 | Y15: 0.43 | Z15: 0.4 | AA15: 0.4 | AB15: 0.29 | AC15: 0.35 | AD15: 0.23 | AE15: 0.14 | AF15: 0.32
B16: =(1+((0.25-$N$12)/0.25))*B15*B7 -> 0 | C16: =(1+((0.25-$N$12)/0.25))*C15*C7 -> 0 | D16: 0 | E16: 0 | F16: -0.39792 | G16: -0.5658 | H16: -1.0146 | I16: 0 | J16: 0 | K16: -0.02926 | L16: 0 | M16: 0 | N16: 0 | O16: -0.15408 | P16: -0.4964 | Q16: -1.2486 | R16: -1.61536 | S16: -1.72568 | T16: -1.7138 | U16: -1.425 | V16: -1.26852 | W16: -1.90076 | X16: -1.28232 | Y16: -1.3416 | Z16: -0.7952 | AA16: -0.6824 | AB16: -0.3857 | AC16: -0.6902 | AD16: -0.45356 | AE16: -0.33936 | AF16: -0.704
A18: utlum | B18: =B11+B14-B16 -> 0 | C18: =C11+C14-C16 -> 0 | D18: 7.075 | E18: 13.155 | F18: 12.40292 | G18: 5.2758 | H18: 7.2196 | I18: 15.17 | J18: 10.775 | K18: 12.65426 | L18: 0 | M18: 3.35 | N18: 6.405 | O18: 8.36408 | P18: 11.5214 | Q18: 13.4436 | R18: 28.10536 | S18: 35.28568 | T18: 42.0938 | U18: 36.22 | V18: 25.02852 | W18: 18.57076 | X18: 15.25732 | Y18: 11.5116 | Z18: 11.4752 | AA18: 8.4874 | AB18: 15.8007 | AC18: 6.2852 | AD18: 7.49856 | AE18: 6.22936 | AF18: 7.894
B19: =IF(B18>60,60,IF(B18<0,0,B18)) -> 0 | C19: =IF(C18>60,60,IF(C18<0,0,C18)) -> 0 | D19: 7.075 | E19: 13.155 | F19: 12.40292 | G19: 5.2758 | H19: 7.2196 | I19: 15.17 | J19: 10.775 | K19: 12.65426 | L19: 0 | M19: 3.35 | N19: 6.405 | O19: 8.36408 | P19: 11.5214 | Q19: 13.4436 | R19: 28.10536 | S19: 35.28568 | T19: 42.0938 | U19: 36.22 | V19: 25.02852 | W19: 18.57076 | X19: 15.25732 | Y19: 11.5116 | Z19: 11.4752 | AA19: 8.4874 | AB19: 15.8007 | AC19: 6.2852 | AD19: 7.49856 | AE19: 6.22936 | AF19: 7.894
A20: počet buněk | B20: 0 | C20: 0.4076923077 | D20: 0.04655493482 | E20: 0.05226277372 | F20: 0.01 | G20: 0.01728395062 | H20: 0.01 | I20: 0.02 | J20: 0.02 | K20: 0.03 | L20: 0.7689839572 | M20: 0.7778705637 | N20: 0.1968503937 | O20: 0.2967153285 | P20: 0.631372549 | Q20: 0.4165989553 | R20: 0.4202987361 | S20: 0.3664883132 | T20: 0.2996934685 | U20: 0.2468528554 | V20: 0.2526293559 | W20: 0.2605117913 | X20: 0.3201735358 | Y20: 0.3491076569 | Z20: 0.3915437561 | AA20: 0.4611646741 | AB20: 0.3557943208 | AC20: 0.4022716049 | AD20: 0.5606666667 | AE20: 0.5142337977 | AF20: 0.2167794317
H21: =$R$12*$U$12*1.02 -> 10.2 | K21: =$R$12*$U$12*1.1 -> 11 | N21: =$R$12*$U$12*2.1 -> 21 | Q21: =$R$12*$U$12*3.3 -> 33 | T21: =$R$12*$U$12*5.9 -> 59 | W21: =$R$12*$U$12*5.2 -> 52 | Z21: =$R$12*$U$12*4.8 -> 48 | AC21: =$R$12*$U$12*4.2 -> 42
B22: 0.5 | C22: 0.6 | D22: 1 | E22: 1 | F22: 1 | G22: 0 | H22: 0 | I22: 0 | J22: 0 | K22: 2 | L22: 2 | M22: 2 | N22: 2 | O22: 4 | P22: 3 | Q22: 1 | R22: 3 | S22: 4 | T22: 5 | U22: 6 | V22: 5 | W22: 4 | X22: 3 | Y22: 2 | Z22: 4 | AA22: 6 | AB22: 4 | AC22: 2 | AD22: 1 | AE22: 1 | AF22: 0
A23: korekce hygiena | B23: =B22/3 -> 0.1666666667 | C23: =C22/3 -> 0.2 | D23: 0.3333333333 | E23: 0.3333333333 | F23: 0.3333333333 | G23: 0 | H23: 0 | I23: 0 | J23: 0 | K23: 0.6666666667 | L23: 0.6666666667 | M23: 0.6666666667 | N23: 0.6666666667 | O23: 1.333333333 | P23: 1 | Q23: 0.3333333333 | R23: 1 | S23: 1.333333333 | T23: 1.666666667 | U23: 2 | V23: 1.666666667 | W23: 1.333333333 | X23: 1 | Y23: 0.6666666667 | Z23: 1.333333333 | AA23: 2 | AB23: 1.333333333 | AC23: 0.6666666667 | AD23: 0.3333333333 | AE23: 0.3333333333 | AF23: 0 | AG23: 0
